Workbook

Sheet Guidance
C1: THE CONTENTS OF THE WORKBOOK INCLUDE ESTIMATES
C2: BASED ON SMALL SAMPLE SIZES WHICH MAY BE UNRELIABLE
C3: THEY ARE PROVIDED ON A CAVEAT EMPTOR BASIS
G5: Users should follow the guidelines set out in general terms below
G6: and in more detail in the Working Futures technical documentation available on line at:
G7: https://www.gov.uk/government/publications/uk-labour-market-projections-2014-to-2024
G9: If in doubt about what to do please contact:
G11: UKCES: email: working.futures@ukces.org.uk
G12: All other enquiries: Rob Wilson, IER, University of Warwick, email: r.a.wilson@warwick.ac.uk, tel: 024 7652 3530
G14: Copyright: Warwick Institute for Employment Research / Cambridge Econometrics, 2015
G17: REPORTING
G18: The projections presented in this Workbook are calculated from a number of different data sources, using
G19: a variety of econometric and statistical techniques. As a result, precise margins of error cannot be assigned
G20: to the estimates. For further details, see the Working Futures Technical Report.
G22: However, as a general rule of thumb, it is not advisable to use any statistics or analyses in published reports etc which are not
G23: based on data for at least 10,000 individuals. This should provide a reasonable degree of statistical robustness to
G24: the estimates whether historic or forecast.
G26: For unpublished analyses, a more lenient criterion can be used. However, the uncertainties associated with
G27: projections involving fewer than 1,000 individuals are probably too great to make such estimates useful.
G28: However, there is inevitably some degree of judgement required on the part of the researcher.
G30: For cases in between 1,000 and 10,000 individuals, it is difficult to prescribe general rules, and an element of
G31: judgement by on behalf of the user is needed.
G33: Thus, in summary, CE/IER advise:
G35: PUBLISHED ANALYSIS: Ideally, a minimum of 10,000 individuals per cell
G36: UNPUBLISHED ANALYSIS: A minimum of 1,000 individuals per cell

Sheet Info
A1: South West
A2: c152 | B2: <-MDM forecast identifier
A3: Occupational forecast: Saturday, 23 January 2016 at 03:23

Sheet Table 6.x.2a CD
A1: Table 6.x.2a | B1: Employment Status
A2: =names!A3 -> All industries | E2: 000s | I2: Labels for graphs (DO NOT REMOVE!) | M2: - for :- | N2: Figure 6.x.7
A3: =All!P7 -> 2004 | N3: Figure 6.x.8
A4: Employment by Gender | B4: FT | C4: =I4 -> PT 2004 | D4: SE | E4: Total | I4: =CONCATENATE(" PT ",A3) -> PT 2004 | K4: =CONCATENATE(" PT ",All!I7,"-",RIGHT(TEXT(A3,"0"),2)) -> PT 1997-04 | N4: Figure 6.x.9
A5: Male employment | B5: =MalesFT!$P$8/1000 -> 876.977 | C5: =MalesPT!$P$8/1000 -> 187.054 | D5: =MalesSE!$P$8/1000 -> 261.34 | E5: =Males!$P$8/1000 -> 1325.371
A6: Female employment | B6: =FemalesFT!$P$8/1000 -> 541.293 | C6: =FemalesPT!$P$8/1000 -> 599.141 | D6: =FemalesSE!$P$8/1000 -> 101.611 | E6: =Females!$P$8/1000 -> 1242.045
A7: Total employment | B7: =FT!$P$8/1000 -> 1418.27 | C7: =PT!$P$8/1000 -> 786.195 | D7: =SE!$P$8/1000 -> 362.951 | E7: =All!$P$8/1000 -> 2567.416
A9: =All!U7 -> 2009
A10: Employment by Gender | B10: FT | C10: =I10 -> PT 2009 | D10: SE | E10: Total | I10: =CONCATENATE(" PT ",A9) -> PT 2009 | K10: =CONCATENATE(" PT ",A3,"-",RIGHT(TEXT(A9,"0"),2)) -> PT 2004-09
A11: Male employment | B11: =MalesFT!$U$8/1000 -> 972.399 | C11: =MalesPT!$U$8/1000 -> 197.464 | D11: =MalesSE!$U$8/1000 -> 227.343 | E11: =Males!$U$8/1000 -> 1397.206
A12: Female employment | B12: =FemalesFT!$U$8/1000 -> 521.598 | C12: =FemalesPT!$U$8/1000 -> 616.868 | D12: =FemalesSE!$U$8/1000 -> 129.894 | E12: =Females!$U$8/1000 -> 1268.36
A13: Total employment | B13: =FT!$U$8/1000 -> 1493.997 | C13: =PT!$U$8/1000 -> 814.332 | D13: =SE!$U$8/1000 -> 357.237 | E13: =All!$U$8/1000 -> 2665.566
A15: =All!Z7 -> 2014
A16: Employment by Gender | B16: FT | C16: =I16 -> PT 2014 | D16: SE | E16: Total | I16: =CONCATENATE(" PT ",A15) -> PT 2014 | K16: =CONCATENATE(" PT ",A9,"-",RIGHT(TEXT(A15,"0"),2)) -> PT 2009-14
A17: Male employment | B17: =MalesFT!$Z$8/1000 -> 927.819 | C17: =MalesPT!$Z$8/1000 -> 208.559 | D17: =MalesSE!$Z$8/1000 -> 304.187 | E17: =Males!$Z$8/1000 -> 1440.565
A18: Female employment | B18: =FemalesFT!$Z$8/1000 -> 571.358 | C18: =FemalesPT!$Z$8/1000 -> 613.161 | D18: =FemalesSE!$Z$8/1000 -> 181.875 | E18: =Females!$Z$8/1000 -> 1366.394
A19: Total employment | B19: =FT!$Z$8/1000 -> 1499.177 | C19: =PT!$Z$8/1000 -> 821.72 | D19: =SE!$Z$8/1000 -> 486.062 | E19: =All!$Z$8/1000 -> 2806.959
A21: =All!AE7 -> 2019
A22: Employment by Gender | B22: FT | C22: =I22 -> PT 2019 | D22: SE | E22: Total | I22: =CONCATENATE(" PT ",A21) -> PT 2019 | K22: =CONCATENATE(" PT ",A15,"-",RIGHT(TEXT(A21,"0"),2)) -> PT 2014-19
A23: Male employment | B23: =MalesFT!$AE$8/1000 -> 953.463 | C23: =MalesPT!$AE$8/1000 -> 229.316 | D23: =MalesSE!$AE$8/1000 -> 310.276 | E23: =Males!$AE$8/1000 -> 1493.055
A24: Female employment | B24: =FemalesFT!$AE$8/1000 -> 592.803 | C24: =FemalesPT!$AE$8/1000 -> 637.328 | D24: =FemalesSE!$AE$8/1000 -> 185.705 | E24: =Females!$AE$8/1000 -> 1415.836
A25: Total employment | B25: =FT!$AE$8/1000 -> 1546.266 | C25: =PT!$AE$8/1000 -> 866.644 | D25: =SE!$AE$8/1000 -> 495.981 | E25: =All!$AE$8/1000 -> 2908.891
A27: =All!AJ7 -> 2024
A28: Employment by Gender | B28: FT | C28: =I28 -> PT 2024 | D28: SE | E28: Total | I28: =CONCATENATE(" PT ",A27) -> PT 2024 | K28: =CONCATENATE(" PT ",A21,"-",RIGHT(TEXT(A27,"0"),2)) -> PT 2019-24
A29: Male employment | B29: =MalesFT!$AJ$8/1000 -> 957.838 | C29: =MalesPT!$AJ$8/1000 -> 251.689 | D29: =MalesSE!$AJ$8/1000 -> 308.362 | E29: =Males!$AJ$8/1000 -> 1517.889
A30: Female employment | B30: =FemalesFT!$AJ$8/1000 -> 615.805 | C30: =FemalesPT!$AJ$8/1000 -> 664.601 | D30: =FemalesSE!$AJ$8/1000 -> 188.534 | E30: =Females!$AJ$8/1000 -> 1468.94
A31: Total employment | B31: =FT!$AJ$8/1000 -> 1573.643 | C31: =PT!$AJ$8/1000 -> 916.29 | D31: =SE!$AJ$8/1000 -> 496.896 | E31: =All!$AJ$8/1000 -> 2986.829
A34: Table 6.x.2a | B34: Employment Status
A35: =names!A4 -> Agriculture | E35: 000s
A36: =A$3 -> 2004
A37: Employment by Gender | B37: FT | C37: PT | D37: SE | E37: Total
A38: Male employment | B38: =MalesFT!$P$36/1000 -> 15.971 | C38: =MalesPT!$P$36/1000 -> 2.086 | D38: =MalesSE!$P$36/1000 -> 12.916 | E38: =Males!$P$36/1000 -> 30.973
A39: Female employment | B39: =FemalesFT!$P$36/1000 -> 4.454 | C39: =FemalesPT!$P$36/1000 -> 1.979 | D39: =FemalesSE!$P$36/1000 -> 3.104 | E39: =Females!$P$36/1000 -> 9.537
A40: Total employment | B40: =FT!$P$36/1000 -> 20.425 | C40: =PT!$P$36/1000 -> 4.065 | D40: =SE!$P$36/1000 -> 16.02 | E40: =All!$P$36/1000 -> 40.51
A42: =A$9 -> 2009
A43: Employment by Gender | B43: FT | C43: PT | D43: SE | E43: Total
A44: Male employment | B44: =MalesFT!$U$36/1000 -> 17.778 | C44: =MalesPT!$U$36/1000 -> 0 | D44: =MalesSE!$U$36/1000 -> 21.802 | E44: =Males!$U$36/1000 -> 39.58
A45: Female employment | B45: =FemalesFT!$U$36/1000 -> 3.11 | C45: =FemalesPT!$U$36/1000 -> 2.965 | D45: =FemalesSE!$U$36/1000 -> 9.336 | E45: =Females!$U$36/1000 -> 15.411
A46: Total employment | B46: =FT!$U$36/1000 -> 20.888 | C46: =PT!$U$36/1000 -> 2.965 | D46: =SE!$U$36/1000 -> 31.138 | E46: =All!$U$36/1000 -> 54.991
A48: =A$15 -> 2014
A49: Employment by Gender | B49: FT | C49: PT | D49: SE | E49: Total
A50: Male employment | B50: =MalesFT!$Z$36/1000 -> 28.141 | C50: =MalesPT!$Z$36/1000 -> 3.997 | D50: =MalesSE!$Z$36/1000 -> 20.858 | E50: =Males!$Z$36/1000 -> 52.996
A51: Female employment | B51: =FemalesFT!$Z$36/1000 -> 7.975 | C51: =FemalesPT!$Z$36/1000 -> 2.949 | D51: =FemalesSE!$Z$36/1000 -> 7.342 | E51: =Females!$Z$36/1000 -> 18.266
A52: Total employment | B52: =FT!$Z$36/1000 -> 36.116 | C52: =PT!$Z$36/1000 -> 6.946 | D52: =SE!$Z$36/1000 -> 28.2 | E52: =All!$Z$36/1000 -> 71.262
A54: =A$21 -> 2019
A55: Employment by Gender | B55: FT | C55: PT | D55: SE | E55: Total
A56: Male employment | B56: =MalesFT!$AE$36/1000 -> 23.353 | C56: =MalesPT!$AE$36/1000 -> 3.659 | D56: =MalesSE!$AE$36/1000 -> 17.163 | E56: =Males!$AE$36/1000 -> 44.175
A57: Female employment | B57: =FemalesFT!$AE$36/1000 -> 7.284 | C57: =FemalesPT!$AE$36/1000 -> 2.862 | D57: =FemalesSE!$AE$36/1000 -> 6.237 | E57: =Females!$AE$36/1000 -> 16.383
A58: Total employment | B58: =FT!$AE$36/1000 -> 30.637 | C58: =PT!$AE$36/1000 -> 6.521 | D58: =SE!$AE$36/1000 -> 23.4 | E58: =All!$AE$36/1000 -> 60.558
A60: =A$27 -> 2024
A61: Employment by Gender | B61: FT | C61: PT | D61: SE | E61: Total
A62: Male employment | B62: =MalesFT!$AJ$36/1000 -> 21.065 | C62: =MalesPT!$AJ$36/1000 -> 3.724 | D62: =MalesSE!$AJ$36/1000 -> 15.188 | E62: =Males!$AJ$36/1000 -> 39.977
A63: Female employment | B63: =FemalesFT!$AJ$36/1000 -> 7.507 | C63: =FemalesPT!$AJ$36/1000 -> 3.139 | D63: =FemalesSE!$AJ$36/1000 -> 5.821 | E63: =Females!$AJ$36/1000 -> 16.467
A64: Total employment | B64: =FT!$AJ$36/1000 -> 28.572 | C64: =PT!$AJ$36/1000 -> 6.863 | D64: =SE!$AJ$36/1000 -> 21.009 | E64: =All!$AJ$36/1000 -> 56.444
A67: Table 6.x.2a | B67: Employment Status
A68: =names!A5 -> Mining and quarrying | E68: 000s
A69: =A$3 -> 2004
A70: Employment by Gender | B70: FT | C70: PT | D70: SE | E70: Total
A71: Male employment | B71: =MalesFT!$P$64/1000 -> 3.79 | C71: =MalesPT!$P$64/1000 -> 0.112 | D71: =MalesSE!$P$64/1000 -> 0 | E71: =Males!$P$64/1000 -> 3.902
A72: Female employment | B72: =FemalesFT!$P$64/1000 -> 0.001 | C72: =FemalesPT!$P$64/1000 -> 0.195 | D72: =FemalesSE!$P$64/1000 -> 0.054 | E72: =Females!$P$64/1000 -> 0.25
A73: Total employment | B73: =FT!$P$64/1000 -> 3.791 | C73: =PT!$P$64/1000 -> 0.307 | D73: =SE!$P$64/1000 -> 0.054 | E73: =All!$P$64/1000 -> 4.152
A75: =A$9 -> 2009
A76: Employment by Gender | B76: FT | C76: PT | D76: SE | E76: Total
A77: Male employment | B77: =MalesFT!$U$64/1000 -> 2.916 | C77: =MalesPT!$U$64/1000 -> 0.109 | D77: =MalesSE!$U$64/1000 -> 0 | E77: =Males!$U$64/1000 -> 3.025
A78: Female employment | B78: =FemalesFT!$U$64/1000 -> 0 | C78: =FemalesPT!$U$64/1000 -> 0.001 | D78: =FemalesSE!$U$64/1000 -> 0.103 | E78: =Females!$U$64/1000 -> 0.104
A79: Total employment | B79: =FT!$U$64/1000 -> 2.916 | C79: =PT!$U$64/1000 -> 0.11 | D79: =SE!$U$64/1000 -> 0.103 | E79: =All!$U$64/1000 -> 3.129
A81: =A$15 -> 2014
A82: Employment by Gender | B82: FT | C82: PT | D82: SE | E82: Total
A83: Male employment | B83: =MalesFT!$Z$64/1000 -> 2.027 | C83: =MalesPT!$Z$64/1000 -> 0.109 | D83: =MalesSE!$Z$64/1000 -> 0 | E83: =Males!$Z$64/1000 -> 2.136
A84: Female employment | B84: =FemalesFT!$Z$64/1000 -> 0 | C84: =FemalesPT!$Z$64/1000 -> 0.001 | D84: =FemalesSE!$Z$64/1000 -> 0 | E84: =Females!$Z$64/1000 -> 0.001
A85: Total employment | B85: =FT!$Z$64/1000 -> 2.027 | C85: =PT!$Z$64/1000 -> 0.11 | D85: =SE!$Z$64/1000 -> 0 | E85: =All!$Z$64/1000 -> 2.137
A87: =A$21 -> 2019
A88: Employment by Gender | B88: FT | C88: PT | D88: SE | E88: Total
A89: Male employment | B89: =MalesFT!$AE$64/1000 -> 3.009 | C89: =MalesPT!$AE$64/1000 -> 0.173 | D89: =MalesSE!$AE$64/1000 -> 0 | E89: =Males!$AE$64/1000 -> 3.182
A90: Female employment | B90: =FemalesFT!$AE$64/1000 -> 0.001 | C90: =FemalesPT!$AE$64/1000 -> 0.001 | D90: =FemalesSE!$AE$64/1000 -> 0 | E90: =Females!$AE$64/1000 -> 0.002
A91: Total employment | B91: =FT!$AE$64/1000 -> 3.01 | C91: =PT!$AE$64/1000 -> 0.174 | D91: =SE!$AE$64/1000 -> 0 | E91: =All!$AE$64/1000 -> 3.184
A93: =A$27 -> 2024
A94: Employment by Gender | B94: FT | C94: PT | D94: SE | E94: Total
A95: Male employment | B95: =MalesFT!$AJ$64/1000 -> 2.338 | C95: =MalesPT!$AJ$64/1000 -> 0.176 | D95: =MalesSE!$AJ$64/1000 -> 0 | E95: =Males!$AJ$64/1000 -> 2.514
A96: Female employment | B96: =FemalesFT!$AJ$64/1000 -> 0 | C96: =FemalesPT!$AJ$64/1000 -> 0.001 | D96: =FemalesSE!$AJ$64/1000 -> 0 | E96: =Females!$AJ$64/1000 -> 0.001
A97: Total employment | B97: =FT!$AJ$64/1000 -> 2.338 | C97: =PT!$AJ$64/1000 -> 0.177 | D97: =SE!$AJ$64/1000 -> 0 | E97: =All!$AJ$64/1000 -> 2.515
A100: Table 6.x.2a | B100: Employment Status
A101: =names!A6 -> Food drink and tobacco | E101: 000s
A102: =A$3 -> 2004
A103: Employment by Gender | B103: FT | C103: PT | D103: SE | E103: Total
A104: Male employment | B104: =MalesFT!$P$92/1000 -> 25.205 | C104: =MalesPT!$P$92/1000 -> 1.332 | D104: =MalesSE!$P$92/1000 -> 0.15 | E104: =Males!$P$92/1000 -> 26.687
A105: Female employment | B105: =FemalesFT!$P$92/1000 -> 9.588 | C105: =FemalesPT!$P$92/1000 -> 3.386 | D105: =FemalesSE!$P$92/1000 -> 0.096 | E105: =Females!$P$92/1000 -> 13.07
A106: Total employment | B106: =FT!$P$92/1000 -> 34.793 | C106: =PT!$P$92/1000 -> 4.718 | D106: =SE!$P$92/1000 -> 0.246 | E106: =All!$P$92/1000 -> 39.757
A108: =A$9 -> 2009
A109: Employment by Gender | B109: FT | C109: PT | D109: SE | E109: Total
A110: Male employment | B110: =MalesFT!$U$92/1000 -> 22.363 | C110: =MalesPT!$U$92/1000 -> 0.689 | D110: =MalesSE!$U$92/1000 -> 1.082 | E110: =Males!$U$92/1000 -> 24.134
A111: Female employment | B111: =FemalesFT!$U$92/1000 -> 8.916 | C111: =FemalesPT!$U$92/1000 -> 2.927 | D111: =FemalesSE!$U$92/1000 -> 1.258 | E111: =Females!$U$92/1000 -> 13.101
A112: Total employment | B112: =FT!$U$92/1000 -> 31.279 | C112: =PT!$U$92/1000 -> 3.616 | D112: =SE!$U$92/1000 -> 2.34 | E112: =All!$U$92/1000 -> 37.235
A114: =A$15 -> 2014
A115: Employment by Gender | B115: FT | C115: PT | D115: SE | E115: Total
A116: Male employment | B116: =MalesFT!$Z$92/1000 -> 19.398 | C116: =MalesPT!$Z$92/1000 -> 1.194 | D116: =MalesSE!$Z$92/1000 -> 0.507 | E116: =Males!$Z$92/1000 -> 21.099
A117: Female employment | B117: =FemalesFT!$Z$92/1000 -> 8.513 | C117: =FemalesPT!$Z$92/1000 -> 2.795 | D117: =FemalesSE!$Z$92/1000 -> 1.543 | E117: =Females!$Z$92/1000 -> 12.851
A118: Total employment | B118: =FT!$Z$92/1000 -> 27.911 | C118: =PT!$Z$92/1000 -> 3.989 | D118: =SE!$Z$92/1000 -> 2.05 | E118: =All!$Z$92/1000 -> 33.95
A120: =A$21 -> 2019
A121: Employment by Gender | B121: FT | C121: PT | D121: SE | E121: Total
A122: Male employment | B122: =MalesFT!$AE$92/1000 -> 18.166 | C122: =MalesPT!$AE$92/1000 -> 1.316 | D122: =MalesSE!$AE$92/1000 -> 0.479 | E122: =Males!$AE$92/1000 -> 19.961
A123: Female employment | B123: =FemalesFT!$AE$92/1000 -> 8.081 | C123: =FemalesPT!$AE$92/1000 -> 2.718 | D123: =FemalesSE!$AE$92/1000 -> 1.451 | E123: =Females!$AE$92/1000 -> 12.25
A124: Total employment | B124: =FT!$AE$92/1000 -> 26.247 | C124: =PT!$AE$92/1000 -> 4.034 | D124: =SE!$AE$92/1000 -> 1.93 | E124: =All!$AE$92/1000 -> 32.211
A126: =A$27 -> 2024
A127: Employment by Gender | B127: FT | C127: PT | D127: SE | E127: Total
A128: Male employment | B128: =MalesFT!$AJ$92/1000 -> 15.39 | C128: =MalesPT!$AJ$92/1000 -> 1.325 | D128: =MalesSE!$AJ$92/1000 -> 0.405 | E128: =Males!$AJ$92/1000 -> 17.12
A129: Female employment | B129: =FemalesFT!$AJ$92/1000 -> 6.946 | C129: =FemalesPT!$AJ$92/1000 -> 2.409 | D129: =FemalesSE!$AJ$92/1000 -> 1.245 | E129: =Females!$AJ$92/1000 -> 10.6
A130: Total employment | B130: =FT!$AJ$92/1000 -> 22.336 | C130: =PT!$AJ$92/1000 -> 3.734 | D130: =SE!$AJ$92/1000 -> 1.65 | E130: =All!$AJ$92/1000 -> 27.72
A133: Table 6.x.2a | B133: Employment Status
A134: =names!A7 -> Engineering | E134: 000s
A135: =A$3 -> 2004
A136: Employment by Gender | B136: FT | C136: PT | D136: SE | E136: Total
A137: Male employment | B137: =MalesFT!$P$120/1000 -> 35.838 | C137: =MalesPT!$P$120/1000 -> 0.856 | D137: =MalesSE!$P$120/1000 -> 1.414 | E137: =Males!$P$120/1000 -> 38.108
A138: Female employment | B138: =FemalesFT!$P$120/1000 -> 10.852 | C138: =FemalesPT!$P$120/1000 -> 1.748 | D138: =FemalesSE!$P$120/1000 -> 0.572 | E138: =Females!$P$120/1000 -> 13.172
A139: Total employment | B139: =FT!$P$120/1000 -> 46.69 | C139: =PT!$P$120/1000 -> 2.604 | D139: =SE!$P$120/1000 -> 1.986 | E139: =All!$P$120/1000 -> 51.28
A141: =A$9 -> 2009
A142: Employment by Gender | B142: FT | C142: PT | D142: SE | E142: Total
A143: Male employment | B143: =MalesFT!$U$120/1000 -> 26.519 | C143: =MalesPT!$U$120/1000 -> 0.292 | D143: =MalesSE!$U$120/1000 -> 1.853 | E143: =Males!$U$120/1000 -> 28.664
A144: Female employment | B144: =FemalesFT!$U$120/1000 -> 6.155 | C144: =FemalesPT!$U$120/1000 -> 0.89 | D144: =FemalesSE!$U$120/1000 -> 0.375 | E144: =Females!$U$120/1000 -> 7.42
A145: Total employment | B145: =FT!$U$120/1000 -> 32.674 | C145: =PT!$U$120/1000 -> 1.182 | D145: =SE!$U$120/1000 -> 2.228 | E145: =All!$U$120/1000 -> 36.084
A147: =A$15 -> 2014
A148: Employment by Gender | B148: FT | C148: PT | D148: SE | E148: Total
A149: Male employment | B149: =MalesFT!$Z$120/1000 -> 34.893 | C149: =MalesPT!$Z$120/1000 -> 1.114 | D149: =MalesSE!$Z$120/1000 -> 1.68 | E149: =Males!$Z$120/1000 -> 37.687
A150: Female employment | B150: =FemalesFT!$Z$120/1000 -> 9.17 | C150: =FemalesPT!$Z$120/1000 -> 2.522 | D150: =FemalesSE!$Z$120/1000 -> 0.603 | E150: =Females!$Z$120/1000 -> 12.295
A151: Total employment | B151: =FT!$Z$120/1000 -> 44.063 | C151: =PT!$Z$120/1000 -> 3.636 | D151: =SE!$Z$120/1000 -> 2.283 | E151: =All!$Z$120/1000 -> 49.982
A153: =A$21 -> 2019
A154: Employment by Gender | B154: FT | C154: PT | D154: SE | E154: Total
A155: Male employment | B155: =MalesFT!$AE$120/1000 -> 30.582 | C155: =MalesPT!$AE$120/1000 -> 1.24 | D155: =MalesSE!$AE$120/1000 -> 1.638 | E155: =Males!$AE$120/1000 -> 33.46
A156: Female employment | B156: =FemalesFT!$AE$120/1000 -> 8.408 | C156: =FemalesPT!$AE$120/1000 -> 2.483 | D156: =FemalesSE!$AE$120/1000 -> 0.603 | E156: =Females!$AE$120/1000 -> 11.494
A157: Total employment | B157: =FT!$AE$120/1000 -> 38.99 | C157: =PT!$AE$120/1000 -> 3.723 | D157: =SE!$AE$120/1000 -> 2.241 | E157: =All!$AE$120/1000 -> 44.954
A159: =A$27 -> 2024
A160: Employment by Gender | B160: FT | C160: PT | D160: SE | E160: Total
A161: Male employment | B161: =MalesFT!$AJ$120/1000 -> 23.178 | C161: =MalesPT!$AJ$120/1000 -> 1.256 | D161: =MalesSE!$AJ$120/1000 -> 1.44 | E161: =Males!$AJ$120/1000 -> 25.874
A162: Female employment | B162: =FemalesFT!$AJ$120/1000 -> 6.615 | C162: =FemalesPT!$AJ$120/1000 -> 2.21 | D162: =FemalesSE!$AJ$120/1000 -> 0.552 | E162: =Females!$AJ$120/1000 -> 9.377
A163: Total employment | B163: =FT!$AJ$120/1000 -> 29.793 | C163: =PT!$AJ$120/1000 -> 3.466 | D163: =SE!$AJ$120/1000 -> 1.992 | E163: =All!$AJ$120/1000 -> 35.251
A166: Table 6.x.2a | B166: Employment Status
A167: =names!A8 -> Rest of manufacturing | E167: 000s
A168: =A$3 -> 2004
A169: Employment by Gender | B169: FT | C169: PT | D169: SE | E169: Total
A170: Male employment | B170: =MalesFT!$P$148/1000 -> 123.713 | C170: =MalesPT!$P$148/1000 -> 2.807 | D170: =MalesSE!$P$148/1000 -> 15.419 | E170: =Males!$P$148/1000 -> 141.939
A171: Female employment | B171: =FemalesFT!$P$148/1000 -> 26.567 | C171: =FemalesPT!$P$148/1000 -> 8.776 | D171: =FemalesSE!$P$148/1000 -> 4.353 | E171: =Females!$P$148/1000 -> 39.696
A172: Total employment | B172: =FT!$P$148/1000 -> 150.28 | C172: =PT!$P$148/1000 -> 11.583 | D172: =SE!$P$148/1000 -> 19.772 | E172: =All!$P$148/1000 -> 181.635
A174: =A$9 -> 2009
A175: Employment by Gender | B175: FT | C175: PT | D175: SE | E175: Total
A176: Male employment | B176: =MalesFT!$U$148/1000 -> 123.044 | C176: =MalesPT!$U$148/1000 -> 2.778 | D176: =MalesSE!$U$148/1000 -> 13.622 | E176: =Males!$U$148/1000 -> 139.444
A177: Female employment | B177: =FemalesFT!$U$148/1000 -> 22.224 | C177: =FemalesPT!$U$148/1000 -> 7.2 | D177: =FemalesSE!$U$148/1000 -> 3.671 | E177: =Females!$U$148/1000 -> 33.095
A178: Total employment | B178: =FT!$U$148/1000 -> 145.268 | C178: =PT!$U$148/1000 -> 9.978 | D178: =SE!$U$148/1000 -> 17.293 | E178: =All!$U$148/1000 -> 172.539
A180: =A$15 -> 2014
A181: Employment by Gender | B181: FT | C181: PT | D181: SE | E181: Total
A182: Male employment | B182: =MalesFT!$Z$148/1000 -> 106.78 | C182: =MalesPT!$Z$148/1000 -> 3.793 | D182: =MalesSE!$Z$148/1000 -> 9.794 | E182: =Males!$Z$148/1000 -> 120.367
A183: Female employment | B183: =FemalesFT!$Z$148/1000 -> 20.374 | C183: =FemalesPT!$Z$148/1000 -> 6.552 | D183: =FemalesSE!$Z$148/1000 -> 5.107 | E183: =Females!$Z$148/1000 -> 32.033
A184: Total employment | B184: =FT!$Z$148/1000 -> 127.154 | C184: =PT!$Z$148/1000 -> 10.345 | D184: =SE!$Z$148/1000 -> 14.901 | E184: =All!$Z$148/1000 -> 152.4
A186: =A$21 -> 2019
A187: Employment by Gender | B187: FT | C187: PT | D187: SE | E187: Total
A188: Male employment | B188: =MalesFT!$AE$148/1000 -> 108.915 | C188: =MalesPT!$AE$148/1000 -> 4.342 | D188: =MalesSE!$AE$148/1000 -> 10.519 | E188: =Males!$AE$148/1000 -> 123.776
A189: Female employment | B189: =FemalesFT!$AE$148/1000 -> 22.267 | C189: =FemalesPT!$AE$148/1000 -> 7.453 | D189: =FemalesSE!$AE$148/1000 -> 5.499 | E189: =Females!$AE$148/1000 -> 35.219
A190: Total employment | B190: =FT!$AE$148/1000 -> 131.182 | C190: =PT!$AE$148/1000 -> 11.795 | D190: =SE!$AE$148/1000 -> 16.018 | E190: =All!$AE$148/1000 -> 158.995
A192: =A$27 -> 2024
A193: Employment by Gender | B193: FT | C193: PT | D193: SE | E193: Total
A194: Male employment | B194: =MalesFT!$AJ$148/1000 -> 104.787 | C194: =MalesPT!$AJ$148/1000 -> 4.9 | D194: =MalesSE!$AJ$148/1000 -> 10.903 | E194: =Males!$AJ$148/1000 -> 120.59
A195: Female employment | B195: =FemalesFT!$AJ$148/1000 -> 22.922 | C195: =FemalesPT!$AJ$148/1000 -> 8.291 | D195: =FemalesSE!$AJ$148/1000 -> 5.704 | E195: =Females!$AJ$148/1000 -> 36.917
A196: Total employment | B196: =FT!$AJ$148/1000 -> 127.709 | C196: =PT!$AJ$148/1000 -> 13.191 | D196: =SE!$AJ$148/1000 -> 16.607 | E196: =All!$AJ$148/1000 -> 157.507
A199: Table 6.x.2a | B199: Employment Status
A200: =names!A9 -> Electricity and gas | E200: 000s
A201: =A$3 -> 2004
A202: Employment by Gender | B202: FT | C202: PT | D202: SE | E202: Total
A203: Male employment | B203: =MalesFT!$P$176/1000 -> 6.121 | C203: =MalesPT!$P$176/1000 -> 0.084 | D203: =MalesSE!$P$176/1000 -> 0.802 | E203: =Males!$P$176/1000 -> 7.007
A204: Female employment | B204: =FemalesFT!$P$176/1000 -> 2.226 | C204: =FemalesPT!$P$176/1000 -> 1.351 | D204: =FemalesSE!$P$176/1000 -> 0.03 | E204: =Females!$P$176/1000 -> 3.607
A205: Total employment | B205: =FT!$P$176/1000 -> 8.347 | C205: =PT!$P$176/1000 -> 1.435 | D205: =SE!$P$176/1000 -> 0.832 | E205: =All!$P$176/1000 -> 10.614
A207: =A$9 -> 2009
A208: Employment by Gender | B208: FT | C208: PT | D208: SE | E208: Total
A209: Male employment | B209: =MalesFT!$U$176/1000 -> 7.003 | C209: =MalesPT!$U$176/1000 -> 0.167 | D209: =MalesSE!$U$176/1000 -> 0.001 | E209: =Males!$U$176/1000 -> 7.171
A210: Female employment | B210: =FemalesFT!$U$176/1000 -> 2.094 | C210: =FemalesPT!$U$176/1000 -> 0 | D210: =FemalesSE!$U$176/1000 -> 0 | E210: =Females!$U$176/1000 -> 2.094
A211: Total employment | B211: =FT!$U$176/1000 -> 9.097 | C211: =PT!$U$176/1000 -> 0.167 | D211: =SE!$U$176/1000 -> 0.001 | E211: =All!$U$176/1000 -> 9.265
A213: =A$15 -> 2014
A214: Employment by Gender | B214: FT | C214: PT | D214: SE | E214: Total
A215: Male employment | B215: =MalesFT!$Z$176/1000 -> 5.004 | C215: =MalesPT!$Z$176/1000 -> 0.084 | D215: =MalesSE!$Z$176/1000 -> 0.99 | E215: =Males!$Z$176/1000 -> 6.078
A216: Female employment | B216: =FemalesFT!$Z$176/1000 -> 2.09 | C216: =FemalesPT!$Z$176/1000 -> 0 | D216: =FemalesSE!$Z$176/1000 -> 0 | E216: =Females!$Z$176/1000 -> 2.09
A217: Total employment | B217: =FT!$Z$176/1000 -> 7.094 | C217: =PT!$Z$176/1000 -> 0.084 | D217: =SE!$Z$176/1000 -> 0.99 | E217: =All!$Z$176/1000 -> 8.168
A219: =A$21 -> 2019
A220: Employment by Gender | B220: FT | C220: PT | D220: SE | E220: Total
A221: Male employment | B221: =MalesFT!$AE$176/1000 -> 5.831 | C221: =MalesPT!$AE$176/1000 -> 0.072 | D221: =MalesSE!$AE$176/1000 -> 1.122 | E221: =Males!$AE$176/1000 -> 7.025
A222: Female employment | B222: =FemalesFT!$AE$176/1000 -> 2.132 | C222: =FemalesPT!$AE$176/1000 -> 0 | D222: =FemalesSE!$AE$176/1000 -> 0 | E222: =Females!$AE$176/1000 -> 2.132
A223: Total employment | B223: =FT!$AE$176/1000 -> 7.963 | C223: =PT!$AE$176/1000 -> 0.072 | D223: =SE!$AE$176/1000 -> 1.122 | E223: =All!$AE$176/1000 -> 9.157
A225: =A$27 -> 2024
A226: Employment by Gender | B226: FT | C226: PT | D226: SE | E226: Total
A227: Male employment | B227: =MalesFT!$AJ$176/1000 -> 6.3 | C227: =MalesPT!$AJ$176/1000 -> 0.044 | D227: =MalesSE!$AJ$176/1000 -> 1.158 | E227: =Males!$AJ$176/1000 -> 7.502
A228: Female employment | B228: =FemalesFT!$AJ$176/1000 -> 1.894 | C228: =FemalesPT!$AJ$176/1000 -> 0 | D228: =FemalesSE!$AJ$176/1000 -> 0 | E228: =Females!$AJ$176/1000 -> 1.894
A229: Total employment | B229: =FT!$AJ$176/1000 -> 8.194 | C229: =PT!$AJ$176/1000 -> 0.044 | D229: =SE!$AJ$176/1000 -> 1.158 | E229: =All!$AJ$176/1000 -> 9.396
A232: Table 6.x.2a | B232: Employment Status
A233: =names!A10 -> Water and sewerage | E233: 000s
A234: =A$3 -> 2004
A235: Employment by Gender | B235: FT | C235: PT | D235: SE | E235: Total
A236: Male employment | B236: =MalesFT!$P$204/1000 -> 9.008 | C236: =MalesPT!$P$204/1000 -> 0 | D236: =MalesSE!$P$204/1000 -> 0 | E236: =Males!$P$204/1000 -> 9.008
A237: Female employment | B237: =FemalesFT!$P$204/1000 -> 2.095 | C237: =FemalesPT!$P$204/1000 -> 0.845 | D237: =FemalesSE!$P$204/1000 -> 0.08 | E237: =Females!$P$204/1000 -> 3.02
A238: Total employment | B238: =FT!$P$204/1000 -> 11.103 | C238: =PT!$P$204/1000 -> 0.845 | D238: =SE!$P$204/1000 -> 0.08 | E238: =All!$P$204/1000 -> 12.028
A240: =A$9 -> 2009
A241: Employment by Gender | B241: FT | C241: PT | D241: SE | E241: Total
A242: Male employment | B242: =MalesFT!$U$204/1000 -> 10.04 | C242: =MalesPT!$U$204/1000 -> 0 | D242: =MalesSE!$U$204/1000 -> 0.757 | E242: =Males!$U$204/1000 -> 10.797
A243: Female employment | B243: =FemalesFT!$U$204/1000 -> 1.99 | C243: =FemalesPT!$U$204/1000 -> 0.995 | D243: =FemalesSE!$U$204/1000 -> 0.076 | E243: =Females!$U$204/1000 -> 3.061
... 265 more rows

Sheet Table 6.x.2b CD
A1: Table 6.x.2b | B1: Employment Shares
A2: ='Table 6.x.2a CD'!A2 -> All industries | E2: per cent
A3: ='Table 6.x.2a CD'!A3 -> 2004
A4: Employment by Gender | B4: FT | C4: PT | D4: SE | E4: Total
A5: Male employment | B5: ='Table 6.x.2a CD'!B5/'Table 6.x.2a CD'!E7*100 -> 34.15796271 | C5: ='Table 6.x.2a CD'!C5/'Table 6.x.2a CD'!E7*100 -> 7.285691138 | D5: ='Table 6.x.2a CD'!D5/'Table 6.x.2a CD'!E7*100 -> 10.17910615 | E5: ='Table 6.x.2a CD'!E5/'Table 6.x.2a CD'!E7*100 -> 51.62276
A6: Female employment | B6: ='Table 6.x.2a CD'!B6/'Table 6.x.2a CD'!E7*100 -> 21.08318247 | C6: ='Table 6.x.2a CD'!C6/'Table 6.x.2a CD'!E7*100 -> 23.33634284 | D6: ='Table 6.x.2a CD'!D6/'Table 6.x.2a CD'!E7*100 -> 3.957714683 | E6: ='Table 6.x.2a CD'!E6/'Table 6.x.2a CD'!E7*100 -> 48.37724
A7: Total employment | B7: ='Table 6.x.2a CD'!B7/'Table 6.x.2a CD'!E7*100 -> 55.24114518 | C7: ='Table 6.x.2a CD'!C7/'Table 6.x.2a CD'!E7*100 -> 30.62203398 | D7: ='Table 6.x.2a CD'!D7/'Table 6.x.2a CD'!E7*100 -> 14.13682083 | E7: ='Table 6.x.2a CD'!E7/'Table 6.x.2a CD'!E7*100 -> 100
A9: ='Table 6.x.2a CD'!A9 -> 2009
A10: Employment by Gender | B10: FT | C10: PT | D10: SE | E10: Total
A11: Male employment | B11: ='Table 6.x.2a CD'!B11/'Table 6.x.2a CD'!E13*100 -> 36.48001963 | C11: ='Table 6.x.2a CD'!C11/'Table 6.x.2a CD'!E13*100 -> 7.407957635 | D11: ='Table 6.x.2a CD'!D11/'Table 6.x.2a CD'!E13*100 -> 8.528882796 | E11: ='Table 6.x.2a CD'!E11/'Table 6.x.2a CD'!E13*100 -> 52.41686006
A12: Female employment | B12: ='Table 6.x.2a CD'!B12/'Table 6.x.2a CD'!E13*100 -> 19.56800169 | C12: ='Table 6.x.2a CD'!C12/'Table 6.x.2a CD'!E13*100 -> 23.1421019 | D12: ='Table 6.x.2a CD'!D12/'Table 6.x.2a CD'!E13*100 -> 4.873036346 | E12: ='Table 6.x.2a CD'!E12/'Table 6.x.2a CD'!E13*100 -> 47.58313994
A13: Total employment | B13: ='Table 6.x.2a CD'!B13/'Table 6.x.2a CD'!E13*100 -> 56.04802132 | C13: ='Table 6.x.2a CD'!C13/'Table 6.x.2a CD'!E13*100 -> 30.55005954 | D13: ='Table 6.x.2a CD'!D13/'Table 6.x.2a CD'!E13*100 -> 13.40191914 | E13: ='Table 6.x.2a CD'!E13/'Table 6.x.2a CD'!E13*100 -> 100
A15: ='Table 6.x.2a CD'!A15 -> 2014
A16: Employment by Gender | B16: FT | C16: PT | D16: SE | E16: Total
A17: Male employment | B17: ='Table 6.x.2a CD'!B17/'Table 6.x.2a CD'!E19*100 -> 33.05424126 | C17: ='Table 6.x.2a CD'!C17/'Table 6.x.2a CD'!E19*100 -> 7.430069338 | D17: ='Table 6.x.2a CD'!D17/'Table 6.x.2a CD'!E19*100 -> 10.83688789 | E17: ='Table 6.x.2a CD'!E17/'Table 6.x.2a CD'!E19*100 -> 51.32119849
A18: Female employment | B18: ='Table 6.x.2a CD'!B18/'Table 6.x.2a CD'!E19*100 -> 20.35505328 | C18: ='Table 6.x.2a CD'!C18/'Table 6.x.2a CD'!E19*100 -> 21.84431622 | D18: ='Table 6.x.2a CD'!D18/'Table 6.x.2a CD'!E19*100 -> 6.479432012 | E18: ='Table 6.x.2a CD'!E18/'Table 6.x.2a CD'!E19*100 -> 48.67880151
A19: Total employment | B19: ='Table 6.x.2a CD'!B19/'Table 6.x.2a CD'!E19*100 -> 53.40929454 | C19: ='Table 6.x.2a CD'!C19/'Table 6.x.2a CD'!E19*100 -> 29.27438555 | D19: ='Table 6.x.2a CD'!D19/'Table 6.x.2a CD'!E19*100 -> 17.3163199 | E19: ='Table 6.x.2a CD'!E19/'Table 6.x.2a CD'!E19*100 -> 100
A21: ='Table 6.x.2a CD'!A21 -> 2019
A22: Employment by Gender | B22: FT | C22: PT | D22: SE | E22: Total
A23: Male employment | B23: ='Table 6.x.2a CD'!B23/'Table 6.x.2a CD'!E25*100 -> 32.77754306 | C23: ='Table 6.x.2a CD'!C23/'Table 6.x.2a CD'!E25*100 -> 7.883279229 | D23: ='Table 6.x.2a CD'!D23/'Table 6.x.2a CD'!E25*100 -> 10.66647049 | E23: ='Table 6.x.2a CD'!E23/'Table 6.x.2a CD'!E25*100 -> 51.32729277
A24: Female employment | B24: ='Table 6.x.2a CD'!B24/'Table 6.x.2a CD'!E25*100 -> 20.37900354 | C24: ='Table 6.x.2a CD'!C24/'Table 6.x.2a CD'!E25*100 -> 21.9096556 | D24: ='Table 6.x.2a CD'!D24/'Table 6.x.2a CD'!E25*100 -> 6.384048079 | E24: ='Table 6.x.2a CD'!E24/'Table 6.x.2a CD'!E25*100 -> 48.67270723
A25: Total employment | B25: ='Table 6.x.2a CD'!B25/'Table 6.x.2a CD'!E25*100 -> 53.1565466 | C25: ='Table 6.x.2a CD'!C25/'Table 6.x.2a CD'!E25*100 -> 29.79293483 | D25: ='Table 6.x.2a CD'!D25/'Table 6.x.2a CD'!E25*100 -> 17.05051857 | E25: ='Table 6.x.2a CD'!E25/'Table 6.x.2a CD'!E25*100 -> 100
A27: ='Table 6.x.2a CD'!A27 -> 2024
A28: Employment by Gender | B28: FT | C28: PT | D28: SE | E28: Total
A29: Male employment | B29: ='Table 6.x.2a CD'!B29/'Table 6.x.2a CD'!E31*100 -> 32.06872573 | C29: ='Table 6.x.2a CD'!C29/'Table 6.x.2a CD'!E31*100 -> 8.426629044 | D29: ='Table 6.x.2a CD'!D29/'Table 6.x.2a CD'!E31*100 -> 10.3240594 | E29: ='Table 6.x.2a CD'!E29/'Table 6.x.2a CD'!E31*100 -> 50.81941417
A30: Female employment | B30: ='Table 6.x.2a CD'!B30/'Table 6.x.2a CD'!E31*100 -> 20.61735037 | C30: ='Table 6.x.2a CD'!C30/'Table 6.x.2a CD'!E31*100 -> 22.25105622 | D30: ='Table 6.x.2a CD'!D30/'Table 6.x.2a CD'!E31*100 -> 6.312179238 | E30: ='Table 6.x.2a CD'!E30/'Table 6.x.2a CD'!E31*100 -> 49.18058583
A31: Total employment | B31: ='Table 6.x.2a CD'!B31/'Table 6.x.2a CD'!E31*100 -> 52.6860761 | C31: ='Table 6.x.2a CD'!C31/'Table 6.x.2a CD'!E31*100 -> 30.67768526 | D31: ='Table 6.x.2a CD'!D31/'Table 6.x.2a CD'!E31*100 -> 16.63623863 | E31: ='Table 6.x.2a CD'!E31/'Table 6.x.2a CD'!E31*100 -> 100
A34: Table 6.x.2b | B34: Employment Status
A35: ='Table 6.x.2a CD'!A35 -> Agriculture | E35: per cent
A36: ='Table 6.x.2a CD'!A36 -> 2004
A37: Employment by Gender | B37: FT | C37: PT | D37: SE | E37: Total
A38: Male employment | B38: ='Table 6.x.2a CD'!B38/'Table 6.x.2a CD'!E40*100 -> 39.42483337 | C38: ='Table 6.x.2a CD'!C38/'Table 6.x.2a CD'!E40*100 -> 5.149345841 | D38: ='Table 6.x.2a CD'!D38/'Table 6.x.2a CD'!E40*100 -> 31.88348556 | E38: ='Table 6.x.2a CD'!E38/'Table 6.x.2a CD'!E40*100 -> 76.45766477
A39: Female employment | B39: ='Table 6.x.2a CD'!B39/'Table 6.x.2a CD'!E40*100 -> 10.99481609 | C39: ='Table 6.x.2a CD'!C39/'Table 6.x.2a CD'!E40*100 -> 4.885213528 | D39: ='Table 6.x.2a CD'!D39/'Table 6.x.2a CD'!E40*100 -> 7.662305604 | E39: ='Table 6.x.2a CD'!E39/'Table 6.x.2a CD'!E40*100 -> 23.54233523
A40: Total employment | B40: ='Table 6.x.2a CD'!B40/'Table 6.x.2a CD'!E40*100 -> 50.41964947 | C40: ='Table 6.x.2a CD'!C40/'Table 6.x.2a CD'!E40*100 -> 10.03455937 | D40: ='Table 6.x.2a CD'!D40/'Table 6.x.2a CD'!E40*100 -> 39.54579116 | E40: ='Table 6.x.2a CD'!E40/'Table 6.x.2a CD'!E40*100 -> 100
A42: ='Table 6.x.2a CD'!A42 -> 2009
A43: Employment by Gender | B43: FT | C43: PT | D43: SE | E43: Total
A44: Male employment | B44: ='Table 6.x.2a CD'!B44/'Table 6.x.2a CD'!E46*100 -> 32.32892655 | C44: ='Table 6.x.2a CD'!C44/'Table 6.x.2a CD'!E46*100 -> 0 | D44: ='Table 6.x.2a CD'!D44/'Table 6.x.2a CD'!E46*100 -> 39.64648761 | E44: ='Table 6.x.2a CD'!E44/'Table 6.x.2a CD'!E46*100 -> 71.97541416
A45: Female employment | B45: ='Table 6.x.2a CD'!B45/'Table 6.x.2a CD'!E46*100 -> 5.655470895 | C45: ='Table 6.x.2a CD'!C45/'Table 6.x.2a CD'!E46*100 -> 5.391791384 | D45: ='Table 6.x.2a CD'!D45/'Table 6.x.2a CD'!E46*100 -> 16.97732356 | E45: ='Table 6.x.2a CD'!E45/'Table 6.x.2a CD'!E46*100 -> 28.02458584
A46: Total employment | B46: ='Table 6.x.2a CD'!B46/'Table 6.x.2a CD'!E46*100 -> 37.98439745 | C46: ='Table 6.x.2a CD'!C46/'Table 6.x.2a CD'!E46*100 -> 5.391791384 | D46: ='Table 6.x.2a CD'!D46/'Table 6.x.2a CD'!E46*100 -> 56.62381117 | E46: ='Table 6.x.2a CD'!E46/'Table 6.x.2a CD'!E46*100 -> 100
A48: ='Table 6.x.2a CD'!A48 -> 2014
A49: Employment by Gender | B49: FT | C49: PT | D49: SE | E49: Total
A50: Male employment | B50: ='Table 6.x.2a CD'!B50/'Table 6.x.2a CD'!E52*100 -> 39.48948949 | C50: ='Table 6.x.2a CD'!C50/'Table 6.x.2a CD'!E52*100 -> 5.608879908 | D50: ='Table 6.x.2a CD'!D50/'Table 6.x.2a CD'!E52*100 -> 29.26945637 | E50: ='Table 6.x.2a CD'!E50/'Table 6.x.2a CD'!E52*100 -> 74.36782577
A51: Female employment | B51: ='Table 6.x.2a CD'!B51/'Table 6.x.2a CD'!E52*100 -> 11.19109764 | C51: ='Table 6.x.2a CD'!C51/'Table 6.x.2a CD'!E52*100 -> 4.1382504 | D51: ='Table 6.x.2a CD'!D51/'Table 6.x.2a CD'!E52*100 -> 10.30282619 | E51: ='Table 6.x.2a CD'!E51/'Table 6.x.2a CD'!E52*100 -> 25.63217423
A52: Total employment | B52: ='Table 6.x.2a CD'!B52/'Table 6.x.2a CD'!E52*100 -> 50.68058713 | C52: ='Table 6.x.2a CD'!C52/'Table 6.x.2a CD'!E52*100 -> 9.747130308 | D52: ='Table 6.x.2a CD'!D52/'Table 6.x.2a CD'!E52*100 -> 39.57228256 | E52: ='Table 6.x.2a CD'!E52/'Table 6.x.2a CD'!E52*100 -> 100
A54: ='Table 6.x.2a CD'!A54 -> 2019
A55: Employment by Gender | B55: FT | C55: PT | D55: SE | E55: Total
A56: Male employment | B56: ='Table 6.x.2a CD'!B56/'Table 6.x.2a CD'!E58*100 -> 38.56303048 | C56: ='Table 6.x.2a CD'!C56/'Table 6.x.2a CD'!E58*100 -> 6.042141418 | D56: ='Table 6.x.2a CD'!D56/'Table 6.x.2a CD'!E58*100 -> 28.34142475 | E56: ='Table 6.x.2a CD'!E56/'Table 6.x.2a CD'!E58*100 -> 72.94659665
A57: Female employment | B57: ='Table 6.x.2a CD'!B57/'Table 6.x.2a CD'!E58*100 -> 12.02813831 | C57: ='Table 6.x.2a CD'!C57/'Table 6.x.2a CD'!E58*100 -> 4.726047756 | D57: ='Table 6.x.2a CD'!D57/'Table 6.x.2a CD'!E58*100 -> 10.29921728 | E57: ='Table 6.x.2a CD'!E57/'Table 6.x.2a CD'!E58*100 -> 27.05340335
A58: Total employment | B58: ='Table 6.x.2a CD'!B58/'Table 6.x.2a CD'!E58*100 -> 50.5911688 | C58: ='Table 6.x.2a CD'!C58/'Table 6.x.2a CD'!E58*100 -> 10.76818917 | D58: ='Table 6.x.2a CD'!D58/'Table 6.x.2a CD'!E58*100 -> 38.64064203 | E58: ='Table 6.x.2a CD'!E58/'Table 6.x.2a CD'!E58*100 -> 100
A60: ='Table 6.x.2a CD'!A60 -> 2024
A61: Employment by Gender | B61: FT | C61: PT | D61: SE | E61: Total
A62: Male employment | B62: ='Table 6.x.2a CD'!B62/'Table 6.x.2a CD'!E64*100 -> 37.32017575 | C62: ='Table 6.x.2a CD'!C62/'Table 6.x.2a CD'!E64*100 -> 6.597689746 | D62: ='Table 6.x.2a CD'!D62/'Table 6.x.2a CD'!E64*100 -> 26.90808589 | E62: ='Table 6.x.2a CD'!E62/'Table 6.x.2a CD'!E64*100 -> 70.82595139
A63: Female employment | B63: ='Table 6.x.2a CD'!B63/'Table 6.x.2a CD'!E64*100 -> 13.29990787 | C63: ='Table 6.x.2a CD'!C63/'Table 6.x.2a CD'!E64*100 -> 5.561264262 | D63: ='Table 6.x.2a CD'!D63/'Table 6.x.2a CD'!E64*100 -> 10.31287648 | E63: ='Table 6.x.2a CD'!E63/'Table 6.x.2a CD'!E64*100 -> 29.17404861
A64: Total employment | B64: ='Table 6.x.2a CD'!B64/'Table 6.x.2a CD'!E64*100 -> 50.62008362 | C64: ='Table 6.x.2a CD'!C64/'Table 6.x.2a CD'!E64*100 -> 12.15895401 | D64: ='Table 6.x.2a CD'!D64/'Table 6.x.2a CD'!E64*100 -> 37.22096237 | E64: ='Table 6.x.2a CD'!E64/'Table 6.x.2a CD'!E64*100 -> 100
A67: Table 6.x.2b | B67: Employment Status
A68: ='Table 6.x.2a CD'!A68 -> Mining and quarrying | E68: per cent
A69: ='Table 6.x.2a CD'!A69 -> 2004
A70: Employment by Gender | B70: FT | C70: PT | D70: SE | E70: Total
A71: Male employment | B71: ='Table 6.x.2a CD'!B71/'Table 6.x.2a CD'!E73*100 -> 91.28131021 | C71: ='Table 6.x.2a CD'!C71/'Table 6.x.2a CD'!E73*100 -> 2.697495183 | D71: ='Table 6.x.2a CD'!D71/'Table 6.x.2a CD'!E73*100 -> 0 | E71: ='Table 6.x.2a CD'!E71/'Table 6.x.2a CD'!E73*100 -> 93.97880539
A72: Female employment | B72: ='Table 6.x.2a CD'!B72/'Table 6.x.2a CD'!E73*100 -> 0.02408477842 | C72: ='Table 6.x.2a CD'!C72/'Table 6.x.2a CD'!E73*100 -> 4.696531792 | D72: ='Table 6.x.2a CD'!D72/'Table 6.x.2a CD'!E73*100 -> 1.300578035 | E72: ='Table 6.x.2a CD'!E72/'Table 6.x.2a CD'!E73*100 -> 6.021194605
A73: Total employment | B73: ='Table 6.x.2a CD'!B73/'Table 6.x.2a CD'!E73*100 -> 91.30539499 | C73: ='Table 6.x.2a CD'!C73/'Table 6.x.2a CD'!E73*100 -> 7.394026975 | D73: ='Table 6.x.2a CD'!D73/'Table 6.x.2a CD'!E73*100 -> 1.300578035 | E73: ='Table 6.x.2a CD'!E73/'Table 6.x.2a CD'!E73*100 -> 100
A75: ='Table 6.x.2a CD'!A75 -> 2009
A76: Employment by Gender | B76: FT | C76: PT | D76: SE | E76: Total
A77: Male employment | B77: ='Table 6.x.2a CD'!B77/'Table 6.x.2a CD'!E79*100 -> 93.19271333 | C77: ='Table 6.x.2a CD'!C77/'Table 6.x.2a CD'!E79*100 -> 3.483541067 | D77: ='Table 6.x.2a CD'!D77/'Table 6.x.2a CD'!E79*100 -> 0 | E77: ='Table 6.x.2a CD'!E77/'Table 6.x.2a CD'!E79*100 -> 96.67625439
A78: Female employment | B78: ='Table 6.x.2a CD'!B78/'Table 6.x.2a CD'!E79*100 -> 0 | C78: ='Table 6.x.2a CD'!C78/'Table 6.x.2a CD'!E79*100 -> 0.03195909236 | D78: ='Table 6.x.2a CD'!D78/'Table 6.x.2a CD'!E79*100 -> 3.291786513 | E78: ='Table 6.x.2a CD'!E78/'Table 6.x.2a CD'!E79*100 -> 3.323745606
A79: Total employment | B79: ='Table 6.x.2a CD'!B79/'Table 6.x.2a CD'!E79*100 -> 93.19271333 | C79: ='Table 6.x.2a CD'!C79/'Table 6.x.2a CD'!E79*100 -> 3.51550016 | D79: ='Table 6.x.2a CD'!D79/'Table 6.x.2a CD'!E79*100 -> 3.291786513 | E79: ='Table 6.x.2a CD'!E79/'Table 6.x.2a CD'!E79*100 -> 100
A81: ='Table 6.x.2a CD'!A81 -> 2014
A82: Employment by Gender | B82: FT | C82: PT | D82: SE | E82: Total
A83: Male employment | B83: ='Table 6.x.2a CD'!B83/'Table 6.x.2a CD'!E85*100 -> 94.8525971 | C83: ='Table 6.x.2a CD'!C83/'Table 6.x.2a CD'!E85*100 -> 5.100608329 | D83: ='Table 6.x.2a CD'!D83/'Table 6.x.2a CD'!E85*100 -> 0 | E83: ='Table 6.x.2a CD'!E83/'Table 6.x.2a CD'!E85*100 -> 99.95320543
A84: Female employment | B84: ='Table 6.x.2a CD'!B84/'Table 6.x.2a CD'!E85*100 -> 0 | C84: ='Table 6.x.2a CD'!C84/'Table 6.x.2a CD'!E85*100 -> 0.04679457183 | D84: ='Table 6.x.2a CD'!D84/'Table 6.x.2a CD'!E85*100 -> 0 | E84: ='Table 6.x.2a CD'!E84/'Table 6.x.2a CD'!E85*100 -> 0.04679457183
A85: Total employment | B85: ='Table 6.x.2a CD'!B85/'Table 6.x.2a CD'!E85*100 -> 94.8525971 | C85: ='Table 6.x.2a CD'!C85/'Table 6.x.2a CD'!E85*100 -> 5.147402901 | D85: ='Table 6.x.2a CD'!D85/'Table 6.x.2a CD'!E85*100 -> 0 | E85: ='Table 6.x.2a CD'!E85/'Table 6.x.2a CD'!E85*100 -> 100
A87: ='Table 6.x.2a CD'!A87 -> 2019
A88: Employment by Gender | B88: FT | C88: PT | D88: SE | E88: Total
A89: Male employment | B89: ='Table 6.x.2a CD'!B89/'Table 6.x.2a CD'!E91*100 -> 94.50376884 | C89: ='Table 6.x.2a CD'!C89/'Table 6.x.2a CD'!E91*100 -> 5.433417085 | D89: ='Table 6.x.2a CD'!D89/'Table 6.x.2a CD'!E91*100 -> 0 | E89: ='Table 6.x.2a CD'!E89/'Table 6.x.2a CD'!E91*100 -> 99.93718593
A90: Female employment | B90: ='Table 6.x.2a CD'!B90/'Table 6.x.2a CD'!E91*100 -> 0.03140703518 | C90: ='Table 6.x.2a CD'!C90/'Table 6.x.2a CD'!E91*100 -> 0.03140703518 | D90: ='Table 6.x.2a CD'!D90/'Table 6.x.2a CD'!E91*100 -> 0 | E90: ='Table 6.x.2a CD'!E90/'Table 6.x.2a CD'!E91*100 -> 0.06281407035
A91: Total employment | B91: ='Table 6.x.2a CD'!B91/'Table 6.x.2a CD'!E91*100 -> 94.53517588 | C91: ='Table 6.x.2a CD'!C91/'Table 6.x.2a CD'!E91*100 -> 5.464824121 | D91: ='Table 6.x.2a CD'!D91/'Table 6.x.2a CD'!E91*100 -> 0 | E91: ='Table 6.x.2a CD'!E91/'Table 6.x.2a CD'!E91*100 -> 100
A93: ='Table 6.x.2a CD'!A93 -> 2024
A94: Employment by Gender | B94: FT | C94: PT | D94: SE | E94: Total
A95: Male employment | B95: ='Table 6.x.2a CD'!B95/'Table 6.x.2a CD'!E97*100 -> 92.96222664 | C95: ='Table 6.x.2a CD'!C95/'Table 6.x.2a CD'!E97*100 -> 6.998011928 | D95: ='Table 6.x.2a CD'!D95/'Table 6.x.2a CD'!E97*100 -> 0 | E95: ='Table 6.x.2a CD'!E95/'Table 6.x.2a CD'!E97*100 -> 99.96023857
A96: Female employment | B96: ='Table 6.x.2a CD'!B96/'Table 6.x.2a CD'!E97*100 -> 0 | C96: ='Table 6.x.2a CD'!C96/'Table 6.x.2a CD'!E97*100 -> 0.03976143141 | D96: ='Table 6.x.2a CD'!D96/'Table 6.x.2a CD'!E97*100 -> 0 | E96: ='Table 6.x.2a CD'!E96/'Table 6.x.2a CD'!E97*100 -> 0.03976143141
A97: Total employment | B97: ='Table 6.x.2a CD'!B97/'Table 6.x.2a CD'!E97*100 -> 92.96222664 | C97: ='Table 6.x.2a CD'!C97/'Table 6.x.2a CD'!E97*100 -> 7.03777336 | D97: ='Table 6.x.2a CD'!D97/'Table 6.x.2a CD'!E97*100 -> 0 | E97: ='Table 6.x.2a CD'!E97/'Table 6.x.2a CD'!E97*100 -> 100
A100: Table 6.x.2b | B100: Employment Status
A101: ='Table 6.x.2a CD'!A101 -> Food drink and tobacco | E101: per cent
A102: ='Table 6.x.2a CD'!A102 -> 2004
A103: Employment by Gender | B103: FT | C103: PT | D103: SE | E103: Total
A104: Male employment | B104: ='Table 6.x.2a CD'!B104/'Table 6.x.2a CD'!E106*100 -> 63.39764067 | C104: ='Table 6.x.2a CD'!C104/'Table 6.x.2a CD'!E106*100 -> 3.350353397 | D104: ='Table 6.x.2a CD'!D104/'Table 6.x.2a CD'!E106*100 -> 0.3772920492 | E104: ='Table 6.x.2a CD'!E104/'Table 6.x.2a CD'!E106*100 -> 67.12528611
A105: Female employment | B105: ='Table 6.x.2a CD'!B105/'Table 6.x.2a CD'!E106*100 -> 24.11650778 | C105: ='Table 6.x.2a CD'!C105/'Table 6.x.2a CD'!E106*100 -> 8.516739191 | D105: ='Table 6.x.2a CD'!D105/'Table 6.x.2a CD'!E106*100 -> 0.2414669115 | E105: ='Table 6.x.2a CD'!E105/'Table 6.x.2a CD'!E106*100 -> 32.87471389
A106: Total employment | B106: ='Table 6.x.2a CD'!B106/'Table 6.x.2a CD'!E106*100 -> 87.51414845 | C106: ='Table 6.x.2a CD'!C106/'Table 6.x.2a CD'!E106*100 -> 11.86709259 | D106: ='Table 6.x.2a CD'!D106/'Table 6.x.2a CD'!E106*100 -> 0.6187589607 | E106: ='Table 6.x.2a CD'!E106/'Table 6.x.2a CD'!E106*100 -> 100
A108: ='Table 6.x.2a CD'!A108 -> 2009
A109: Employment by Gender | B109: FT | C109: PT | D109: SE | E109: Total
A110: Male employment | B110: ='Table 6.x.2a CD'!B110/'Table 6.x.2a CD'!E112*100 -> 60.05908419 | C110: ='Table 6.x.2a CD'!C110/'Table 6.x.2a CD'!E112*100 -> 1.850409561 | D110: ='Table 6.x.2a CD'!D110/'Table 6.x.2a CD'!E112*100 -> 2.905868135 | E110: ='Table 6.x.2a CD'!E110/'Table 6.x.2a CD'!E112*100 -> 64.81536189
A111: Female employment | B111: ='Table 6.x.2a CD'!B111/'Table 6.x.2a CD'!E112*100 -> 23.94521284 | C111: ='Table 6.x.2a CD'!C111/'Table 6.x.2a CD'!E112*100 -> 7.860883577 | D111: ='Table 6.x.2a CD'!D111/'Table 6.x.2a CD'!E112*100 -> 3.378541695 | E111: ='Table 6.x.2a CD'!E111/'Table 6.x.2a CD'!E112*100 -> 35.18463811
A112: Total employment | B112: ='Table 6.x.2a CD'!B112/'Table 6.x.2a CD'!E112*100 -> 84.00429703 | C112: ='Table 6.x.2a CD'!C112/'Table 6.x.2a CD'!E112*100 -> 9.711293138 | D112: ='Table 6.x.2a CD'!D112/'Table 6.x.2a CD'!E112*100 -> 6.284409829 | E112: ='Table 6.x.2a CD'!E112/'Table 6.x.2a CD'!E112*100 -> 100
A114: ='Table 6.x.2a CD'!A114 -> 2014
A115: Employment by Gender | B115: FT | C115: PT | D115: SE | E115: Total
A116: Male employment | B116: ='Table 6.x.2a CD'!B116/'Table 6.x.2a CD'!E118*100 -> 57.13696613 | C116: ='Table 6.x.2a CD'!C116/'Table 6.x.2a CD'!E118*100 -> 3.516936672 | D116: ='Table 6.x.2a CD'!D116/'Table 6.x.2a CD'!E118*100 -> 1.493372607 | E116: ='Table 6.x.2a CD'!E116/'Table 6.x.2a CD'!E118*100 -> 62.14727541
A117: Female employment | B117: ='Table 6.x.2a CD'!B117/'Table 6.x.2a CD'!E118*100 -> 25.07511046 | C117: ='Table 6.x.2a CD'!C117/'Table 6.x.2a CD'!E118*100 -> 8.23269514 | D117: ='Table 6.x.2a CD'!D117/'Table 6.x.2a CD'!E118*100 -> 4.544918999 | E117: ='Table 6.x.2a CD'!E117/'Table 6.x.2a CD'!E118*100 -> 37.85272459
A118: Total employment | B118: ='Table 6.x.2a CD'!B118/'Table 6.x.2a CD'!E118*100 -> 82.21207658 | C118: ='Table 6.x.2a CD'!C118/'Table 6.x.2a CD'!E118*100 -> 11.74963181 | D118: ='Table 6.x.2a CD'!D118/'Table 6.x.2a CD'!E118*100 -> 6.038291605 | E118: ='Table 6.x.2a CD'!E118/'Table 6.x.2a CD'!E118*100 -> 100
A120: ='Table 6.x.2a CD'!A120 -> 2019
A121: Employment by Gender | B121: FT | C121: PT | D121: SE | E121: Total
A122: Male employment | B122: ='Table 6.x.2a CD'!B122/'Table 6.x.2a CD'!E124*100 -> 56.39688305 | C122: ='Table 6.x.2a CD'!C122/'Table 6.x.2a CD'!E124*100 -> 4.085560833 | D122: ='Table 6.x.2a CD'!D122/'Table 6.x.2a CD'!E124*100 -> 1.487069635 | E122: ='Table 6.x.2a CD'!E122/'Table 6.x.2a CD'!E124*100 -> 61.96951352
A123: Female employment | B123: ='Table 6.x.2a CD'!B123/'Table 6.x.2a CD'!E124*100 -> 25.08770296 | C123: ='Table 6.x.2a CD'!C123/'Table 6.x.2a CD'!E124*100 -> 8.438111204 | D123: ='Table 6.x.2a CD'!D123/'Table 6.x.2a CD'!E124*100 -> 4.504672317 | E123: ='Table 6.x.2a CD'!E123/'Table 6.x.2a CD'!E124*100 -> 38.03048648
A124: Total employment | B124: ='Table 6.x.2a CD'!B124/'Table 6.x.2a CD'!E124*100 -> 81.48458601 | C124: ='Table 6.x.2a CD'!C124/'Table 6.x.2a CD'!E124*100 -> 12.52367204 | D124: ='Table 6.x.2a CD'!D124/'Table 6.x.2a CD'!E124*100 -> 5.991741952 | E124: ='Table 6.x.2a CD'!E124/'Table 6.x.2a CD'!E124*100 -> 100
A126: ='Table 6.x.2a CD'!A126 -> 2024
A127: Employment by Gender | B127: FT | C127: PT | D127: SE | E127: Total
A128: Male employment | B128: ='Table 6.x.2a CD'!B128/'Table 6.x.2a CD'!E130*100 -> 55.51948052 | C128: ='Table 6.x.2a CD'!C128/'Table 6.x.2a CD'!E130*100 -> 4.77994228 | D128: ='Table 6.x.2a CD'!D128/'Table 6.x.2a CD'!E130*100 -> 1.461038961 | E128: ='Table 6.x.2a CD'!E128/'Table 6.x.2a CD'!E130*100 -> 61.76046176
A129: Female employment | B129: ='Table 6.x.2a CD'!B129/'Table 6.x.2a CD'!E130*100 -> 25.05772006 | C129: ='Table 6.x.2a CD'!C129/'Table 6.x.2a CD'!E130*100 -> 8.69047619 | D129: ='Table 6.x.2a CD'!D129/'Table 6.x.2a CD'!E130*100 -> 4.491341991 | E129: ='Table 6.x.2a CD'!E129/'Table 6.x.2a CD'!E130*100 -> 38.23953824
A130: Total employment | B130: ='Table 6.x.2a CD'!B130/'Table 6.x.2a CD'!E130*100 -> 80.57720058 | C130: ='Table 6.x.2a CD'!C130/'Table 6.x.2a CD'!E130*100 -> 13.47041847 | D130: ='Table 6.x.2a CD'!D130/'Table 6.x.2a CD'!E130*100 -> 5.952380952 | E130: ='Table 6.x.2a CD'!E130/'Table 6.x.2a CD'!E130*100 -> 100
A133: Table 6.x.2b | B133: Employment Status
A134: ='Table 6.x.2a CD'!A134 -> Engineering | E134: per cent
A135: ='Table 6.x.2a CD'!A135 -> 2004
A136: Employment by Gender | B136: FT | C136: PT | D136: SE | E136: Total
A137: Male employment | B137: ='Table 6.x.2a CD'!B137/'Table 6.x.2a CD'!E139*100 -> 69.88689548 | C137: ='Table 6.x.2a CD'!C137/'Table 6.x.2a CD'!E139*100 -> 1.669266771 | D137: ='Table 6.x.2a CD'!D137/'Table 6.x.2a CD'!E139*100 -> 2.757410296 | E137: ='Table 6.x.2a CD'!E137/'Table 6.x.2a CD'!E139*100 -> 74.31357254
A138: Female employment | B138: ='Table 6.x.2a CD'!B138/'Table 6.x.2a CD'!E139*100 -> 21.16224649 | C138: ='Table 6.x.2a CD'!C138/'Table 6.x.2a CD'!E139*100 -> 3.408736349 | D138: ='Table 6.x.2a CD'!D138/'Table 6.x.2a CD'!E139*100 -> 1.115444618 | E138: ='Table 6.x.2a CD'!E138/'Table 6.x.2a CD'!E139*100 -> 25.68642746
A139: Total employment | B139: ='Table 6.x.2a CD'!B139/'Table 6.x.2a CD'!E139*100 -> 91.04914197 | C139: ='Table 6.x.2a CD'!C139/'Table 6.x.2a CD'!E139*100 -> 5.07800312 | D139: ='Table 6.x.2a CD'!D139/'Table 6.x.2a CD'!E139*100 -> 3.872854914 | E139: ='Table 6.x.2a CD'!E139/'Table 6.x.2a CD'!E139*100 -> 100
A141: ='Table 6.x.2a CD'!A141 -> 2009
A142: Employment by Gender | B142: FT | C142: PT | D142: SE | E142: Total
A143: Male employment | B143: ='Table 6.x.2a CD'!B143/'Table 6.x.2a CD'!E145*100 -> 73.49240661 | C143: ='Table 6.x.2a CD'!C143/'Table 6.x.2a CD'!E145*100 -> 0.8092229243 | D143: ='Table 6.x.2a CD'!D143/'Table 6.x.2a CD'!E145*100 -> 5.135239996 | E143: ='Table 6.x.2a CD'!E143/'Table 6.x.2a CD'!E145*100 -> 79.43686953
A144: Female employment | B144: ='Table 6.x.2a CD'!B144/'Table 6.x.2a CD'!E145*100 -> 17.05742157 | C144: ='Table 6.x.2a CD'!C144/'Table 6.x.2a CD'!E145*100 -> 2.466467132 | D144: ='Table 6.x.2a CD'!D144/'Table 6.x.2a CD'!E145*100 -> 1.039241769 | E144: ='Table 6.x.2a CD'!E144/'Table 6.x.2a CD'!E145*100 -> 20.56313047
A145: Total employment | B145: ='Table 6.x.2a CD'!B145/'Table 6.x.2a CD'!E145*100 -> 90.54982818 | C145: ='Table 6.x.2a CD'!C145/'Table 6.x.2a CD'!E145*100 -> 3.275690057 | D145: ='Table 6.x.2a CD'!D145/'Table 6.x.2a CD'!E145*100 -> 6.174481765 | E145: ='Table 6.x.2a CD'!E145/'Table 6.x.2a CD'!E145*100 -> 100
A147: ='Table 6.x.2a CD'!A147 -> 2014
A148: Employment by Gender | B148: FT | C148: PT | D148: SE | E148: Total
A149: Male employment | B149: ='Table 6.x.2a CD'!B149/'Table 6.x.2a CD'!E151*100 -> 69.81113201 | C149: ='Table 6.x.2a CD'!C149/'Table 6.x.2a CD'!E151*100 -> 2.228802369 | D149: ='Table 6.x.2a CD'!D149/'Table 6.x.2a CD'!E151*100 -> 3.361210036 | E149: ='Table 6.x.2a CD'!E149/'Table 6.x.2a CD'!E151*100 -> 75.40114441
A150: Female employment | B150: ='Table 6.x.2a CD'!B150/'Table 6.x.2a CD'!E151*100 -> 18.34660478 | C150: ='Table 6.x.2a CD'!C150/'Table 6.x.2a CD'!E151*100 -> 5.045816494 | D150: ='Table 6.x.2a CD'!D150/'Table 6.x.2a CD'!E151*100 -> 1.206434316 | E150: ='Table 6.x.2a CD'!E150/'Table 6.x.2a CD'!E151*100 -> 24.59885559
A151: Total employment | B151: ='Table 6.x.2a CD'!B151/'Table 6.x.2a CD'!E151*100 -> 88.15773679 | C151: ='Table 6.x.2a CD'!C151/'Table 6.x.2a CD'!E151*100 -> 7.274618863 | D151: ='Table 6.x.2a CD'!D151/'Table 6.x.2a CD'!E151*100 -> 4.567644352 | E151: ='Table 6.x.2a CD'!E151/'Table 6.x.2a CD'!E151*100 -> 100
A153: ='Table 6.x.2a CD'!A153 -> 2019
A154: Employment by Gender | B154: FT | C154: PT | D154: SE | E154: Total
A155: Male employment | B155: ='Table 6.x.2a CD'!B155/'Table 6.x.2a CD'!E157*100 -> 68.02954131 | C155: ='Table 6.x.2a CD'!C155/'Table 6.x.2a CD'!E157*100 -> 2.758375228 | D155: ='Table 6.x.2a CD'!D155/'Table 6.x.2a CD'!E157*100 -> 3.643724696 | E155: ='Table 6.x.2a CD'!E155/'Table 6.x.2a CD'!E157*100 -> 74.43164123
A156: Female employment | B156: ='Table 6.x.2a CD'!B156/'Table 6.x.2a CD'!E157*100 -> 18.70356364 | C156: ='Table 6.x.2a CD'!C156/'Table 6.x.2a CD'!E157*100 -> 5.523423944 | D156: ='Table 6.x.2a CD'!D156/'Table 6.x.2a CD'!E157*100 -> 1.341371179 | E156: ='Table 6.x.2a CD'!E156/'Table 6.x.2a CD'!E157*100 -> 25.56835877
A157: Total employment | B157: ='Table 6.x.2a CD'!B157/'Table 6.x.2a CD'!E157*100 -> 86.73310495 | C157: ='Table 6.x.2a CD'!C157/'Table 6.x.2a CD'!E157*100 -> 8.281799172 | D157: ='Table 6.x.2a CD'!D157/'Table 6.x.2a CD'!E157*100 -> 4.985095876 | E157: ='Table 6.x.2a CD'!E157/'Table 6.x.2a CD'!E157*100 -> 100
A159: ='Table 6.x.2a CD'!A159 -> 2024
A160: Employment by Gender | B160: FT | C160: PT | D160: SE | E160: Total
A161: Male employment | B161: ='Table 6.x.2a CD'!B161/'Table 6.x.2a CD'!E163*100 -> 65.7513262 | C161: ='Table 6.x.2a CD'!C161/'Table 6.x.2a CD'!E163*100 -> 3.563019489 | D161: ='Table 6.x.2a CD'!D161/'Table 6.x.2a CD'!E163*100 -> 4.084990497 | E161: ='Table 6.x.2a CD'!E161/'Table 6.x.2a CD'!E163*100 -> 73.39933619
A162: Female employment | B162: ='Table 6.x.2a CD'!B162/'Table 6.x.2a CD'!E163*100 -> 18.76542509 | C162: ='Table 6.x.2a CD'!C162/'Table 6.x.2a CD'!E163*100 -> 6.269325693 | D162: ='Table 6.x.2a CD'!D162/'Table 6.x.2a CD'!E163*100 -> 1.565913024 | E162: ='Table 6.x.2a CD'!E162/'Table 6.x.2a CD'!E163*100 -> 26.60066381
A163: Total employment | B163: ='Table 6.x.2a CD'!B163/'Table 6.x.2a CD'!E163*100 -> 84.5167513 | C163: ='Table 6.x.2a CD'!C163/'Table 6.x.2a CD'!E163*100 -> 9.832345182 | D163: ='Table 6.x.2a CD'!D163/'Table 6.x.2a CD'!E163*100 -> 5.65090352 | E163: ='Table 6.x.2a CD'!E163/'Table 6.x.2a CD'!E163*100 -> 100
A166: Table 6.x.2b | B166: Employment Status
A167: ='Table 6.x.2a CD'!A167 -> Rest of manufacturing | E167: per cent
A168: ='Table 6.x.2a CD'!A168 -> 2004
A169: Employment by Gender | B169: FT | C169: PT | D169: SE | E169: Total
A170: Male employment | B170: ='Table 6.x.2a CD'!B170/'Table 6.x.2a CD'!E172*100 -> 68.1107716 | C170: ='Table 6.x.2a CD'!C170/'Table 6.x.2a CD'!E172*100 -> 1.545406998 | D170: ='Table 6.x.2a CD'!D170/'Table 6.x.2a CD'!E172*100 -> 8.48900267 | E170: ='Table 6.x.2a CD'!E170/'Table 6.x.2a CD'!E172*100 -> 78.14518127
A171: Female employment | B171: ='Table 6.x.2a CD'!B171/'Table 6.x.2a CD'!E172*100 -> 14.62658629 | C171: ='Table 6.x.2a CD'!C171/'Table 6.x.2a CD'!E172*100 -> 4.831667905 | D171: ='Table 6.x.2a CD'!D171/'Table 6.x.2a CD'!E172*100 -> 2.396564539 | E171: ='Table 6.x.2a CD'!E171/'Table 6.x.2a CD'!E172*100 -> 21.85481873
A172: Total employment | B172: ='Table 6.x.2a CD'!B172/'Table 6.x.2a CD'!E172*100 -> 82.73735789 | C172: ='Table 6.x.2a CD'!C172/'Table 6.x.2a CD'!E172*100 -> 6.377074903 | D172: ='Table 6.x.2a CD'!D172/'Table 6.x.2a CD'!E172*100 -> 10.88556721 | E172: ='Table 6.x.2a CD'!E172/'Table 6.x.2a CD'!E172*100 -> 100
A174: ='Table 6.x.2a CD'!A174 -> 2009
A175: Employment by Gender | B175: FT | C175: PT | D175: SE | E175: Total
A176: Male employment | B176: ='Table 6.x.2a CD'!B176/'Table 6.x.2a CD'!E178*100 -> 71.31373197 | C176: ='Table 6.x.2a CD'!C176/'Table 6.x.2a CD'!E178*100 -> 1.610070767 | D176: ='Table 6.x.2a CD'!D176/'Table 6.x.2a CD'!E178*100 -> 7.895026632 | E176: ='Table 6.x.2a CD'!E176/'Table 6.x.2a CD'!E178*100 -> 80.81882937
A177: Female employment | B177: ='Table 6.x.2a CD'!B177/'Table 6.x.2a CD'!E178*100 -> 12.88056613 | C177: ='Table 6.x.2a CD'!C177/'Table 6.x.2a CD'!E178*100 -> 4.172969589 | D177: ='Table 6.x.2a CD'!D177/'Table 6.x.2a CD'!E178*100 -> 2.127634912 | E177: ='Table 6.x.2a CD'!E177/'Table 6.x.2a CD'!E178*100 -> 19.18117063
A178: Total employment | B178: ='Table 6.x.2a CD'!B178/'Table 6.x.2a CD'!E178*100 -> 84.1942981 | C178: ='Table 6.x.2a CD'!C178/'Table 6.x.2a CD'!E178*100 -> 5.783040356 | D178: ='Table 6.x.2a CD'!D178/'Table 6.x.2a CD'!E178*100 -> 10.02266154 | E178: ='Table 6.x.2a CD'!E178/'Table 6.x.2a CD'!E178*100 -> 100
A180: ='Table 6.x.2a CD'!A180 -> 2014
A181: Employment by Gender | B181: FT | C181: PT | D181: SE | E181: Total
A182: Male employment | B182: ='Table 6.x.2a CD'!B182/'Table 6.x.2a CD'!E184*100 -> 70.0656168 | C182: ='Table 6.x.2a CD'!C182/'Table 6.x.2a CD'!E184*100 -> 2.488845144 | D182: ='Table 6.x.2a CD'!D182/'Table 6.x.2a CD'!E184*100 -> 6.426509186 | E182: ='Table 6.x.2a CD'!E182/'Table 6.x.2a CD'!E184*100 -> 78.98097113
A183: Female employment | B183: ='Table 6.x.2a CD'!B183/'Table 6.x.2a CD'!E184*100 -> 13.3687664 | C183: ='Table 6.x.2a CD'!C183/'Table 6.x.2a CD'!E184*100 -> 4.299212598 | D183: ='Table 6.x.2a CD'!D183/'Table 6.x.2a CD'!E184*100 -> 3.351049869 | E183: ='Table 6.x.2a CD'!E183/'Table 6.x.2a CD'!E184*100 -> 21.01902887
A184: Total employment | B184: ='Table 6.x.2a CD'!B184/'Table 6.x.2a CD'!E184*100 -> 83.4343832 | C184: ='Table 6.x.2a CD'!C184/'Table 6.x.2a CD'!E184*100 -> 6.788057743 | D184: ='Table 6.x.2a CD'!D184/'Table 6.x.2a CD'!E184*100 -> 9.777559055 | E184: ='Table 6.x.2a CD'!E184/'Table 6.x.2a CD'!E184*100 -> 100
A186: ='Table 6.x.2a CD'!A186 -> 2019
A187: Employment by Gender | B187: FT | C187: PT | D187: SE | E187: Total
A188: Male employment | B188: ='Table 6.x.2a CD'!B188/'Table 6.x.2a CD'!E190*100 -> 68.50215416 | C188: ='Table 6.x.2a CD'!C188/'Table 6.x.2a CD'!E190*100 -> 2.730903488 | D188: ='Table 6.x.2a CD'!D188/'Table 6.x.2a CD'!E190*100 -> 6.615931319 | E188: ='Table 6.x.2a CD'!E188/'Table 6.x.2a CD'!E190*100 -> 77.84898896
A189: Female employment | B189: ='Table 6.x.2a CD'!B189/'Table 6.x.2a CD'!E190*100 -> 14.00484292 | C189: ='Table 6.x.2a CD'!C189/'Table 6.x.2a CD'!E190*100 -> 4.687568791 | D189: ='Table 6.x.2a CD'!D189/'Table 6.x.2a CD'!E190*100 -> 3.458599327 | E189: ='Table 6.x.2a CD'!E189/'Table 6.x.2a CD'!E190*100 -> 22.15101104
A190: Total employment | B190: ='Table 6.x.2a CD'!B190/'Table 6.x.2a CD'!E190*100 -> 82.50699708 | C190: ='Table 6.x.2a CD'!C190/'Table 6.x.2a CD'!E190*100 -> 7.418472279 | D190: ='Table 6.x.2a CD'!D190/'Table 6.x.2a CD'!E190*100 -> 10.07453065 | E190: ='Table 6.x.2a CD'!E190/'Table 6.x.2a CD'!E190*100 -> 100
A192: ='Table 6.x.2a CD'!A192 -> 2024
A193: Employment by Gender | B193: FT | C193: PT | D193: SE | E193: Total
A194: Male employment | B194: ='Table 6.x.2a CD'!B194/'Table 6.x.2a CD'!E196*100 -> 66.52847175 | C194: ='Table 6.x.2a CD'!C194/'Table 6.x.2a CD'!E196*100 -> 3.110972846 | D194: ='Table 6.x.2a CD'!D194/'Table 6.x.2a CD'!E196*100 -> 6.922232028 | E194: ='Table 6.x.2a CD'!E194/'Table 6.x.2a CD'!E196*100 -> 76.56167662
A195: Female employment | B195: ='Table 6.x.2a CD'!B195/'Table 6.x.2a CD'!E196*100 -> 14.55300399 | C195: ='Table 6.x.2a CD'!C195/'Table 6.x.2a CD'!E196*100 -> 5.263893033 | D195: ='Table 6.x.2a CD'!D195/'Table 6.x.2a CD'!E196*100 -> 3.621426349 | E195: ='Table 6.x.2a CD'!E195/'Table 6.x.2a CD'!E196*100 -> 23.43832338
A196: Total employment | B196: ='Table 6.x.2a CD'!B196/'Table 6.x.2a CD'!E196*100 -> 81.08147574 | C196: ='Table 6.x.2a CD'!C196/'Table 6.x.2a CD'!E196*100 -> 8.374865879 | D196: ='Table 6.x.2a CD'!D196/'Table 6.x.2a CD'!E196*100 -> 10.54365838 | E196: ='Table 6.x.2a CD'!E196/'Table 6.x.2a CD'!E196*100 -> 100
A199: Table 6.x.2b | B199: Employment Status
A200: ='Table 6.x.2a CD'!A200 -> Electricity and gas | E200: per cent
A201: ='Table 6.x.2a CD'!A201 -> 2004
A202: Employment by Gender | B202: FT | C202: PT | D202: SE | E202: Total
A203: Male employment | B203: ='Table 6.x.2a CD'!B203/'Table 6.x.2a CD'!E205*100 -> 57.66911626 | C203: ='Table 6.x.2a CD'!C203/'Table 6.x.2a CD'!E205*100 -> 0.7914075749 | D203: ='Table 6.x.2a CD'!D203/'Table 6.x.2a CD'!E205*100 -> 7.556058037 | E203: ='Table 6.x.2a CD'!E203/'Table 6.x.2a CD'!E205*100 -> 66.01658187
A204: Female employment | B204: ='Table 6.x.2a CD'!B204/'Table 6.x.2a CD'!E205*100 -> 20.97230073 | C204: ='Table 6.x.2a CD'!C204/'Table 6.x.2a CD'!E205*100 -> 12.72847183 | D204: ='Table 6.x.2a CD'!D204/'Table 6.x.2a CD'!E205*100 -> 0.2826455625 | E204: ='Table 6.x.2a CD'!E204/'Table 6.x.2a CD'!E205*100 -> 33.98341813
A205: Total employment | B205: ='Table 6.x.2a CD'!B205/'Table 6.x.2a CD'!E205*100 -> 78.641417 | C205: ='Table 6.x.2a CD'!C205/'Table 6.x.2a CD'!E205*100 -> 13.5198794 | D205: ='Table 6.x.2a CD'!D205/'Table 6.x.2a CD'!E205*100 -> 7.838703599 | E205: ='Table 6.x.2a CD'!E205/'Table 6.x.2a CD'!E205*100 -> 100
A207: ='Table 6.x.2a CD'!A207 -> 2009
A208: Employment by Gender | B208: FT | C208: PT | D208: SE | E208: Total
A209: Male employment | B209: ='Table 6.x.2a CD'!B209/'Table 6.x.2a CD'!E211*100 -> 75.58553697 | C209: ='Table 6.x.2a CD'!C209/'Table 6.x.2a CD'!E211*100 -> 1.802482461 | D209: ='Table 6.x.2a CD'!D209/'Table 6.x.2a CD'!E211*100 -> 0.01079330815 | E209: ='Table 6.x.2a CD'!E209/'Table 6.x.2a CD'!E211*100 -> 77.39881274
A210: Female employment | B210: ='Table 6.x.2a CD'!B210/'Table 6.x.2a CD'!E211*100 -> 22.60118726 | C210: ='Table 6.x.2a CD'!C210/'Table 6.x.2a CD'!E211*100 -> 0 | D210: ='Table 6.x.2a CD'!D210/'Table 6.x.2a CD'!E211*100 -> 0 | E210: ='Table 6.x.2a CD'!E210/'Table 6.x.2a CD'!E211*100 -> 22.60118726
A211: Total employment | B211: ='Table 6.x.2a CD'!B211/'Table 6.x.2a CD'!E211*100 -> 98.18672423 | C211: ='Table 6.x.2a CD'!C211/'Table 6.x.2a CD'!E211*100 -> 1.802482461 | D211: ='Table 6.x.2a CD'!D211/'Table 6.x.2a CD'!E211*100 -> 0.01079330815 | E211: ='Table 6.x.2a CD'!E211/'Table 6.x.2a CD'!E211*100 -> 100
A213: ='Table 6.x.2a CD'!A213 -> 2014
A214: Employment by Gender | B214: FT | C214: PT | D214: SE | E214: Total
A215: Male employment | B215: ='Table 6.x.2a CD'!B215/'Table 6.x.2a CD'!E217*100 -> 61.26346719 | C215: ='Table 6.x.2a CD'!C215/'Table 6.x.2a CD'!E217*100 -> 1.028403526 | D215: ='Table 6.x.2a CD'!D215/'Table 6.x.2a CD'!E217*100 -> 12.12047013 | E215: ='Table 6.x.2a CD'!E215/'Table 6.x.2a CD'!E217*100 -> 74.41234084
A216: Female employment | B216: ='Table 6.x.2a CD'!B216/'Table 6.x.2a CD'!E217*100 -> 25.58765916 | C216: ='Table 6.x.2a CD'!C216/'Table 6.x.2a CD'!E217*100 -> 0 | D216: ='Table 6.x.2a CD'!D216/'Table 6.x.2a CD'!E217*100 -> 0 | E216: ='Table 6.x.2a CD'!E216/'Table 6.x.2a CD'!E217*100 -> 25.58765916
A217: Total employment | B217: ='Table 6.x.2a CD'!B217/'Table 6.x.2a CD'!E217*100 -> 86.85112635 | C217: ='Table 6.x.2a CD'!C217/'Table 6.x.2a CD'!E217*100 -> 1.028403526 | D217: ='Table 6.x.2a CD'!D217/'Table 6.x.2a CD'!E217*100 -> 12.12047013 | E217: ='Table 6.x.2a CD'!E217/'Table 6.x.2a CD'!E217*100 -> 100
A219: ='Table 6.x.2a CD'!A219 -> 2019
A220: Employment by Gender | B220: FT | C220: PT | D220: SE | E220: Total
A221: Male employment | B221: ='Table 6.x.2a CD'!B221/'Table 6.x.2a CD'!E223*100 -> 63.6780605 | C221: ='Table 6.x.2a CD'!C221/'Table 6.x.2a CD'!E223*100 -> 0.7862837174 | D221: ='Table 6.x.2a CD'!D221/'Table 6.x.2a CD'!E223*100 -> 12.25292126 | E221: ='Table 6.x.2a CD'!E221/'Table 6.x.2a CD'!E223*100 -> 76.71726548
A222: Female employment | B222: ='Table 6.x.2a CD'!B222/'Table 6.x.2a CD'!E223*100 -> 23.28273452 | C222: ='Table 6.x.2a CD'!C222/'Table 6.x.2a CD'!E223*100 -> 0 | D222: ='Table 6.x.2a CD'!D222/'Table 6.x.2a CD'!E223*100 -> 0 | E222: ='Table 6.x.2a CD'!E222/'Table 6.x.2a CD'!E223*100 -> 23.28273452
A223: Total employment | B223: ='Table 6.x.2a CD'!B223/'Table 6.x.2a CD'!E223*100 -> 86.96079502 | C223: ='Table 6.x.2a CD'!C223/'Table 6.x.2a CD'!E223*100 -> 0.7862837174 | D223: ='Table 6.x.2a CD'!D223/'Table 6.x.2a CD'!E223*100 -> 12.25292126 | E223: ='Table 6.x.2a CD'!E223/'Table 6.x.2a CD'!E223*100 -> 100
A225: ='Table 6.x.2a CD'!A225 -> 2024
A226: Employment by Gender | B226: FT | C226: PT | D226: SE | E226: Total
A227: Male employment | B227: ='Table 6.x.2a CD'!B227/'Table 6.x.2a CD'!E229*100 -> 67.04980843 | C227: ='Table 6.x.2a CD'!C227/'Table 6.x.2a CD'!E229*100 -> 0.4682843763 | D227: ='Table 6.x.2a CD'!D227/'Table 6.x.2a CD'!E229*100 -> 12.32439336 | E227: ='Table 6.x.2a CD'!E227/'Table 6.x.2a CD'!E229*100 -> 79.84248616
A228: Female employment | B228: ='Table 6.x.2a CD'!B228/'Table 6.x.2a CD'!E229*100 -> 20.15751384 | C228: ='Table 6.x.2a CD'!C228/'Table 6.x.2a CD'!E229*100 -> 0 | D228: ='Table 6.x.2a CD'!D228/'Table 6.x.2a CD'!E229*100 -> 0 | E228: ='Table 6.x.2a CD'!E228/'Table 6.x.2a CD'!E229*100 -> 20.15751384
A229: Total employment | B229: ='Table 6.x.2a CD'!B229/'Table 6.x.2a CD'!E229*100 -> 87.20732226 | C229: ='Table 6.x.2a CD'!C229/'Table 6.x.2a CD'!E229*100 -> 0.4682843763 | D229: ='Table 6.x.2a CD'!D229/'Table 6.x.2a CD'!E229*100 -> 12.32439336 | E229: ='Table 6.x.2a CD'!E229/'Table 6.x.2a CD'!E229*100 -> 100
A232: Table 6.x.2b | B232: Employment Status
A233: ='Table 6.x.2a CD'!A233 -> Water and sewerage | E233: per cent
A234: ='Table 6.x.2a CD'!A234 -> 2004
A235: Employment by Gender | B235: FT | C235: PT | D235: SE | E235: Total
A236: Male employment | B236: ='Table 6.x.2a CD'!B236/'Table 6.x.2a CD'!E238*100 -> 74.89191886 | C236: ='Table 6.x.2a CD'!C236/'Table 6.x.2a CD'!E238*100 -> 0 | D236: ='Table 6.x.2a CD'!D236/'Table 6.x.2a CD'!E238*100 -> 0 | E236: ='Table 6.x.2a CD'!E236/'Table 6.x.2a CD'!E238*100 -> 74.89191886
A237: Female employment | B237: ='Table 6.x.2a CD'!B237/'Table 6.x.2a CD'!E238*100 -> 17.41769205 | C237: ='Table 6.x.2a CD'!C237/'Table 6.x.2a CD'!E238*100 -> 7.02527436 | D237: ='Table 6.x.2a CD'!D237/'Table 6.x.2a CD'!E238*100 -> 0.6651147323 | E237: ='Table 6.x.2a CD'!E237/'Table 6.x.2a CD'!E238*100 -> 25.10808114
A238: Total employment | B238: ='Table 6.x.2a CD'!B238/'Table 6.x.2a CD'!E238*100 -> 92.30961091 | C238: ='Table 6.x.2a CD'!C238/'Table 6.x.2a CD'!E238*100 -> 7.02527436 | D238: ='Table 6.x.2a CD'!D238/'Table 6.x.2a CD'!E238*100 -> 0.6651147323 | E238: ='Table 6.x.2a CD'!E238/'Table 6.x.2a CD'!E238*100 -> 100
A240: ='Table 6.x.2a CD'!A240 -> 2009
A241: Employment by Gender | B241: FT | C241: PT | D241: SE | E241: Total
A242: Male employment | B242: ='Table 6.x.2a CD'!B242/'Table 6.x.2a CD'!E244*100 -> 72.44912686 | C242: ='Table 6.x.2a CD'!C242/'Table 6.x.2a CD'!E244*100 -> 0 | D242: ='Table 6.x.2a CD'!D242/'Table 6.x.2a CD'!E244*100 -> 5.462548708 | E242: ='Table 6.x.2a CD'!E242/'Table 6.x.2a CD'!E244*100 -> 77.91167557
A243: Female employment | B243: ='Table 6.x.2a CD'!B243/'Table 6.x.2a CD'!E244*100 -> 14.3599365 | C243: ='Table 6.x.2a CD'!C243/'Table 6.x.2a CD'!E244*100 -> 7.179968249 | D243: ='Table 6.x.2a CD'!D243/'Table 6.x.2a CD'!E244*100 -> 0.5484196854 | E243: ='Table 6.x.2a CD'!E243/'Table 6.x.2a CD'!E244*100 -> 22.08832443
... 265 more rows

Sheet Table 6.x.2c CD
A1: Table 6.x.2c | B1: Employment changes
A2: ='Table 6.x.2a CD'!A2 -> All industries | E2: 000s | I2: Labels for graphs (DO NOT REMOVE!)
A3: =CONCATENATE(All!K7,"-",All!P7) -> 1999-2004
A4: Employment by Gender | B4: FT | C4: =I4 -> PT 1999 | D4: =K4 -> SE -04 | E4: Total | I4: =CONCATENATE(" PT ",LEFT(A3,4)) -> PT 1999 | K4: =CONCATENATE(" SE -",RIGHT(A3,2)) -> SE -04
A5: Male employment | B5: =(MalesFT!$P$8-MalesFT!$K$8)/1000 -> 26.821 | C5: =(MalesPT!$P$8-MalesPT!$K$8)/1000 -> 28.563 | D5: =(MalesSE!$P$8-MalesSE!$K$8)/1000 -> 12.814 | E5: =(Males!$P$8-Males!$K$8)/1000 -> 68.198
A6: Female employment | B6: =(FemalesFT!$P$8-FemalesFT!$K$8)/1000 -> 59.987 | C6: =(FemalesPT!$P$8-FemalesPT!$K$8)/1000 -> 50.969 | D6: =(FemalesSE!$P$8-FemalesSE!$K$8)/1000 -> -1.13 | E6: =(Females!$P$8-Females!$K$8)/1000 -> 109.826
A7: Total employment | B7: =(FT!$P$8-FT!$K$8)/1000 -> 86.808 | C7: =(PT!$P$8-PT!$K$8)/1000 -> 79.532 | D7: =(SE!$P$8-SE!$K$8)/1000 -> 11.684 | E7: =(All!$P$8-All!$K$8)/1000 -> 178.024
A9: =CONCATENATE(All!P7,"-",All!U7) -> 2004-2009
A10: Employment by Gender | B10: FT | C10: =I10 -> PT 2004 | D10: =K10 -> SE -09 | E10: Total | I10: =CONCATENATE(" PT ",LEFT(A9,4)) -> PT 2004 | K10: =CONCATENATE(" SE -",RIGHT(A9,2)) -> SE -09
A11: Male employment | B11: =(MalesFT!$U$8-MalesFT!$P$8)/1000 -> 95.422 | C11: =(MalesPT!$U$8-MalesPT!$P$8)/1000 -> 10.41 | D11: =(MalesSE!$U$8-MalesSE!$P$8)/1000 -> -33.997 | E11: =(Males!$U$8-Males!$P$8)/1000 -> 71.835
A12: Female employment | B12: =(FemalesFT!$U$8-FemalesFT!$P$8)/1000 -> -19.695 | C12: =(FemalesPT!$U$8-FemalesPT!$P$8)/1000 -> 17.727 | D12: =(FemalesSE!$U$8-FemalesSE!$P$8)/1000 -> 28.283 | E12: =(Females!$U$8-Females!$P$8)/1000 -> 26.315
A13: Total employment | B13: =(FT!$U$8-FT!$P$8)/1000 -> 75.727 | C13: =(PT!$U$8-PT!$P$8)/1000 -> 28.137 | D13: =(SE!$U$8-SE!$P$8)/1000 -> -5.714 | E13: =(All!$U$8-All!$P$8)/1000 -> 98.15
A15: =CONCATENATE(All!U7,,"-",All!Z7) -> 2009-2014
A16: Employment by Gender | B16: FT | C16: =I16 -> PT 2009 | D16: =K16 -> SE -14 | E16: Total | I16: =CONCATENATE(" PT ",LEFT(A15,4)) -> PT 2009 | K16: =CONCATENATE(" SE -",RIGHT(A15,2)) -> SE -14
A17: Male employment | B17: =(MalesFT!$Z$8-MalesFT!$U$8)/1000 -> -44.58 | C17: =(MalesPT!$Z$8-MalesPT!$U$8)/1000 -> 11.095 | D17: =(MalesSE!$Z$8-MalesSE!$U$8)/1000 -> 76.844 | E17: =(Males!$Z$8-Males!$U$8)/1000 -> 43.359
A18: Female employment | B18: =(FemalesFT!$Z$8-FemalesFT!$U$8)/1000 -> 49.76 | C18: =(FemalesPT!$Z$8-FemalesPT!$U$8)/1000 -> -3.707 | D18: =(FemalesSE!$Z$8-FemalesSE!$U$8)/1000 -> 51.981 | E18: =(Females!$Z$8-Females!$U$8)/1000 -> 98.034
A19: Total employment | B19: =(FT!$Z$8-FT!$U$8)/1000 -> 5.18 | C19: =(PT!$Z$8-PT!$U$8)/1000 -> 7.388 | D19: =(SE!$Z$8-SE!$U$8)/1000 -> 128.825 | E19: =(All!$Z$8-All!$U$8)/1000 -> 141.393
A21: =CONCATENATE(All!Z7,"-",All!AE7) -> 2014-2019
A22: Employment by Gender | B22: FT | C22: =I22 -> PT 2014 | D22: =K22 -> SE -19 | E22: Total | I22: =CONCATENATE(" PT ",LEFT(A21,4)) -> PT 2014 | K22: =CONCATENATE(" SE -",RIGHT(A21,2)) -> SE -19
A23: Male employment | B23: =(MalesFT!$AE$8-MalesFT!$Z$8)/1000 -> 25.644 | C23: =(MalesPT!$AE$8-MalesPT!$Z$8)/1000 -> 20.757 | D23: =(MalesSE!$AE$8-MalesSE!$Z$8)/1000 -> 6.089 | E23: =(Males!$AE$8-Males!$Z$8)/1000 -> 52.49
A24: Female employment | B24: =(FemalesFT!$AE$8-FemalesFT!$Z$8)/1000 -> 21.445 | C24: =(FemalesPT!$AE$8-FemalesPT!$Z$8)/1000 -> 24.167 | D24: =(FemalesSE!$AE$8-FemalesSE!$Z$8)/1000 -> 3.83 | E24: =(Females!$AE$8-Females!$Z$8)/1000 -> 49.442
A25: Total employment | B25: =(FT!$AE$8-FT!$Z$8)/1000 -> 47.089 | C25: =(PT!$AE$8-PT!$Z$8)/1000 -> 44.924 | D25: =(SE!$AE$8-SE!$Z$8)/1000 -> 9.919 | E25: =(All!$AE$8-All!$Z$8)/1000 -> 101.932
A27: =CONCATENATE(All!AE7,"-",All!AJ7) -> 2019-2024
A28: Employment by Gender | B28: FT | C28: =I28 -> PT 2019 | D28: =K28 -> SE -24 | E28: Total | I28: =CONCATENATE(" PT ",LEFT(A27,4)) -> PT 2019 | K28: =CONCATENATE(" SE -",RIGHT(A27,2)) -> SE -24
A29: Male employment | B29: =(MalesFT!$AJ$8-MalesFT!$AE$8)/1000 -> 4.375 | C29: =(MalesPT!$AJ$8-MalesPT!$AE$8)/1000 -> 22.373 | D29: =(MalesSE!$AJ$8-MalesSE!$AE$8)/1000 -> -1.914 | E29: =(Males!$AJ$8-Males!$AE$8)/1000 -> 24.834
A30: Female employment | B30: =(FemalesFT!$AJ$8-FemalesFT!$AE$8)/1000 -> 23.002 | C30: =(FemalesPT!$AJ$8-FemalesPT!$AE$8)/1000 -> 27.273 | D30: =(FemalesSE!$AJ$8-FemalesSE!$AE$8)/1000 -> 2.829 | E30: =(Females!$AJ$8-Females!$AE$8)/1000 -> 53.104
A31: Total employment | B31: =(FT!$AJ$8-FT!$AE$8)/1000 -> 27.377 | C31: =(PT!$AJ$8-PT!$AE$8)/1000 -> 49.646 | D31: =(SE!$AJ$8-SE!$AE$8)/1000 -> 0.915 | E31: =(All!$AJ$8-All!$AE$8)/1000 -> 77.938
A34: Table 6.x.2c | B34: Employment changes
A35: ='Table 6.x.2a CD'!A35 -> Agriculture | E35: 000s
A36: =A$3 -> 1999-2004
A37: Employment by Gender | B37: FT | C37: PT | D37: SE | E37: Total
A38: Male employment | B38: =(MalesFT!$P$36-MalesFT!$K$36)/1000 -> -6.067 | C38: =(MalesPT!$P$36-MalesPT!$K$36)/1000 -> 0.047 | D38: =(MalesSE!$P$36-MalesSE!$K$36)/1000 -> -3.102 | E38: =(Males!$P$36-Males!$K$36)/1000 -> -9.122
A39: Female employment | B39: =(FemalesFT!$P$36-FemalesFT!$K$36)/1000 -> 0.313 | C39: =(FemalesPT!$P$36-FemalesPT!$K$36)/1000 -> -2.035 | D39: =(FemalesSE!$P$36-FemalesSE!$K$36)/1000 -> -2.195 | E39: =(Females!$P$36-Females!$K$36)/1000 -> -3.917
A40: Total employment | B40: =(FT!$P$36-FT!$K$36)/1000 -> -5.754 | C40: =(PT!$P$36-PT!$K$36)/1000 -> -1.988 | D40: =(SE!$P$36-SE!$K$36)/1000 -> -5.297 | E40: =(All!$P$36-All!$K$36)/1000 -> -13.039
A42: =A$9 -> 2004-2009
A43: Employment by Gender | B43: FT | C43: PT | D43: SE | E43: Total
A44: Male employment | B44: =(MalesFT!$U$36-MalesFT!$P$36)/1000 -> 1.807 | C44: =(MalesPT!$U$36-MalesPT!$P$36)/1000 -> -2.086 | D44: =(MalesSE!$U$36-MalesSE!$P$36)/1000 -> 8.886 | E44: =(Males!$U$36-Males!$P$36)/1000 -> 8.607
A45: Female employment | B45: =(FemalesFT!$U$36-FemalesFT!$P$36)/1000 -> -1.344 | C45: =(FemalesPT!$U$36-FemalesPT!$P$36)/1000 -> 0.986 | D45: =(FemalesSE!$U$36-FemalesSE!$P$36)/1000 -> 6.232 | E45: =(Females!$U$36-Females!$P$36)/1000 -> 5.874
A46: Total employment | B46: =(FT!$U$36-FT!$P$36)/1000 -> 0.463 | C46: =(PT!$U$36-PT!$P$36)/1000 -> -1.1 | D46: =(SE!$U$36-SE!$P$36)/1000 -> 15.118 | E46: =(All!$U$36-All!$P$36)/1000 -> 14.481
A48: =A$15 -> 2009-2014
A49: Employment by Gender | B49: FT | C49: PT | D49: SE | E49: Total
A50: Male employment | B50: =(MalesFT!$Z$36-MalesFT!$U$36)/1000 -> 10.363 | C50: =(MalesPT!$Z$36-MalesPT!$U$36)/1000 -> 3.997 | D50: =(MalesSE!$Z$36-MalesSE!$U$36)/1000 -> -0.944 | E50: =(Males!$Z$36-Males!$U$36)/1000 -> 13.416
A51: Female employment | B51: =(FemalesFT!$Z$36-FemalesFT!$U$36)/1000 -> 4.865 | C51: =(FemalesPT!$Z$36-FemalesPT!$U$36)/1000 -> -0.016 | D51: =(FemalesSE!$Z$36-FemalesSE!$U$36)/1000 -> -1.994 | E51: =(Females!$Z$36-Females!$U$36)/1000 -> 2.855
A52: Total employment | B52: =(FT!$Z$36-FT!$U$36)/1000 -> 15.228 | C52: =(PT!$Z$36-PT!$U$36)/1000 -> 3.981 | D52: =(SE!$Z$36-SE!$U$36)/1000 -> -2.938 | E52: =(All!$Z$36-All!$U$36)/1000 -> 16.271
A54: =A$21 -> 2014-2019
A55: Employment by Gender | B55: FT | C55: PT | D55: SE | E55: Total
A56: Male employment | B56: =(MalesFT!$AE$36-MalesFT!$Z$36)/1000 -> -4.788 | C56: =(MalesPT!$AE$36-MalesPT!$Z$36)/1000 -> -0.338 | D56: =(MalesSE!$AE$36-MalesSE!$Z$36)/1000 -> -3.695 | E56: =(Males!$AE$36-Males!$Z$36)/1000 -> -8.821
A57: Female employment | B57: =(FemalesFT!$AE$36-FemalesFT!$Z$36)/1000 -> -0.691 | C57: =(FemalesPT!$AE$36-FemalesPT!$Z$36)/1000 -> -0.087 | D57: =(FemalesSE!$AE$36-FemalesSE!$Z$36)/1000 -> -1.105 | E57: =(Females!$AE$36-Females!$Z$36)/1000 -> -1.883
A58: Total employment | B58: =(FT!$AE$36-FT!$Z$36)/1000 -> -5.479 | C58: =(PT!$AE$36-PT!$Z$36)/1000 -> -0.425 | D58: =(SE!$AE$36-SE!$Z$36)/1000 -> -4.8 | E58: =(All!$AE$36-All!$Z$36)/1000 -> -10.704
A60: =A$27 -> 2019-2024
A61: Employment by Gender | B61: FT | C61: PT | D61: SE | E61: Total
A62: Male employment | B62: =(MalesFT!$AJ$36-MalesFT!$AE$36)/1000 -> -2.288 | C62: =(MalesPT!$AJ$36-MalesPT!$AE$36)/1000 -> 0.065 | D62: =(MalesSE!$AJ$36-MalesSE!$AE$36)/1000 -> -1.975 | E62: =(Males!$AJ$36-Males!$AE$36)/1000 -> -4.198
A63: Female employment | B63: =(FemalesFT!$AJ$36-FemalesFT!$AE$36)/1000 -> 0.223 | C63: =(FemalesPT!$AJ$36-FemalesPT!$AE$36)/1000 -> 0.277 | D63: =(FemalesSE!$AJ$36-FemalesSE!$AE$36)/1000 -> -0.416 | E63: =(Females!$AJ$36-Females!$AE$36)/1000 -> 0.084
A64: Total employment | B64: =(FT!$AJ$36-FT!$AE$36)/1000 -> -2.065 | C64: =(PT!$AJ$36-PT!$AE$36)/1000 -> 0.342 | D64: =(SE!$AJ$36-SE!$AE$36)/1000 -> -2.391 | E64: =(All!$AJ$36-All!$AE$36)/1000 -> -4.114
A67: Table 6.x.2c | B67: Employment changes
A68: ='Table 6.x.2a CD'!A68 -> Mining and quarrying | E68: 000s
A69: =A$3 -> 1999-2004
A70: Employment by Gender | B70: FT | C70: PT | D70: SE | E70: Total
A71: Male employment | B71: =(MalesFT!$P$64-MalesFT!$K$64)/1000 -> -2.179 | C71: =(MalesPT!$P$64-MalesPT!$K$64)/1000 -> 0.002 | D71: =(MalesSE!$P$64-MalesSE!$K$64)/1000 -> -0.001 | E71: =(Males!$P$64-Males!$K$64)/1000 -> -2.178
A72: Female employment | B72: =(FemalesFT!$P$64-FemalesFT!$K$64)/1000 -> 0.001 | C72: =(FemalesPT!$P$64-FemalesPT!$K$64)/1000 -> 0.069 | D72: =(FemalesSE!$P$64-FemalesSE!$K$64)/1000 -> 0.054 | E72: =(Females!$P$64-Females!$K$64)/1000 -> 0.124
A73: Total employment | B73: =(FT!$P$64-FT!$K$64)/1000 -> -2.178 | C73: =(PT!$P$64-PT!$K$64)/1000 -> 0.071 | D73: =(SE!$P$64-SE!$K$64)/1000 -> 0.053 | E73: =(All!$P$64-All!$K$64)/1000 -> -2.054
A75: =A$9 -> 2004-2009
A76: Employment by Gender | B76: FT | C76: PT | D76: SE | E76: Total
A77: Male employment | B77: =(MalesFT!$U$64-MalesFT!$P$64)/1000 -> -0.874 | C77: =(MalesPT!$U$64-MalesPT!$P$64)/1000 -> -0.003 | D77: =(MalesSE!$U$64-MalesSE!$P$64)/1000 -> 0 | E77: =(Males!$U$64-Males!$P$64)/1000 -> -0.877
A78: Female employment | B78: =(FemalesFT!$U$64-FemalesFT!$P$64)/1000 -> -0.001 | C78: =(FemalesPT!$U$64-FemalesPT!$P$64)/1000 -> -0.194 | D78: =(FemalesSE!$U$64-FemalesSE!$P$64)/1000 -> 0.049 | E78: =(Females!$U$64-Females!$P$64)/1000 -> -0.146
A79: Total employment | B79: =(FT!$U$64-FT!$P$64)/1000 -> -0.875 | C79: =(PT!$U$64-PT!$P$64)/1000 -> -0.197 | D79: =(SE!$U$64-SE!$P$64)/1000 -> 0.049 | E79: =(All!$U$64-All!$P$64)/1000 -> -1.023
A81: =A$15 -> 2009-2014
A82: Employment by Gender | B82: FT | C82: PT | D82: SE | E82: Total
A83: Male employment | B83: =(MalesFT!$Z$64-MalesFT!$U$64)/1000 -> -0.889 | C83: =(MalesPT!$Z$64-MalesPT!$U$64)/1000 -> 0 | D83: =(MalesSE!$Z$64-MalesSE!$U$64)/1000 -> 0 | E83: =(Males!$Z$64-Males!$U$64)/1000 -> -0.889
A84: Female employment | B84: =(FemalesFT!$Z$64-FemalesFT!$U$64)/1000 -> 0 | C84: =(FemalesPT!$Z$64-FemalesPT!$U$64)/1000 -> 0 | D84: =(FemalesSE!$Z$64-FemalesSE!$U$64)/1000 -> -0.103 | E84: =(Females!$Z$64-Females!$U$64)/1000 -> -0.103
A85: Total employment | B85: =(FT!$Z$64-FT!$U$64)/1000 -> -0.889 | C85: =(PT!$Z$64-PT!$U$64)/1000 -> 0 | D85: =(SE!$Z$64-SE!$U$64)/1000 -> -0.103 | E85: =(All!$Z$64-All!$U$64)/1000 -> -0.992
A87: =A$21 -> 2014-2019
A88: Employment by Gender | B88: FT | C88: PT | D88: SE | E88: Total
A89: Male employment | B89: =(MalesFT!$AE$64-MalesFT!$Z$64)/1000 -> 0.982 | C89: =(MalesPT!$AE$64-MalesPT!$Z$64)/1000 -> 0.064 | D89: =(MalesSE!$AE$64-MalesSE!$Z$64)/1000 -> 0 | E89: =(Males!$AE$64-Males!$Z$64)/1000 -> 1.046
A90: Female employment | B90: =(FemalesFT!$AE$64-FemalesFT!$Z$64)/1000 -> 0.001 | C90: =(FemalesPT!$AE$64-FemalesPT!$Z$64)/1000 -> 0 | D90: =(FemalesSE!$AE$64-FemalesSE!$Z$64)/1000 -> 0 | E90: =(Females!$AE$64-Females!$Z$64)/1000 -> 0.001
A91: Total employment | B91: =(FT!$AE$64-FT!$Z$64)/1000 -> 0.983 | C91: =(PT!$AE$64-PT!$Z$64)/1000 -> 0.064 | D91: =(SE!$AE$64-SE!$Z$64)/1000 -> 0 | E91: =(All!$AE$64-All!$Z$64)/1000 -> 1.047
A93: =A$27 -> 2019-2024
A94: Employment by Gender | B94: FT | C94: PT | D94: SE | E94: Total
A95: Male employment | B95: =(MalesFT!$AJ$64-MalesFT!$AE$64)/1000 -> -0.671 | C95: =(MalesPT!$AJ$64-MalesPT!$AE$64)/1000 -> 0.003 | D95: =(MalesSE!$AJ$64-MalesSE!$AE$64)/1000 -> 0 | E95: =(Males!$AJ$64-Males!$AE$64)/1000 -> -0.668
A96: Female employment | B96: =(FemalesFT!$AJ$64-FemalesFT!$AE$64)/1000 -> -0.001 | C96: =(FemalesPT!$AJ$64-FemalesPT!$AE$64)/1000 -> 0 | D96: =(FemalesSE!$AJ$64-FemalesSE!$AE$64)/1000 -> 0 | E96: =(Females!$AJ$64-Females!$AE$64)/1000 -> -0.001
A97: Total employment | B97: =(FT!$AJ$64-FT!$AE$64)/1000 -> -0.672 | C97: =(PT!$AJ$64-PT!$AE$64)/1000 -> 0.003 | D97: =(SE!$AJ$64-SE!$AE$64)/1000 -> 0 | E97: =(All!$AJ$64-All!$AE$64)/1000 -> -0.669
A100: Table 6.x.2c | B100: Employment changes
A101: ='Table 6.x.2a CD'!A101 -> Food drink and tobacco | E101: 000s
A102: =A$3 -> 1999-2004
A103: Employment by Gender | B103: FT | C103: PT | D103: SE | E103: Total
A104: Male employment | B104: =(MalesFT!$P$92-MalesFT!$K$92)/1000 -> -5.597 | C104: =(MalesPT!$P$92-MalesPT!$K$92)/1000 -> -0.311 | D104: =(MalesSE!$P$92-MalesSE!$K$92)/1000 -> -0.011 | E104: =(Males!$P$92-Males!$K$92)/1000 -> -5.919
A105: Female employment | B105: =(FemalesFT!$P$92-FemalesFT!$K$92)/1000 -> -1.03 | C105: =(FemalesPT!$P$92-FemalesPT!$K$92)/1000 -> -1.662 | D105: =(FemalesSE!$P$92-FemalesSE!$K$92)/1000 -> -0.054 | E105: =(Females!$P$92-Females!$K$92)/1000 -> -2.746
A106: Total employment | B106: =(FT!$P$92-FT!$K$92)/1000 -> -6.627 | C106: =(PT!$P$92-PT!$K$92)/1000 -> -1.973 | D106: =(SE!$P$92-SE!$K$92)/1000 -> -0.065 | E106: =(All!$P$92-All!$K$92)/1000 -> -8.665
A108: =A$9 -> 2004-2009
A109: Employment by Gender | B109: FT | C109: PT | D109: SE | E109: Total
A110: Male employment | B110: =(MalesFT!$U$92-MalesFT!$P$92)/1000 -> -2.842 | C110: =(MalesPT!$U$92-MalesPT!$P$92)/1000 -> -0.643 | D110: =(MalesSE!$U$92-MalesSE!$P$92)/1000 -> 0.932 | E110: =(Males!$U$92-Males!$P$92)/1000 -> -2.553
A111: Female employment | B111: =(FemalesFT!$U$92-FemalesFT!$P$92)/1000 -> -0.672 | C111: =(FemalesPT!$U$92-FemalesPT!$P$92)/1000 -> -0.459 | D111: =(FemalesSE!$U$92-FemalesSE!$P$92)/1000 -> 1.162 | E111: =(Females!$U$92-Females!$P$92)/1000 -> 0.031
A112: Total employment | B112: =(FT!$U$92-FT!$P$92)/1000 -> -3.514 | C112: =(PT!$U$92-PT!$P$92)/1000 -> -1.102 | D112: =(SE!$U$92-SE!$P$92)/1000 -> 2.094 | E112: =(All!$U$92-All!$P$92)/1000 -> -2.522
A114: =A$15 -> 2009-2014
A115: Employment by Gender | B115: FT | C115: PT | D115: SE | E115: Total
A116: Male employment | B116: =(MalesFT!$Z$92-MalesFT!$U$92)/1000 -> -2.965 | C116: =(MalesPT!$Z$92-MalesPT!$U$92)/1000 -> 0.505 | D116: =(MalesSE!$Z$92-MalesSE!$U$92)/1000 -> -0.575 | E116: =(Males!$Z$92-Males!$U$92)/1000 -> -3.035
A117: Female employment | B117: =(FemalesFT!$Z$92-FemalesFT!$U$92)/1000 -> -0.403 | C117: =(FemalesPT!$Z$92-FemalesPT!$U$92)/1000 -> -0.132 | D117: =(FemalesSE!$Z$92-FemalesSE!$U$92)/1000 -> 0.285 | E117: =(Females!$Z$92-Females!$U$92)/1000 -> -0.25
A118: Total employment | B118: =(FT!$Z$92-FT!$U$92)/1000 -> -3.368 | C118: =(PT!$Z$92-PT!$U$92)/1000 -> 0.373 | D118: =(SE!$Z$92-SE!$U$92)/1000 -> -0.29 | E118: =(All!$Z$92-All!$U$92)/1000 -> -3.285
A120: =A$21 -> 2014-2019
A121: Employment by Gender | B121: FT | C121: PT | D121: SE | E121: Total
A122: Male employment | B122: =(MalesFT!$AE$92-MalesFT!$Z$92)/1000 -> -1.232 | C122: =(MalesPT!$AE$92-MalesPT!$Z$92)/1000 -> 0.122 | D122: =(MalesSE!$AE$92-MalesSE!$Z$92)/1000 -> -0.028 | E122: =(Males!$AE$92-Males!$Z$92)/1000 -> -1.138
A123: Female employment | B123: =(FemalesFT!$AE$92-FemalesFT!$Z$92)/1000 -> -0.432 | C123: =(FemalesPT!$AE$92-FemalesPT!$Z$92)/1000 -> -0.077 | D123: =(FemalesSE!$AE$92-FemalesSE!$Z$92)/1000 -> -0.092 | E123: =(Females!$AE$92-Females!$Z$92)/1000 -> -0.601
A124: Total employment | B124: =(FT!$AE$92-FT!$Z$92)/1000 -> -1.664 | C124: =(PT!$AE$92-PT!$Z$92)/1000 -> 0.045 | D124: =(SE!$AE$92-SE!$Z$92)/1000 -> -0.12 | E124: =(All!$AE$92-All!$Z$92)/1000 -> -1.739
A126: =A$27 -> 2019-2024
A127: Employment by Gender | B127: FT | C127: PT | D127: SE | E127: Total
A128: Male employment | B128: =(MalesFT!$AJ$92-MalesFT!$AE$92)/1000 -> -2.776 | C128: =(MalesPT!$AJ$92-MalesPT!$AE$92)/1000 -> 0.009 | D128: =(MalesSE!$AJ$92-MalesSE!$AE$92)/1000 -> -0.074 | E128: =(Males!$AJ$92-Males!$AE$92)/1000 -> -2.841
A129: Female employment | B129: =(FemalesFT!$AJ$92-FemalesFT!$AE$92)/1000 -> -1.135 | C129: =(FemalesPT!$AJ$92-FemalesPT!$AE$92)/1000 -> -0.309 | D129: =(FemalesSE!$AJ$92-FemalesSE!$AE$92)/1000 -> -0.206 | E129: =(Females!$AJ$92-Females!$AE$92)/1000 -> -1.65
A130: Total employment | B130: =(FT!$AJ$92-FT!$AE$92)/1000 -> -3.911 | C130: =(PT!$AJ$92-PT!$AE$92)/1000 -> -0.3 | D130: =(SE!$AJ$92-SE!$AE$92)/1000 -> -0.28 | E130: =(All!$AJ$92-All!$AE$92)/1000 -> -4.491
A133: Table 6.x.2c | B133: Employment changes
A134: ='Table 6.x.2a CD'!A134 -> Engineering | E134: 000s
A135: =A$3 -> 1999-2004
A136: Employment by Gender | B136: FT | C136: PT | D136: SE | E136: Total
A137: Male employment | B137: =(MalesFT!$P$120-MalesFT!$K$120)/1000 -> -10.717 | C137: =(MalesPT!$P$120-MalesPT!$K$120)/1000 -> -0.157 | D137: =(MalesSE!$P$120-MalesSE!$K$120)/1000 -> 0.245 | E137: =(Males!$P$120-Males!$K$120)/1000 -> -10.629
A138: Female employment | B138: =(FemalesFT!$P$120-FemalesFT!$K$120)/1000 -> -2.075 | C138: =(FemalesPT!$P$120-FemalesPT!$K$120)/1000 -> -0.386 | D138: =(FemalesSE!$P$120-FemalesSE!$K$120)/1000 -> -0.598 | E138: =(Females!$P$120-Females!$K$120)/1000 -> -3.059
A139: Total employment | B139: =(FT!$P$120-FT!$K$120)/1000 -> -12.792 | C139: =(PT!$P$120-PT!$K$120)/1000 -> -0.543 | D139: =(SE!$P$120-SE!$K$120)/1000 -> -0.353 | E139: =(All!$P$120-All!$K$120)/1000 -> -13.688
A141: =A$9 -> 2004-2009
A142: Employment by Gender | B142: FT | C142: PT | D142: SE | E142: Total
A143: Male employment | B143: =(MalesFT!$U$120-MalesFT!$P$120)/1000 -> -9.319 | C143: =(MalesPT!$U$120-MalesPT!$P$120)/1000 -> -0.564 | D143: =(MalesSE!$U$120-MalesSE!$P$120)/1000 -> 0.439 | E143: =(Males!$U$120-Males!$P$120)/1000 -> -9.444
A144: Female employment | B144: =(FemalesFT!$U$120-FemalesFT!$P$120)/1000 -> -4.697 | C144: =(FemalesPT!$U$120-FemalesPT!$P$120)/1000 -> -0.858 | D144: =(FemalesSE!$U$120-FemalesSE!$P$120)/1000 -> -0.197 | E144: =(Females!$U$120-Females!$P$120)/1000 -> -5.752
A145: Total employment | B145: =(FT!$U$120-FT!$P$120)/1000 -> -14.016 | C145: =(PT!$U$120-PT!$P$120)/1000 -> -1.422 | D145: =(SE!$U$120-SE!$P$120)/1000 -> 0.242 | E145: =(All!$U$120-All!$P$120)/1000 -> -15.196
A147: =A$15 -> 2009-2014
A148: Employment by Gender | B148: FT | C148: PT | D148: SE | E148: Total
A149: Male employment | B149: =(MalesFT!$Z$120-MalesFT!$U$120)/1000 -> 8.374 | C149: =(MalesPT!$Z$120-MalesPT!$U$120)/1000 -> 0.822 | D149: =(MalesSE!$Z$120-MalesSE!$U$120)/1000 -> -0.173 | E149: =(Males!$Z$120-Males!$U$120)/1000 -> 9.023
A150: Female employment | B150: =(FemalesFT!$Z$120-FemalesFT!$U$120)/1000 -> 3.015 | C150: =(FemalesPT!$Z$120-FemalesPT!$U$120)/1000 -> 1.632 | D150: =(FemalesSE!$Z$120-FemalesSE!$U$120)/1000 -> 0.228 | E150: =(Females!$Z$120-Females!$U$120)/1000 -> 4.875
A151: Total employment | B151: =(FT!$Z$120-FT!$U$120)/1000 -> 11.389 | C151: =(PT!$Z$120-PT!$U$120)/1000 -> 2.454 | D151: =(SE!$Z$120-SE!$U$120)/1000 -> 0.055 | E151: =(All!$Z$120-All!$U$120)/1000 -> 13.898
A153: =A$21 -> 2014-2019
A154: Employment by Gender | B154: FT | C154: PT | D154: SE | E154: Total
A155: Male employment | B155: =(MalesFT!$AE$120-MalesFT!$Z$120)/1000 -> -4.311 | C155: =(MalesPT!$AE$120-MalesPT!$Z$120)/1000 -> 0.126 | D155: =(MalesSE!$AE$120-MalesSE!$Z$120)/1000 -> -0.042 | E155: =(Males!$AE$120-Males!$Z$120)/1000 -> -4.227
A156: Female employment | B156: =(FemalesFT!$AE$120-FemalesFT!$Z$120)/1000 -> -0.762 | C156: =(FemalesPT!$AE$120-FemalesPT!$Z$120)/1000 -> -0.039 | D156: =(FemalesSE!$AE$120-FemalesSE!$Z$120)/1000 -> 0 | E156: =(Females!$AE$120-Females!$Z$120)/1000 -> -0.801
A157: Total employment | B157: =(FT!$AE$120-FT!$Z$120)/1000 -> -5.073 | C157: =(PT!$AE$120-PT!$Z$120)/1000 -> 0.087 | D157: =(SE!$AE$120-SE!$Z$120)/1000 -> -0.042 | E157: =(All!$AE$120-All!$Z$120)/1000 -> -5.028
A159: =A$27 -> 2019-2024
A160: Employment by Gender | B160: FT | C160: PT | D160: SE | E160: Total
A161: Male employment | B161: =(MalesFT!$AJ$120-MalesFT!$AE$120)/1000 -> -7.404 | C161: =(MalesPT!$AJ$120-MalesPT!$AE$120)/1000 -> 0.016 | D161: =(MalesSE!$AJ$120-MalesSE!$AE$120)/1000 -> -0.198 | E161: =(Males!$AJ$120-Males!$AE$120)/1000 -> -7.586
A162: Female employment | B162: =(FemalesFT!$AJ$120-FemalesFT!$AE$120)/1000 -> -1.793 | C162: =(FemalesPT!$AJ$120-FemalesPT!$AE$120)/1000 -> -0.273 | D162: =(FemalesSE!$AJ$120-FemalesSE!$AE$120)/1000 -> -0.051 | E162: =(Females!$AJ$120-Females!$AE$120)/1000 -> -2.117
A163: Total employment | B163: =(FT!$AJ$120-FT!$AE$120)/1000 -> -9.197 | C163: =(PT!$AJ$120-PT!$AE$120)/1000 -> -0.257 | D163: =(SE!$AJ$120-SE!$AE$120)/1000 -> -0.249 | E163: =(All!$AJ$120-All!$AE$120)/1000 -> -9.703
A166: Table 6.x.2c | B166: Employment changes
A167: ='Table 6.x.2a CD'!A167 -> Rest of manufacturing | E167: 000s
A168: =A$3 -> 1999-2004
A169: Employment by Gender | B169: FT | C169: PT | D169: SE | E169: Total
A170: Male employment | B170: =(MalesFT!$P$148-MalesFT!$K$148)/1000 -> -17.081 | C170: =(MalesPT!$P$148-MalesPT!$K$148)/1000 -> -0.813 | D170: =(MalesSE!$P$148-MalesSE!$K$148)/1000 -> -0.249 | E170: =(Males!$P$148-Males!$K$148)/1000 -> -18.143
A171: Female employment | B171: =(FemalesFT!$P$148-FemalesFT!$K$148)/1000 -> -7.819 | C171: =(FemalesPT!$P$148-FemalesPT!$K$148)/1000 -> -4.154 | D171: =(FemalesSE!$P$148-FemalesSE!$K$148)/1000 -> -0.334 | E171: =(Females!$P$148-Females!$K$148)/1000 -> -12.307
A172: Total employment | B172: =(FT!$P$148-FT!$K$148)/1000 -> -24.9 | C172: =(PT!$P$148-PT!$K$148)/1000 -> -4.967 | D172: =(SE!$P$148-SE!$K$148)/1000 -> -0.583 | E172: =(All!$P$148-All!$K$148)/1000 -> -30.45
A174: =A$9 -> 2004-2009
A175: Employment by Gender | B175: FT | C175: PT | D175: SE | E175: Total
A176: Male employment | B176: =(MalesFT!$U$148-MalesFT!$P$148)/1000 -> -0.669 | C176: =(MalesPT!$U$148-MalesPT!$P$148)/1000 -> -0.029 | D176: =(MalesSE!$U$148-MalesSE!$P$148)/1000 -> -1.797 | E176: =(Males!$U$148-Males!$P$148)/1000 -> -2.495
A177: Female employment | B177: =(FemalesFT!$U$148-FemalesFT!$P$148)/1000 -> -4.343 | C177: =(FemalesPT!$U$148-FemalesPT!$P$148)/1000 -> -1.576 | D177: =(FemalesSE!$U$148-FemalesSE!$P$148)/1000 -> -0.682 | E177: =(Females!$U$148-Females!$P$148)/1000 -> -6.601
A178: Total employment | B178: =(FT!$U$148-FT!$P$148)/1000 -> -5.012 | C178: =(PT!$U$148-PT!$P$148)/1000 -> -1.605 | D178: =(SE!$U$148-SE!$P$148)/1000 -> -2.479 | E178: =(All!$U$148-All!$P$148)/1000 -> -9.096
A180: =A$15 -> 2009-2014
A181: Employment by Gender | B181: FT | C181: PT | D181: SE | E181: Total
A182: Male employment | B182: =(MalesFT!$Z$148-MalesFT!$U$148)/1000 -> -16.264 | C182: =(MalesPT!$Z$148-MalesPT!$U$148)/1000 -> 1.015 | D182: =(MalesSE!$Z$148-MalesSE!$U$148)/1000 -> -3.828 | E182: =(Males!$Z$148-Males!$U$148)/1000 -> -19.077
A183: Female employment | B183: =(FemalesFT!$Z$148-FemalesFT!$U$148)/1000 -> -1.85 | C183: =(FemalesPT!$Z$148-FemalesPT!$U$148)/1000 -> -0.648 | D183: =(FemalesSE!$Z$148-FemalesSE!$U$148)/1000 -> 1.436 | E183: =(Females!$Z$148-Females!$U$148)/1000 -> -1.062
A184: Total employment | B184: =(FT!$Z$148-FT!$U$148)/1000 -> -18.114 | C184: =(PT!$Z$148-PT!$U$148)/1000 -> 0.367 | D184: =(SE!$Z$148-SE!$U$148)/1000 -> -2.392 | E184: =(All!$Z$148-All!$U$148)/1000 -> -20.139
A186: =A$21 -> 2014-2019
A187: Employment by Gender | B187: FT | C187: PT | D187: SE | E187: Total
A188: Male employment | B188: =(MalesFT!$AE$148-MalesFT!$Z$148)/1000 -> 2.135 | C188: =(MalesPT!$AE$148-MalesPT!$Z$148)/1000 -> 0.549 | D188: =(MalesSE!$AE$148-MalesSE!$Z$148)/1000 -> 0.725 | E188: =(Males!$AE$148-Males!$Z$148)/1000 -> 3.409
A189: Female employment | B189: =(FemalesFT!$AE$148-FemalesFT!$Z$148)/1000 -> 1.893 | C189: =(FemalesPT!$AE$148-FemalesPT!$Z$148)/1000 -> 0.901 | D189: =(FemalesSE!$AE$148-FemalesSE!$Z$148)/1000 -> 0.392 | E189: =(Females!$AE$148-Females!$Z$148)/1000 -> 3.186
A190: Total employment | B190: =(FT!$AE$148-FT!$Z$148)/1000 -> 4.028 | C190: =(PT!$AE$148-PT!$Z$148)/1000 -> 1.45 | D190: =(SE!$AE$148-SE!$Z$148)/1000 -> 1.117 | E190: =(All!$AE$148-All!$Z$148)/1000 -> 6.595
A192: =A$27 -> 2019-2024
A193: Employment by Gender | B193: FT | C193: PT | D193: SE | E193: Total
A194: Male employment | B194: =(MalesFT!$AJ$148-MalesFT!$AE$148)/1000 -> -4.128 | C194: =(MalesPT!$AJ$148-MalesPT!$AE$148)/1000 -> 0.558 | D194: =(MalesSE!$AJ$148-MalesSE!$AE$148)/1000 -> 0.384 | E194: =(Males!$AJ$148-Males!$AE$148)/1000 -> -3.186
A195: Female employment | B195: =(FemalesFT!$AJ$148-FemalesFT!$AE$148)/1000 -> 0.655 | C195: =(FemalesPT!$AJ$148-FemalesPT!$AE$148)/1000 -> 0.838 | D195: =(FemalesSE!$AJ$148-FemalesSE!$AE$148)/1000 -> 0.205 | E195: =(Females!$AJ$148-Females!$AE$148)/1000 -> 1.698
A196: Total employment | B196: =(FT!$AJ$148-FT!$AE$148)/1000 -> -3.473 | C196: =(PT!$AJ$148-PT!$AE$148)/1000 -> 1.396 | D196: =(SE!$AJ$148-SE!$AE$148)/1000 -> 0.589 | E196: =(All!$AJ$148-All!$AE$148)/1000 -> -1.488
A199: Table 6.x.2c | B199: Employment changes
A200: ='Table 6.x.2a CD'!A200 -> Electricity and gas | E200: 000s
A201: =A$3 -> 1999-2004
A202: Employment by Gender | B202: FT | C202: PT | D202: SE | E202: Total
A203: Male employment | B203: =(MalesFT!$P$176-MalesFT!$K$176)/1000 -> -0.78 | C203: =(MalesPT!$P$176-MalesPT!$K$176)/1000 -> 0.002 | D203: =(MalesSE!$P$176-MalesSE!$K$176)/1000 -> 0.802 | E203: =(Males!$P$176-Males!$K$176)/1000 -> 0.024
A204: Female employment | B204: =(FemalesFT!$P$176-FemalesFT!$K$176)/1000 -> 0.225 | C204: =(FemalesPT!$P$176-FemalesPT!$K$176)/1000 -> -0.146 | D204: =(FemalesSE!$P$176-FemalesSE!$K$176)/1000 -> -0.016 | E204: =(Females!$P$176-Females!$K$176)/1000 -> 0.063
A205: Total employment | B205: =(FT!$P$176-FT!$K$176)/1000 -> -0.555 | C205: =(PT!$P$176-PT!$K$176)/1000 -> -0.144 | D205: =(SE!$P$176-SE!$K$176)/1000 -> 0.786 | E205: =(All!$P$176-All!$K$176)/1000 -> 0.087
A207: =A$9 -> 2004-2009
A208: Employment by Gender | B208: FT | C208: PT | D208: SE | E208: Total
A209: Male employment | B209: =(MalesFT!$U$176-MalesFT!$P$176)/1000 -> 0.882 | C209: =(MalesPT!$U$176-MalesPT!$P$176)/1000 -> 0.083 | D209: =(MalesSE!$U$176-MalesSE!$P$176)/1000 -> -0.801 | E209: =(Males!$U$176-Males!$P$176)/1000 -> 0.164
A210: Female employment | B210: =(FemalesFT!$U$176-FemalesFT!$P$176)/1000 -> -0.132 | C210: =(FemalesPT!$U$176-FemalesPT!$P$176)/1000 -> -1.351 | D210: =(FemalesSE!$U$176-FemalesSE!$P$176)/1000 -> -0.03 | E210: =(Females!$U$176-Females!$P$176)/1000 -> -1.513
A211: Total employment | B211: =(FT!$U$176-FT!$P$176)/1000 -> 0.75 | C211: =(PT!$U$176-PT!$P$176)/1000 -> -1.268 | D211: =(SE!$U$176-SE!$P$176)/1000 -> -0.831 | E211: =(All!$U$176-All!$P$176)/1000 -> -1.349
A213: =A$15 -> 2009-2014
A214: Employment by Gender | B214: FT | C214: PT | D214: SE | E214: Total
A215: Male employment | B215: =(MalesFT!$Z$176-MalesFT!$U$176)/1000 -> -1.999 | C215: =(MalesPT!$Z$176-MalesPT!$U$176)/1000 -> -0.083 | D215: =(MalesSE!$Z$176-MalesSE!$U$176)/1000 -> 0.989 | E215: =(Males!$Z$176-Males!$U$176)/1000 -> -1.093
A216: Female employment | B216: =(FemalesFT!$Z$176-FemalesFT!$U$176)/1000 -> -0.004 | C216: =(FemalesPT!$Z$176-FemalesPT!$U$176)/1000 -> 0 | D216: =(FemalesSE!$Z$176-FemalesSE!$U$176)/1000 -> 0 | E216: =(Females!$Z$176-Females!$U$176)/1000 -> -0.004
A217: Total employment | B217: =(FT!$Z$176-FT!$U$176)/1000 -> -2.003 | C217: =(PT!$Z$176-PT!$U$176)/1000 -> -0.083 | D217: =(SE!$Z$176-SE!$U$176)/1000 -> 0.989 | E217: =(All!$Z$176-All!$U$176)/1000 -> -1.097
A219: =A$21 -> 2014-2019
A220: Employment by Gender | B220: FT | C220: PT | D220: SE | E220: Total
A221: Male employment | B221: =(MalesFT!$AE$176-MalesFT!$Z$176)/1000 -> 0.827 | C221: =(MalesPT!$AE$176-MalesPT!$Z$176)/1000 -> -0.012 | D221: =(MalesSE!$AE$176-MalesSE!$Z$176)/1000 -> 0.132 | E221: =(Males!$AE$176-Males!$Z$176)/1000 -> 0.947
A222: Female employment | B222: =(FemalesFT!$AE$176-FemalesFT!$Z$176)/1000 -> 0.042 | C222: =(FemalesPT!$AE$176-FemalesPT!$Z$176)/1000 -> 0 | D222: =(FemalesSE!$AE$176-FemalesSE!$Z$176)/1000 -> 0 | E222: =(Females!$AE$176-Females!$Z$176)/1000 -> 0.042
A223: Total employment | B223: =(FT!$AE$176-FT!$Z$176)/1000 -> 0.869 | C223: =(PT!$AE$176-PT!$Z$176)/1000 -> -0.012 | D223: =(SE!$AE$176-SE!$Z$176)/1000 -> 0.132 | E223: =(All!$AE$176-All!$Z$176)/1000 -> 0.989
A225: =A$27 -> 2019-2024
A226: Employment by Gender | B226: FT | C226: PT | D226: SE | E226: Total
A227: Male employment | B227: =(MalesFT!$AJ$176-MalesFT!$AE$176)/1000 -> 0.469 | C227: =(MalesPT!$AJ$176-MalesPT!$AE$176)/1000 -> -0.028 | D227: =(MalesSE!$AJ$176-MalesSE!$AE$176)/1000 -> 0.036 | E227: =(Males!$AJ$176-Males!$AE$176)/1000 -> 0.477
A228: Female employment | B228: =(FemalesFT!$AJ$176-FemalesFT!$AE$176)/1000 -> -0.238 | C228: =(FemalesPT!$AJ$176-FemalesPT!$AE$176)/1000 -> 0 | D228: =(FemalesSE!$AJ$176-FemalesSE!$AE$176)/1000 -> 0 | E228: =(Females!$AJ$176-Females!$AE$176)/1000 -> -0.238
A229: Total employment | B229: =(FT!$AJ$176-FT!$AE$176)/1000 -> 0.231 | C229: =(PT!$AJ$176-PT!$AE$176)/1000 -> -0.028 | D229: =(SE!$AJ$176-SE!$AE$176)/1000 -> 0.036 | E229: =(All!$AJ$176-All!$AE$176)/1000 -> 0.239
A232: Table 6.x.2c | B232: Employment changes
A233: ='Table 6.x.2a CD'!A233 -> Water and sewerage | E233: 000s
A234: =A$3 -> 1999-2004
A235: Employment by Gender | B235: FT | C235: PT | D235: SE | E235: Total
A236: Male employment | B236: =(MalesFT!$P$204-MalesFT!$K$204)/1000 -> 1.14 | C236: =(MalesPT!$P$204-MalesPT!$K$204)/1000 -> -0.904 | D236: =(MalesSE!$P$204-MalesSE!$K$204)/1000 -> -1.029 | E236: =(Males!$P$204-Males!$K$204)/1000 -> -0.793
A237: Female employment | B237: =(FemalesFT!$P$204-FemalesFT!$K$204)/1000 -> 0.096 | C237: =(FemalesPT!$P$204-FemalesPT!$K$204)/1000 -> -0.223 | D237: =(FemalesSE!$P$204-FemalesSE!$K$204)/1000 -> 0.007 | E237: =(Females!$P$204-Females!$K$204)/1000 -> -0.12
A238: Total employment | B238: =(FT!$P$204-FT!$K$204)/1000 -> 1.236 | C238: =(PT!$P$204-PT!$K$204)/1000 -> -1.127 | D238: =(SE!$P$204-SE!$K$204)/1000 -> -1.022 | E238: =(All!$P$204-All!$K$204)/1000 -> -0.913
A240: =A$9 -> 2004-2009
A241: Employment by Gender | B241: FT | C241: PT | D241: SE | E241: Total
A242: Male employment | B242: =(MalesFT!$U$204-MalesFT!$P$204)/1000 -> 1.032 | C242: =(MalesPT!$U$204-MalesPT!$P$204)/1000 -> 0 | D242: =(MalesSE!$U$204-MalesSE!$P$204)/1000 -> 0.757 | E242: =(Males!$U$204-Males!$P$204)/1000 -> 1.789
A243: Female employment | B243: =(FemalesFT!$U$204-FemalesFT!$P$204)/1000 -> -0.105 | C243: =(FemalesPT!$U$204-FemalesPT!$P$204)/1000 -> 0.15 | D243: =(FemalesSE!$U$204-FemalesSE!$P$204)/1000 -> -0.004 | E243: =(Females!$U$204-Females!$P$204)/1000 -> 0.041
... 265 more rows

Sheet Figure 6.x.7
N2: Graph titles - do not remove:-
N3: Employment levels by gender and status,
N4: =CONCATENATE(N3,'Table 6.x.2a CD'!A3,"-",'Table 6.x.2a CD'!A27) -> Employment levels by gender and status, 2004-2024
N6: =CONCATENATE($N$4,CHAR(13),names!$A$3) -> Employment levels by gender and status, 2004-2024 All industries
N28: =CONCATENATE($N$4,CHAR(13),names!$A$4) -> Employment levels by gender and status, 2004-2024 Agriculture
N50: =CONCATENATE($N$4,CHAR(13),names!$A$5) -> Employment levels by gender and status, 2004-2024 Mining and quarrying
N72: =CONCATENATE($N$4,CHAR(13),names!$A$6) -> Employment levels by gender and status, 2004-2024 Food drink and tobacco
N94: =CONCATENATE($N$4,CHAR(13),names!$A$7) -> Employment levels by gender and status, 2004-2024 Engineering
N116: =CONCATENATE($N$4,CHAR(13),names!$A$8) -> Employment levels by gender and status, 2004-2024 Rest of manufacturing
N138: =CONCATENATE($N$4,CHAR(13),names!$A$9) -> Employment levels by gender and status, 2004-2024 Electricity and gas
N160: =CONCATENATE($N$4,CHAR(13),names!$A$10) -> Employment levels by gender and status, 2004-2024 Water and sewerage
N182: =CONCATENATE($N$4,CHAR(13),names!$A$11) -> Employment levels by gender and status, 2004-2024 Construction
N204: =CONCATENATE($N$4,CHAR(13),names!$A$12) -> Employment levels by gender and status, 2004-2024 Wholesale and retail trade
N226: =CONCATENATE($N$4,CHAR(13),names!$A$13) -> Employment levels by gender and status, 2004-2024 Transport and storage
N248: =CONCATENATE($N$4,CHAR(13),names!$A$14) -> Employment levels by gender and status, 2004-2024 Accommodation and food
N270: =CONCATENATE($N$4,CHAR(13),names!$A$15) -> Employment levels by gender and status, 2004-2024 Media
N292: =CONCATENATE($N$4,CHAR(13),names!$A$16) -> Employment levels by gender and status, 2004-2024 Information technology
N314: =CONCATENATE($N$4,CHAR(13),names!$A$17) -> Employment levels by gender and status, 2004-2024 Finance and insurance
N336: =CONCATENATE($N$4,CHAR(13),names!$A$18) -> Employment levels by gender and status, 2004-2024 Real estate
N358: =CONCATENATE($N$4,CHAR(13),names!$A$19) -> Employment levels by gender and status, 2004-2024 Professional services
N380: =CONCATENATE($N$4,CHAR(13),names!$A$20) -> Employment levels by gender and status, 2004-2024 Support services
N402: =CONCATENATE($N$4,CHAR(13),names!$A$21) -> Employment levels by gender and status, 2004-2024 Public admin. and defence
N424: =CONCATENATE($N$4,CHAR(13),names!$A$22) -> Employment levels by gender and status, 2004-2024 Education
N446: =CONCATENATE($N$4,CHAR(13),names!$A$23) -> Employment levels by gender and status, 2004-2024 Health and social work
N468: =CONCATENATE($N$4,CHAR(13),names!$A$24) -> Employment levels by gender and status, 2004-2024 Arts and entertainment
N489: =CONCATENATE($N$4,CHAR(13),names!$A$25) -> Employment levels by gender and status, 2004-2024 Other services

Sheet Figure 6.x.8
C7: Do NOT remove.
C8: ="Employment shares by gender and status, "&'Table 6.x.2b CD'!A3&"-"&'Table 6.x.2b CD'!A27 -> Employment shares by gender and status, 2004-2024

Sheet Figure 6.x.9
C7: Do NOT remove
C8: =CONCATENATE("Employment changes by gender and status, ",All!K7,"-",'Table 6.x.2b CD'!A27) -> Employment changes by gender and status, 1999-2024

Sheet Figure 6.x.10
P1: ="Occupational Composition, "&P2&", "&Q2&"-"&U2 -> Occupational Composition, All industries, 2004-2024
P2: =names!A3 -> All industries | Q2: =All!P7 -> 2004 | R2: =All!U7 -> 2009 | S2: =All!Z7 -> 2014 | T2: =All!AE7 -> 2019 | U2: =All!AJ7 -> 2024
P3: =names!B4 -> Managers, directors and senior officials | Q3: =(All!P9+All!P10)/1000 -> 229.641248 | R3: =(All!U9+All!U10)/1000 -> 254.984635 | S3: =(All!Z9+All!Z10)/1000 -> 298.694654 | T3: =(All!AE9+All!AE10)/1000 -> 325.192568 | U3: =(All!AJ9+All!AJ10)/1000 -> 341.175978
P4: =names!B5 -> Professional occupations | Q4: =(All!P11+All!P12+All!P13+All!P14)/1000 -> 417.589934 | R4: =(All!U11+All!U12+All!U13+All!U14)/1000 -> 476.876027 | S4: =(All!Z11+All!Z12+All!Z13+All!Z14)/1000 -> 533.916519 | T4: =(All!AE11+All!AE12+All!AE13+All!AE14)/1000 -> 576.27142 | U4: =(All!AJ11+All!AJ12+All!AJ13+All!AJ14)/1000 -> 609.331405
P5: =names!B6 -> Associate professional and technical | Q5: =(All!P15+All!P16+All!P17+All!P18+All!P19)/1000 -> 307.276097 | R5: =(All!U15+All!U16+All!U17+All!U18+All!U19)/1000 -> 330.723231 | S5: =(All!Z15+All!Z16+All!Z17+All!Z18+All!Z19)/1000 -> 357.887482 | T5: =(All!AE15+All!AE16+All!AE17+All!AE18+All!AE19)/1000 -> 383.876063 | U5: =(All!AJ15+All!AJ16+All!AJ17+All!AJ18+All!AJ19)/1000 -> 399.936743
P6: =names!B7 -> Administrative and secretarial | Q6: =(All!P20+All!P21)/1000 -> 313.182183 | R6: =(All!U20+All!U21)/1000 -> 288.799948 | S6: =(All!Z20+All!Z21)/1000 -> 282.592135 | T6: =(All!AE20+All!AE21)/1000 -> 261.652678 | U6: =(All!AJ20+All!AJ21)/1000 -> 248.013889
P7: =names!B8 -> Skilled trades occupations | Q7: =(All!P22+All!P23+All!P24+All!P25)/1000 -> 347.986909 | R7: =(All!U22+All!U23+All!U24+All!U25)/1000 -> 334.290638 | S7: =(All!Z22+All!Z23+All!Z24+All!Z25)/1000 -> 348.913136 | T7: =(All!AE22+All!AE23+All!AE24+All!AE25)/1000 -> 352.037987 | U7: =(All!AJ22+All!AJ23+All!AJ24+All!AJ25)/1000 -> 352.615216
P8: =names!B9 -> Caring, leisure and other service | Q8: =(All!P26+All!P27)/1000 -> 228.713178 | R8: =(All!U26+All!U27)/1000 -> 260.405538 | S8: =(All!Z26+All!Z27)/1000 -> 302.733203 | T8: =(All!AE26+All!AE27)/1000 -> 325.349259 | U8: =(All!AJ26+All!AJ27)/1000 -> 347.266648
P9: =names!B10 -> Sales and customer service | Q9: =(All!P28+All!P29)/1000 -> 232.02503 | R9: =(All!U28+All!U29)/1000 -> 235.183398 | S9: =(All!Z28+All!Z29)/1000 -> 225.430886 | T9: =(All!AE28+All!AE29)/1000 -> 226.707997 | U9: =(All!AJ28+All!AJ29)/1000 -> 229.264926
P10: =names!B11 -> Process, plant and machine operatives | Q10: =(All!P30+All!P31)/1000 -> 167.259329 | R10: =(All!U30+All!U31)/1000 -> 167.124814 | S10: =(All!Z30+All!Z31)/1000 -> 155.565682 | T10: =(All!AE30+All!AE31)/1000 -> 150.391518 | U10: =(All!AJ30+All!AJ31)/1000 -> 147.512256
P11: =names!B12 -> Elementary occupations | Q11: =(All!P32+All!P33)/1000 -> 323.742091 | R11: =(All!U32+All!U33)/1000 -> 317.17777 | S11: =(All!Z32+All!Z33)/1000 -> 301.225303 | T11: =(All!AE32+All!AE33)/1000 -> 307.411511 | U11: =(All!AJ32+All!AJ33)/1000 -> 311.711936
P29: ="Occupational Composition, "&P30&", "&Q30&"-"&U30 -> Occupational Composition, Agriculture, 2004-2024
P30: =names!A4 -> Agriculture | Q30: =Q$2 -> 2004 | R30: =R$2 -> 2009 | S30: =S$2 -> 2014 | T30: =T$2 -> 2019 | U30: =U$2 -> 2024
P31: =P$3 -> Managers, directors and senior officials | Q31: =(All!P37+All!P38)/1000 -> 2.521674 | R31: =(All!U37+All!U38)/1000 -> 3.140687 | S31: =(All!Z37+All!Z38)/1000 -> 5.067681 | T31: =(All!AE37+All!AE38)/1000 -> 4.109013 | U31: =(All!AJ37+All!AJ38)/1000 -> 3.742082
P32: =P$4 -> Professional occupations | Q32: =(All!P39+All!P40+All!P41+All!P42)/1000 -> 1.939938 | R32: =(All!U39+All!U40+All!U41+All!U42)/1000 -> 2.435399 | S32: =(All!Z39+All!Z40+All!Z41+All!Z42)/1000 -> 3.526375 | T32: =(All!AE39+All!AE40+All!AE41+All!AE42)/1000 -> 3.270329 | U32: =(All!AJ39+All!AJ40+All!AJ41+All!AJ42)/1000 -> 3.260404
P33: =P$5 -> Associate professional and technical | Q33: =(All!P43+All!P44+All!P45+All!P46+All!P47)/1000 -> 1.00351 | R33: =(All!U43+All!U44+All!U45+All!U46+All!U47)/1000 -> 1.522884 | S33: =(All!Z43+All!Z44+All!Z45+All!Z46+All!Z47)/1000 -> 2.695276 | T33: =(All!AE43+All!AE44+All!AE45+All!AE46+All!AE47)/1000 -> 2.500187 | U33: =(All!AJ43+All!AJ44+All!AJ45+All!AJ46+All!AJ47)/1000 -> 2.498279
P34: =P$6 -> Administrative and secretarial | Q34: =(All!P48+All!P49)/1000 -> 1.535819 | R34: =(All!U48+All!U49)/1000 -> 2.117158 | S34: =(All!Z48+All!Z49)/1000 -> 2.692742 | T34: =(All!AE48+All!AE49)/1000 -> 2.107817 | U34: =(All!AJ48+All!AJ49)/1000 -> 1.814933
P35: =P$7 -> Skilled trades occupations | Q35: =(All!P50+All!P51+All!P52+All!P53)/1000 -> 18.310576 | R35: =(All!U50+All!U51+All!U52+All!U53)/1000 -> 28.564869 | S35: =(All!Z50+All!Z51+All!Z52+All!Z53)/1000 -> 34.327662 | T35: =(All!AE50+All!AE51+All!AE52+All!AE53)/1000 -> 29.851468 | U35: =(All!AJ50+All!AJ51+All!AJ52+All!AJ53)/1000 -> 27.958994
P36: =P$8 -> Caring, leisure and other service | Q36: =(All!P54+All!P55)/1000 -> 3.067983 | R36: =(All!U54+All!U55)/1000 -> 3.458984 | S36: =(All!Z54+All!Z55)/1000 -> 4.731275 | T36: =(All!AE54+All!AE55)/1000 -> 4.512541 | U36: =(All!AJ54+All!AJ55)/1000 -> 4.437051
P37: =P$9 -> Sales and customer service | Q37: =(All!P56+All!P57)/1000 -> 0.339986 | R37: =(All!U56+All!U57)/1000 -> 0.439713 | S37: =(All!Z56+All!Z57)/1000 -> 0.812832 | T37: =(All!AE56+All!AE57)/1000 -> 0.685456 | U37: =(All!AJ56+All!AJ57)/1000 -> 0.660094
P38: =P$10 -> Process, plant and machine operatives | Q38: =(All!P58+All!P59)/1000 -> 2.940796 | R38: =(All!U58+All!U59)/1000 -> 3.116255 | S38: =(All!Z58+All!Z59)/1000 -> 3.828463 | T38: =(All!AE58+All!AE59)/1000 -> 2.799055 | U38: =(All!AJ58+All!AJ59)/1000 -> 2.442439
P39: =P$11 -> Elementary occupations | Q39: =(All!P60+All!P61)/1000 -> 8.849718 | R39: =(All!U60+All!U61)/1000 -> 10.195051 | S39: =(All!Z60+All!Z61)/1000 -> 13.579696 | T39: =(All!AE60+All!AE61)/1000 -> 10.722134 | U39: =(All!AJ60+All!AJ61)/1000 -> 9.629724
P57: ="Occupational Composition, "&P58&", "&Q58&"-"&U58 -> Occupational Composition, Mining and quarrying, 2004-2024
P58: =names!A5 -> Mining and quarrying | Q58: =Q$2 -> 2004 | R58: =R$2 -> 2009 | S58: =S$2 -> 2014 | T58: =T$2 -> 2019 | U58: =U$2 -> 2024
P59: =P$3 -> Managers, directors and senior officials | Q59: =(All!P65+All!P66)/1000 -> 0.358529 | R59: =(All!U65+All!U66)/1000 -> 0.354211 | S59: =(All!Z65+All!Z66)/1000 -> 0.258815 | T59: =(All!AE65+All!AE66)/1000 -> 0.415247 | U59: =(All!AJ65+All!AJ66)/1000 -> 0.340974
P60: =P$4 -> Professional occupations | Q60: =(All!P67+All!P68+All!P69+All!P70)/1000 -> 0.32828 | R60: =(All!U67+All!U68+All!U69+All!U70)/1000 -> 0.283151 | S60: =(All!Z67+All!Z68+All!Z69+All!Z70)/1000 -> 0.195362 | T60: =(All!AE67+All!AE68+All!AE69+All!AE70)/1000 -> 0.30241 | U60: =(All!AJ67+All!AJ68+All!AJ69+All!AJ70)/1000 -> 0.244699
P61: =P$5 -> Associate professional and technical | Q61: =(All!P71+All!P72+All!P73+All!P74+All!P75)/1000 -> 0.411365 | R61: =(All!U71+All!U72+All!U73+All!U74+All!U75)/1000 -> 0.328218 | S61: =(All!Z71+All!Z72+All!Z73+All!Z74+All!Z75)/1000 -> 0.232944 | T61: =(All!AE71+All!AE72+All!AE73+All!AE74+All!AE75)/1000 -> 0.361675 | U61: =(All!AJ71+All!AJ72+All!AJ73+All!AJ74+All!AJ75)/1000 -> 0.291519
P62: =P$6 -> Administrative and secretarial | Q62: =(All!P76+All!P77)/1000 -> 0.130017 | R62: =(All!U76+All!U77)/1000 -> 0.079007 | S62: =(All!Z76+All!Z77)/1000 -> 0.048426 | T62: =(All!AE76+All!AE77)/1000 -> 0.073437 | U62: =(All!AJ76+All!AJ77)/1000 -> 0.059093
P63: =P$7 -> Skilled trades occupations | Q63: =(All!P78+All!P79+All!P80+All!P81)/1000 -> 0.682536 | R63: =(All!U78+All!U79+All!U80+All!U81)/1000 -> 0.62729 | S63: =(All!Z78+All!Z79+All!Z80+All!Z81)/1000 -> 0.428589 | T63: =(All!AE78+All!AE79+All!AE80+All!AE81)/1000 -> 0.602733 | U63: =(All!AJ78+All!AJ79+All!AJ80+All!AJ81)/1000 -> 0.454312
P64: =P$8 -> Caring, leisure and other service | Q64: =(All!P82+All!P83)/1000 -> 0.118265 | R64: =(All!U82+All!U83)/1000 -> 0.038742 | S64: =(All!Z82+All!Z83)/1000 -> 0.023215 | T64: =(All!AE82+All!AE83)/1000 -> 0.039027 | U64: =(All!AJ82+All!AJ83)/1000 -> 0.034209
P65: =P$9 -> Sales and customer service | Q65: =(All!P84+All!P85)/1000 -> 0.063822 | R65: =(All!U84+All!U85)/1000 -> 0.050052 | S65: =(All!Z84+All!Z85)/1000 -> 0.042465 | T65: =(All!AE84+All!AE85)/1000 -> 0.063448 | U65: =(All!AJ84+All!AJ85)/1000 -> 0.053077
P66: =P$10 -> Process, plant and machine operatives | Q66: =(All!P86+All!P87)/1000 -> 1.945163 | R66: =(All!U86+All!U87)/1000 -> 1.305534 | S66: =(All!Z86+All!Z87)/1000 -> 0.84785 | T66: =(All!AE86+All!AE87)/1000 -> 1.235323 | U66: =(All!AJ86+All!AJ87)/1000 -> 0.957817
P67: =P$11 -> Elementary occupations | Q67: =(All!P88+All!P89)/1000 -> 0.114023 | R67: =(All!U88+All!U89)/1000 -> 0.062796 | S67: =(All!Z88+All!Z89)/1000 -> 0.059332 | T67: =(All!AE88+All!AE89)/1000 -> 0.090701 | U67: =(All!AJ88+All!AJ89)/1000 -> 0.079301
P84: ="Occupational Composition, "&P85&", "&Q85&"-"&U85 -> Occupational Composition, Food drink and tobacco, 2004-2024
P85: =names!A6 -> Food drink and tobacco | Q85: =Q$2 -> 2004 | R85: =R$2 -> 2009 | S85: =S$2 -> 2014 | T85: =T$2 -> 2019 | U85: =U$2 -> 2024
P86: =P$3 -> Managers, directors and senior officials | Q86: =(All!P93+All!P94)/1000 -> 3.032911 | R86: =(All!U93+All!U94)/1000 -> 3.900312 | S86: =(All!Z93+All!Z94)/1000 -> 2.857893 | T86: =(All!AE93+All!AE94)/1000 -> 3.029596 | U86: =(All!AJ93+All!AJ94)/1000 -> 2.78305
P87: =P$4 -> Professional occupations | Q87: =(All!P95+All!P96+All!P97+All!P98)/1000 -> 2.401478 | R87: =(All!U95+All!U96+All!U97+All!U98)/1000 -> 2.641657 | S87: =(All!Z95+All!Z96+All!Z97+All!Z98)/1000 -> 2.113886 | T87: =(All!AE95+All!AE96+All!AE97+All!AE98)/1000 -> 2.254853 | U87: =(All!AJ95+All!AJ96+All!AJ97+All!AJ98)/1000 -> 2.034521
P88: =P$5 -> Associate professional and technical | Q88: =(All!P99+All!P100+All!P101+All!P102+All!P103)/1000 -> 3.829449 | R88: =(All!U99+All!U100+All!U101+All!U102+All!U103)/1000 -> 3.690328 | S88: =(All!Z99+All!Z100+All!Z101+All!Z102+All!Z103)/1000 -> 3.730482 | T88: =(All!AE99+All!AE100+All!AE101+All!AE102+All!AE103)/1000 -> 3.844068 | U88: =(All!AJ99+All!AJ100+All!AJ101+All!AJ102+All!AJ103)/1000 -> 3.450636
P89: =P$6 -> Administrative and secretarial | Q89: =(All!P104+All!P105)/1000 -> 3.347349 | R89: =(All!U104+All!U105)/1000 -> 3.270614 | S89: =(All!Z104+All!Z105)/1000 -> 3.112575 | T89: =(All!AE104+All!AE105)/1000 -> 2.838308 | U89: =(All!AJ104+All!AJ105)/1000 -> 2.396717
P90: =P$7 -> Skilled trades occupations | Q90: =(All!P106+All!P107+All!P108+All!P109)/1000 -> 5.562577 | R90: =(All!U106+All!U107+All!U108+All!U109)/1000 -> 5.085954 | S90: =(All!Z106+All!Z107+All!Z108+All!Z109)/1000 -> 4.045998 | T90: =(All!AE106+All!AE107+All!AE108+All!AE109)/1000 -> 3.529216 | U90: =(All!AJ106+All!AJ107+All!AJ108+All!AJ109)/1000 -> 2.707146
P91: =P$8 -> Caring, leisure and other service | Q91: =(All!P110+All!P111)/1000 -> 0.28999 | R91: =(All!U110+All!U111)/1000 -> 0.377432 | S91: =(All!Z110+All!Z111)/1000 -> 0.438861 | T91: =(All!AE110+All!AE111)/1000 -> 0.48499 | U91: =(All!AJ110+All!AJ111)/1000 -> 0.43978
P92: =P$9 -> Sales and customer service | Q92: =(All!P112+All!P113)/1000 -> 2.003578 | R92: =(All!U112+All!U113)/1000 -> 1.958351 | S92: =(All!Z112+All!Z113)/1000 -> 2.526152 | T92: =(All!AE112+All!AE113)/1000 -> 2.414118 | U92: =(All!AJ112+All!AJ113)/1000 -> 2.154219
P93: =P$10 -> Process, plant and machine operatives | Q93: =(All!P114+All!P115)/1000 -> 14.649619 | R93: =(All!U114+All!U115)/1000 -> 11.169876 | S93: =(All!Z114+All!Z115)/1000 -> 10.366992 | T93: =(All!AE114+All!AE115)/1000 -> 9.159478 | U93: =(All!AJ114+All!AJ115)/1000 -> 7.731671
P94: =P$11 -> Elementary occupations | Q94: =(All!P116+All!P117)/1000 -> 4.640049 | R94: =(All!U116+All!U117)/1000 -> 5.140476 | S94: =(All!Z116+All!Z117)/1000 -> 4.75716 | T94: =(All!AE116+All!AE117)/1000 -> 4.656373 | U94: =(All!AJ116+All!AJ117)/1000 -> 4.022259
P112: ="Occupational Composition, "&P113&", "&Q113&"-"&U113 -> Occupational Composition, Engineering, 2004-2024
P113: =names!A7 -> Engineering | Q113: =Q$2 -> 2004 | R113: =R$2 -> 2009 | S113: =S$2 -> 2014 | T113: =T$2 -> 2019 | U113: =U$2 -> 2024
P114: =P$3 -> Managers, directors and senior officials | Q114: =(All!P121+All!P122)/1000 -> 5.765502 | R114: =(All!U121+All!U122)/1000 -> 4.740329 | S114: =(All!Z121+All!Z122)/1000 -> 7.491033 | T114: =(All!AE121+All!AE122)/1000 -> 7.301929 | U114: =(All!AJ121+All!AJ122)/1000 -> 5.982094
P115: =P$4 -> Professional occupations | Q115: =(All!P123+All!P124+All!P125+All!P126)/1000 -> 7.781081 | R115: =(All!U123+All!U124+All!U125+All!U126)/1000 -> 5.766407 | S115: =(All!Z123+All!Z124+All!Z125+All!Z126)/1000 -> 8.659533 | T115: =(All!AE123+All!AE124+All!AE125+All!AE126)/1000 -> 8.294148 | U115: =(All!AJ123+All!AJ124+All!AJ125+All!AJ126)/1000 -> 6.532
P116: =P$5 -> Associate professional and technical | Q116: =(All!P127+All!P128+All!P129+All!P130+All!P131)/1000 -> 6.496349 | R116: =(All!U127+All!U128+All!U129+All!U130+All!U131)/1000 -> 4.81435 | S116: =(All!Z127+All!Z128+All!Z129+All!Z130+All!Z131)/1000 -> 6.811855 | T116: =(All!AE127+All!AE128+All!AE129+All!AE130+All!AE131)/1000 -> 6.536591 | U116: =(All!AJ127+All!AJ128+All!AJ129+All!AJ130+All!AJ131)/1000 -> 5.22601
P117: =P$6 -> Administrative and secretarial | Q117: =(All!P132+All!P133)/1000 -> 4.195224 | R117: =(All!U132+All!U133)/1000 -> 2.55949 | S117: =(All!Z132+All!Z133)/1000 -> 3.796255 | T117: =(All!AE132+All!AE133)/1000 -> 3.388863 | U117: =(All!AJ132+All!AJ133)/1000 -> 2.699405
P118: =P$7 -> Skilled trades occupations | Q118: =(All!P134+All!P135+All!P136+All!P137)/1000 -> 12.862937 | R118: =(All!U134+All!U135+All!U136+All!U137)/1000 -> 9.509457 | S118: =(All!Z134+All!Z135+All!Z136+All!Z137)/1000 -> 11.374467 | T118: =(All!AE134+All!AE135+All!AE136+All!AE137)/1000 -> 9.594117 | U118: =(All!AJ134+All!AJ135+All!AJ136+All!AJ137)/1000 -> 7.297585
P119: =P$8 -> Caring, leisure and other service | Q119: =(All!P138+All!P139)/1000 -> 0.405489 | R119: =(All!U138+All!U139)/1000 -> 0.29343 | S119: =(All!Z138+All!Z139)/1000 -> 0.404112 | T119: =(All!AE138+All!AE139)/1000 -> 0.42103 | U119: =(All!AJ138+All!AJ139)/1000 -> 0.369592
P120: =P$9 -> Sales and customer service | Q120: =(All!P140+All!P141)/1000 -> 1.168871 | R120: =(All!U140+All!U141)/1000 -> 0.855455 | S120: =(All!Z140+All!Z141)/1000 -> 1.640396 | T120: =(All!AE140+All!AE141)/1000 -> 1.528563 | U120: =(All!AJ140+All!AJ141)/1000 -> 1.232138
P121: =P$10 -> Process, plant and machine operatives | Q121: =(All!P142+All!P143)/1000 -> 10.266174 | R121: =(All!U142+All!U143)/1000 -> 5.910476 | S121: =(All!Z142+All!Z143)/1000 -> 7.650051 | T121: =(All!AE142+All!AE143)/1000 -> 5.989251 | U121: =(All!AJ142+All!AJ143)/1000 -> 4.430166
P122: =P$11 -> Elementary occupations | Q122: =(All!P144+All!P145)/1000 -> 2.338374 | R122: =(All!U144+All!U145)/1000 -> 1.634604 | S122: =(All!Z144+All!Z145)/1000 -> 2.154298 | T122: =(All!AE144+All!AE145)/1000 -> 1.899509 | U122: =(All!AJ144+All!AJ145)/1000 -> 1.48201
P140: ="Occupational Composition, "&P141&", "&Q141&"-"&U141 -> Occupational Composition, Rest of manufacturing, 2004-2024
P141: =names!A8 -> Rest of manufacturing | Q141: =Q$2 -> 2004 | R141: =R$2 -> 2009 | S141: =S$2 -> 2014 | T141: =T$2 -> 2019 | U141: =U$2 -> 2024
P142: =P$3 -> Managers, directors and senior officials | Q142: =(All!P149+All!P150)/1000 -> 17.518114 | R142: =(All!U149+All!U150)/1000 -> 18.834069 | S142: =(All!Z149+All!Z150)/1000 -> 17.17872 | T142: =(All!AE149+All!AE150)/1000 -> 19.615373 | U142: =(All!AJ149+All!AJ150)/1000 -> 20.567766
P143: =P$4 -> Professional occupations | Q143: =(All!P151+All!P152+All!P153+All!P154)/1000 -> 19.135995 | R143: =(All!U151+All!U152+All!U153+All!U154)/1000 -> 19.925784 | S143: =(All!Z151+All!Z152+All!Z153+All!Z154)/1000 -> 20.350102 | T143: =(All!AE151+All!AE152+All!AE153+All!AE154)/1000 -> 23.032313 | U143: =(All!AJ151+All!AJ152+All!AJ153+All!AJ154)/1000 -> 23.95889
P144: =P$5 -> Associate professional and technical | Q144: =(All!P155+All!P156+All!P157+All!P158+All!P159)/1000 -> 22.067482 | R144: =(All!U155+All!U156+All!U157+All!U158+All!U159)/1000 -> 20.792405 | S144: =(All!Z155+All!Z156+All!Z157+All!Z158+All!Z159)/1000 -> 18.328787 | T144: =(All!AE155+All!AE156+All!AE157+All!AE158+All!AE159)/1000 -> 20.3116 | U144: =(All!AJ155+All!AJ156+All!AJ157+All!AJ158+All!AJ159)/1000 -> 20.809238
P145: =P$6 -> Administrative and secretarial | Q145: =(All!P160+All!P161)/1000 -> 15.495227 | R145: =(All!U160+All!U161)/1000 -> 14.001723 | S145: =(All!Z160+All!Z161)/1000 -> 12.225411 | T145: =(All!AE160+All!AE161)/1000 -> 12.622803 | U145: =(All!AJ160+All!AJ161)/1000 -> 12.436989
P146: =P$7 -> Skilled trades occupations | Q146: =(All!P162+All!P163+All!P164+All!P165)/1000 -> 56.831106 | R146: =(All!U162+All!U163+All!U164+All!U165)/1000 -> 53.644585 | S146: =(All!Z162+All!Z163+All!Z164+All!Z165)/1000 -> 46.629028 | T146: =(All!AE162+All!AE163+All!AE164+All!AE165)/1000 -> 45.936482 | U146: =(All!AJ162+All!AJ163+All!AJ164+All!AJ165)/1000 -> 43.919887
P147: =P$8 -> Caring, leisure and other service | Q147: =(All!P166+All!P167)/1000 -> 1.373043 | R147: =(All!U166+All!U167)/1000 -> 1.415805 | S147: =(All!Z166+All!Z167)/1000 -> 1.365242 | T147: =(All!AE166+All!AE167)/1000 -> 1.783613 | U147: =(All!AJ166+All!AJ167)/1000 -> 1.870738
P148: =P$9 -> Sales and customer service | Q148: =(All!P168+All!P169)/1000 -> 4.102636 | R148: =(All!U168+All!U169)/1000 -> 3.494782 | S148: =(All!Z168+All!Z169)/1000 -> 4.142663 | T148: =(All!AE168+All!AE169)/1000 -> 4.509119 | U148: =(All!AJ168+All!AJ169)/1000 -> 4.594027
P149: =P$10 -> Process, plant and machine operatives | Q149: =(All!P170+All!P171)/1000 -> 34.24719 | R149: =(All!U170+All!U171)/1000 -> 29.844784 | S149: =(All!Z170+All!Z171)/1000 -> 23.814711 | T149: =(All!AE170+All!AE171)/1000 -> 22.517383 | U149: =(All!AJ170+All!AJ171)/1000 -> 21.107912
P150: =P$11 -> Elementary occupations | Q150: =(All!P172+All!P173)/1000 -> 10.864208 | R150: =(All!U172+All!U173)/1000 -> 10.585063 | S150: =(All!Z172+All!Z173)/1000 -> 8.365335 | T150: =(All!AE172+All!AE173)/1000 -> 8.666314 | U150: =(All!AJ172+All!AJ173)/1000 -> 8.241552
P168: ="Occupational Composition, "&P169&", "&Q169&"-"&U169 -> Occupational Composition, Electricity and gas, 2004-2024
P169: =names!A9 -> Electricity and gas | Q169: =Q$2 -> 2004 | R169: =R$2 -> 2009 | S169: =S$2 -> 2014 | T169: =T$2 -> 2019 | U169: =U$2 -> 2024
P170: =P$3 -> Managers, directors and senior officials | Q170: =(All!P177+All!P178)/1000 -> 0.575079 | R170: =(All!U177+All!U178)/1000 -> 0.663267 | S170: =(All!Z177+All!Z178)/1000 -> 0.609927 | T170: =(All!AE177+All!AE178)/1000 -> 0.735582 | U170: =(All!AJ177+All!AJ178)/1000 -> 0.784774
P171: =P$4 -> Professional occupations | Q171: =(All!P179+All!P180+All!P181+All!P182)/1000 -> 1.768517 | R171: =(All!U179+All!U180+All!U181+All!U182)/1000 -> 1.879982 | S171: =(All!Z179+All!Z180+All!Z181+All!Z182)/1000 -> 1.454059 | T171: =(All!AE179+All!AE180+All!AE181+All!AE182)/1000 -> 1.736253 | U171: =(All!AJ179+All!AJ180+All!AJ181+All!AJ182)/1000 -> 1.848159
P172: =P$5 -> Associate professional and technical | Q172: =(All!P183+All!P184+All!P185+All!P186+All!P187)/1000 -> 1.470639 | R172: =(All!U183+All!U184+All!U185+All!U186+All!U187)/1000 -> 1.50137 | S172: =(All!Z183+All!Z184+All!Z185+All!Z186+All!Z187)/1000 -> 1.161211 | T172: =(All!AE183+All!AE184+All!AE185+All!AE186+All!AE187)/1000 -> 1.353622 | U172: =(All!AJ183+All!AJ184+All!AJ185+All!AJ186+All!AJ187)/1000 -> 1.413939
P173: =P$6 -> Administrative and secretarial | Q173: =(All!P188+All!P189)/1000 -> 2.0364 | R173: =(All!U188+All!U189)/1000 -> 1.104379 | S173: =(All!Z188+All!Z189)/1000 -> 1.356626 | T173: =(All!AE188+All!AE189)/1000 -> 1.366871 | U173: =(All!AJ188+All!AJ189)/1000 -> 1.296789
P174: =P$7 -> Skilled trades occupations | Q174: =(All!P190+All!P191+All!P192+All!P193)/1000 -> 1.79694 | R174: =(All!U190+All!U191+All!U192+All!U193)/1000 -> 1.846154 | S174: =(All!Z190+All!Z191+All!Z192+All!Z193)/1000 -> 1.189093 | T174: =(All!AE190+All!AE191+All!AE192+All!AE193)/1000 -> 1.272842 | U174: =(All!AJ190+All!AJ191+All!AJ192+All!AJ193)/1000 -> 1.288499
P175: =P$8 -> Caring, leisure and other service | Q175: =(All!P194+All!P195)/1000 -> 0.192441 | R175: =(All!U194+All!U195)/1000 -> 0.195684 | S175: =(All!Z194+All!Z195)/1000 -> 0.159599 | T175: =(All!AE194+All!AE195)/1000 -> 0.205809 | U175: =(All!AJ194+All!AJ195)/1000 -> 0.224948
P176: =P$9 -> Sales and customer service | Q176: =(All!P196+All!P197)/1000 -> 2.006172 | R176: =(All!U196+All!U197)/1000 -> 1.221404 | S176: =(All!Z196+All!Z197)/1000 -> 1.517919 | T176: =(All!AE196+All!AE197)/1000 -> 1.707577 | U176: =(All!AJ196+All!AJ197)/1000 -> 1.723547
P177: =P$10 -> Process, plant and machine operatives | Q177: =(All!P198+All!P199)/1000 -> 0.464406 | R177: =(All!U198+All!U199)/1000 -> 0.623328 | S177: =(All!Z198+All!Z199)/1000 -> 0.562119 | T177: =(All!AE198+All!AE199)/1000 -> 0.59867 | U177: =(All!AJ198+All!AJ199)/1000 -> 0.630216
P178: =P$11 -> Elementary occupations | Q178: =(All!P200+All!P201)/1000 -> 0.303407 | R178: =(All!U200+All!U201)/1000 -> 0.229433 | S178: =(All!Z200+All!Z201)/1000 -> 0.157449 | T178: =(All!AE200+All!AE201)/1000 -> 0.179773 | U178: =(All!AJ200+All!AJ201)/1000 -> 0.18513
P196: ="Occupational Composition, "&P197&", "&Q197&"-"&U197 -> Occupational Composition, Water and sewerage, 2004-2024
P197: =names!A10 -> Water and sewerage | Q197: =Q$2 -> 2004 | R197: =R$2 -> 2009 | S197: =S$2 -> 2014 | T197: =T$2 -> 2019 | U197: =U$2 -> 2024
P198: =P$3 -> Managers, directors and senior officials | Q198: =(All!P205+All!P206)/1000 -> 1.02144 | R198: =(All!U205+All!U206)/1000 -> 1.440187 | S198: =(All!Z205+All!Z206)/1000 -> 1.995233 | T198: =(All!AE205+All!AE206)/1000 -> 2.146074 | U198: =(All!AJ205+All!AJ206)/1000 -> 2.272641
P199: =P$4 -> Professional occupations | Q199: =(All!P207+All!P208+All!P209+All!P210)/1000 -> 1.07909 | R199: =(All!U207+All!U208+All!U209+All!U210)/1000 -> 1.355063 | S199: =(All!Z207+All!Z208+All!Z209+All!Z210)/1000 -> 1.41052 | T199: =(All!AE207+All!AE208+All!AE209+All!AE210)/1000 -> 1.525113 | U199: =(All!AJ207+All!AJ208+All!AJ209+All!AJ210)/1000 -> 1.584118
P200: =P$5 -> Associate professional and technical | Q200: =(All!P211+All!P212+All!P213+All!P214+All!P215)/1000 -> 1.313126 | R200: =(All!U211+All!U212+All!U213+All!U214+All!U215)/1000 -> 1.447733 | S200: =(All!Z211+All!Z212+All!Z213+All!Z214+All!Z215)/1000 -> 1.878433 | T200: =(All!AE211+All!AE212+All!AE213+All!AE214+All!AE215)/1000 -> 1.936567 | U200: =(All!AJ211+All!AJ212+All!AJ213+All!AJ214+All!AJ215)/1000 -> 1.928213
P201: =P$6 -> Administrative and secretarial | Q201: =(All!P216+All!P217)/1000 -> 1.227727 | R201: =(All!U216+All!U217)/1000 -> 1.19523 | S201: =(All!Z216+All!Z217)/1000 -> 1.32029 | T201: =(All!AE216+All!AE217)/1000 -> 1.215707 | U201: =(All!AJ216+All!AJ217)/1000 -> 1.115319
P202: =P$7 -> Skilled trades occupations | Q202: =(All!P218+All!P219+All!P220+All!P221)/1000 -> 0.989565 | R202: =(All!U218+All!U219+All!U220+All!U221)/1000 -> 1.782309 | S202: =(All!Z218+All!Z219+All!Z220+All!Z221)/1000 -> 1.863442 | T202: =(All!AE218+All!AE219+All!AE220+All!AE221)/1000 -> 1.868785 | U202: =(All!AJ218+All!AJ219+All!AJ220+All!AJ221)/1000 -> 1.932229
P203: =P$8 -> Caring, leisure and other service | Q203: =(All!P222+All!P223)/1000 -> 0.200899 | R203: =(All!U222+All!U223)/1000 -> 0.235289 | S203: =(All!Z222+All!Z223)/1000 -> 0.26792 | T203: =(All!AE222+All!AE223)/1000 -> 0.277503 | U203: =(All!AJ222+All!AJ223)/1000 -> 0.27431
P204: =P$9 -> Sales and customer service | Q204: =(All!P224+All!P225)/1000 -> 0.43059 | R204: =(All!U224+All!U225)/1000 -> 0.448665 | S204: =(All!Z224+All!Z225)/1000 -> 0.60468 | T204: =(All!AE224+All!AE225)/1000 -> 0.627968 | U204: =(All!AJ224+All!AJ225)/1000 -> 0.637977
P205: =P$10 -> Process, plant and machine operatives | Q205: =(All!P226+All!P227)/1000 -> 3.417843 | R205: =(All!U226+All!U227)/1000 -> 3.725842 | S205: =(All!Z226+All!Z227)/1000 -> 4.741247 | T205: =(All!AE226+All!AE227)/1000 -> 4.614038 | U205: =(All!AJ226+All!AJ227)/1000 -> 4.678365
P206: =P$11 -> Elementary occupations | Q206: =(All!P228+All!P229)/1000 -> 2.347721 | R206: =(All!U228+All!U229)/1000 -> 2.227681 | S206: =(All!Z228+All!Z229)/1000 -> 2.823233 | T206: =(All!AE228+All!AE229)/1000 -> 2.807246 | U206: =(All!AJ228+All!AJ229)/1000 -> 2.745828
P224: ="Occupational Composition, "&P225&", "&Q225&"-"&U225 -> Occupational Composition, Construction, 2004-2024
P225: =names!A11 -> Construction | Q225: =Q$2 -> 2004 | R225: =R$2 -> 2009 | S225: =S$2 -> 2014 | T225: =T$2 -> 2019 | U225: =U$2 -> 2024
P226: =P$3 -> Managers, directors and senior officials | Q226: =(All!P233+All!P234)/1000 -> 11.362341 | R226: =(All!U233+All!U234)/1000 -> 16.185936 | S226: =(All!Z233+All!Z234)/1000 -> 16.06186 | T226: =(All!AE233+All!AE234)/1000 -> 19.89911 | U226: =(All!AJ233+All!AJ234)/1000 -> 22.855575
P227: =P$4 -> Professional occupations | Q227: =(All!P235+All!P236+All!P237+All!P238)/1000 -> 14.493368 | R227: =(All!U235+All!U236+All!U237+All!U238)/1000 -> 21.514103 | S227: =(All!Z235+All!Z236+All!Z237+All!Z238)/1000 -> 18.86438 | T227: =(All!AE235+All!AE236+All!AE237+All!AE238)/1000 -> 23.121168 | U227: =(All!AJ235+All!AJ236+All!AJ237+All!AJ238)/1000 -> 26.463004
P228: =P$5 -> Associate professional and technical | Q228: =(All!P239+All!P240+All!P241+All!P242+All!P243)/1000 -> 9.815431 | R228: =(All!U239+All!U240+All!U241+All!U242+All!U243)/1000 -> 13.003599 | S228: =(All!Z239+All!Z240+All!Z241+All!Z242+All!Z243)/1000 -> 12.902519 | T228: =(All!AE239+All!AE240+All!AE241+All!AE242+All!AE243)/1000 -> 15.703326 | U228: =(All!AJ239+All!AJ240+All!AJ241+All!AJ242+All!AJ243)/1000 -> 17.856349
P229: =P$6 -> Administrative and secretarial | Q229: =(All!P244+All!P245)/1000 -> 16.349432 | R229: =(All!U244+All!U245)/1000 -> 12.866017 | S229: =(All!Z244+All!Z245)/1000 -> 14.595909 | T229: =(All!AE244+All!AE245)/1000 -> 15.145354 | U229: =(All!AJ244+All!AJ245)/1000 -> 15.2801
P230: =P$7 -> Skilled trades occupations | Q230: =(All!P246+All!P247+All!P248+All!P249)/1000 -> 110.400896 | R230: =(All!U246+All!U247+All!U248+All!U249)/1000 -> 102.073147 | S230: =(All!Z246+All!Z247+All!Z248+All!Z249)/1000 -> 106.739741 | T230: =(All!AE246+All!AE247+All!AE248+All!AE249)/1000 -> 119.51943 | U230: =(All!AJ246+All!AJ247+All!AJ248+All!AJ249)/1000 -> 127.523007
P231: =P$8 -> Caring, leisure and other service | Q231: =(All!P250+All!P251)/1000 -> 0.197196 | R231: =(All!U250+All!U251)/1000 -> 0.457611 | S231: =(All!Z250+All!Z251)/1000 -> 0.307141 | T231: =(All!AE250+All!AE251)/1000 -> 0.389135 | U231: =(All!AJ250+All!AJ251)/1000 -> 0.438163
P232: =P$9 -> Sales and customer service | Q232: =(All!P252+All!P253)/1000 -> 2.246436 | R232: =(All!U252+All!U253)/1000 -> 2.687839 | S232: =(All!Z252+All!Z253)/1000 -> 3.201577 | T232: =(All!AE252+All!AE253)/1000 -> 3.660476 | U232: =(All!AJ252+All!AJ253)/1000 -> 4.095029
P233: =P$10 -> Process, plant and machine operatives | Q233: =(All!P254+All!P255)/1000 -> 13.701687 | R233: =(All!U254+All!U255)/1000 -> 15.443493 | S233: =(All!Z254+All!Z255)/1000 -> 15.384187 | T233: =(All!AE254+All!AE255)/1000 -> 16.637084 | U233: =(All!AJ254+All!AJ255)/1000 -> 18.255644
P234: =P$11 -> Elementary occupations | Q234: =(All!P256+All!P257)/1000 -> 10.725212 | R234: =(All!U256+All!U257)/1000 -> 11.843253 | S234: =(All!Z256+All!Z257)/1000 -> 8.832685 | T234: =(All!AE256+All!AE257)/1000 -> 9.673917 | U234: =(All!AJ256+All!AJ257)/1000 -> 9.96513
... 127 more rows

Sheet Figure 6.x.11
P1: ="Occupational employment, "&CHAR(13)&P2 -> Occupational employment, All industries
P2: =names!A3 -> All industries | Q2: =All!F7 -> 1994 | R2: =All!G7 -> 1995 | S2: =All!H7 -> 1996 | T2: =All!I7 -> 1997 | U2: =All!J7 -> 1998 | V2: =All!K7 -> 1999 | W2: =All!L7 -> 2000 | X2: =All!M7 -> 2001 | Y2: =All!N7 -> 2002 | Z2: =All!O7 -> 2003 | AA2: =All!P7 -> 2004 | AB2: =All!Q7 -> 2005 | AC2: =All!R7 -> 2006 | AD2: =All!S7 -> 2007 | AE2: =All!T7 -> 2008 | AF2: =All!U7 -> 2009 | AG2: =All!V7 -> 2010 | AH2: =All!W7 -> 2011 | AI2: =All!X7 -> 2012 | AJ2: =All!Y7 -> 2013 | AK2: =All!Z7 -> 2014 | AL2: =All!AA7 -> 2015 | AM2: =All!AB7 -> 2016 | AN2: =All!AC7 -> 2017 | AO2: =All!AD7 -> 2018 | AP2: =All!AE7 -> 2019 | AQ2: =All!AF7 -> 2020 | AR2: =All!AG7 -> 2021 | AS2: =All!AH7 -> 2022 | AT2: =All!AI7 -> 2023 | AU2: =All!AJ7 -> 2024
P3: =names!B4 -> Managers, directors and senior officials | Q3: =(All!F9+All!F10)/1000 -> 177.503964 | R3: =(All!G9+All!G10)/1000 -> 184.510403 | S3: =(All!H9+All!H10)/1000 -> 178.196724 | T3: =(All!I9+All!I10)/1000 -> 187.24009 | U3: =(All!J9+All!J10)/1000 -> 191.900495 | V3: =(All!K9+All!K10)/1000 -> 193.98191 | W3: =(All!L9+All!L10)/1000 -> 195.665243 | X3: =(All!M9+All!M10)/1000 -> 206.631604 | Y3: =(All!N9+All!N10)/1000 -> 225.197992 | Z3: =(All!O9+All!O10)/1000 -> 221.191004 | AA3: =(All!P9+All!P10)/1000 -> 229.641248 | AB3: =(All!Q9+All!Q10)/1000 -> 234.260374 | AC3: =(All!R9+All!R10)/1000 -> 231.613932 | AD3: =(All!S9+All!S10)/1000 -> 243.761555 | AE3: =(All!T9+All!T10)/1000 -> 255.703258 | AF3: =(All!U9+All!U10)/1000 -> 254.984635 | AG3: =(All!V9+All!V10)/1000 -> 258.348666 | AH3: =(All!W9+All!W10)/1000 -> 265.513118 | AI3: =(All!X9+All!X10)/1000 -> 260.425801 | AJ3: =(All!Y9+All!Y10)/1000 -> 275.114991 | AK3: =(All!Z9+All!Z10)/1000 -> 298.694654 | AL3: =(All!AA9+All!AA10)/1000 -> 306.151164 | AM3: =(All!AB9+All!AB10)/1000 -> 312.013214 | AN3: =(All!AC9+All!AC10)/1000 -> 316.797446 | AO3: =(All!AD9+All!AD10)/1000 -> 320.971075 | AP3: =(All!AE9+All!AE10)/1000 -> 325.192568 | AQ3: =(All!AF9+All!AF10)/1000 -> 329.702519 | AR3: =(All!AG9+All!AG10)/1000 -> 334.211166 | AS3: =(All!AH9+All!AH10)/1000 -> 338.935317 | AT3: =(All!AI9+All!AI10)/1000 -> 340.083117 | AU3: =(All!AJ9+All!AJ10)/1000 -> 341.175978
P4: =names!B5 -> Professional occupations | Q4: =(All!F11+All!F12+All!F13+All!F14)/1000 -> 327.688312 | R4: =(All!G11+All!G12+All!G13+All!G14)/1000 -> 337.065452 | S4: =(All!H11+All!H12+All!H13+All!H14)/1000 -> 338.385026 | T4: =(All!I11+All!I12+All!I13+All!I14)/1000 -> 352.443657 | U4: =(All!J11+All!J12+All!J13+All!J14)/1000 -> 358.457166 | V4: =(All!K11+All!K12+All!K13+All!K14)/1000 -> 364.733587 | W4: =(All!L11+All!L12+All!L13+All!L14)/1000 -> 372.556167 | X4: =(All!M11+All!M12+All!M13+All!M14)/1000 -> 384.503487 | Y4: =(All!N11+All!N12+All!N13+All!N14)/1000 -> 393.839463 | Z4: =(All!O11+All!O12+All!O13+All!O14)/1000 -> 410.58409 | AA4: =(All!P11+All!P12+All!P13+All!P14)/1000 -> 417.589934 | AB4: =(All!Q11+All!Q12+All!Q13+All!Q14)/1000 -> 424.519861 | AC4: =(All!R11+All!R12+All!R13+All!R14)/1000 -> 441.06708 | AD4: =(All!S11+All!S12+All!S13+All!S14)/1000 -> 452.371147 | AE4: =(All!T11+All!T12+All!T13+All!T14)/1000 -> 457.530514 | AF4: =(All!U11+All!U12+All!U13+All!U14)/1000 -> 476.876027 | AG4: =(All!V11+All!V12+All!V13+All!V14)/1000 -> 473.956133 | AH4: =(All!W11+All!W12+All!W13+All!W14)/1000 -> 494.614401 | AI4: =(All!X11+All!X12+All!X13+All!X14)/1000 -> 497.559211 | AJ4: =(All!Y11+All!Y12+All!Y13+All!Y14)/1000 -> 513.170076 | AK4: =(All!Z11+All!Z12+All!Z13+All!Z14)/1000 -> 533.916519 | AL4: =(All!AA11+All!AA12+All!AA13+All!AA14)/1000 -> 546.53484 | AM4: =(All!AB11+All!AB12+All!AB13+All!AB14)/1000 -> 555.330742 | AN4: =(All!AC11+All!AC12+All!AC13+All!AC14)/1000 -> 562.724598 | AO4: =(All!AD11+All!AD12+All!AD13+All!AD14)/1000 -> 569.650073 | AP4: =(All!AE11+All!AE12+All!AE13+All!AE14)/1000 -> 576.27142 | AQ4: =(All!AF11+All!AF12+All!AF13+All!AF14)/1000 -> 584.057728 | AR4: =(All!AG11+All!AG12+All!AG13+All!AG14)/1000 -> 592.908054 | AS4: =(All!AH11+All!AH12+All!AH13+All!AH14)/1000 -> 602.322343 | AT4: =(All!AI11+All!AI12+All!AI13+All!AI14)/1000 -> 605.807377 | AU4: =(All!AJ11+All!AJ12+All!AJ13+All!AJ14)/1000 -> 609.331405
P5: =names!B6 -> Associate professional and technical | Q5: =(All!F15+All!F16+All!F17+All!F18+All!F19)/1000 -> 248.766499 | R5: =(All!G15+All!G16+All!G17+All!G18+All!G19)/1000 -> 257.352039 | S5: =(All!H15+All!H16+All!H17+All!H18+All!H19)/1000 -> 254.804531 | T5: =(All!I15+All!I16+All!I17+All!I18+All!I19)/1000 -> 270.358948 | U5: =(All!J15+All!J16+All!J17+All!J18+All!J19)/1000 -> 271.945885 | V5: =(All!K15+All!K16+All!K17+All!K18+All!K19)/1000 -> 276.364682 | W5: =(All!L15+All!L16+All!L17+All!L18+All!L19)/1000 -> 281.127661 | X5: =(All!M15+All!M16+All!M17+All!M18+All!M19)/1000 -> 288.285738 | Y5: =(All!N15+All!N16+All!N17+All!N18+All!N19)/1000 -> 297.162698 | Z5: =(All!O15+All!O16+All!O17+All!O18+All!O19)/1000 -> 298.316537 | AA5: =(All!P15+All!P16+All!P17+All!P18+All!P19)/1000 -> 307.276097 | AB5: =(All!Q15+All!Q16+All!Q17+All!Q18+All!Q19)/1000 -> 312.625502 | AC5: =(All!R15+All!R16+All!R17+All!R18+All!R19)/1000 -> 313.231046 | AD5: =(All!S15+All!S16+All!S17+All!S18+All!S19)/1000 -> 322.566938 | AE5: =(All!T15+All!T16+All!T17+All!T18+All!T19)/1000 -> 331.158464 | AF5: =(All!U15+All!U16+All!U17+All!U18+All!U19)/1000 -> 330.723231 | AG5: =(All!V15+All!V16+All!V17+All!V18+All!V19)/1000 -> 327.58948 | AH5: =(All!W15+All!W16+All!W17+All!W18+All!W19)/1000 -> 335.314393 | AI5: =(All!X15+All!X16+All!X17+All!X18+All!X19)/1000 -> 332.787576 | AJ5: =(All!Y15+All!Y16+All!Y17+All!Y18+All!Y19)/1000 -> 342.118995 | AK5: =(All!Z15+All!Z16+All!Z17+All!Z18+All!Z19)/1000 -> 357.887482 | AL5: =(All!AA15+All!AA16+All!AA17+All!AA18+All!AA19)/1000 -> 365.398911 | AM5: =(All!AB15+All!AB16+All!AB17+All!AB18+All!AB19)/1000 -> 370.755095 | AN5: =(All!AC15+All!AC16+All!AC17+All!AC18+All!AC19)/1000 -> 375.554935 | AO5: =(All!AD15+All!AD16+All!AD17+All!AD18+All!AD19)/1000 -> 379.907313 | AP5: =(All!AE15+All!AE16+All!AE17+All!AE18+All!AE19)/1000 -> 383.876063 | AQ5: =(All!AF15+All!AF16+All!AF17+All!AF18+All!AF19)/1000 -> 388.070669 | AR5: =(All!AG15+All!AG16+All!AG17+All!AG18+All!AG19)/1000 -> 392.356503 | AS5: =(All!AH15+All!AH16+All!AH17+All!AH18+All!AH19)/1000 -> 396.924496 | AT5: =(All!AI15+All!AI16+All!AI17+All!AI18+All!AI19)/1000 -> 398.441062 | AU5: =(All!AJ15+All!AJ16+All!AJ17+All!AJ18+All!AJ19)/1000 -> 399.936743
P6: =names!B7 -> Administrative and secretarial | Q6: =(All!F20+All!F21)/1000 -> 326.153157 | R6: =(All!G20+All!G21)/1000 -> 325.259181 | S6: =(All!H20+All!H21)/1000 -> 311.657337 | T6: =(All!I20+All!I21)/1000 -> 306.072879 | U6: =(All!J20+All!J21)/1000 -> 302.744656 | V6: =(All!K20+All!K21)/1000 -> 306.699468 | W6: =(All!L20+All!L21)/1000 -> 305.644252 | X6: =(All!M20+All!M21)/1000 -> 305.570873 | Y6: =(All!N20+All!N21)/1000 -> 305.494718 | Z6: =(All!O20+All!O21)/1000 -> 308.278374 | AA6: =(All!P20+All!P21)/1000 -> 313.182183 | AB6: =(All!Q20+All!Q21)/1000 -> 306.704282 | AC6: =(All!R20+All!R21)/1000 -> 312.313853 | AD6: =(All!S20+All!S21)/1000 -> 306.447926 | AE6: =(All!T20+All!T21)/1000 -> 293.630305 | AF6: =(All!U20+All!U21)/1000 -> 288.799948 | AG6: =(All!V20+All!V21)/1000 -> 299.677623 | AH6: =(All!W20+All!W21)/1000 -> 278.701945 | AI6: =(All!X20+All!X21)/1000 -> 278.008741 | AJ6: =(All!Y20+All!Y21)/1000 -> 280.138209 | AK6: =(All!Z20+All!Z21)/1000 -> 282.592135 | AL6: =(All!AA20+All!AA21)/1000 -> 279.277201 | AM6: =(All!AB20+All!AB21)/1000 -> 275.397115 | AN6: =(All!AC20+All!AC21)/1000 -> 271.091379 | AO6: =(All!AD20+All!AD21)/1000 -> 266.288213 | AP6: =(All!AE20+All!AE21)/1000 -> 261.652678 | AQ6: =(All!AF20+All!AF21)/1000 -> 256.985759 | AR6: =(All!AG20+All!AG21)/1000 -> 251.684688 | AS6: =(All!AH20+All!AH21)/1000 -> 246.435205 | AT6: =(All!AI20+All!AI21)/1000 -> 247.236271 | AU6: =(All!AJ20+All!AJ21)/1000 -> 248.013889
P7: =names!B8 -> Skilled trades occupations | Q7: =(All!F22+All!F23+All!F24+All!F25)/1000 -> 345.769427 | R7: =(All!G22+All!G23+All!G24+All!G25)/1000 -> 351.515566 | S7: =(All!H22+All!H23+All!H24+All!H25)/1000 -> 344.812696 | T7: =(All!I22+All!I23+All!I24+All!I25)/1000 -> 354.344294 | U7: =(All!J22+All!J23+All!J24+All!J25)/1000 -> 340.915587 | V7: =(All!K22+All!K23+All!K24+All!K25)/1000 -> 350.718916 | W7: =(All!L22+All!L23+All!L24+All!L25)/1000 -> 329.536066 | X7: =(All!M22+All!M23+All!M24+All!M25)/1000 -> 343.657524 | Y7: =(All!N22+All!N23+All!N24+All!N25)/1000 -> 357.849839 | Z7: =(All!O22+All!O23+All!O24+All!O25)/1000 -> 330.932023 | AA7: =(All!P22+All!P23+All!P24+All!P25)/1000 -> 347.986909 | AB7: =(All!Q22+All!Q23+All!Q24+All!Q25)/1000 -> 345.194243 | AC7: =(All!R22+All!R23+All!R24+All!R25)/1000 -> 335.174144 | AD7: =(All!S22+All!S23+All!S24+All!S25)/1000 -> 331.821667 | AE7: =(All!T22+All!T23+All!T24+All!T25)/1000 -> 346.88444 | AF7: =(All!U22+All!U23+All!U24+All!U25)/1000 -> 334.290638 | AG7: =(All!V22+All!V23+All!V24+All!V25)/1000 -> 337.91842 | AH7: =(All!W22+All!W23+All!W24+All!W25)/1000 -> 344.638326 | AI7: =(All!X22+All!X23+All!X24+All!X25)/1000 -> 334.671814 | AJ7: =(All!Y22+All!Y23+All!Y24+All!Y25)/1000 -> 330.589012 | AK7: =(All!Z22+All!Z23+All!Z24+All!Z25)/1000 -> 348.913136 | AL7: =(All!AA22+All!AA23+All!AA24+All!AA25)/1000 -> 353.242966 | AM7: =(All!AB22+All!AB23+All!AB24+All!AB25)/1000 -> 355.056803 | AN7: =(All!AC22+All!AC23+All!AC24+All!AC25)/1000 -> 354.802459 | AO7: =(All!AD22+All!AD23+All!AD24+All!AD25)/1000 -> 353.23902 | AP7: =(All!AE22+All!AE23+All!AE24+All!AE25)/1000 -> 352.037987 | AQ7: =(All!AF22+All!AF23+All!AF24+All!AF25)/1000 -> 350.973889 | AR7: =(All!AG22+All!AG23+All!AG24+All!AG25)/1000 -> 349.125564 | AS7: =(All!AH22+All!AH23+All!AH24+All!AH25)/1000 -> 347.733493 | AT7: =(All!AI22+All!AI23+All!AI24+All!AI25)/1000 -> 350.219769 | AU7: =(All!AJ22+All!AJ23+All!AJ24+All!AJ25)/1000 -> 352.615216
P8: =names!B9 -> Caring, leisure and other service | Q8: =(All!F26+All!F27)/1000 -> 160.673707 | R8: =(All!G26+All!G27)/1000 -> 169.810178 | S8: =(All!H26+All!H27)/1000 -> 175.133847 | T8: =(All!I26+All!I27)/1000 -> 181.95216 | U8: =(All!J26+All!J27)/1000 -> 189.170671 | V8: =(All!K26+All!K27)/1000 -> 194.448613 | W8: =(All!L26+All!L27)/1000 -> 207.681836 | X8: =(All!M26+All!M27)/1000 -> 207.580372 | Y8: =(All!N26+All!N27)/1000 -> 217.887644 | Z8: =(All!O26+All!O27)/1000 -> 228.545714 | AA8: =(All!P26+All!P27)/1000 -> 228.713178 | AB8: =(All!Q26+All!Q27)/1000 -> 238.498241 | AC8: =(All!R26+All!R27)/1000 -> 253.423513 | AD8: =(All!S26+All!S27)/1000 -> 255.540367 | AE8: =(All!T26+All!T27)/1000 -> 251.835905 | AF8: =(All!U26+All!U27)/1000 -> 260.405538 | AG8: =(All!V26+All!V27)/1000 -> 270.528135 | AH8: =(All!W26+All!W27)/1000 -> 263.826872 | AI8: =(All!X26+All!X27)/1000 -> 273.080423 | AJ8: =(All!Y26+All!Y27)/1000 -> 292.290835 | AK8: =(All!Z26+All!Z27)/1000 -> 302.733203 | AL8: =(All!AA26+All!AA27)/1000 -> 306.966157 | AM8: =(All!AB26+All!AB27)/1000 -> 311.532052 | AN8: =(All!AC26+All!AC27)/1000 -> 315.819657 | AO8: =(All!AD26+All!AD27)/1000 -> 320.801681 | AP8: =(All!AE26+All!AE27)/1000 -> 325.349259 | AQ8: =(All!AF26+All!AF27)/1000 -> 330.23894 | AR8: =(All!AG26+All!AG27)/1000 -> 335.658284 | AS8: =(All!AH26+All!AH27)/1000 -> 341.372334 | AT8: =(All!AI26+All!AI27)/1000 -> 344.279187 | AU8: =(All!AJ26+All!AJ27)/1000 -> 347.266648
P9: =names!B10 -> Sales and customer service | Q9: =(All!F28+All!F29)/1000 -> 186.971275 | R9: =(All!G28+All!G29)/1000 -> 193.056589 | S9: =(All!H28+All!H29)/1000 -> 201.836343 | T9: =(All!I28+All!I29)/1000 -> 217.753026 | U9: =(All!J28+All!J29)/1000 -> 213.14223 | V9: =(All!K28+All!K29)/1000 -> 213.5659 | W9: =(All!L28+All!L29)/1000 -> 213.958502 | X9: =(All!M28+All!M29)/1000 -> 218.135215 | Y9: =(All!N28+All!N29)/1000 -> 222.370826 | Z9: =(All!O28+All!O29)/1000 -> 228.049273 | AA9: =(All!P28+All!P29)/1000 -> 232.02503 | AB9: =(All!Q28+All!Q29)/1000 -> 231.033047 | AC9: =(All!R28+All!R29)/1000 -> 237.691394 | AD9: =(All!S28+All!S29)/1000 -> 233.293902 | AE9: =(All!T28+All!T29)/1000 -> 228.200272 | AF9: =(All!U28+All!U29)/1000 -> 235.183398 | AG9: =(All!V28+All!V29)/1000 -> 231.92911 | AH9: =(All!W28+All!W29)/1000 -> 222.404195 | AI9: =(All!X28+All!X29)/1000 -> 229.797019 | AJ9: =(All!Y28+All!Y29)/1000 -> 228.029453 | AK9: =(All!Z28+All!Z29)/1000 -> 225.430886 | AL9: =(All!AA28+All!AA29)/1000 -> 225.303234 | AM9: =(All!AB28+All!AB29)/1000 -> 226.565695 | AN9: =(All!AC28+All!AC29)/1000 -> 226.824306 | AO9: =(All!AD28+All!AD29)/1000 -> 226.676025 | AP9: =(All!AE28+All!AE29)/1000 -> 226.707997 | AQ9: =(All!AF28+All!AF29)/1000 -> 226.884318 | AR9: =(All!AG28+All!AG29)/1000 -> 226.122788 | AS9: =(All!AH28+All!AH29)/1000 -> 225.22232 | AT9: =(All!AI28+All!AI29)/1000 -> 227.195616 | AU9: =(All!AJ28+All!AJ29)/1000 -> 229.264926
P10: =names!B11 -> Process, plant and machine operatives | Q10: =(All!F30+All!F31)/1000 -> 167.487544 | R10: =(All!G30+All!G31)/1000 -> 171.72054 | S10: =(All!H30+All!H31)/1000 -> 175.263724 | T10: =(All!I30+All!I31)/1000 -> 186.860096 | U10: =(All!J30+All!J31)/1000 -> 180.381975 | V10: =(All!K30+All!K31)/1000 -> 180.352743 | W10: =(All!L30+All!L31)/1000 -> 174.630793 | X10: =(All!M30+All!M31)/1000 -> 176.21401 | Y10: =(All!N30+All!N31)/1000 -> 172.629902 | Z10: =(All!O30+All!O31)/1000 -> 163.897855 | AA10: =(All!P30+All!P31)/1000 -> 167.259329 | AB10: =(All!Q30+All!Q31)/1000 -> 167.853783 | AC10: =(All!R30+All!R31)/1000 -> 169.862142 | AD10: =(All!S30+All!S31)/1000 -> 167.357374 | AE10: =(All!T30+All!T31)/1000 -> 163.464877 | AF10: =(All!U30+All!U31)/1000 -> 167.124814 | AG10: =(All!V30+All!V31)/1000 -> 163.329076 | AH10: =(All!W30+All!W31)/1000 -> 160.131226 | AI10: =(All!X30+All!X31)/1000 -> 159.062185 | AJ10: =(All!Y30+All!Y31)/1000 -> 156.567983 | AK10: =(All!Z30+All!Z31)/1000 -> 155.565682 | AL10: =(All!AA30+All!AA31)/1000 -> 155.253016 | AM10: =(All!AB30+All!AB31)/1000 -> 154.784897 | AN10: =(All!AC30+All!AC31)/1000 -> 153.503156 | AO10: =(All!AD30+All!AD31)/1000 -> 151.946806 | AP10: =(All!AE30+All!AE31)/1000 -> 150.391518 | AQ10: =(All!AF30+All!AF31)/1000 -> 149.113484 | AR10: =(All!AG30+All!AG31)/1000 -> 147.43578 | AS10: =(All!AH30+All!AH31)/1000 -> 145.802625 | AT10: =(All!AI30+All!AI31)/1000 -> 146.676828 | AU10: =(All!AJ30+All!AJ31)/1000 -> 147.512256
P11: =names!B12 -> Elementary occupations | Q11: =(All!F32+All!F33)/1000 -> 291.319115 | R11: =(All!G32+All!G33)/1000 -> 295.677049 | S11: =(All!H32+All!H33)/1000 -> 310.415772 | T11: =(All!I32+All!I33)/1000 -> 311.437849 | U11: =(All!J32+All!J33)/1000 -> 309.325335 | V11: =(All!K32+All!K33)/1000 -> 308.526182 | W11: =(All!L32+All!L33)/1000 -> 309.50348 | X11: =(All!M32+All!M33)/1000 -> 318.454177 | Y11: =(All!N32+All!N33)/1000 -> 321.24892 | Z11: =(All!O32+All!O33)/1000 -> 325.080131 | AA11: =(All!P32+All!P33)/1000 -> 323.742091 | AB11: =(All!Q32+All!Q33)/1000 -> 322.768665 | AC11: =(All!R32+All!R33)/1000 -> 335.388896 | AD11: =(All!S32+All!S33)/1000 -> 331.024125 | AE11: =(All!T32+All!T33)/1000 -> 326.055965 | AF11: =(All!U32+All!U33)/1000 -> 317.17777 | AG11: =(All!V32+All!V33)/1000 -> 304.962355 | AH11: =(All!W32+All!W33)/1000 -> 288.631521 | AI11: =(All!X32+All!X33)/1000 -> 299.723234 | AJ11: =(All!Y32+All!Y33)/1000 -> 286.512448 | AK11: =(All!Z32+All!Z33)/1000 -> 301.225303 | AL11: =(All!AA32+All!AA33)/1000 -> 304.138511 | AM11: =(All!AB32+All!AB33)/1000 -> 306.139385 | AN11: =(All!AC32+All!AC33)/1000 -> 306.724064 | AO11: =(All!AD32+All!AD33)/1000 -> 306.829795 | AP11: =(All!AE32+All!AE33)/1000 -> 307.411511 | AQ11: =(All!AF32+All!AF33)/1000 -> 308.489694 | AR11: =(All!AG32+All!AG33)/1000 -> 308.640172 | AS11: =(All!AH32+All!AH33)/1000 -> 308.926866 | AT11: =(All!AI32+All!AI33)/1000 -> 310.399771 | AU11: =(All!AJ32+All!AJ33)/1000 -> 311.711936
P37: ="Occupational employment, "&CHAR(13)&P38 -> Occupational employment, Agriculture
P38: =names!A4 -> Agriculture | Q38: =Q2 -> 1994 | R38: 1995 | S38: 1996 | T38: 1997 | U38: 1998 | V38: 1999 | W38: 2000 | X38: 2001 | Y38: 2002 | Z38: 2003 | AA38: 2004 | AB38: 2005 | AC38: 2006 | AD38: 2007 | AE38: 2008 | AF38: 2009 | AG38: 2010 | AH38: 2011 | AI38: 2012 | AJ38: 2013 | AK38: 2014 | AL38: 2015 | AM38: 2016 | AN38: 2017 | AO38: 2018 | AP38: 2019 | AQ38: 2020 | AR38: 2021 | AS38: 2022 | AT38: 2023 | AU38: 2024
P39: =P3 -> Managers, directors and senior officials | Q39: =(All!D37+All!D38)/1000 -> 8.142486 | R39: =(All!E37+All!E38)/1000 -> 7.553063 | S39: =(All!F37+All!F38)/1000 -> 6.696604 | T39: =(All!G37+All!G38)/1000 -> 6.176367 | U39: =(All!H37+All!H38)/1000 -> 5.777006 | V39: =(All!I37+All!I38)/1000 -> 5.588372 | W39: =(All!J37+All!J38)/1000 -> 4.497561 | X39: =(All!K37+All!K38)/1000 -> 3.815357 | Y39: =(All!L37+All!L38)/1000 -> 2.658715 | Z39: =(All!M37+All!M38)/1000 -> 2.898018 | AA39: =(All!N37+All!N38)/1000 -> 2.9555 | AB39: =(All!O37+All!O38)/1000 -> 2.259148 | AC39: =(All!P37+All!P38)/1000 -> 2.521674 | AD39: =(All!Q37+All!Q38)/1000 -> 2.500313 | AE39: =(All!R37+All!R38)/1000 -> 3.235819 | AF39: =(All!S37+All!S38)/1000 -> 2.313213 | AG39: =(All!T37+All!T38)/1000 -> 3.319535 | AH39: =(All!U37+All!U38)/1000 -> 3.140687 | AI39: =(All!V37+All!V38)/1000 -> 3.717945 | AJ39: =(All!W37+All!W38)/1000 -> 3.374831 | AK39: =(All!X37+All!X38)/1000 -> 3.472123 | AL39: =(All!Y37+All!Y38)/1000 -> 2.912505 | AM39: =(All!Z37+All!Z38)/1000 -> 5.067681 | AN39: =(All!AA37+All!AA38)/1000 -> 4.429562 | AO39: =(All!AB37+All!AB38)/1000 -> 4.340297 | AP39: =(All!AC37+All!AC38)/1000 -> 4.263971 | AQ39: =(All!AD37+All!AD38)/1000 -> 4.184406 | AR39: =(All!AE37+All!AE38)/1000 -> 4.109013 | AS39: =(All!AF37+All!AF38)/1000 -> 4.046703 | AT39: =(All!AG37+All!AG38)/1000 -> 3.981997 | AU39: =(All!AH37+All!AH38)/1000 -> 3.924398
P40: Professional occupations | Q40: =(All!D39+All!D40+All!D41+All!D42)/1000 -> 3.395862 | R40: =(All!E39+All!E40+All!E41+All!E42)/1000 -> 3.081012 | S40: =(All!F39+All!F40+All!F41+All!F42)/1000 -> 2.935622 | T40: =(All!G39+All!G40+All!G41+All!G42)/1000 -> 2.882662 | U40: =(All!H39+All!H40+All!H41+All!H42)/1000 -> 2.696996 | V40: =(All!I39+All!I40+All!I41+All!I42)/1000 -> 2.687293 | W40: =(All!J39+All!J40+All!J41+All!J42)/1000 -> 2.356695 | X40: =(All!K39+All!K40+All!K41+All!K42)/1000 -> 2.15544 | Y40: =(All!L39+All!L40+All!L41+All!L42)/1000 -> 1.601717 | Z40: =(All!M39+All!M40+All!M41+All!M42)/1000 -> 1.818379 | AA40: =(All!N39+All!N40+All!N41+All!N42)/1000 -> 1.813819 | AB40: =(All!O39+All!O40+All!O41+All!O42)/1000 -> 1.520098 | AC40: =(All!P39+All!P40+All!P41+All!P42)/1000 -> 1.939938 | AD40: =(All!Q39+All!Q40+All!Q41+All!Q42)/1000 -> 1.768867 | AE40: =(All!R39+All!R40+All!R41+All!R42)/1000 -> 2.514315 | AF40: =(All!S39+All!S40+All!S41+All!S42)/1000 -> 1.942879 | AG40: =(All!T39+All!T40+All!T41+All!T42)/1000 -> 2.692614 | AH40: =(All!U39+All!U40+All!U41+All!U42)/1000 -> 2.435399 | AI40: =(All!V39+All!V40+All!V41+All!V42)/1000 -> 2.246481 | AJ40: =(All!W39+All!W40+All!W41+All!W42)/1000 -> 2.187606 | AK40: =(All!X39+All!X40+All!X41+All!X42)/1000 -> 2.239975 | AL40: =(All!Y39+All!Y40+All!Y41+All!Y42)/1000 -> 2.17189 | AM40: =(All!Z39+All!Z40+All!Z41+All!Z42)/1000 -> 3.526375 | AN40: =(All!AA39+All!AA40+All!AA41+All!AA42)/1000 -> 3.151063 | AO40: =(All!AB39+All!AB40+All!AB41+All!AB42)/1000 -> 3.221141 | AP40: =(All!AC39+All!AC40+All!AC41+All!AC42)/1000 -> 3.247787 | AQ40: =(All!AD39+All!AD40+All!AD41+All!AD42)/1000 -> 3.261823 | AR40: =(All!AE39+All!AE40+All!AE41+All!AE42)/1000 -> 3.270329 | AS40: =(All!AF39+All!AF40+All!AF41+All!AF42)/1000 -> 3.28726 | AT40: =(All!AG39+All!AG40+All!AG41+All!AG42)/1000 -> 3.316109 | AU40: =(All!AH39+All!AH40+All!AH41+All!AH42)/1000 -> 3.341794
P41: Associate professional and technical | Q41: =(All!D43+All!D44+All!D45+All!D46+All!D47)/1000 -> 1.70963 | R41: =(All!E43+All!E44+All!E45+All!E46+All!E47)/1000 -> 1.556023 | S41: =(All!F43+All!F44+All!F45+All!F46+All!F47)/1000 -> 1.524188 | T41: =(All!G43+All!G44+All!G45+All!G46+All!G47)/1000 -> 1.540573 | U41: =(All!H43+All!H44+All!H45+All!H46+All!H47)/1000 -> 1.463861 | V41: =(All!I43+All!I44+All!I45+All!I46+All!I47)/1000 -> 1.489727 | W41: =(All!J43+All!J44+All!J45+All!J46+All!J47)/1000 -> 1.358052 | X41: =(All!K43+All!K44+All!K45+All!K46+All!K47)/1000 -> 1.199358 | Y41: =(All!L43+All!L44+All!L45+All!L46+All!L47)/1000 -> 0.87817 | Z41: =(All!M43+All!M44+All!M45+All!M46+All!M47)/1000 -> 1.01927 | AA41: =(All!N43+All!N44+All!N45+All!N46+All!N47)/1000 -> 0.880197 | AB41: =(All!O43+All!O44+All!O45+All!O46+All!O47)/1000 -> 0.807667 | AC41: =(All!P43+All!P44+All!P45+All!P46+All!P47)/1000 -> 1.00351 | AD41: =(All!Q43+All!Q44+All!Q45+All!Q46+All!Q47)/1000 -> 0.994037 | AE41: =(All!R43+All!R44+All!R45+All!R46+All!R47)/1000 -> 1.531997 | AF41: =(All!S43+All!S44+All!S45+All!S46+All!S47)/1000 -> 1.077446 | AG41: =(All!T43+All!T44+All!T45+All!T46+All!T47)/1000 -> 1.414245 | AH41: =(All!U43+All!U44+All!U45+All!U46+All!U47)/1000 -> 1.522884 | AI41: =(All!V43+All!V44+All!V45+All!V46+All!V47)/1000 -> 1.580979 | AJ41: =(All!W43+All!W44+All!W45+All!W46+All!W47)/1000 -> 1.610515 | AK41: =(All!X43+All!X44+All!X45+All!X46+All!X47)/1000 -> 1.721159 | AL41: =(All!Y43+All!Y44+All!Y45+All!Y46+All!Y47)/1000 -> 1.605106 | AM41: =(All!Z43+All!Z44+All!Z45+All!Z46+All!Z47)/1000 -> 2.695276 | AN41: =(All!AA43+All!AA44+All!AA45+All!AA46+All!AA47)/1000 -> 2.430595 | AO41: =(All!AB43+All!AB44+All!AB45+All!AB46+All!AB47)/1000 -> 2.480993 | AP41: =(All!AC43+All!AC44+All!AC45+All!AC46+All!AC47)/1000 -> 2.493694 | AQ41: =(All!AD43+All!AD44+All!AD45+All!AD46+All!AD47)/1000 -> 2.498178 | AR41: =(All!AE43+All!AE44+All!AE45+All!AE46+All!AE47)/1000 -> 2.500187 | AS41: =(All!AF43+All!AF44+All!AF45+All!AF46+All!AF47)/1000 -> 2.506478 | AT41: =(All!AG43+All!AG44+All!AG45+All!AG46+All!AG47)/1000 -> 2.523198 | AU41: =(All!AH43+All!AH44+All!AH45+All!AH46+All!AH47)/1000 -> 2.536627
P42: Administrative and secretarial | Q42: =(All!D48+All!D49)/1000 -> 4.736591 | R42: =(All!E48+All!E49)/1000 -> 4.460751 | S42: =(All!F48+All!F49)/1000 -> 3.889768 | T42: =(All!G48+All!G49)/1000 -> 3.821291 | U42: =(All!H48+All!H49)/1000 -> 3.439668 | V42: =(All!I48+All!I49)/1000 -> 2.874348 | W42: =(All!J48+All!J49)/1000 -> 2.420823 | X42: =(All!K48+All!K49)/1000 -> 1.951002 | Y42: =(All!L48+All!L49)/1000 -> 1.411534 | Z42: =(All!M48+All!M49)/1000 -> 1.667871 | AA42: =(All!N48+All!N49)/1000 -> 1.611031 | AB42: =(All!O48+All!O49)/1000 -> 1.331313 | AC42: =(All!P48+All!P49)/1000 -> 1.535819 | AD42: =(All!Q48+All!Q49)/1000 -> 1.478004 | AE42: =(All!R48+All!R49)/1000 -> 2.508914 | AF42: =(All!S48+All!S49)/1000 -> 1.772287 | AG42: =(All!T48+All!T49)/1000 -> 2.338468 | AH42: =(All!U48+All!U49)/1000 -> 2.117158 | AI42: =(All!V48+All!V49)/1000 -> 2.178767 | AJ42: =(All!W48+All!W49)/1000 -> 2.191104 | AK42: =(All!X48+All!X49)/1000 -> 2.615548 | AL42: =(All!Y48+All!Y49)/1000 -> 1.797046 | AM42: =(All!Z48+All!Z49)/1000 -> 2.692742 | AN42: =(All!AA48+All!AA49)/1000 -> 2.337335 | AO42: =(All!AB48+All!AB49)/1000 -> 2.300898 | AP42: =(All!AC48+All!AC49)/1000 -> 2.242244 | AQ42: =(All!AD48+All!AD49)/1000 -> 2.175302 | AR42: =(All!AE48+All!AE49)/1000 -> 2.107817 | AS42: =(All!AF48+All!AF49)/1000 -> 2.043891 | AT42: =(All!AG48+All!AG49)/1000 -> 1.979856 | AU42: =(All!AH48+All!AH49)/1000 -> 1.902644
P43: Skilled trades occupations | Q43: =(All!D50+All!D51+All!D52+All!D53)/1000 -> 43.770122 | R43: =(All!E50+All!E51+All!E52+All!E53)/1000 -> 41.954782 | S43: =(All!F50+All!F51+All!F52+All!F53)/1000 -> 38.121064 | T43: =(All!G50+All!G51+All!G52+All!G53)/1000 -> 36.654547 | U43: =(All!H50+All!H51+All!H52+All!H53)/1000 -> 35.299284 | V43: =(All!I50+All!I51+All!I52+All!I53)/1000 -> 34.074597 | W43: =(All!J50+All!J51+All!J52+All!J53)/1000 -> 26.699718 | X43: =(All!K50+All!K51+All!K52+All!K53)/1000 -> 24.628315 | Y43: =(All!L50+All!L51+All!L52+All!L53)/1000 -> 17.521479 | Z43: =(All!M50+All!M51+All!M52+All!M53)/1000 -> 19.785917 | AA43: =(All!N50+All!N51+All!N52+All!N53)/1000 -> 20.017039 | AB43: =(All!O50+All!O51+All!O52+All!O53)/1000 -> 15.550853 | AC43: =(All!P50+All!P51+All!P52+All!P53)/1000 -> 18.310576 | AD43: =(All!Q50+All!Q51+All!Q52+All!Q53)/1000 -> 19.321757 | AE43: =(All!R50+All!R51+All!R52+All!R53)/1000 -> 23.807193 | AF43: =(All!S50+All!S51+All!S52+All!S53)/1000 -> 19.983171 | AG43: =(All!T50+All!T51+All!T52+All!T53)/1000 -> 27.900812 | AH43: =(All!U50+All!U51+All!U52+All!U53)/1000 -> 28.564869 | AI43: =(All!V50+All!V51+All!V52+All!V53)/1000 -> 34.122716 | AJ43: =(All!W50+All!W51+All!W52+All!W53)/1000 -> 30.454247 | AK43: =(All!X50+All!X51+All!X52+All!X53)/1000 -> 28.316083 | AL43: =(All!Y50+All!Y51+All!Y52+All!Y53)/1000 -> 24.218714 | AM43: =(All!Z50+All!Z51+All!Z52+All!Z53)/1000 -> 34.327662 | AN43: =(All!AA50+All!AA51+All!AA52+All!AA53)/1000 -> 31.988159 | AO43: =(All!AB50+All!AB51+All!AB52+All!AB53)/1000 -> 31.326398 | AP43: =(All!AC50+All!AC51+All!AC52+All!AC53)/1000 -> 30.963938 | AQ43: =(All!AD50+All!AD51+All!AD52+All!AD53)/1000 -> 30.388986 | AR43: =(All!AE50+All!AE51+All!AE52+All!AE53)/1000 -> 29.851468 | AS43: =(All!AF50+All!AF51+All!AF52+All!AF53)/1000 -> 29.392002 | AT43: =(All!AG50+All!AG51+All!AG52+All!AG53)/1000 -> 28.82423 | AU43: =(All!AH50+All!AH51+All!AH52+All!AH53)/1000 -> 28.500736
P44: Caring, leisure and other service | Q44: =(All!D54+All!D55)/1000 -> 5.627281 | R44: =(All!E54+All!E55)/1000 -> 5.926281 | S44: =(All!F54+All!F55)/1000 -> 5.33011 | T44: =(All!G54+All!G55)/1000 -> 5.188733 | U44: =(All!H54+All!H55)/1000 -> 5.583248 | V44: =(All!I54+All!I55)/1000 -> 5.145133 | W44: =(All!J54+All!J55)/1000 -> 4.855172 | X44: =(All!K54+All!K55)/1000 -> 4.170726 | Y44: =(All!L54+All!L55)/1000 -> 2.753184 | Z44: =(All!M54+All!M55)/1000 -> 3.956896 | AA44: =(All!N54+All!N55)/1000 -> 3.303571 | AB44: =(All!O54+All!O55)/1000 -> 2.394328 | AC44: =(All!P54+All!P55)/1000 -> 3.067983 | AD44: =(All!Q54+All!Q55)/1000 -> 2.721594 | AE44: =(All!R54+All!R55)/1000 -> 4.458523 | AF44: =(All!S54+All!S55)/1000 -> 2.999016 | AG44: =(All!T54+All!T55)/1000 -> 4.164607 | AH44: =(All!U54+All!U55)/1000 -> 3.458984 | AI44: =(All!V54+All!V55)/1000 -> 3.831307 | AJ44: =(All!W54+All!W55)/1000 -> 3.489921 | AK44: =(All!X54+All!X55)/1000 -> 4.814909 | AL44: =(All!Y54+All!Y55)/1000 -> 3.212067 | AM44: =(All!Z54+All!Z55)/1000 -> 4.731275 | AN44: =(All!AA54+All!AA55)/1000 -> 4.336913 | AO44: =(All!AB54+All!AB55)/1000 -> 4.357647 | AP44: =(All!AC54+All!AC55)/1000 -> 4.442425 | AQ44: =(All!AD54+All!AD55)/1000 -> 4.495792 | AR44: =(All!AE54+All!AE55)/1000 -> 4.512541 | AS44: =(All!AF54+All!AF55)/1000 -> 4.524556 | AT44: =(All!AG54+All!AG55)/1000 -> 4.581298 | AU44: =(All!AH54+All!AH55)/1000 -> 4.622137
P45: Sales and customer service | Q45: =(All!D56+All!D57)/1000 -> 0.719798 | R45: =(All!E56+All!E57)/1000 -> 0.703947 | S45: =(All!F56+All!F57)/1000 -> 0.609005 | T45: =(All!G56+All!G57)/1000 -> 0.598941 | U45: =(All!H56+All!H57)/1000 -> 0.575176 | V45: =(All!I56+All!I57)/1000 -> 0.587465 | W45: =(All!J56+All!J57)/1000 -> 0.548692 | X45: =(All!K56+All!K57)/1000 -> 0.484028 | Y45: =(All!L56+All!L57)/1000 -> 0.31527 | Z45: =(All!M56+All!M57)/1000 -> 0.390726 | AA45: =(All!N56+All!N57)/1000 -> 0.361799 | AB45: =(All!O56+All!O57)/1000 -> 0.305013 | AC45: =(All!P56+All!P57)/1000 -> 0.339986 | AD45: =(All!Q56+All!Q57)/1000 -> 0.341232 | AE45: =(All!R56+All!R57)/1000 -> 0.528625 | AF45: =(All!S56+All!S57)/1000 -> 0.400488 | AG45: =(All!T56+All!T57)/1000 -> 0.539891 | AH45: =(All!U56+All!U57)/1000 -> 0.439713 | AI45: =(All!V56+All!V57)/1000 -> 0.472874 | AJ45: =(All!W56+All!W57)/1000 -> 0.52695 | AK45: =(All!X56+All!X57)/1000 -> 0.550801 | AL45: =(All!Y56+All!Y57)/1000 -> 0.48544 | AM45: =(All!Z56+All!Z57)/1000 -> 0.812832 | AN45: =(All!AA56+All!AA57)/1000 -> 0.728362 | AO45: =(All!AB56+All!AB57)/1000 -> 0.723475 | AP45: =(All!AC56+All!AC57)/1000 -> 0.707542 | AQ45: =(All!AD56+All!AD57)/1000 -> 0.695022 | AR45: =(All!AE56+All!AE57)/1000 -> 0.685456 | AS45: =(All!AF56+All!AF57)/1000 -> 0.678288 | AT45: =(All!AG56+All!AG57)/1000 -> 0.674246 | AU45: =(All!AH56+All!AH57)/1000 -> 0.665334
P46: Process, plant and machine operatives | Q46: =(All!D58+All!D59)/1000 -> 4.888112 | R46: =(All!E58+All!E59)/1000 -> 4.691673 | S46: =(All!F58+All!F59)/1000 -> 4.262647 | T46: =(All!G58+All!G59)/1000 -> 4.125195 | U46: =(All!H58+All!H59)/1000 -> 4.022756 | V46: =(All!I58+All!I59)/1000 -> 4.435133 | W46: =(All!J58+All!J59)/1000 -> 3.810804 | X46: =(All!K58+All!K59)/1000 -> 3.544432 | Y46: =(All!L58+All!L59)/1000 -> 2.631675 | Z46: =(All!M58+All!M59)/1000 -> 2.999001 | AA46: =(All!N58+All!N59)/1000 -> 2.597857 | AB46: =(All!O58+All!O59)/1000 -> 1.796289 | AC46: =(All!P58+All!P59)/1000 -> 2.940796 | AD46: =(All!Q58+All!Q59)/1000 -> 2.606889 | AE46: =(All!R58+All!R59)/1000 -> 3.350033 | AF46: =(All!S58+All!S59)/1000 -> 2.620928 | AG46: =(All!T58+All!T59)/1000 -> 3.349654 | AH46: =(All!U58+All!U59)/1000 -> 3.116255 | AI46: =(All!V58+All!V59)/1000 -> 2.908875 | AJ46: =(All!W58+All!W59)/1000 -> 2.420939 | AK46: =(All!X58+All!X59)/1000 -> 2.767302 | AL46: =(All!Y58+All!Y59)/1000 -> 2.322781 | AM46: =(All!Z58+All!Z59)/1000 -> 3.828463 | AN46: =(All!AA58+All!AA59)/1000 -> 3.167527 | AO46: =(All!AB58+All!AB59)/1000 -> 3.05517 | AP46: =(All!AC58+All!AC59)/1000 -> 2.964015 | AQ46: =(All!AD58+All!AD59)/1000 -> 2.878173 | AR46: =(All!AE58+All!AE59)/1000 -> 2.799055 | AS46: =(All!AF58+All!AF59)/1000 -> 2.728353 | AT46: =(All!AG58+All!AG59)/1000 -> 2.620419 | AU46: =(All!AH58+All!AH59)/1000 -> 2.516307
P47: Elementary occupations | Q47: =(All!D60+All!D61)/1000 -> 18.108117 | R47: =(All!E60+All!E61)/1000 -> 17.242469 | S47: =(All!F60+All!F61)/1000 -> 15.377991 | T47: =(All!G60+All!G61)/1000 -> 15.270692 | U47: =(All!H60+All!H61)/1000 -> 14.616005 | V47: =(All!I60+All!I61)/1000 -> 15.256934 | W47: =(All!J60+All!J61)/1000 -> 12.714482 | X47: =(All!K60+All!K61)/1000 -> 11.600343 | Y47: =(All!L60+All!L61)/1000 -> 9.055254 | Z47: =(All!M60+All!M61)/1000 -> 10.981921 | AA47: =(All!N60+All!N61)/1000 -> 9.487186 | AB47: =(All!O60+All!O61)/1000 -> 7.421293 | AC47: =(All!P60+All!P61)/1000 -> 8.849718 | AD47: =(All!Q60+All!Q61)/1000 -> 8.558307 | AE47: =(All!R60+All!R61)/1000 -> 11.674583 | AF47: =(All!S60+All!S61)/1000 -> 8.179571 | AG47: =(All!T60+All!T61)/1000 -> 11.342173 | AH47: =(All!U60+All!U61)/1000 -> 10.195051 | AI47: =(All!V60+All!V61)/1000 -> 11.078057 | AJ47: =(All!W60+All!W61)/1000 -> 9.693885 | AK47: =(All!X60+All!X61)/1000 -> 11.708099 | AL47: =(All!Y60+All!Y61)/1000 -> 9.17245 | AM47: =(All!Z60+All!Z61)/1000 -> 13.579696 | AN47: =(All!AA60+All!AA61)/1000 -> 11.768485 | AO47: =(All!AB60+All!AB61)/1000 -> 11.39498 | AP47: =(All!AC60+All!AC61)/1000 -> 11.181383 | AQ47: =(All!AD60+All!AD61)/1000 -> 10.946318 | AR47: =(All!AE60+All!AE61)/1000 -> 10.722134 | AS47: =(All!AF60+All!AF61)/1000 -> 10.531468 | AT47: =(All!AG60+All!AG61)/1000 -> 10.304647 | AU47: =(All!AH60+All!AH61)/1000 -> 10.063023
P72: ="Occupational employment, "&CHAR(13)&P73 -> Occupational employment, Mining and quarrying
P73: =names!A5 -> Mining and quarrying | Q73: =Q38 -> 1994 | R73: 1995 | S73: 1996 | T73: 1997 | U73: 1998 | V73: 1999 | W73: 2000 | X73: 2001 | Y73: 2002 | Z73: 2003 | AA73: 2004 | AB73: 2005 | AC73: 2006 | AD73: 2007 | AE73: 2008 | AF73: 2009 | AG73: 2010 | AH73: 2011 | AI73: 2012 | AJ73: 2013 | AK73: 2014 | AL73: 2015 | AM73: 2016 | AN73: 2017 | AO73: 2018 | AP73: 2019 | AQ73: 2020 | AR73: 2021 | AS73: 2022 | AT73: 2023 | AU73: 2024
P74: =P39 -> Managers, directors and senior officials | Q74: =(All!D65+All!D66)/1000 -> 0.500797 | R74: =(All!E65+All!E66)/1000 -> 0.450574 | S74: =(All!F65+All!F66)/1000 -> 0.384827 | T74: =(All!G65+All!G66)/1000 -> 0.385113 | U74: =(All!H65+All!H66)/1000 -> 0.468363 | V74: =(All!I65+All!I66)/1000 -> 0.650097 | W74: =(All!J65+All!J66)/1000 -> 0.480395 | X74: =(All!K65+All!K66)/1000 -> 0.443946 | Y74: =(All!L65+All!L66)/1000 -> 0.400368 | Z74: =(All!M65+All!M66)/1000 -> 0.495946 | AA74: =(All!N65+All!N66)/1000 -> 0.512901 | AB74: =(All!O65+All!O66)/1000 -> 0.424912 | AC74: =(All!P65+All!P66)/1000 -> 0.358529 | AD74: =(All!Q65+All!Q66)/1000 -> 0.388637 | AE74: =(All!R65+All!R66)/1000 -> 0.409678 | AF74: =(All!S65+All!S66)/1000 -> 0.438282 | AG74: =(All!T65+All!T66)/1000 -> 0.444095 | AH74: =(All!U65+All!U66)/1000 -> 0.354211 | AI74: =(All!V65+All!V66)/1000 -> 0.455646 | AJ74: =(All!W65+All!W66)/1000 -> 0.351606 | AK74: =(All!X65+All!X66)/1000 -> 0.479428 | AL74: =(All!Y65+All!Y66)/1000 -> 0.416641 | AM74: =(All!Z65+All!Z66)/1000 -> 0.258815 | AN74: =(All!AA65+All!AA66)/1000 -> 0.413303 | AO74: =(All!AB65+All!AB66)/1000 -> 0.419114 | AP74: =(All!AC65+All!AC66)/1000 -> 0.420302 | AQ74: =(All!AD65+All!AD66)/1000 -> 0.43134 | AR74: =(All!AE65+All!AE66)/1000 -> 0.415247 | AS74: =(All!AF65+All!AF66)/1000 -> 0.400155 | AT74: =(All!AG65+All!AG66)/1000 -> 0.386 | AU74: =(All!AH65+All!AH66)/1000 -> 0.373008
P75: Professional occupations | Q75: =(All!D67+All!D68+All!D69+All!D70)/1000 -> 0.661977 | R75: =(All!E67+All!E68+All!E69+All!E70)/1000 -> 0.585691 | S75: =(All!F67+All!F68+All!F69+All!F70)/1000 -> 0.491154 | T75: =(All!G67+All!G68+All!G69+All!G70)/1000 -> 0.507789 | U75: =(All!H67+All!H68+All!H69+All!H70)/1000 -> 0.572655 | V75: =(All!I67+All!I68+All!I69+All!I70)/1000 -> 0.863749 | W75: =(All!J67+All!J68+All!J69+All!J70)/1000 -> 0.478201 | X75: =(All!K67+All!K68+All!K69+All!K70)/1000 -> 0.446806 | Y75: =(All!L67+All!L68+All!L69+All!L70)/1000 -> 0.400571 | Z75: =(All!M67+All!M68+All!M69+All!M70)/1000 -> 0.46501 | AA75: =(All!N67+All!N68+All!N69+All!N70)/1000 -> 0.686564 | AB75: =(All!O67+All!O68+All!O69+All!O70)/1000 -> 0.405184 | AC75: =(All!P67+All!P68+All!P69+All!P70)/1000 -> 0.32828 | AD75: =(All!Q67+All!Q68+All!Q69+All!Q70)/1000 -> 0.340905 | AE75: =(All!R67+All!R68+All!R69+All!R70)/1000 -> 0.329405 | AF75: =(All!S67+All!S68+All!S69+All!S70)/1000 -> 0.346168 | AG75: =(All!T67+All!T68+All!T69+All!T70)/1000 -> 0.342533 | AH75: =(All!U67+All!U68+All!U69+All!U70)/1000 -> 0.283151 | AI75: =(All!V67+All!V68+All!V69+All!V70)/1000 -> 0.40593 | AJ75: =(All!W67+All!W68+All!W69+All!W70)/1000 -> 0.269705 | AK75: =(All!X67+All!X68+All!X69+All!X70)/1000 -> 0.481475 | AL75: =(All!Y67+All!Y68+All!Y69+All!Y70)/1000 -> 0.331209 | AM75: =(All!Z67+All!Z68+All!Z69+All!Z70)/1000 -> 0.195362 | AN75: =(All!AA67+All!AA68+All!AA69+All!AA70)/1000 -> 0.307177 | AO75: =(All!AB67+All!AB68+All!AB69+All!AB70)/1000 -> 0.31105 | AP75: =(All!AC67+All!AC68+All!AC69+All!AC70)/1000 -> 0.310924 | AQ75: =(All!AD67+All!AD68+All!AD69+All!AD70)/1000 -> 0.316841 | AR75: =(All!AE67+All!AE68+All!AE69+All!AE70)/1000 -> 0.30241 | AS75: =(All!AF67+All!AF68+All!AF69+All!AF70)/1000 -> 0.290172 | AT75: =(All!AG67+All!AG68+All!AG69+All!AG70)/1000 -> 0.279029 | AU75: =(All!AH67+All!AH68+All!AH69+All!AH70)/1000 -> 0.269095
P76: Associate professional and technical | Q76: =(All!D71+All!D72+All!D73+All!D74+All!D75)/1000 -> 0.821603 | R76: =(All!E71+All!E72+All!E73+All!E74+All!E75)/1000 -> 0.721462 | S76: =(All!F71+All!F72+All!F73+All!F74+All!F75)/1000 -> 0.610731 | T76: =(All!G71+All!G72+All!G73+All!G74+All!G75)/1000 -> 0.608009 | U76: =(All!H71+All!H72+All!H73+All!H74+All!H75)/1000 -> 0.708149 | V76: =(All!I71+All!I72+All!I73+All!I74+All!I75)/1000 -> 0.887532 | W76: =(All!J71+All!J72+All!J73+All!J74+All!J75)/1000 -> 0.650738 | X76: =(All!K71+All!K72+All!K73+All!K74+All!K75)/1000 -> 0.614874 | Y76: =(All!L71+All!L72+All!L73+All!L74+All!L75)/1000 -> 0.538137 | Z76: =(All!M71+All!M72+All!M73+All!M74+All!M75)/1000 -> 0.625125 | AA76: =(All!N71+All!N72+All!N73+All!N74+All!N75)/1000 -> 0.799336 | AB76: =(All!O71+All!O72+All!O73+All!O74+All!O75)/1000 -> 0.522703 | AC76: =(All!P71+All!P72+All!P73+All!P74+All!P75)/1000 -> 0.411365 | AD76: =(All!Q71+All!Q72+All!Q73+All!Q74+All!Q75)/1000 -> 0.430162 | AE76: =(All!R71+All!R72+All!R73+All!R74+All!R75)/1000 -> 0.41911 | AF76: =(All!S71+All!S72+All!S73+All!S74+All!S75)/1000 -> 0.422665 | AG76: =(All!T71+All!T72+All!T73+All!T74+All!T75)/1000 -> 0.414052 | AH76: =(All!U71+All!U72+All!U73+All!U74+All!U75)/1000 -> 0.328218 | AI76: =(All!V71+All!V72+All!V73+All!V74+All!V75)/1000 -> 0.541092 | AJ76: =(All!W71+All!W72+All!W73+All!W74+All!W75)/1000 -> 0.322537 | AK76: =(All!X71+All!X72+All!X73+All!X74+All!X75)/1000 -> 0.523308 | AL76: =(All!Y71+All!Y72+All!Y73+All!Y74+All!Y75)/1000 -> 0.427016 | AM76: =(All!Z71+All!Z72+All!Z73+All!Z74+All!Z75)/1000 -> 0.232944 | AN76: =(All!AA71+All!AA72+All!AA73+All!AA74+All!AA75)/1000 -> 0.368343 | AO76: =(All!AB71+All!AB72+All!AB73+All!AB74+All!AB75)/1000 -> 0.372064 | AP76: =(All!AC71+All!AC72+All!AC73+All!AC74+All!AC75)/1000 -> 0.371372 | AQ76: =(All!AD71+All!AD72+All!AD73+All!AD74+All!AD75)/1000 -> 0.378476 | AR76: =(All!AE71+All!AE72+All!AE73+All!AE74+All!AE75)/1000 -> 0.361675 | AS76: =(All!AF71+All!AF72+All!AF73+All!AF74+All!AF75)/1000 -> 0.346691 | AT76: =(All!AG71+All!AG72+All!AG73+All!AG74+All!AG75)/1000 -> 0.332959 | AU76: =(All!AH71+All!AH72+All!AH73+All!AH74+All!AH75)/1000 -> 0.320554
P77: Administrative and secretarial | Q77: =(All!D76+All!D77)/1000 -> 0.147281 | R77: =(All!E76+All!E77)/1000 -> 0.181679 | S77: =(All!F76+All!F77)/1000 -> 0.151298 | T77: =(All!G76+All!G77)/1000 -> 0.137163 | U77: =(All!H76+All!H77)/1000 -> 0.193271 | V77: =(All!I76+All!I77)/1000 -> 0.267812 | W77: =(All!J76+All!J77)/1000 -> 0.216978 | X77: =(All!K76+All!K77)/1000 -> 0.153204 | Y77: =(All!L76+All!L77)/1000 -> 0.20073 | Z77: =(All!M76+All!M77)/1000 -> 0.154675 | AA77: =(All!N76+All!N77)/1000 -> 0.678684 | AB77: =(All!O76+All!O77)/1000 -> 0.15011 | AC77: =(All!P76+All!P77)/1000 -> 0.130017 | AD77: =(All!Q76+All!Q77)/1000 -> 0.15923 | AE77: =(All!R76+All!R77)/1000 -> 0.095349 | AF77: =(All!S76+All!S77)/1000 -> 0.096678 | AG77: =(All!T76+All!T77)/1000 -> 0.140896 | AH77: =(All!U76+All!U77)/1000 -> 0.079007 | AI77: =(All!V76+All!V77)/1000 -> 0.145268 | AJ77: =(All!W76+All!W77)/1000 -> 0.06655 | AK77: =(All!X76+All!X77)/1000 -> 0.419245 | AL77: =(All!Y76+All!Y77)/1000 -> 0.097124 | AM77: =(All!Z76+All!Z77)/1000 -> 0.048426 | AN77: =(All!AA76+All!AA77)/1000 -> 0.075055 | AO77: =(All!AB76+All!AB77)/1000 -> 0.075671 | AP77: =(All!AC76+All!AC77)/1000 -> 0.075323 | AQ77: =(All!AD76+All!AD77)/1000 -> 0.076667 | AR77: =(All!AE76+All!AE77)/1000 -> 0.073437 | AS77: =(All!AF76+All!AF77)/1000 -> 0.070323 | AT77: =(All!AG76+All!AG77)/1000 -> 0.067229 | AU77: =(All!AH76+All!AH77)/1000 -> 0.064425
P78: Skilled trades occupations | Q78: =(All!D78+All!D79+All!D80+All!D81)/1000 -> 1.139113 | R78: =(All!E78+All!E79+All!E80+All!E81)/1000 -> 0.993222 | S78: =(All!F78+All!F79+All!F80+All!F81)/1000 -> 0.840643 | T78: =(All!G78+All!G79+All!G80+All!G81)/1000 -> 0.811328 | U78: =(All!H78+All!H79+All!H80+All!H81)/1000 -> 0.924134 | V78: =(All!I78+All!I79+All!I80+All!I81)/1000 -> 1.204167 | W78: =(All!J78+All!J79+All!J80+All!J81)/1000 -> 0.896666 | X78: =(All!K78+All!K79+All!K80+All!K81)/1000 -> 0.908471 | Y78: =(All!L78+All!L79+All!L80+All!L81)/1000 -> 0.776361 | Z78: =(All!M78+All!M79+All!M80+All!M81)/1000 -> 0.916139 | AA78: =(All!N78+All!N79+All!N80+All!N81)/1000 -> 1.006329 | AB78: =(All!O78+All!O79+All!O80+All!O81)/1000 -> 0.828293 | AC78: =(All!P78+All!P79+All!P80+All!P81)/1000 -> 0.682536 | AD78: =(All!Q78+All!Q79+All!Q80+All!Q81)/1000 -> 0.747183 | AE78: =(All!R78+All!R79+All!R80+All!R81)/1000 -> 0.732593 | AF78: =(All!S78+All!S79+All!S80+All!S81)/1000 -> 0.752155 | AG78: =(All!T78+All!T79+All!T80+All!T81)/1000 -> 0.760166 | AH78: =(All!U78+All!U79+All!U80+All!U81)/1000 -> 0.62729 | AI78: =(All!V78+All!V79+All!V80+All!V81)/1000 -> 0.886654 | AJ78: =(All!W78+All!W79+All!W80+All!W81)/1000 -> 0.619498 | AK78: =(All!X78+All!X79+All!X80+All!X81)/1000 -> 0.778775 | AL78: =(All!Y78+All!Y79+All!Y80+All!Y81)/1000 -> 0.738608 | AM78: =(All!Z78+All!Z79+All!Z80+All!Z81)/1000 -> 0.428589 | AN78: =(All!AA78+All!AA79+All!AA80+All!AA81)/1000 -> 0.671629 | AO78: =(All!AB78+All!AB79+All!AB80+All!AB81)/1000 -> 0.659793 | AP78: =(All!AC78+All!AC79+All!AC80+All!AC81)/1000 -> 0.642977 | AQ78: =(All!AD78+All!AD79+All!AD80+All!AD81)/1000 -> 0.642619 | AR78: =(All!AE78+All!AE79+All!AE80+All!AE81)/1000 -> 0.602733 | AS78: =(All!AF78+All!AF79+All!AF80+All!AF81)/1000 -> 0.565701 | AT78: =(All!AG78+All!AG79+All!AG80+All!AG81)/1000 -> 0.531635 | AU78: =(All!AH78+All!AH79+All!AH80+All!AH81)/1000 -> 0.50078
P79: Caring, leisure and other service | Q79: =(All!D82+All!D83)/1000 -> 0.032749 | R79: =(All!E82+All!E83)/1000 -> 0.045604 | S79: =(All!F82+All!F83)/1000 -> 0.042613 | T79: =(All!G82+All!G83)/1000 -> 0.053324 | U79: =(All!H82+All!H83)/1000 -> 0.063574 | V79: =(All!I82+All!I83)/1000 -> 0.08382 | W79: =(All!J82+All!J83)/1000 -> 0.084442 | X79: =(All!K82+All!K83)/1000 -> 0.083707 | Y79: =(All!L82+All!L83)/1000 -> 0.096207 | Z79: =(All!M82+All!M83)/1000 -> 0.087086 | AA79: =(All!N82+All!N83)/1000 -> 0.173194 | AB79: =(All!O82+All!O83)/1000 -> 0.099421 | AC79: =(All!P82+All!P83)/1000 -> 0.118265 | AD79: =(All!Q82+All!Q83)/1000 -> 0.09259 | AE79: =(All!R82+All!R83)/1000 -> 0.031501 | AF79: =(All!S82+All!S83)/1000 -> 0.031531 | AG79: =(All!T82+All!T83)/1000 -> 0.097357 | AH79: =(All!U82+All!U83)/1000 -> 0.038742 | AI79: =(All!V82+All!V83)/1000 -> 0.028895 | AJ79: =(All!W82+All!W83)/1000 -> 0.027711 | AK79: =(All!X82+All!X83)/1000 -> 0.16349 | AL79: =(All!Y82+All!Y83)/1000 -> 0.034487 | AM79: =(All!Z82+All!Z83)/1000 -> 0.023215 | AN79: =(All!AA82+All!AA83)/1000 -> 0.036121 | AO79: =(All!AB82+All!AB83)/1000 -> 0.037457 | AP79: =(All!AC82+All!AC83)/1000 -> 0.038235 | AQ79: =(All!AD82+All!AD83)/1000 -> 0.039812 | AR79: =(All!AE82+All!AE83)/1000 -> 0.039027 | AS79: =(All!AF82+All!AF83)/1000 -> 0.038169 | AT79: =(All!AG82+All!AG83)/1000 -> 0.037551 | AU79: =(All!AH82+All!AH83)/1000 -> 0.03711
P80: Sales and customer service | Q80: =(All!D84+All!D85)/1000 -> 0.061525 | R80: =(All!E84+All!E85)/1000 -> 0.064773 | S80: =(All!F84+All!F85)/1000 -> 0.056003 | T80: =(All!G84+All!G85)/1000 -> 0.060353 | U80: =(All!H84+All!H85)/1000 -> 0.068108 | V80: =(All!I84+All!I85)/1000 -> 0.097636 | W80: =(All!J84+All!J85)/1000 -> 0.080769 | X80: =(All!K84+All!K85)/1000 -> 0.076487 | Y80: =(All!L84+All!L85)/1000 -> 0.073168 | Z80: =(All!M84+All!M85)/1000 -> 0.074564 | AA80: =(All!N84+All!N85)/1000 -> 0.162794 | AB80: =(All!O84+All!O85)/1000 -> 0.074102 | AC80: =(All!P84+All!P85)/1000 -> 0.063822 | AD80: =(All!Q84+All!Q85)/1000 -> 0.065809 | AE80: =(All!R84+All!R85)/1000 -> 0.051537 | AF80: =(All!S84+All!S85)/1000 -> 0.049801 | AG80: =(All!T84+All!T85)/1000 -> 0.061537 | AH80: =(All!U84+All!U85)/1000 -> 0.050052 | AI80: =(All!V84+All!V85)/1000 -> 0.095506 | AJ80: =(All!W84+All!W85)/1000 -> 0.050672 | AK80: =(All!X84+All!X85)/1000 -> 0.137716 | AL80: =(All!Y84+All!Y85)/1000 -> 0.081444 | AM80: =(All!Z84+All!Z85)/1000 -> 0.042465 | AN80: =(All!AA84+All!AA85)/1000 -> 0.064066 | AO80: =(All!AB84+All!AB85)/1000 -> 0.064493 | AP80: =(All!AC84+All!AC85)/1000 -> 0.064131 | AQ80: =(All!AD84+All!AD85)/1000 -> 0.065513 | AR80: =(All!AE84+All!AE85)/1000 -> 0.063448 | AS80: =(All!AF84+All!AF85)/1000 -> 0.061446 | AT80: =(All!AG84+All!AG85)/1000 -> 0.059308 | AU80: =(All!AH84+All!AH85)/1000 -> 0.057363
P81: Process, plant and machine operatives | Q81: =(All!D86+All!D87)/1000 -> 3.428035 | R81: =(All!E86+All!E87)/1000 -> 2.91874 | S81: =(All!F86+All!F87)/1000 -> 2.475498 | T81: =(All!G86+All!G87)/1000 -> 2.403725 | U81: =(All!H86+All!H87)/1000 -> 3.00838 | V81: =(All!I86+All!I87)/1000 -> 3.7126 | W81: =(All!J86+All!J87)/1000 -> 3.309665 | X81: =(All!K86+All!K87)/1000 -> 3.309563 | Y81: =(All!L86+All!L87)/1000 -> 2.790138 | Z81: =(All!M86+All!M87)/1000 -> 3.232547 | AA81: =(All!N86+All!N87)/1000 -> 3.110298 | AB81: =(All!O86+All!O87)/1000 -> 2.42977 | AC81: =(All!P86+All!P87)/1000 -> 1.945163 | AD81: =(All!Q86+All!Q87)/1000 -> 1.952794 | AE81: =(All!R86+All!R87)/1000 -> 1.843454 | AF81: =(All!S86+All!S87)/1000 -> 1.778217 | AG81: =(All!T86+All!T87)/1000 -> 1.64376 | AH81: =(All!U86+All!U87)/1000 -> 1.305534 | AI81: =(All!V86+All!V87)/1000 -> 1.389728 | AJ81: =(All!W86+All!W87)/1000 -> 1.240367 | AK81: =(All!X86+All!X87)/1000 -> 1.430855 | AL81: =(All!Y86+All!Y87)/1000 -> 1.397676 | AM81: =(All!Z86+All!Z87)/1000 -> 0.84785 | AN81: =(All!AA86+All!AA87)/1000 -> 1.321816 | AO81: =(All!AB86+All!AB87)/1000 -> 1.321733 | AP81: =(All!AC86+All!AC87)/1000 -> 1.296368 | AQ81: =(All!AD86+All!AD87)/1000 -> 1.304403 | AR81: =(All!AE86+All!AE87)/1000 -> 1.235323 | AS81: =(All!AF86+All!AF87)/1000 -> 1.170342 | AT81: =(All!AG86+All!AG87)/1000 -> 1.108042 | AU81: =(All!AH86+All!AH87)/1000 -> 1.050615
P82: Elementary occupations | Q82: =(All!D88+All!D89)/1000 -> 0.161921 | R82: =(All!E88+All!E89)/1000 -> 0.157254 | S82: =(All!F88+All!F89)/1000 -> 0.134233 | T82: =(All!G88+All!G89)/1000 -> 0.134198 | U82: =(All!H88+All!H89)/1000 -> 0.158366 | V82: =(All!I88+All!I89)/1000 -> 0.223588 | W82: =(All!J88+All!J89)/1000 -> 0.173146 | X82: =(All!K88+All!K89)/1000 -> 0.168942 | Y82: =(All!L88+All!L89)/1000 -> 0.155319 | Z82: =(All!M88+All!M89)/1000 -> 0.165907 | AA82: =(All!N88+All!N89)/1000 -> 0.228898 | AB82: =(All!O88+All!O89)/1000 -> 0.152504 | AC82: =(All!P88+All!P89)/1000 -> 0.114023 | AD82: =(All!Q88+All!Q89)/1000 -> 0.117687 | AE82: =(All!R88+All!R89)/1000 -> 0.089374 | AF82: =(All!S88+All!S89)/1000 -> 0.101503 | AG82: =(All!T88+All!T89)/1000 -> 0.103603 | AH82: =(All!U88+All!U89)/1000 -> 0.062796 | AI82: =(All!V88+All!V89)/1000 -> 0.101284 | AJ82: =(All!W88+All!W89)/1000 -> 0.079354 | AK82: =(All!X88+All!X89)/1000 -> 0.41671 | AL82: =(All!Y88+All!Y89)/1000 -> 0.360796 | AM82: =(All!Z88+All!Z89)/1000 -> 0.059332 | AN82: =(All!AA88+All!AA89)/1000 -> 0.08649 | AO82: =(All!AB88+All!AB89)/1000 -> 0.088624 | AP82: =(All!AC88+All!AC89)/1000 -> 0.08937 | AQ82: =(All!AD88+All!AD89)/1000 -> 0.092331 | AR82: =(All!AE88+All!AE89)/1000 -> 0.090701 | AS82: =(All!AF88+All!AF89)/1000 -> 0.088999 | AT82: =(All!AG88+All!AG89)/1000 -> 0.086247 | AU82: =(All!AH88+All!AH89)/1000 -> 0.084048
P107: ="Occupational employment, "&CHAR(13)&P108 -> Occupational employment, Food drink and tobacco
P108: =names!A6 -> Food drink and tobacco | Q108: =Q73 -> 1994 | R108: 1995 | S108: 1996 | T108: 1997 | U108: 1998 | V108: 1999 | W108: 2000 | X108: 2001 | Y108: 2002 | Z108: 2003 | AA108: 2004 | AB108: 2005 | AC108: 2006 | AD108: 2007 | AE108: 2008 | AF108: 2009 | AG108: 2010 | AH108: 2011 | AI108: 2012 | AJ108: 2013 | AK108: 2014 | AL108: 2015 | AM108: 2016 | AN108: 2017 | AO108: 2018 | AP108: 2019 | AQ108: 2020 | AR108: 2021 | AS108: 2022 | AT108: 2023 | AU108: 2024
P109: =P74 -> Managers, directors and senior officials | Q109: =(All!D93+All!D94)/1000 -> 1.75834 | R109: =(All!E93+All!E94)/1000 -> 1.828003 | S109: =(All!F93+All!F94)/1000 -> 1.952885 | T109: =(All!G93+All!G94)/1000 -> 2.047184 | U109: =(All!H93+All!H94)/1000 -> 2.333028 | V109: =(All!I93+All!I94)/1000 -> 2.647614 | W109: =(All!J93+All!J94)/1000 -> 2.689968 | X109: =(All!K93+All!K94)/1000 -> 2.794627 | Y109: =(All!L93+All!L94)/1000 -> 2.594679 | Z109: =(All!M93+All!M94)/1000 -> 2.735354 | AA109: =(All!N93+All!N94)/1000 -> 2.828032 | AB109: =(All!O93+All!O94)/1000 -> 2.826516 | AC109: =(All!P93+All!P94)/1000 -> 3.032911 | AD109: =(All!Q93+All!Q94)/1000 -> 3.446976 | AE109: =(All!R93+All!R94)/1000 -> 3.670544 | AF109: =(All!S93+All!S94)/1000 -> 3.156626 | AG109: =(All!T93+All!T94)/1000 -> 3.011294 | AH109: =(All!U93+All!U94)/1000 -> 3.900312 | AI109: =(All!V93+All!V94)/1000 -> 2.522572 | AJ109: =(All!W93+All!W94)/1000 -> 2.282247 | AK109: =(All!X93+All!X94)/1000 -> 2.713663 | AL109: =(All!Y93+All!Y94)/1000 -> 2.874353 | AM109: =(All!Z93+All!Z94)/1000 -> 2.857893 | AN109: =(All!AA93+All!AA94)/1000 -> 3.105115 | AO109: =(All!AB93+All!AB94)/1000 -> 3.101499 | AP109: =(All!AC93+All!AC94)/1000 -> 3.080814 | AQ109: =(All!AD93+All!AD94)/1000 -> 3.055643 | AR109: =(All!AE93+All!AE94)/1000 -> 3.029596 | AS109: =(All!AF93+All!AF94)/1000 -> 3.001823 | AT109: =(All!AG93+All!AG94)/1000 -> 2.977909 | AU109: =(All!AH93+All!AH94)/1000 -> 2.952365
P110: Professional occupations | Q110: =(All!D95+All!D96+All!D97+All!D98)/1000 -> 1.631378 | R110: =(All!E95+All!E96+All!E97+All!E98)/1000 -> 1.66976 | S110: =(All!F95+All!F96+All!F97+All!F98)/1000 -> 1.755628 | T110: =(All!G95+All!G96+All!G97+All!G98)/1000 -> 1.840897 | U110: =(All!H95+All!H96+All!H97+All!H98)/1000 -> 2.078424 | V110: =(All!I95+All!I96+All!I97+All!I98)/1000 -> 2.433927 | W110: =(All!J95+All!J96+All!J97+All!J98)/1000 -> 2.410959 | X110: =(All!K95+All!K96+All!K97+All!K98)/1000 -> 2.408566 | Y110: =(All!L95+All!L96+All!L97+All!L98)/1000 -> 2.284392 | Z110: =(All!M95+All!M96+All!M97+All!M98)/1000 -> 2.203794 | AA110: =(All!N95+All!N96+All!N97+All!N98)/1000 -> 2.237967 | AB110: =(All!O95+All!O96+All!O97+All!O98)/1000 -> 2.12652 | AC110: =(All!P95+All!P96+All!P97+All!P98)/1000 -> 2.401478 | AD110: =(All!Q95+All!Q96+All!Q97+All!Q98)/1000 -> 2.382675 | AE110: =(All!R95+All!R96+All!R97+All!R98)/1000 -> 2.598451 | AF110: =(All!S95+All!S96+All!S97+All!S98)/1000 -> 2.457566 | AG110: =(All!T95+All!T96+All!T97+All!T98)/1000 -> 2.482193 | AH110: =(All!U95+All!U96+All!U97+All!U98)/1000 -> 2.641657 | AI110: =(All!V95+All!V96+All!V97+All!V98)/1000 -> 1.7906 | AJ110: =(All!W95+All!W96+All!W97+All!W98)/1000 -> 1.640153 | AK110: =(All!X95+All!X96+All!X97+All!X98)/1000 -> 2.003199 | AL110: =(All!Y95+All!Y96+All!Y97+All!Y98)/1000 -> 2.123451 | AM110: =(All!Z95+All!Z96+All!Z97+All!Z98)/1000 -> 2.113886 | AN110: =(All!AA95+All!AA96+All!AA97+All!AA98)/1000 -> 2.290827 | AO110: =(All!AB95+All!AB96+All!AB97+All!AB98)/1000 -> 2.299358 | AP110: =(All!AC95+All!AC96+All!AC97+All!AC98)/1000 -> 2.292195 | AQ110: =(All!AD95+All!AD96+All!AD97+All!AD98)/1000 -> 2.275641 | AR110: =(All!AE95+All!AE96+All!AE97+All!AE98)/1000 -> 2.254853 | AS110: =(All!AF95+All!AF96+All!AF97+All!AF98)/1000 -> 2.233561 | AT110: =(All!AG95+All!AG96+All!AG97+All!AG98)/1000 -> 2.213947 | AU110: =(All!AH95+All!AH96+All!AH97+All!AH98)/1000 -> 2.194826
P111: Associate professional and technical | Q111: =(All!D99+All!D100+All!D101+All!D102+All!D103)/1000 -> 2.686687 | R111: =(All!E99+All!E100+All!E101+All!E102+All!E103)/1000 -> 2.782473 | S111: =(All!F99+All!F100+All!F101+All!F102+All!F103)/1000 -> 2.95136 | T111: =(All!G99+All!G100+All!G101+All!G102+All!G103)/1000 -> 3.148401 | U111: =(All!H99+All!H100+All!H101+All!H102+All!H103)/1000 -> 3.567774 | V111: =(All!I99+All!I100+All!I101+All!I102+All!I103)/1000 -> 4.112389 | W111: =(All!J99+All!J100+All!J101+All!J102+All!J103)/1000 -> 4.055215 | X111: =(All!K99+All!K100+All!K101+All!K102+All!K103)/1000 -> 3.989007 | Y111: =(All!L99+All!L100+All!L101+All!L102+All!L103)/1000 -> 3.885354 | Z111: =(All!M99+All!M100+All!M101+All!M102+All!M103)/1000 -> 3.602646 | AA111: =(All!N99+All!N100+All!N101+All!N102+All!N103)/1000 -> 3.760977 | AB111: =(All!O99+All!O100+All!O101+All!O102+All!O103)/1000 -> 3.425695 | AC111: =(All!P99+All!P100+All!P101+All!P102+All!P103)/1000 -> 3.829449 | AD111: =(All!Q99+All!Q100+All!Q101+All!Q102+All!Q103)/1000 -> 3.166389 | AE111: =(All!R99+All!R100+All!R101+All!R102+All!R103)/1000 -> 3.360303 | AF111: =(All!S99+All!S100+All!S101+All!S102+All!S103)/1000 -> 3.167156 | AG111: =(All!T99+All!T100+All!T101+All!T102+All!T103)/1000 -> 3.15217 | AH111: =(All!U99+All!U100+All!U101+All!U102+All!U103)/1000 -> 3.690328 | AI111: =(All!V99+All!V100+All!V101+All!V102+All!V103)/1000 -> 3.366674 | AJ111: =(All!W99+All!W100+All!W101+All!W102+All!W103)/1000 -> 3.100311 | AK111: =(All!X99+All!X100+All!X101+All!X102+All!X103)/1000 -> 3.564216 | AL111: =(All!Y99+All!Y100+All!Y101+All!Y102+All!Y103)/1000 -> 3.72982 | AM111: =(All!Z99+All!Z100+All!Z101+All!Z102+All!Z103)/1000 -> 3.730482 | AN111: =(All!AA99+All!AA100+All!AA101+All!AA102+All!AA103)/1000 -> 4.010491 | AO111: =(All!AB99+All!AB100+All!AB101+All!AB102+All!AB103)/1000 -> 3.990514 | AP111: =(All!AC99+All!AC100+All!AC101+All!AC102+All!AC103)/1000 -> 3.949423 | AQ111: =(All!AD99+All!AD100+All!AD101+All!AD102+All!AD103)/1000 -> 3.897965 | AR111: =(All!AE99+All!AE100+All!AE101+All!AE102+All!AE103)/1000 -> 3.844068 | AS111: =(All!AF99+All!AF100+All!AF101+All!AF102+All!AF103)/1000 -> 3.789554 | AT111: =(All!AG99+All!AG100+All!AG101+All!AG102+All!AG103)/1000 -> 3.732714 | AU111: =(All!AH99+All!AH100+All!AH101+All!AH102+All!AH103)/1000 -> 3.67632
P112: Administrative and secretarial | Q112: =(All!D104+All!D105)/1000 -> 3.775981 | R112: =(All!E104+All!E105)/1000 -> 3.883684 | S112: =(All!F104+All!F105)/1000 -> 4.032573 | T112: =(All!G104+All!G105)/1000 -> 4.276756 | U112: =(All!H104+All!H105)/1000 -> 4.718635 | V112: =(All!I104+All!I105)/1000 -> 5.643955 | W112: =(All!J104+All!J105)/1000 -> 5.158192 | X112: =(All!K104+All!K105)/1000 -> 4.222745 | Y112: =(All!L104+All!L105)/1000 -> 4.757757 | Z112: =(All!M104+All!M105)/1000 -> 3.687228 | AA112: =(All!N104+All!N105)/1000 -> 3.182409 | AB112: =(All!O104+All!O105)/1000 -> 3.228457 | AC112: =(All!P104+All!P105)/1000 -> 3.347349 | AD112: =(All!Q104+All!Q105)/1000 -> 3.118802 | AE112: =(All!R104+All!R105)/1000 -> 2.96503 | AF112: =(All!S104+All!S105)/1000 -> 3.064832 | AG112: =(All!T104+All!T105)/1000 -> 2.754834 | AH112: =(All!U104+All!U105)/1000 -> 3.270614 | AI112: =(All!V104+All!V105)/1000 -> 2.862828 | AJ112: =(All!W104+All!W105)/1000 -> 2.415908 | AK112: =(All!X104+All!X105)/1000 -> 2.874651 | AL112: =(All!Y104+All!Y105)/1000 -> 3.19792 | AM112: =(All!Z104+All!Z105)/1000 -> 3.112575 | AN112: =(All!AA104+All!AA105)/1000 -> 3.288475 | AO112: =(All!AB104+All!AB105)/1000 -> 3.186296 | AP112: =(All!AC104+All!AC105)/1000 -> 3.071097 | AQ112: =(All!AD104+All!AD105)/1000 -> 2.952986 | AR112: =(All!AE104+All!AE105)/1000 -> 2.838308 | AS112: =(All!AF104+All!AF105)/1000 -> 2.723302 | AT112: =(All!AG104+All!AG105)/1000 -> 2.623483 | AU112: =(All!AH104+All!AH105)/1000 -> 2.527133
P113: Skilled trades occupations | Q113: =(All!D106+All!D107+All!D108+All!D109)/1000 -> 6.22746 | R113: =(All!E106+All!E107+All!E108+All!E109)/1000 -> 6.244668 | S113: =(All!F106+All!F107+All!F108+All!F109)/1000 -> 6.380998 | T113: =(All!G106+All!G107+All!G108+All!G109)/1000 -> 6.413645 | U113: =(All!H106+All!H107+All!H108+All!H109)/1000 -> 6.99257 | V113: =(All!I106+All!I107+All!I108+All!I109)/1000 -> 7.661349 | W113: =(All!J106+All!J107+All!J108+All!J109)/1000 -> 7.486762 | X113: =(All!K106+All!K107+All!K108+All!K109)/1000 -> 7.563961 | Y113: =(All!L106+All!L107+All!L108+All!L109)/1000 -> 6.646875 | Z113: =(All!M106+All!M107+All!M108+All!M109)/1000 -> 6.63093 | AA113: =(All!N106+All!N107+All!N108+All!N109)/1000 -> 6.530415 | AB113: =(All!O106+All!O107+All!O108+All!O109)/1000 -> 6.174127 | AC113: =(All!P106+All!P107+All!P108+All!P109)/1000 -> 5.562577 | AD113: =(All!Q106+All!Q107+All!Q108+All!Q109)/1000 -> 5.598791 | AE113: =(All!R106+All!R107+All!R108+All!R109)/1000 -> 4.979424 | AF113: =(All!S106+All!S107+All!S108+All!S109)/1000 -> 5.177458 | AG113: =(All!T106+All!T107+All!T108+All!T109)/1000 -> 5.217598 | AH113: =(All!U106+All!U107+All!U108+All!U109)/1000 -> 5.085954 | AI113: =(All!V106+All!V107+All!V108+All!V109)/1000 -> 5.050971 | AJ113: =(All!W106+All!W107+All!W108+All!W109)/1000 -> 4.113311 | AK113: =(All!X106+All!X107+All!X108+All!X109)/1000 -> 4.887348 | AL113: =(All!Y106+All!Y107+All!Y108+All!Y109)/1000 -> 4.36554 | AM113: =(All!Z106+All!Z107+All!Z108+All!Z109)/1000 -> 4.045998 | AN113: =(All!AA106+All!AA107+All!AA108+All!AA109)/1000 -> 4.185077 | AO113: =(All!AB106+All!AB107+All!AB108+All!AB109)/1000 -> 4.030692 | AP113: =(All!AC106+All!AC107+All!AC108+All!AC109)/1000 -> 3.860355 | AQ113: =(All!AD106+All!AD107+All!AD108+All!AD109)/1000 -> 3.692341 | AR113: =(All!AE106+All!AE107+All!AE108+All!AE109)/1000 -> 3.529216 | AS113: =(All!AF106+All!AF107+All!AF108+All!AF109)/1000 -> 3.369842 | AT113: =(All!AG106+All!AG107+All!AG108+All!AG109)/1000 -> 3.184666 | AU113: =(All!AH106+All!AH107+All!AH108+All!AH109)/1000 -> 3.003247
P114: Caring, leisure and other service | Q114: =(All!D110+All!D111)/1000 -> 0.283261 | R114: =(All!E110+All!E111)/1000 -> 0.287101 | S114: =(All!F110+All!F111)/1000 -> 0.298111 | T114: =(All!G110+All!G111)/1000 -> 0.327088 | U114: =(All!H110+All!H111)/1000 -> 0.373735 | V114: =(All!I110+All!I111)/1000 -> 0.516648 | W114: =(All!J110+All!J111)/1000 -> 0.44122 | X114: =(All!K110+All!K111)/1000 -> 0.360506 | Y114: =(All!L110+All!L111)/1000 -> 0.395502 | Z114: =(All!M110+All!M111)/1000 -> 0.354871 | AA114: =(All!N110+All!N111)/1000 -> 0.372517 | AB114: =(All!O110+All!O111)/1000 -> 0.300392 | AC114: =(All!P110+All!P111)/1000 -> 0.28999 | AD114: =(All!Q110+All!Q111)/1000 -> 0.298059 | AE114: =(All!R110+All!R111)/1000 -> 0.314587 | AF114: =(All!S110+All!S111)/1000 -> 0.371904 | AG114: =(All!T110+All!T111)/1000 -> 0.333908 | AH114: =(All!U110+All!U111)/1000 -> 0.377432 | AI114: =(All!V110+All!V111)/1000 -> 0.309115 | AJ114: =(All!W110+All!W111)/1000 -> 0.280134 | AK114: =(All!X110+All!X111)/1000 -> 0.362952 | AL114: =(All!Y110+All!Y111)/1000 -> 0.439938 | AM114: =(All!Z110+All!Z111)/1000 -> 0.438861 | AN114: =(All!AA110+All!AA111)/1000 -> 0.484732 | AO114: =(All!AB110+All!AB111)/1000 -> 0.489062 | AP114: =(All!AC110+All!AC111)/1000 -> 0.491724 | AQ114: =(All!AD110+All!AD111)/1000 -> 0.490309 | AR114: =(All!AE110+All!AE111)/1000 -> 0.48499 | AS114: =(All!AF110+All!AF111)/1000 -> 0.478658 | AT114: =(All!AG110+All!AG111)/1000 -> 0.474987 | AU114: =(All!AH110+All!AH111)/1000 -> 0.471661
P115: Sales and customer service | Q115: =(All!D112+All!D113)/1000 -> 1.10421 | R115: =(All!E112+All!E113)/1000 -> 1.195638 | S115: =(All!F112+All!F113)/1000 -> 1.314202 | T115: =(All!G112+All!G113)/1000 -> 1.49125 | U115: =(All!H112+All!H113)/1000 -> 1.787622 | V115: =(All!I112+All!I113)/1000 -> 2.291453 | W115: =(All!J112+All!J113)/1000 -> 2.248693 | X115: =(All!K112+All!K113)/1000 -> 2.140988 | Y115: =(All!L112+All!L113)/1000 -> 2.306066 | Z115: =(All!M112+All!M113)/1000 -> 2.156492 | AA115: =(All!N112+All!N113)/1000 -> 1.925243 | AB115: =(All!O112+All!O113)/1000 -> 1.980751 | AC115: =(All!P112+All!P113)/1000 -> 2.003578 | AD115: =(All!Q112+All!Q113)/1000 -> 1.812299 | AE115: =(All!R112+All!R113)/1000 -> 1.832467 | AF115: =(All!S112+All!S113)/1000 -> 1.657695 | AG115: =(All!T112+All!T113)/1000 -> 1.433355 | AH115: =(All!U112+All!U113)/1000 -> 1.958351 | AI115: =(All!V112+All!V113)/1000 -> 2.183159 | AJ115: =(All!W112+All!W113)/1000 -> 1.791306 | AK115: =(All!X112+All!X113)/1000 -> 2.159066 | AL115: =(All!Y112+All!Y113)/1000 -> 2.422298 | AM115: =(All!Z112+All!Z113)/1000 -> 2.526152 | AN115: =(All!AA112+All!AA113)/1000 -> 2.740457 | AO115: =(All!AB112+All!AB113)/1000 -> 2.653156 | AP115: =(All!AC112+All!AC113)/1000 -> 2.559972 | AQ115: =(All!AD112+All!AD113)/1000 -> 2.481902 | AR115: =(All!AE112+All!AE113)/1000 -> 2.414118 | AS115: =(All!AF112+All!AF113)/1000 -> 2.349238 | AT115: =(All!AG112+All!AG113)/1000 -> 2.301383 | AU115: =(All!AH112+All!AH113)/1000 -> 2.249552
P116: Process, plant and machine operatives | Q116: =(All!D114+All!D115)/1000 -> 12.824466 | R116: =(All!E114+All!E115)/1000 -> 13.274473 | S116: =(All!F114+All!F115)/1000 -> 13.83973 | T116: =(All!G114+All!G115)/1000 -> 14.27403 | U116: =(All!H114+All!H115)/1000 -> 15.920918 | V116: =(All!I114+All!I115)/1000 -> 17.815658 | W116: =(All!J114+All!J115)/1000 -> 17.707697 | X116: =(All!K114+All!K115)/1000 -> 18.40507 | Y116: =(All!L114+All!L115)/1000 -> 16.88101 | Z116: =(All!M114+All!M115)/1000 -> 16.351643 | AA116: =(All!N114+All!N115)/1000 -> 15.742473 | AB116: =(All!O114+All!O115)/1000 -> 14.576784 | AC116: =(All!P114+All!P115)/1000 -> 14.649619 | AD116: =(All!Q114+All!Q115)/1000 -> 14.278043 | AE116: =(All!R114+All!R115)/1000 -> 14.59892 | AF116: =(All!S114+All!S115)/1000 -> 13.648934 | AG116: =(All!T114+All!T115)/1000 -> 11.892231 | AH116: =(All!U114+All!U115)/1000 -> 11.169876 | AI116: =(All!V114+All!V115)/1000 -> 11.678984 | AJ116: =(All!W114+All!W115)/1000 -> 10.490555 | AK116: =(All!X114+All!X115)/1000 -> 11.43731 | AL116: =(All!Y114+All!Y115)/1000 -> 10.393051 | AM116: =(All!Z114+All!Z115)/1000 -> 10.366992 | AN116: =(All!AA114+All!AA115)/1000 -> 10.701058 | AO116: =(All!AB114+All!AB115)/1000 -> 10.355513 | AP116: =(All!AC114+All!AC115)/1000 -> 9.932363 | AQ116: =(All!AD114+All!AD115)/1000 -> 9.532328 | AR116: =(All!AE114+All!AE115)/1000 -> 9.159478 | AS116: =(All!AF114+All!AF115)/1000 -> 8.804722 | AT116: =(All!AG114+All!AG115)/1000 -> 8.450008 | AU116: =(All!AH114+All!AH115)/1000 -> 8.105189
P117: Elementary occupations | Q117: =(All!D116+All!D117)/1000 -> 5.194218 | R117: =(All!E116+All!E117)/1000 -> 5.277199 | S117: =(All!F116+All!F117)/1000 -> 5.429512 | T117: =(All!G116+All!G117)/1000 -> 5.586748 | U117: =(All!H116+All!H117)/1000 -> 6.123297 | V117: =(All!I116+All!I117)/1000 -> 6.996006 | W117: =(All!J116+All!J117)/1000 -> 6.701293 | X117: =(All!K116+All!K117)/1000 -> 6.53653 | Y117: =(All!L116+All!L117)/1000 -> 6.349363 | Z117: =(All!M116+All!M117)/1000 -> 5.776041 | AA117: =(All!N116+All!N117)/1000 -> 5.807967 | AB117: =(All!O116+All!O117)/1000 -> 4.945757 | AC117: =(All!P116+All!P117)/1000 -> 4.640049 | AD117: =(All!Q116+All!Q117)/1000 -> 5.407967 | AE117: =(All!R116+All!R117)/1000 -> 5.494275 | AF117: =(All!S116+All!S117)/1000 -> 4.354831 | AG117: =(All!T116+All!T117)/1000 -> 4.069418 | AH117: =(All!U116+All!U117)/1000 -> 5.140476 | AI117: =(All!V116+All!V117)/1000 -> 5.024099 | AJ117: =(All!W116+All!W117)/1000 -> 4.445073 | AK117: =(All!X116+All!X117)/1000 -> 5.061596 | AL117: =(All!Y116+All!Y117)/1000 -> 4.730629 | AM117: =(All!Z116+All!Z117)/1000 -> 4.75716 | AN117: =(All!AA116+All!AA117)/1000 -> 5.083766 | AO117: =(All!AB116+All!AB117)/1000 -> 5.003909 | AP117: =(All!AC116+All!AC117)/1000 -> 4.889059 | AQ117: =(All!AD116+All!AD117)/1000 -> 4.769883 | AR117: =(All!AE116+All!AE117)/1000 -> 4.656373 | AS117: =(All!AF116+All!AF117)/1000 -> 4.550299 | AT117: =(All!AG116+All!AG117)/1000 -> 4.431903 | AU117: =(All!AH116+All!AH117)/1000 -> 4.313707
P142: ="Occupational employment, "&CHAR(13)&P143 -> Occupational employment, Engineering
P143: =names!A7 -> Engineering | Q143: =Q108 -> 1994 | R143: 1995 | S143: 1996 | T143: 1997 | U143: 1998 | V143: 1999 | W143: 2000 | X143: 2001 | Y143: 2002 | Z143: 2003 | AA143: 2004 | AB143: 2005 | AC143: 2006 | AD143: 2007 | AE143: 2008 | AF143: 2009 | AG143: 2010 | AH143: 2011 | AI143: 2012 | AJ143: 2013 | AK143: 2014 | AL143: 2015 | AM143: 2016 | AN143: 2017 | AO143: 2018 | AP143: 2019 | AQ143: 2020 | AR143: 2021 | AS143: 2022 | AT143: 2023 | AU143: 2024
P144: =P109 -> Managers, directors and senior officials | Q144: =(All!D121+All!D122)/1000 -> 4.891898 | R144: =(All!E121+All!E122)/1000 -> 5.157092 | S144: =(All!F121+All!F122)/1000 -> 5.408682 | T144: =(All!G121+All!G122)/1000 -> 5.925113 | U144: =(All!H121+All!H122)/1000 -> 6.467625 | V144: =(All!I121+All!I122)/1000 -> 6.807025 | W144: =(All!J121+All!J122)/1000 -> 6.784672 | X144: =(All!K121+All!K122)/1000 -> 6.4748 | Y144: =(All!L121+All!L122)/1000 -> 6.466194 | Z144: =(All!M121+All!M122)/1000 -> 6.557436 | AA144: =(All!N121+All!N122)/1000 -> 6.190085 | AB144: =(All!O121+All!O122)/1000 -> 5.677105 | AC144: =(All!P121+All!P122)/1000 -> 5.765502 | AD144: =(All!Q121+All!Q122)/1000 -> 6.075066 | AE144: =(All!R121+All!R122)/1000 -> 6.195834 | AF144: =(All!S121+All!S122)/1000 -> 6.166412 | AG144: =(All!T121+All!T122)/1000 -> 6.433764 | AH144: =(All!U121+All!U122)/1000 -> 4.740329 | AI144: =(All!V121+All!V122)/1000 -> 5.313667 | AJ144: =(All!W121+All!W122)/1000 -> 6.614823 | AK144: =(All!X121+All!X122)/1000 -> 6.744713 | AL144: =(All!Y121+All!Y122)/1000 -> 7.620347 | AM144: =(All!Z121+All!Z122)/1000 -> 7.491033 | AN144: =(All!AA121+All!AA122)/1000 -> 8.241812 | AO144: =(All!AB121+All!AB122)/1000 -> 7.964546 | AP144: =(All!AC121+All!AC122)/1000 -> 7.761552 | AQ144: =(All!AD121+All!AD122)/1000 -> 7.534378 | AR144: =(All!AE121+All!AE122)/1000 -> 7.301929 | AS144: =(All!AF121+All!AF122)/1000 -> 7.064351 | AT144: =(All!AG121+All!AG122)/1000 -> 6.832906 | AU144: =(All!AH121+All!AH122)/1000 -> 6.607675
P145: Professional occupations | Q145: =(All!D123+All!D124+All!D125+All!D126)/1000 -> 7.980246 | R145: =(All!E123+All!E124+All!E125+All!E126)/1000 -> 8.231296 | S145: =(All!F123+All!F124+All!F125+All!F126)/1000 -> 8.438103 | T145: =(All!G123+All!G124+All!G125+All!G126)/1000 -> 9.092221 | U145: =(All!H123+All!H124+All!H125+All!H126)/1000 -> 9.725298 | V145: =(All!I123+All!I124+All!I125+All!I126)/1000 -> 10.060911 | W145: =(All!J123+All!J124+All!J125+All!J126)/1000 -> 9.883235 | X145: =(All!K123+All!K124+All!K125+All!K126)/1000 -> 9.348057 | Y145: =(All!L123+All!L124+All!L125+All!L126)/1000 -> 9.040366 | Z145: =(All!M123+All!M124+All!M125+All!M126)/1000 -> 9.074874 | AA145: =(All!N123+All!N124+All!N125+All!N126)/1000 -> 8.525762 | AB145: =(All!O123+All!O124+All!O125+All!O126)/1000 -> 7.498353 | AC145: =(All!P123+All!P124+All!P125+All!P126)/1000 -> 7.781081 | AD145: =(All!Q123+All!Q124+All!Q125+All!Q126)/1000 -> 8.244994 | AE145: =(All!R123+All!R124+All!R125+All!R126)/1000 -> 8.548962 | AF145: =(All!S123+All!S124+All!S125+All!S126)/1000 -> 7.969824 | AG145: =(All!T123+All!T124+All!T125+All!T126)/1000 -> 7.84561 | AH145: =(All!U123+All!U124+All!U125+All!U126)/1000 -> 5.766407 | AI145: =(All!V123+All!V124+All!V125+All!V126)/1000 -> 6.467537 | AJ145: =(All!W123+All!W124+All!W125+All!W126)/1000 -> 7.814961 | AK145: =(All!X123+All!X124+All!X125+All!X126)/1000 -> 8.028518 | AL145: =(All!Y123+All!Y124+All!Y125+All!Y126)/1000 -> 9.047866 | AM145: =(All!Z123+All!Z124+All!Z125+All!Z126)/1000 -> 8.659533 | AN145: =(All!AA123+All!AA124+All!AA125+All!AA126)/1000 -> 9.506038 | AO145: =(All!AB123+All!AB124+All!AB125+All!AB126)/1000 -> 9.161662 | AP145: =(All!AC123+All!AC124+All!AC125+All!AC126)/1000 -> 8.912546 | AQ145: =(All!AD123+All!AD124+All!AD125+All!AD126)/1000 -> 8.609798 | AR145: =(All!AE123+All!AE124+All!AE125+All!AE126)/1000 -> 8.294148 | AS145: =(All!AF123+All!AF124+All!AF125+All!AF126)/1000 -> 7.964151 | AT145: =(All!AG123+All!AG124+All!AG125+All!AG126)/1000 -> 7.640351 | AU145: =(All!AH123+All!AH124+All!AH125+All!AH126)/1000 -> 7.330673
P146: Associate professional and technical | Q146: =(All!D127+All!D128+All!D129+All!D130+All!D131)/1000 -> 7.177329 | R146: =(All!E127+All!E128+All!E129+All!E130+All!E131)/1000 -> 7.43547 | S146: =(All!F127+All!F128+All!F129+All!F130+All!F131)/1000 -> 7.71258 | T146: =(All!G127+All!G128+All!G129+All!G130+All!G131)/1000 -> 8.363115 | U146: =(All!H127+All!H128+All!H129+All!H130+All!H131)/1000 -> 8.975584 | V146: =(All!I127+All!I128+All!I129+All!I130+All!I131)/1000 -> 9.28278 | W146: =(All!J127+All!J128+All!J129+All!J130+All!J131)/1000 -> 9.190051 | X146: =(All!K127+All!K128+All!K129+All!K130+All!K131)/1000 -> 8.576624 | Y146: =(All!L127+All!L128+All!L129+All!L130+All!L131)/1000 -> 8.314065 | Z146: =(All!M127+All!M128+All!M129+All!M130+All!M131)/1000 -> 8.317427 | AA146: =(All!N127+All!N128+All!N129+All!N130+All!N131)/1000 -> 7.596087 | AB146: =(All!O127+All!O128+All!O129+All!O130+All!O131)/1000 -> 6.849806 | AC146: =(All!P127+All!P128+All!P129+All!P130+All!P131)/1000 -> 6.496349 | AD146: =(All!Q127+All!Q128+All!Q129+All!Q130+All!Q131)/1000 -> 6.682854 | AE146: =(All!R127+All!R128+All!R129+All!R130+All!R131)/1000 -> 6.64845 | AF146: =(All!S127+All!S128+All!S129+All!S130+All!S131)/1000 -> 6.832391 | AG146: =(All!T127+All!T128+All!T129+All!T130+All!T131)/1000 -> 6.247886 | AH146: =(All!U127+All!U128+All!U129+All!U130+All!U131)/1000 -> 4.81435 | AI146: =(All!V127+All!V128+All!V129+All!V130+All!V131)/1000 -> 5.049063 | AJ146: =(All!W127+All!W128+All!W129+All!W130+All!W131)/1000 -> 6.160668 | AK146: =(All!X127+All!X128+All!X129+All!X130+All!X131)/1000 -> 6.329455 | AL146: =(All!Y127+All!Y128+All!Y129+All!Y130+All!Y131)/1000 -> 6.982959 | AM146: =(All!Z127+All!Z128+All!Z129+All!Z130+All!Z131)/1000 -> 6.811855 | AN146: =(All!AA127+All!AA128+All!AA129+All!AA130+All!AA131)/1000 -> 7.447412 | AO146: =(All!AB127+All!AB128+All!AB129+All!AB130+All!AB131)/1000 -> 7.190076 | AP146: =(All!AC127+All!AC128+All!AC129+All!AC130+All!AC131)/1000 -> 6.998943 | AQ146: =(All!AD127+All!AD128+All!AD129+All!AD130+All!AD131)/1000 -> 6.771896 | AR146: =(All!AE127+All!AE128+All!AE129+All!AE130+All!AE131)/1000 -> 6.536591 | AS146: =(All!AF127+All!AF128+All!AF129+All!AF130+All!AF131)/1000 -> 6.286996 | AT146: =(All!AG127+All!AG128+All!AG129+All!AG130+All!AG131)/1000 -> 6.043731 | AU146: =(All!AH127+All!AH128+All!AH129+All!AH130+All!AH131)/1000 -> 5.811201
P147: Administrative and secretarial | Q147: =(All!D132+All!D133)/1000 -> 5.533048 | R147: =(All!E132+All!E133)/1000 -> 5.414999 | S147: =(All!F132+All!F133)/1000 -> 5.563245 | T147: =(All!G132+All!G133)/1000 -> 5.826516 | U147: =(All!H132+All!H133)/1000 -> 5.938779 | V147: =(All!I132+All!I133)/1000 -> 5.912551 | W147: =(All!J132+All!J133)/1000 -> 6.030253 | X147: =(All!K132+All!K133)/1000 -> 5.502481 | Y147: =(All!L132+All!L133)/1000 -> 5.329319 | Z147: =(All!M132+All!M133)/1000 -> 5.26334 | AA147: =(All!N132+All!N133)/1000 -> 4.652071 | AB147: =(All!O132+All!O133)/1000 -> 4.742072 | AC147: =(All!P132+All!P133)/1000 -> 4.195224 | AD147: =(All!Q132+All!Q133)/1000 -> 3.813067 | AE147: =(All!R132+All!R133)/1000 -> 4.036801 | AF147: =(All!S132+All!S133)/1000 -> 3.989716 | AG147: =(All!T132+All!T133)/1000 -> 3.662356 | AH147: =(All!U132+All!U133)/1000 -> 2.55949 | AI147: =(All!V132+All!V133)/1000 -> 2.548566 | AJ147: =(All!W132+All!W133)/1000 -> 3.272155 | AK147: =(All!X132+All!X133)/1000 -> 3.581858 | AL147: =(All!Y132+All!Y133)/1000 -> 3.966066 | AM147: =(All!Z132+All!Z133)/1000 -> 3.796255 | AN147: =(All!AA132+All!AA133)/1000 -> 4.081223 | AO147: =(All!AB132+All!AB133)/1000 -> 3.888072 | AP147: =(All!AC132+All!AC133)/1000 -> 3.729197 | AQ147: =(All!AD132+All!AD133)/1000 -> 3.558198 | AR147: =(All!AE132+All!AE133)/1000 -> 3.388863 | AS147: =(All!AF132+All!AF133)/1000 -> 3.217564 | AT147: =(All!AG132+All!AG133)/1000 -> 3.059059 | AU147: =(All!AH132+All!AH133)/1000 -> 2.90918
P148: Skilled trades occupations | Q148: =(All!D134+All!D135+All!D136+All!D137)/1000 -> 15.19422 | R148: =(All!E134+All!E135+All!E136+All!E137)/1000 -> 15.263948 | S148: =(All!F134+All!F135+All!F136+All!F137)/1000 -> 15.548805 | T148: =(All!G134+All!G135+All!G136+All!G137)/1000 -> 16.468881 | U148: =(All!H134+All!H135+All!H136+All!H137)/1000 -> 17.523015 | V148: =(All!I134+All!I135+All!I136+All!I137)/1000 -> 17.916889 | W148: =(All!J134+All!J135+All!J136+All!J137)/1000 -> 17.264115 | X148: =(All!K134+All!K135+All!K136+All!K137)/1000 -> 16.272373 | Y148: =(All!L134+All!L135+All!L136+All!L137)/1000 -> 15.316286 | Z148: =(All!M134+All!M135+All!M136+All!M137)/1000 -> 15.322154 | AA148: =(All!N134+All!N135+All!N136+All!N137)/1000 -> 13.987268 | AB148: =(All!O134+All!O135+All!O136+All!O137)/1000 -> 12.070642 | AC148: =(All!P134+All!P135+All!P136+All!P137)/1000 -> 12.862937 | AD148: =(All!Q134+All!Q135+All!Q136+All!Q137)/1000 -> 12.619535 | AE148: =(All!R134+All!R135+All!R136+All!R137)/1000 -> 11.672603 | AF148: =(All!S134+All!S135+All!S136+All!S137)/1000 -> 12.301759 | AG148: =(All!T134+All!T135+All!T136+All!T137)/1000 -> 12.43459 | AH148: =(All!U134+All!U135+All!U136+All!U137)/1000 -> 9.509457 | AI148: =(All!V134+All!V135+All!V136+All!V137)/1000 -> 9.485683 | AJ148: =(All!W134+All!W135+All!W136+All!W137)/1000 -> 11.42642 | AK148: =(All!X134+All!X135+All!X136+All!X137)/1000 -> 11.113104 | AL148: =(All!Y134+All!Y135+All!Y136+All!Y137)/1000 -> 11.968979 | AM148: =(All!Z134+All!Z135+All!Z136+All!Z137)/1000 -> 11.374467 | AN148: =(All!AA134+All!AA135+All!AA136+All!AA137)/1000 -> 12.191228 | AO148: =(All!AB134+All!AB135+All!AB136+All!AB137)/1000 -> 11.444648 | AP148: =(All!AC134+All!AC135+All!AC136+All!AC137)/1000 -> 10.803968 | AQ148: =(All!AD134+All!AD135+All!AD136+All!AD137)/1000 -> 10.177474 | AR148: =(All!AE134+All!AE135+All!AE136+All!AE137)/1000 -> 9.594117 | AS148: =(All!AF134+All!AF135+All!AF136+All!AF137)/1000 -> 9.027566 | AT148: =(All!AG134+All!AG135+All!AG136+All!AG137)/1000 -> 8.484181 | AU148: =(All!AH134+All!AH135+All!AH136+All!AH137)/1000 -> 7.976773
P149: Caring, leisure and other service | Q149: =(All!D138+All!D139)/1000 -> 0.363699 | R149: =(All!E138+All!E139)/1000 -> 0.355574 | S149: =(All!F138+All!F139)/1000 -> 0.381881 | T149: =(All!G138+All!G139)/1000 -> 0.406184 | U149: =(All!H138+All!H139)/1000 -> 0.428685 | V149: =(All!I138+All!I139)/1000 -> 0.453084 | W149: =(All!J138+All!J139)/1000 -> 0.492929 | X149: =(All!K138+All!K139)/1000 -> 0.473592 | Y149: =(All!L138+All!L139)/1000 -> 0.432552 | Z149: =(All!M138+All!M139)/1000 -> 0.475838 | AA149: =(All!N138+All!N139)/1000 -> 0.419719 | AB149: =(All!O138+All!O139)/1000 -> 0.429153 | AC149: =(All!P138+All!P139)/1000 -> 0.405489 | AD149: =(All!Q138+All!Q139)/1000 -> 0.40221 | AE149: =(All!R138+All!R139)/1000 -> 0.412848 | AF149: =(All!S138+All!S139)/1000 -> 0.435968 | AG149: =(All!T138+All!T139)/1000 -> 0.474438 | AH149: =(All!U138+All!U139)/1000 -> 0.29343 | AI149: =(All!V138+All!V139)/1000 -> 0.272259 | AJ149: =(All!W138+All!W139)/1000 -> 0.368712 | AK149: =(All!X138+All!X139)/1000 -> 0.389195 | AL149: =(All!Y138+All!Y139)/1000 -> 0.428315 | AM149: =(All!Z138+All!Z139)/1000 -> 0.404112 | AN149: =(All!AA138+All!AA139)/1000 -> 0.446571 | AO149: =(All!AB138+All!AB139)/1000 -> 0.441441 | AP149: =(All!AC138+All!AC139)/1000 -> 0.436465 | AQ149: =(All!AD138+All!AD139)/1000 -> 0.429655 | AR149: =(All!AE138+All!AE139)/1000 -> 0.42103 | AS149: =(All!AF138+All!AF139)/1000 -> 0.4148 | AT149: =(All!AG138+All!AG139)/1000 -> 0.406586 | AU149: =(All!AH138+All!AH139)/1000 -> 0.399011
P150: Sales and customer service | Q150: =(All!D140+All!D141)/1000 -> 0.778988 | R150: =(All!E140+All!E141)/1000 -> 0.821784 | S150: =(All!F140+All!F141)/1000 -> 0.892021 | T150: =(All!G140+All!G141)/1000 -> 0.99254 | U150: =(All!H140+All!H141)/1000 -> 1.092172 | V150: =(All!I140+All!I141)/1000 -> 1.161066 | W150: =(All!J140+All!J141)/1000 -> 1.21777 | X150: =(All!K140+All!K141)/1000 -> 1.1772 | Y150: =(All!L140+All!L141)/1000 -> 1.172845 | Z150: =(All!M140+All!M141)/1000 -> 1.221979 | AA150: =(All!N140+All!N141)/1000 -> 1.141176 | AB150: =(All!O140+All!O141)/1000 -> 1.12877 | AC150: =(All!P140+All!P141)/1000 -> 1.168871 | AD150: =(All!Q140+All!Q141)/1000 -> 1.207701 | AE150: =(All!R140+All!R141)/1000 -> 1.262094 | AF150: =(All!S140+All!S141)/1000 -> 1.164826 | AG150: =(All!T140+All!T141)/1000 -> 1.220257 | AH150: =(All!U140+All!U141)/1000 -> 0.855455 | AI150: =(All!V140+All!V141)/1000 -> 1.078941 | AJ150: =(All!W140+All!W141)/1000 -> 1.354949 | AK150: =(All!X140+All!X141)/1000 -> 1.474935 | AL150: =(All!Y140+All!Y141)/1000 -> 1.611463 | AM150: =(All!Z140+All!Z141)/1000 -> 1.640396 | AN150: =(All!AA140+All!AA141)/1000 -> 1.807756 | AO150: =(All!AB140+All!AB141)/1000 -> 1.724532 | AP150: =(All!AC140+All!AC141)/1000 -> 1.657314 | AQ150: =(All!AD140+All!AD141)/1000 -> 1.59058 | AR150: =(All!AE140+All!AE141)/1000 -> 1.528563 | AS150: =(All!AF140+All!AF141)/1000 -> 1.466387 | AT150: =(All!AG140+All!AG141)/1000 -> 1.408899 | AU150: =(All!AH140+All!AH141)/1000 -> 1.351547
P151: Process, plant and machine operatives | Q151: =(All!D142+All!D143)/1000 -> 13.358416 | R151: =(All!E142+All!E143)/1000 -> 13.484751 | S151: =(All!F142+All!F143)/1000 -> 13.819627 | T151: =(All!G142+All!G143)/1000 -> 14.644544 | U151: =(All!H142+All!H143)/1000 -> 15.058146 | V151: =(All!I142+All!I143)/1000 -> 15.625764 | W151: =(All!J142+All!J143)/1000 -> 15.232233 | X151: =(All!K142+All!K143)/1000 -> 14.23784 | Y151: =(All!L142+All!L143)/1000 -> 13.81176 | Z151: =(All!M142+All!M143)/1000 -> 13.520152 | AA151: =(All!N142+All!N143)/1000 -> 11.567442 | AB151: =(All!O142+All!O143)/1000 -> 10.70601 | AC151: =(All!P142+All!P143)/1000 -> 10.266174 | AD151: =(All!Q142+All!Q143)/1000 -> 10.708145 | AE151: =(All!R142+All!R143)/1000 -> 9.808916 | AF151: =(All!S142+All!S143)/1000 -> 9.891104 | AG151: =(All!T142+All!T143)/1000 -> 9.077869 | AH151: =(All!U142+All!U143)/1000 -> 5.910476 | AI151: =(All!V142+All!V143)/1000 -> 6.052427 | AJ151: =(All!W142+All!W143)/1000 -> 7.496373 | AK151: =(All!X142+All!X143)/1000 -> 7.739874 | AL151: =(All!Y142+All!Y143)/1000 -> 7.948462 | AM151: =(All!Z142+All!Z143)/1000 -> 7.650051 | AN151: =(All!AA142+All!AA143)/1000 -> 7.948728 | AO151: =(All!AB142+All!AB143)/1000 -> 7.402459 | AP151: =(All!AC142+All!AC143)/1000 -> 6.901342 | AQ151: =(All!AD142+All!AD143)/1000 -> 6.423174 | AR151: =(All!AE142+All!AE143)/1000 -> 5.989251 | AS151: =(All!AF142+All!AF143)/1000 -> 5.580516 | AT151: =(All!AG142+All!AG143)/1000 -> 5.197768 | AU151: =(All!AH142+All!AH143)/1000 -> 4.836699
P152: Elementary occupations | Q152: =(All!D144+All!D145)/1000 -> 2.763158 | R152: =(All!E144+All!E145)/1000 -> 2.711088 | S152: =(All!F144+All!F145)/1000 -> 2.757055 | T152: =(All!G144+All!G145)/1000 -> 2.910887 | U152: =(All!H144+All!H145)/1000 -> 2.982696 | V152: =(All!I144+All!I145)/1000 -> 3.003931 | W152: =(All!J144+All!J145)/1000 -> 3.037741 | X152: =(All!K144+All!K145)/1000 -> 2.905031 | Y152: =(All!L144+All!L145)/1000 -> 2.707612 | Z152: =(All!M144+All!M145)/1000 -> 2.747798 | AA152: =(All!N144+All!N145)/1000 -> 2.47139 | AB152: =(All!O144+All!O145)/1000 -> 2.315088 | AC152: =(All!P144+All!P145)/1000 -> 2.338374 | AD152: =(All!Q144+All!Q145)/1000 -> 2.116427 | AE152: =(All!R144+All!R145)/1000 -> 2.032491 | AF152: =(All!S144+All!S145)/1000 -> 2.300001 | AG152: =(All!T144+All!T145)/1000 -> 2.355232 | AH152: =(All!U144+All!U145)/1000 -> 1.634604 | AI152: =(All!V144+All!V145)/1000 -> 1.637856 | AJ152: =(All!W144+All!W145)/1000 -> 2.084937 | AK152: =(All!X144+All!X145)/1000 -> 2.182348 | AL152: =(All!Y144+All!Y145)/1000 -> 2.246542 | AM152: =(All!Z144+All!Z145)/1000 -> 2.154298 | AN152: =(All!AA144+All!AA145)/1000 -> 2.31123 | AO152: =(All!AB144+All!AB145)/1000 -> 2.197564 | AP152: =(All!AC144+All!AC145)/1000 -> 2.093671 | AQ152: =(All!AD144+All!AD145)/1000 -> 1.991848 | AR152: =(All!AE144+All!AE145)/1000 -> 1.899509 | AS152: =(All!AF144+All!AF145)/1000 -> 1.818671 | AT152: =(All!AG144+All!AG145)/1000 -> 1.730519 | AU152: =(All!AH144+All!AH145)/1000 -> 1.646241
P177: ="Occupational employment, "&CHAR(13)&P178 -> Occupational employment, Rest of manufacturing
P178: =names!A8 -> Rest of manufacturing | Q178: =Q143 -> 1994 | R178: 1995 | S178: 1996 | T178: 1997 | U178: 1998 | V178: 1999 | W178: 2000 | X178: 2001 | Y178: 2002 | Z178: 2003 | AA178: 2004 | AB178: 2005 | AC178: 2006 | AD178: 2007 | AE178: 2008 | AF178: 2009 | AG178: 2010 | AH178: 2011 | AI178: 2012 | AJ178: 2013 | AK178: 2014 | AL178: 2015 | AM178: 2016 | AN178: 2017 | AO178: 2018 | AP178: 2019 | AQ178: 2020 | AR178: 2021 | AS178: 2022 | AT178: 2023 | AU178: 2024
P179: =P144 -> Managers, directors and senior officials | Q179: =(All!D149+All!D150)/1000 -> 14.989374 | R179: =(All!E149+All!E150)/1000 -> 15.317771 | S179: =(All!F149+All!F150)/1000 -> 15.516761 | T179: =(All!G149+All!G150)/1000 -> 16.161 | U179: =(All!H149+All!H150)/1000 -> 17.38867 | V179: =(All!I149+All!I150)/1000 -> 17.5929 | W179: =(All!J149+All!J150)/1000 -> 17.935505 | X179: =(All!K149+All!K150)/1000 -> 17.683742 | Y179: =(All!L149+All!L150)/1000 -> 18.107323 | Z179: =(All!M149+All!M150)/1000 -> 18.396859 | AA179: =(All!N149+All!N150)/1000 -> 19.693416 | AB179: =(All!O149+All!O150)/1000 -> 17.803344 | AC179: =(All!P149+All!P150)/1000 -> 17.518114 | AD179: =(All!Q149+All!Q150)/1000 -> 16.854962 | AE179: =(All!R149+All!R150)/1000 -> 17.823815 | AF179: =(All!S149+All!S150)/1000 -> 17.4247 | AG179: =(All!T149+All!T150)/1000 -> 18.464404 | AH179: =(All!U149+All!U150)/1000 -> 18.834069 | AI179: =(All!V149+All!V150)/1000 -> 18.104967 | AJ179: =(All!W149+All!W150)/1000 -> 16.305247 | AK179: =(All!X149+All!X150)/1000 -> 17.488638 | AL179: =(All!Y149+All!Y150)/1000 -> 17.178606 | AM179: =(All!Z149+All!Z150)/1000 -> 17.17872 | AN179: =(All!AA149+All!AA150)/1000 -> 17.630094 | AO179: =(All!AB149+All!AB150)/1000 -> 18.377421 | AP179: =(All!AC149+All!AC150)/1000 -> 18.899254 | AQ179: =(All!AD149+All!AD150)/1000 -> 19.293711 | AR179: =(All!AE149+All!AE150)/1000 -> 19.615373 | AS179: =(All!AF149+All!AF150)/1000 -> 19.95238 | AT179: =(All!AG149+All!AG150)/1000 -> 20.284523 | AU179: =(All!AH149+All!AH150)/1000 -> 20.604346
P180: Professional occupations | Q180: =(All!D151+All!D152+All!D153+All!D154)/1000 -> 19.153251 | R180: =(All!E151+All!E152+All!E153+All!E154)/1000 -> 19.092957 | S180: =(All!F151+All!F152+All!F153+All!F154)/1000 -> 18.871569 | T180: =(All!G151+All!G152+All!G153+All!G154)/1000 -> 19.123526 | U180: =(All!H151+All!H152+All!H153+All!H154)/1000 -> 20.680562 | V180: =(All!I151+All!I152+All!I153+All!I154)/1000 -> 21.194865 | W180: =(All!J151+All!J152+All!J153+All!J154)/1000 -> 20.969149 | X180: =(All!K151+All!K152+All!K153+All!K154)/1000 -> 19.885328 | Y180: =(All!L151+All!L152+All!L153+All!L154)/1000 -> 20.174945 | Z180: =(All!M151+All!M152+All!M153+All!M154)/1000 -> 20.518777 | AA180: =(All!N151+All!N152+All!N153+All!N154)/1000 -> 20.718559 | AB180: =(All!O151+All!O152+All!O153+All!O154)/1000 -> 20.040445 | AC180: =(All!P151+All!P152+All!P153+All!P154)/1000 -> 19.135995 | AD180: =(All!Q151+All!Q152+All!Q153+All!Q154)/1000 -> 18.929624 | AE180: =(All!R151+All!R152+All!R153+All!R154)/1000 -> 20.073419 | AF180: =(All!S151+All!S152+All!S153+All!S154)/1000 -> 19.791448 | AG180: =(All!T151+All!T152+All!T153+All!T154)/1000 -> 20.220318 | AH180: =(All!U151+All!U152+All!U153+All!U154)/1000 -> 19.925784 | AI180: =(All!V151+All!V152+All!V153+All!V154)/1000 -> 20.341727 | AJ180: =(All!W151+All!W152+All!W153+All!W154)/1000 -> 19.131154 | AK180: =(All!X151+All!X152+All!X153+All!X154)/1000 -> 20.061856 | AL180: =(All!Y151+All!Y152+All!Y153+All!Y154)/1000 -> 20.331517 | AM180: =(All!Z151+All!Z152+All!Z153+All!Z154)/1000 -> 20.350102 | AN180: =(All!AA151+All!AA152+All!AA153+All!AA154)/1000 -> 20.507994 | AO180: =(All!AB151+All!AB152+All!AB153+All!AB154)/1000 -> 21.558723 | AP180: =(All!AC151+All!AC152+All!AC153+All!AC154)/1000 -> 22.212267 | AQ180: =(All!AD151+All!AD152+All!AD153+All!AD154)/1000 -> 22.688211 | AR180: =(All!AE151+All!AE152+All!AE153+All!AE154)/1000 -> 23.032313 | AS180: =(All!AF151+All!AF152+All!AF153+All!AF154)/1000 -> 23.50843 | AT180: =(All!AG151+All!AG152+All!AG153+All!AG154)/1000 -> 23.817188 | AU180: =(All!AH151+All!AH152+All!AH153+All!AH154)/1000 -> 24.120123
P181: Associate professional and technical | Q181: =(All!D155+All!D156+All!D157+All!D158+All!D159)/1000 -> 21.568361 | R181: =(All!E155+All!E156+All!E157+All!E158+All!E159)/1000 -> 22.098952 | S181: =(All!F155+All!F156+All!F157+All!F158+All!F159)/1000 -> 22.409931 | T181: =(All!G155+All!G156+All!G157+All!G158+All!G159)/1000 -> 23.310819 | U181: =(All!H155+All!H156+All!H157+All!H158+All!H159)/1000 -> 24.943988 | V181: =(All!I155+All!I156+All!I157+All!I158+All!I159)/1000 -> 25.292434 | W181: =(All!J155+All!J156+All!J157+All!J158+All!J159)/1000 -> 25.504786 | X181: =(All!K155+All!K156+All!K157+All!K158+All!K159)/1000 -> 24.429778 | Y181: =(All!L155+All!L156+All!L157+All!L158+All!L159)/1000 -> 23.859624 | Z181: =(All!M155+All!M156+All!M157+All!M158+All!M159)/1000 -> 24.516168 | AA181: =(All!N155+All!N156+All!N157+All!N158+All!N159)/1000 -> 25.11229 | AB181: =(All!O155+All!O156+All!O157+All!O158+All!O159)/1000 -> 22.768651 | AC181: =(All!P155+All!P156+All!P157+All!P158+All!P159)/1000 -> 22.067482 | AD181: =(All!Q155+All!Q156+All!Q157+All!Q158+All!Q159)/1000 -> 20.072367 | AE181: =(All!R155+All!R156+All!R157+All!R158+All!R159)/1000 -> 21.034719 | AF181: =(All!S155+All!S156+All!S157+All!S158+All!S159)/1000 -> 20.472475 | AG181: =(All!T155+All!T156+All!T157+All!T158+All!T159)/1000 -> 20.093073 | AH181: =(All!U155+All!U156+All!U157+All!U158+All!U159)/1000 -> 20.792405 | AI181: =(All!V155+All!V156+All!V157+All!V158+All!V159)/1000 -> 19.488678 | AJ181: =(All!W155+All!W156+All!W157+All!W158+All!W159)/1000 -> 17.557795 | AK181: =(All!X155+All!X156+All!X157+All!X158+All!X159)/1000 -> 19.209616 | AL181: =(All!Y155+All!Y156+All!Y157+All!Y158+All!Y159)/1000 -> 18.331046 | AM181: =(All!Z155+All!Z156+All!Z157+All!Z158+All!Z159)/1000 -> 18.328787 | AN181: =(All!AA155+All!AA156+All!AA157+All!AA158+All!AA159)/1000 -> 18.523223 | AO181: =(All!AB155+All!AB156+All!AB157+All!AB158+All!AB159)/1000 -> 19.286186 | AP181: =(All!AC155+All!AC156+All!AC157+All!AC158+All!AC159)/1000 -> 19.764971 | AQ181: =(All!AD155+All!AD156+All!AD157+All!AD158+All!AD159)/1000 -> 20.077974 | AR181: =(All!AE155+All!AE156+All!AE157+All!AE158+All!AE159)/1000 -> 20.3116 | AS181: =(All!AF155+All!AF156+All!AF157+All!AF158+All!AF159)/1000 -> 20.550148 | AT181: =(All!AG155+All!AG156+All!AG157+All!AG158+All!AG159)/1000 -> 20.75902 | AU181: =(All!AH155+All!AH156+All!AH157+All!AH158+All!AH159)/1000 -> 20.963726
P182: Administrative and secretarial | Q182: =(All!D160+All!D161)/1000 -> 18.93848 | R182: =(All!E160+All!E161)/1000 -> 19.179664 | S182: =(All!F160+All!F161)/1000 -> 19.062431 | T182: =(All!G160+All!G161)/1000 -> 19.599962 | U182: =(All!H160+All!H161)/1000 -> 20.660403 | V182: =(All!I160+All!I161)/1000 -> 20.41153 | W182: =(All!J160+All!J161)/1000 -> 20.455026 | X182: =(All!K160+All!K161)/1000 -> 20.180441 | Y182: =(All!L160+All!L161)/1000 -> 18.156931 | Z182: =(All!M160+All!M161)/1000 -> 19.707204 | AA182: =(All!N160+All!N161)/1000 -> 20.807259 | AB182: =(All!O160+All!O161)/1000 -> 17.852042 | AC182: =(All!P160+All!P161)/1000 -> 15.495227 | AD182: =(All!Q160+All!Q161)/1000 -> 14.469707 | AE182: =(All!R160+All!R161)/1000 -> 15.219296 | AF182: =(All!S160+All!S161)/1000 -> 14.876825 | AG182: =(All!T160+All!T161)/1000 -> 13.955145 | AH182: =(All!U160+All!U161)/1000 -> 14.001723 | AI182: =(All!V160+All!V161)/1000 -> 13.472376 | AJ182: =(All!W160+All!W161)/1000 -> 11.916623 | AK182: =(All!X160+All!X161)/1000 -> 13.366494 | AL182: =(All!Y160+All!Y161)/1000 -> 12.63125 | AM182: =(All!Z160+All!Z161)/1000 -> 12.225411 | AN182: =(All!AA160+All!AA161)/1000 -> 12.36065 | AO182: =(All!AB160+All!AB161)/1000 -> 12.529781 | AP182: =(All!AC160+All!AC161)/1000 -> 12.652466 | AQ182: =(All!AD160+All!AD161)/1000 -> 12.666198 | AR182: =(All!AE160+All!AE161)/1000 -> 12.622803 | AS182: =(All!AF160+All!AF161)/1000 -> 12.503861 | AT182: =(All!AG160+All!AG161)/1000 -> 12.431635 | AU182: =(All!AH160+All!AH161)/1000 -> 12.358126
P183: Skilled trades occupations | Q183: =(All!D162+All!D163+All!D164+All!D165)/1000 -> 73.998956 | R183: =(All!E162+All!E163+All!E164+All!E165)/1000 -> 72.141447 | S183: =(All!F162+All!F163+All!F164+All!F165)/1000 -> 70.306573 | T183: =(All!G162+All!G163+All!G164+All!G165)/1000 -> 70.321056 | U183: =(All!H162+All!H163+All!H164+All!H165)/1000 -> 72.860653 | V183: =(All!I162+All!I163+All!I164+All!I165)/1000 -> 74.229272 | W183: =(All!J162+All!J163+All!J164+All!J165)/1000 -> 70.226793 | X183: =(All!K162+All!K163+All!K164+All!K165)/1000 -> 65.910087 | Y183: =(All!L162+All!L163+All!L164+All!L165)/1000 -> 66.442103 | Z183: =(All!M162+All!M163+All!M164+All!M165)/1000 -> 65.876572 | AA183: =(All!N162+All!N163+All!N164+All!N165)/1000 -> 65.304098 | AB183: =(All!O162+All!O163+All!O164+All!O165)/1000 -> 60.572364 | AC183: =(All!P162+All!P163+All!P164+All!P165)/1000 -> 56.831106 | AD183: =(All!Q162+All!Q163+All!Q164+All!Q165)/1000 -> 54.918243 | AE183: =(All!R162+All!R163+All!R164+All!R165)/1000 -> 53.556084 | AF183: =(All!S162+All!S163+All!S164+All!S165)/1000 -> 50.239944 | AG183: =(All!T162+All!T163+All!T164+All!T165)/1000 -> 54.750531 | AH183: =(All!U162+All!U163+All!U164+All!U165)/1000 -> 53.644585 | AI183: =(All!V162+All!V163+All!V164+All!V165)/1000 -> 52.745771 | AJ183: =(All!W162+All!W163+All!W164+All!W165)/1000 -> 48.624387 | AK183: =(All!X162+All!X163+All!X164+All!X165)/1000 -> 50.978345 | AL183: =(All!Y162+All!Y163+All!Y164+All!Y165)/1000 -> 47.735159 | AM183: =(All!Z162+All!Z163+All!Z164+All!Z165)/1000 -> 46.629028 | AN183: =(All!AA162+All!AA163+All!AA164+All!AA165)/1000 -> 46.81902 | AO183: =(All!AB162+All!AB163+All!AB164+All!AB165)/1000 -> 47.018495 | AP183: =(All!AC162+All!AC163+All!AC164+All!AC165)/1000 -> 46.864567 | AQ183: =(All!AD162+All!AD163+All!AD164+All!AD165)/1000 -> 46.456178 | AR183: =(All!AE162+All!AE163+All!AE164+All!AE165)/1000 -> 45.936482 | AS183: =(All!AF162+All!AF163+All!AF164+All!AF165)/1000 -> 45.280006 | AT183: =(All!AG162+All!AG163+All!AG164+All!AG165)/1000 -> 44.672358 | AU183: =(All!AH162+All!AH163+All!AH164+All!AH165)/1000 -> 44.07834
P184: Caring, leisure and other service | Q184: =(All!D166+All!D167)/1000 -> 1.405347 | R184: =(All!E166+All!E167)/1000 -> 1.465763 | S184: =(All!F166+All!F167)/1000 -> 1.45403 | T184: =(All!G166+All!G167)/1000 -> 1.51531 | U184: =(All!H166+All!H167)/1000 -> 1.660841 | V184: =(All!I166+All!I167)/1000 -> 1.720169 | W184: =(All!J166+All!J167)/1000 -> 1.661914 | X184: =(All!K166+All!K167)/1000 -> 1.606446 | Y184: =(All!L166+All!L167)/1000 -> 1.509325 | Z184: =(All!M166+All!M167)/1000 -> 1.647637 | AA184: =(All!N166+All!N167)/1000 -> 1.826942 | AB184: =(All!O166+All!O167)/1000 -> 1.43034 | AC184: =(All!P166+All!P167)/1000 -> 1.373043 | AD184: =(All!Q166+All!Q167)/1000 -> 1.305665 | AE184: =(All!R166+All!R167)/1000 -> 1.454772 | AF184: =(All!S166+All!S167)/1000 -> 1.340362 | AG184: =(All!T166+All!T167)/1000 -> 1.508678 | AH184: =(All!U166+All!U167)/1000 -> 1.415805 | AI184: =(All!V166+All!V167)/1000 -> 1.303888 | AJ184: =(All!W166+All!W167)/1000 -> 1.124362 | AK184: =(All!X166+All!X167)/1000 -> 1.513193 | AL184: =(All!Y166+All!Y167)/1000 -> 1.270141 | AM184: =(All!Z166+All!Z167)/1000 -> 1.365242 | AN184: =(All!AA166+All!AA167)/1000 -> 1.450086 | AO184: =(All!AB166+All!AB167)/1000 -> 1.642114 | AP184: =(All!AC166+All!AC167)/1000 -> 1.712189 | AQ184: =(All!AD166+All!AD167)/1000 -> 1.760055 | AR184: =(All!AE166+All!AE167)/1000 -> 1.783613 | AS184: =(All!AF166+All!AF167)/1000 -> 1.816187 | AT184: =(All!AG166+All!AG167)/1000 -> 1.859264 | AU184: =(All!AH166+All!AH167)/1000 -> 1.900851
P185: Sales and customer service | Q185: =(All!D168+All!D169)/1000 -> 4.151757 | R185: =(All!E168+All!E169)/1000 -> 4.28793 | S185: =(All!F168+All!F169)/1000 -> 4.406736 | T185: =(All!G168+All!G169)/1000 -> 4.615127 | U185: =(All!H168+All!H169)/1000 -> 5.075086 | V185: =(All!I168+All!I169)/1000 -> 5.234004 | W185: =(All!J168+All!J169)/1000 -> 5.209451 | X185: =(All!K168+All!K169)/1000 -> 5.10167 | Y185: =(All!L168+All!L169)/1000 -> 4.707299 | Z185: =(All!M168+All!M169)/1000 -> 5.147936 | AA185: =(All!N168+All!N169)/1000 -> 5.433137 | AB185: =(All!O168+All!O169)/1000 -> 4.500938 | AC185: =(All!P168+All!P169)/1000 -> 4.102636 | AD185: =(All!Q168+All!Q169)/1000 -> 4.150022 | AE185: =(All!R168+All!R169)/1000 -> 4.11464 | AF185: =(All!S168+All!S169)/1000 -> 3.990022 | AG185: =(All!T168+All!T169)/1000 -> 4.205197 | AH185: =(All!U168+All!U169)/1000 -> 3.494782 | AI185: =(All!V168+All!V169)/1000 -> 4.492339 | AJ185: =(All!W168+All!W169)/1000 -> 3.953002 | AK185: =(All!X168+All!X169)/1000 -> 4.720679 | AL185: =(All!Y168+All!Y169)/1000 -> 4.013921 | AM185: =(All!Z168+All!Z169)/1000 -> 4.142663 | AN185: =(All!AA168+All!AA169)/1000 -> 4.292066 | AO185: =(All!AB168+All!AB169)/1000 -> 4.389278 | AP185: =(All!AC168+All!AC169)/1000 -> 4.435419 | AQ185: =(All!AD168+All!AD169)/1000 -> 4.471193 | AR185: =(All!AE168+All!AE169)/1000 -> 4.509119 | AS185: =(All!AF168+All!AF169)/1000 -> 4.515757 | AT185: =(All!AG168+All!AG169)/1000 -> 4.537807 | AU185: =(All!AH168+All!AH169)/1000 -> 4.548485
P186: Process, plant and machine operatives | Q186: =(All!D170+All!D171)/1000 -> 45.903557 | R186: =(All!E170+All!E171)/1000 -> 45.185165 | S186: =(All!F170+All!F171)/1000 -> 44.582079 | T186: =(All!G170+All!G171)/1000 -> 45.411135 | U186: =(All!H170+All!H171)/1000 -> 47.071142 | V186: =(All!I170+All!I171)/1000 -> 47.471882 | W186: =(All!J170+All!J171)/1000 -> 46.054153 | X186: =(All!K170+All!K171)/1000 -> 43.656874 | Y186: =(All!L170+All!L171)/1000 -> 43.34532 | Z186: =(All!M170+All!M171)/1000 -> 41.556759 | AA186: =(All!N170+All!N171)/1000 -> 40.295566 | AB186: =(All!O170+All!O171)/1000 -> 36.155455 | AC186: =(All!P170+All!P171)/1000 -> 34.24719 | AD186: =(All!Q170+All!Q171)/1000 -> 33.794887 | AE186: =(All!R170+All!R171)/1000 -> 32.129609 | AF186: =(All!S170+All!S171)/1000 -> 31.283484 | AG186: =(All!T170+All!T171)/1000 -> 29.70603 | AH186: =(All!U170+All!U171)/1000 -> 29.844784 | AI186: =(All!V170+All!V171)/1000 -> 26.625276 | AJ186: =(All!W170+All!W171)/1000 -> 24.649348 | AK186: =(All!X170+All!X171)/1000 -> 26.60172 | AL186: =(All!Y170+All!Y171)/1000 -> 24.236009 | AM186: =(All!Z170+All!Z171)/1000 -> 23.814711 | AN186: =(All!AA170+All!AA171)/1000 -> 23.465962 | AO186: =(All!AB170+All!AB171)/1000 -> 23.507209 | AP186: =(All!AC170+All!AC171)/1000 -> 23.298562 | AQ186: =(All!AD170+All!AD171)/1000 -> 22.938993 | AR186: =(All!AE170+All!AE171)/1000 -> 22.517383 | AS186: =(All!AF170+All!AF171)/1000 -> 22.155714 | AT186: =(All!AG170+All!AG171)/1000 -> 21.683515 | AU186: =(All!AH170+All!AH171)/1000 -> 21.23089
P187: Elementary occupations | Q187: =(All!D172+All!D173)/1000 -> 13.883918 | R187: =(All!E172+All!E173)/1000 -> 13.781352 | S187: =(All!F172+All!F173)/1000 -> 13.621892 | T187: =(All!G172+All!G173)/1000 -> 13.763064 | U187: =(All!H172+All!H173)/1000 -> 14.429657 | V187: =(All!I172+All!I173)/1000 -> 14.108944 | W187: =(All!J172+All!J173)/1000 -> 13.870223 | X187: =(All!K172+All!K173)/1000 -> 13.630636 | Y187: =(All!L172+All!L173)/1000 -> 13.193129 | Z187: =(All!M172+All!M173)/1000 -> 13.500088 | AA187: =(All!N172+All!N173)/1000 -> 14.179734 | AB187: =(All!O172+All!O173)/1000 -> 10.95642 | AC187: =(All!P172+All!P173)/1000 -> 10.864208 | AD187: =(All!Q172+All!Q173)/1000 -> 10.288523 | AE187: =(All!R172+All!R173)/1000 -> 11.282648 | AF187: =(All!S172+All!S173)/1000 -> 10.383741 | AG187: =(All!T172+All!T173)/1000 -> 10.351623 | AH187: =(All!U172+All!U173)/1000 -> 10.585063 | AI187: =(All!V172+All!V173)/1000 -> 10.065976 | AJ187: =(All!W172+All!W173)/1000 -> 8.943081 | AK187: =(All!X172+All!X173)/1000 -> 10.38046 | AL187: =(All!Y172+All!Y173)/1000 -> 8.469352 | AM187: =(All!Z172+All!Z173)/1000 -> 8.365335 | AN187: =(All!AA172+All!AA173)/1000 -> 8.482904 | AO187: =(All!AB172+All!AB173)/1000 -> 8.705793 | AP187: =(All!AC172+All!AC173)/1000 -> 8.745304 | AQ187: =(All!AD172+All!AD173)/1000 -> 8.718488 | AR187: =(All!AE172+All!AE173)/1000 -> 8.666314 | AS187: =(All!AF172+All!AF173)/1000 -> 8.618518 | AT187: =(All!AG172+All!AG173)/1000 -> 8.55269 | AU187: =(All!AH172+All!AH173)/1000 -> 8.474114
P212: ="Occupational employment, "&CHAR(13)&P213 -> Occupational employment, Electricity and gas
P213: =names!A9 -> Electricity and gas | Q213: =Q178 -> 1994 | R213: 1995 | S213: 1996 | T213: 1997 | U213: 1998 | V213: 1999 | W213: 2000 | X213: 2001 | Y213: 2002 | Z213: 2003 | AA213: 2004 | AB213: 2005 | AC213: 2006 | AD213: 2007 | AE213: 2008 | AF213: 2009 | AG213: 2010 | AH213: 2011 | AI213: 2012 | AJ213: 2013 | AK213: 2014 | AL213: 2015 | AM213: 2016 | AN213: 2017 | AO213: 2018 | AP213: 2019 | AQ213: 2020 | AR213: 2021 | AS213: 2022 | AT213: 2023 | AU213: 2024
P214: =P179 -> Managers, directors and senior officials | Q214: =(All!D177+All!D178)/1000 -> 0.763308 | R214: =(All!E177+All!E178)/1000 -> 0.72712 | S214: =(All!F177+All!F178)/1000 -> 0.726093 | T214: =(All!G177+All!G178)/1000 -> 0.649971 | U214: =(All!H177+All!H178)/1000 -> 0.603815 | V214: =(All!I177+All!I178)/1000 -> 0.659415 | W214: =(All!J177+All!J178)/1000 -> 0.555216 | X214: =(All!K177+All!K178)/1000 -> 0.530387 | Y214: =(All!L177+All!L178)/1000 -> 0.456207 | Z214: =(All!M177+All!M178)/1000 -> 0.533881 | AA214: =(All!N177+All!N178)/1000 -> 0.686566 | AB214: =(All!O177+All!O178)/1000 -> 0.652623 | AC214: =(All!P177+All!P178)/1000 -> 0.575079 | AD214: =(All!Q177+All!Q178)/1000 -> 0.645875 | AE214: =(All!R177+All!R178)/1000 -> 0.562516 | AF214: =(All!S177+All!S178)/1000 -> 0.700465 | AG214: =(All!T177+All!T178)/1000 -> 0.702365 | AH214: =(All!U177+All!U178)/1000 -> 0.663267 | AI214: =(All!V177+All!V178)/1000 -> 0.951496 | AJ214: =(All!W177+All!W178)/1000 -> 0.641073 | AK214: =(All!X177+All!X178)/1000 -> 0.657589 | AL214: =(All!Y177+All!Y178)/1000 -> 0.803073 | AM214: =(All!Z177+All!Z178)/1000 -> 0.609927 | AN214: =(All!AA177+All!AA178)/1000 -> 0.672061 | AO214: =(All!AB177+All!AB178)/1000 -> 0.689389 | AP214: =(All!AC177+All!AC178)/1000 -> 0.706516 | AQ214: =(All!AD177+All!AD178)/1000 -> 0.721275 | AR214: =(All!AE177+All!AE178)/1000 -> 0.735582 | AS214: =(All!AF177+All!AF178)/1000 -> 0.751091 | AT214: =(All!AG177+All!AG178)/1000 -> 0.762032 | AU214: =(All!AH177+All!AH178)/1000 -> 0.77399
P215: Professional occupations | Q215: =(All!D179+All!D180+All!D181+All!D182)/1000 -> 2.62253 | R215: =(All!E179+All!E180+All!E181+All!E182)/1000 -> 2.444581 | S215: =(All!F179+All!F180+All!F181+All!F182)/1000 -> 2.390785 | T215: =(All!G179+All!G180+All!G181+All!G182)/1000 -> 2.196264 | U215: =(All!H179+All!H180+All!H181+All!H182)/1000 -> 1.959404 | V215: =(All!I179+All!I180+All!I181+All!I182)/1000 -> 2.140477 | W215: =(All!J179+All!J180+All!J181+All!J182)/1000 -> 1.823282 | X215: =(All!K179+All!K180+All!K181+All!K182)/1000 -> 1.723479 | Y215: =(All!L179+All!L180+All!L181+All!L182)/1000 -> 1.387708 | Z215: =(All!M179+All!M180+All!M181+All!M182)/1000 -> 1.696081 | AA215: =(All!N179+All!N180+All!N181+All!N182)/1000 -> 2.014059 | AB215: =(All!O179+All!O180+All!O181+All!O182)/1000 -> 1.56575 | AC215: =(All!P179+All!P180+All!P181+All!P182)/1000 -> 1.768517 | AD215: =(All!Q179+All!Q180+All!Q181+All!Q182)/1000 -> 1.580655 | AE215: =(All!R179+All!R180+All!R181+All!R182)/1000 -> 1.554959 | AF215: =(All!S179+All!S180+All!S181+All!S182)/1000 -> 1.982625 | AG215: =(All!T179+All!T180+All!T181+All!T182)/1000 -> 1.709905 | AH215: =(All!U179+All!U180+All!U181+All!U182)/1000 -> 1.879982 | AI215: =(All!V179+All!V180+All!V181+All!V182)/1000 -> 2.422594 | AJ215: =(All!W179+All!W180+All!W181+All!W182)/1000 -> 1.637936 | AK215: =(All!X179+All!X180+All!X181+All!X182)/1000 -> 1.69598 | AL215: =(All!Y179+All!Y180+All!Y181+All!Y182)/1000 -> 1.913467 | AM215: =(All!Z179+All!Z180+All!Z181+All!Z182)/1000 -> 1.454059 | AN215: =(All!AA179+All!AA180+All!AA181+All!AA182)/1000 -> 1.582494 | AO215: =(All!AB179+All!AB180+All!AB181+All!AB182)/1000 -> 1.627152 | AP215: =(All!AC179+All!AC180+All!AC181+All!AC182)/1000 -> 1.669645 | AQ215: =(All!AD179+All!AD180+All!AD181+All!AD182)/1000 -> 1.70363 | AR215: =(All!AE179+All!AE180+All!AE181+All!AE182)/1000 -> 1.736253 | AS215: =(All!AF179+All!AF180+All!AF181+All!AF182)/1000 -> 1.772707 | AT215: =(All!AG179+All!AG180+All!AG181+All!AG182)/1000 -> 1.795213 | AU215: =(All!AH179+All!AH180+All!AH181+All!AH182)/1000 -> 1.821606
P216: Associate professional and technical | Q216: =(All!D183+All!D184+All!D185+All!D186+All!D187)/1000 -> 2.162533 | R216: =(All!E183+All!E184+All!E185+All!E186+All!E187)/1000 -> 2.104333 | S216: =(All!F183+All!F184+All!F185+All!F186+All!F187)/1000 -> 2.088184 | T216: =(All!G183+All!G184+All!G185+All!G186+All!G187)/1000 -> 1.832428 | U216: =(All!H183+All!H184+All!H185+All!H186+All!H187)/1000 -> 1.677036 | V216: =(All!I183+All!I184+All!I185+All!I186+All!I187)/1000 -> 1.837676 | W216: =(All!J183+All!J184+All!J185+All!J186+All!J187)/1000 -> 1.566986 | X216: =(All!K183+All!K184+All!K185+All!K186+All!K187)/1000 -> 1.520203 | Y216: =(All!L183+All!L184+All!L185+All!L186+All!L187)/1000 -> 1.307012 | Z216: =(All!M183+All!M184+All!M185+All!M186+All!M187)/1000 -> 1.467068 | AA216: =(All!N183+All!N184+All!N185+All!N186+All!N187)/1000 -> 1.630399 | AB216: =(All!O183+All!O184+All!O185+All!O186+All!O187)/1000 -> 1.437426 | AC216: =(All!P183+All!P184+All!P185+All!P186+All!P187)/1000 -> 1.470639 | AD216: =(All!Q183+All!Q184+All!Q185+All!Q186+All!Q187)/1000 -> 1.3796 | AE216: =(All!R183+All!R184+All!R185+All!R186+All!R187)/1000 -> 1.316135 | AF216: =(All!S183+All!S184+All!S185+All!S186+All!S187)/1000 -> 1.331118 | AG216: =(All!T183+All!T184+All!T185+All!T186+All!T187)/1000 -> 1.445745 | AH216: =(All!U183+All!U184+All!U185+All!U186+All!U187)/1000 -> 1.50137 | AI216: =(All!V183+All!V184+All!V185+All!V186+All!V187)/1000 -> 1.909164 | AJ216: =(All!W183+All!W184+All!W185+All!W186+All!W187)/1000 -> 1.281057 | AK216: =(All!X183+All!X184+All!X185+All!X186+All!X187)/1000 -> 1.397543 | AL216: =(All!Y183+All!Y184+All!Y185+All!Y186+All!Y187)/1000 -> 1.546657 | AM216: =(All!Z183+All!Z184+All!Z185+All!Z186+All!Z187)/1000 -> 1.161211 | AN216: =(All!AA183+All!AA184+All!AA185+All!AA186+All!AA187)/1000 -> 1.266728 | AO216: =(All!AB183+All!AB184+All!AB185+All!AB186+All!AB187)/1000 -> 1.292971 | AP216: =(All!AC183+All!AC184+All!AC185+All!AC186+All!AC187)/1000 -> 1.317214 | AQ216: =(All!AD183+All!AD184+All!AD185+All!AD186+All!AD187)/1000 -> 1.335874 | AR216: =(All!AE183+All!AE184+All!AE185+All!AE186+All!AE187)/1000 -> 1.353622 | AS216: =(All!AF183+All!AF184+All!AF185+All!AF186+All!AF187)/1000 -> 1.373604 | AT216: =(All!AG183+All!AG184+All!AG185+All!AG186+All!AG187)/1000 -> 1.385756 | AU216: =(All!AH183+All!AH184+All!AH185+All!AH186+All!AH187)/1000 -> 1.400453
P217: Administrative and secretarial | Q217: =(All!D188+All!D189)/1000 -> 2.401528 | R217: =(All!E188+All!E189)/1000 -> 2.210025 | S217: =(All!F188+All!F189)/1000 -> 2.050026 | T217: =(All!G188+All!G189)/1000 -> 1.862621 | U217: =(All!H188+All!H189)/1000 -> 1.521165 | V217: =(All!I188+All!I189)/1000 -> 1.571415 | W217: =(All!J188+All!J189)/1000 -> 1.430081 | X217: =(All!K188+All!K189)/1000 -> 1.829907 | Y217: =(All!L188+All!L189)/1000 -> 1.701224 | Z217: =(All!M188+All!M189)/1000 -> 1.329101 | AA217: =(All!N188+All!N189)/1000 -> 2.454223 | AB217: =(All!O188+All!O189)/1000 -> 2.151294 | AC217: =(All!P188+All!P189)/1000 -> 2.0364 | AD217: =(All!Q188+All!Q189)/1000 -> 1.586211 | AE217: =(All!R188+All!R189)/1000 -> 2.019484 | AF217: =(All!S188+All!S189)/1000 -> 1.729062 | AG217: =(All!T188+All!T189)/1000 -> 1.30898 | AH217: =(All!U188+All!U189)/1000 -> 1.104379 | AI217: =(All!V188+All!V189)/1000 -> 2.113208 | AJ217: =(All!W188+All!W189)/1000 -> 1.366439 | AK217: =(All!X188+All!X189)/1000 -> 1.800612 | AL217: =(All!Y188+All!Y189)/1000 -> 1.89967 | AM217: =(All!Z188+All!Z189)/1000 -> 1.356626 | AN217: =(All!AA188+All!AA189)/1000 -> 1.482177 | AO217: =(All!AB188+All!AB189)/1000 -> 1.458065 | AP217: =(All!AC188+All!AC189)/1000 -> 1.43104 | AQ217: =(All!AD188+All!AD189)/1000 -> 1.399167 | AR217: =(All!AE188+All!AE189)/1000 -> 1.366871 | AS217: =(All!AF188+All!AF189)/1000 -> 1.335859 | AT217: =(All!AG188+All!AG189)/1000 -> 1.313734 | AU217: =(All!AH188+All!AH189)/1000 -> 1.29417
P218: Skilled trades occupations | Q218: =(All!D190+All!D191+All!D192+All!D193)/1000 -> 3.365938 | R218: =(All!E190+All!E191+All!E192+All!E193)/1000 -> 3.162917 | S218: =(All!F190+All!F191+All!F192+All!F193)/1000 -> 3.151037 | T218: =(All!G190+All!G191+All!G192+All!G193)/1000 -> 2.631005 | U218: =(All!H190+All!H191+All!H192+All!H193)/1000 -> 2.537354 | V218: =(All!I190+All!I191+All!I192+All!I193)/1000 -> 2.715267 | W218: =(All!J190+All!J191+All!J192+All!J193)/1000 -> 2.154536 | X218: =(All!K190+All!K191+All!K192+All!K193)/1000 -> 1.930271 | Y218: =(All!L190+All!L191+All!L192+All!L193)/1000 -> 1.636097 | Z218: =(All!M190+All!M191+All!M192+All!M193)/1000 -> 2.047332 | AA218: =(All!N190+All!N191+All!N192+All!N193)/1000 -> 2.136428 | AB218: =(All!O190+All!O191+All!O192+All!O193)/1000 -> 1.504917 | AC218: =(All!P190+All!P191+All!P192+All!P193)/1000 -> 1.79694 | AD218: =(All!Q190+All!Q191+All!Q192+All!Q193)/1000 -> 1.343141 | AE218: =(All!R190+All!R191+All!R192+All!R193)/1000 -> 1.415064 | AF218: =(All!S190+All!S191+All!S192+All!S193)/1000 -> 1.622298 | AG218: =(All!T190+All!T191+All!T192+All!T193)/1000 -> 1.598417 | AH218: =(All!U190+All!U191+All!U192+All!U193)/1000 -> 1.846154 | AI218: =(All!V190+All!V191+All!V192+All!V193)/1000 -> 2.120113 | AJ218: =(All!W190+All!W191+All!W192+All!W193)/1000 -> 1.441652 | AK218: =(All!X190+All!X191+All!X192+All!X193)/1000 -> 1.438639 | AL218: =(All!Y190+All!Y191+All!Y192+All!Y193)/1000 -> 1.563273 | AM218: =(All!Z190+All!Z191+All!Z192+All!Z193)/1000 -> 1.189093 | AN218: =(All!AA190+All!AA191+All!AA192+All!AA193)/1000 -> 1.266487 | AO218: =(All!AB190+All!AB191+All!AB192+All!AB193)/1000 -> 1.265702 | AP218: =(All!AC190+All!AC191+All!AC192+All!AC193)/1000 -> 1.267051 | AQ218: =(All!AD190+All!AD191+All!AD192+All!AD193)/1000 -> 1.269262 | AR218: =(All!AE190+All!AE191+All!AE192+All!AE193)/1000 -> 1.272842 | AS218: =(All!AF190+All!AF191+All!AF192+All!AF193)/1000 -> 1.277171 | AT218: =(All!AG190+All!AG191+All!AG192+All!AG193)/1000 -> 1.262922 | AU218: =(All!AH190+All!AH191+All!AH192+All!AH193)/1000 -> 1.250658
P219: Caring, leisure and other service | Q219: =(All!D194+All!D195)/1000 -> 0.259085 | R219: =(All!E194+All!E195)/1000 -> 0.247223 | S219: =(All!F194+All!F195)/1000 -> 0.227974 | T219: =(All!G194+All!G195)/1000 -> 0.208201 | U219: =(All!H194+All!H195)/1000 -> 0.166779 | V219: =(All!I194+All!I195)/1000 -> 0.178507 | W219: =(All!J194+All!J195)/1000 -> 0.173579 | X219: =(All!K194+All!K195)/1000 -> 0.198475 | Y219: =(All!L194+All!L195)/1000 -> 0.159299 | Z219: =(All!M194+All!M195)/1000 -> 0.168583 | AA219: =(All!N194+All!N195)/1000 -> 0.221308 | AB219: =(All!O194+All!O195)/1000 -> 0.192451 | AC219: =(All!P194+All!P195)/1000 -> 0.192441 | AD219: =(All!Q194+All!Q195)/1000 -> 0.168416 | AE219: =(All!R194+All!R195)/1000 -> 0.190254 | AF219: =(All!S194+All!S195)/1000 -> 0.203363 | AG219: =(All!T194+All!T195)/1000 -> 0.182577 | AH219: =(All!U194+All!U195)/1000 -> 0.195684 | AI219: =(All!V194+All!V195)/1000 -> 0.24114 | AJ219: =(All!W194+All!W195)/1000 -> 0.164397 | AK219: =(All!X194+All!X195)/1000 -> 0.193387 | AL219: =(All!Y194+All!Y195)/1000 -> 0.207036 | AM219: =(All!Z194+All!Z195)/1000 -> 0.159599 | AN219: =(All!AA194+All!AA195)/1000 -> 0.183906 | AO219: =(All!AB194+All!AB195)/1000 -> 0.190815 | AP219: =(All!AC194+All!AC195)/1000 -> 0.196971 | AQ219: =(All!AD194+All!AD195)/1000 -> 0.202046 | AR219: =(All!AE194+All!AE195)/1000 -> 0.205809 | AS219: =(All!AF194+All!AF195)/1000 -> 0.209808 | AT219: =(All!AG194+All!AG195)/1000 -> 0.215602 | AU219: =(All!AH194+All!AH195)/1000 -> 0.222092
P220: Sales and customer service | Q220: =(All!D196+All!D197)/1000 -> 1.543334 | R220: =(All!E196+All!E197)/1000 -> 1.666169 | S220: =(All!F196+All!F197)/1000 -> 1.746124 | T220: =(All!G196+All!G197)/1000 -> 1.513138 | U220: =(All!H196+All!H197)/1000 -> 1.45157 | V220: =(All!I196+All!I197)/1000 -> 1.636338 | W220: =(All!J196+All!J197)/1000 -> 1.513839 | X220: =(All!K196+All!K197)/1000 -> 1.73324 | Y220: =(All!L196+All!L197)/1000 -> 1.625247 | Z220: =(All!M196+All!M197)/1000 -> 1.63365 | AA220: =(All!N196+All!N197)/1000 -> 2.149385 | AB220: =(All!O196+All!O197)/1000 -> 1.742956 | AC220: =(All!P196+All!P197)/1000 -> 2.006172 | AD220: =(All!Q196+All!Q197)/1000 -> 1.70995 | AE220: =(All!R196+All!R197)/1000 -> 1.904278 | AF220: =(All!S196+All!S197)/1000 -> 1.818047 | AG220: =(All!T196+All!T197)/1000 -> 1.600945 | AH220: =(All!U196+All!U197)/1000 -> 1.221404 | AI220: =(All!V196+All!V197)/1000 -> 2.293062 | AJ220: =(All!W196+All!W197)/1000 -> 1.420619 | AK220: =(All!X196+All!X197)/1000 -> 1.817312 | AL220: =(All!Y196+All!Y197)/1000 -> 2.125966 | AM220: =(All!Z196+All!Z197)/1000 -> 1.517919 | AN220: =(All!AA196+All!AA197)/1000 -> 1.693897 | AO220: =(All!AB196+All!AB197)/1000 -> 1.698466 | AP220: =(All!AC196+All!AC197)/1000 -> 1.701368 | AQ220: =(All!AD196+All!AD197)/1000 -> 1.703305 | AR220: =(All!AE196+All!AE197)/1000 -> 1.707577 | AS220: =(All!AF196+All!AF197)/1000 -> 1.713856 | AT220: =(All!AG196+All!AG197)/1000 -> 1.719257 | AU220: =(All!AH196+All!AH197)/1000 -> 1.72466
P221: Process, plant and machine operatives | Q221: =(All!D198+All!D199)/1000 -> 1.078503 | R221: =(All!E198+All!E199)/1000 -> 0.972748 | S221: =(All!F198+All!F199)/1000 -> 0.992913 | T221: =(All!G198+All!G199)/1000 -> 0.945466 | U221: =(All!H198+All!H199)/1000 -> 0.900639 | V221: =(All!I198+All!I199)/1000 -> 1.001173 | W221: =(All!J198+All!J199)/1000 -> 0.805506 | X221: =(All!K198+All!K199)/1000 -> 0.726022 | Y221: =(All!L198+All!L199)/1000 -> 0.627482 | Z221: =(All!M198+All!M199)/1000 -> 0.802825 | AA221: =(All!N198+All!N199)/1000 -> 0.832169 | AB221: =(All!O198+All!O199)/1000 -> 0.636788 | AC221: =(All!P198+All!P199)/1000 -> 0.464406 | AD221: =(All!Q198+All!Q199)/1000 -> 0.516534 | AE221: =(All!R198+All!R199)/1000 -> 0.661125 | AF221: =(All!S198+All!S199)/1000 -> 0.482755 | AG221: =(All!T198+All!T199)/1000 -> 0.435694 | AH221: =(All!U198+All!U199)/1000 -> 0.623328 | AI221: =(All!V198+All!V199)/1000 -> 0.94102 | AJ221: =(All!W198+All!W199)/1000 -> 0.637614 | AK221: =(All!X198+All!X199)/1000 -> 0.658127 | AL221: =(All!Y198+All!Y199)/1000 -> 0.744333 | AM221: =(All!Z198+All!Z199)/1000 -> 0.562119 | AN221: =(All!AA198+All!AA199)/1000 -> 0.603425 | AO221: =(All!AB198+All!AB199)/1000 -> 0.604404 | AP221: =(All!AC198+All!AC199)/1000 -> 0.602862 | AQ221: =(All!AD198+All!AD199)/1000 -> 0.600394 | AR221: =(All!AE198+All!AE199)/1000 -> 0.59867 | AS221: =(All!AF198+All!AF199)/1000 -> 0.598032 | AT221: =(All!AG198+All!AG199)/1000 -> 0.597953 | AU221: =(All!AH198+All!AH199)/1000 -> 0.598871
P222: Elementary occupations | Q222: =(All!D200+All!D201)/1000 -> 0.38324 | R222: =(All!E200+All!E201)/1000 -> 0.349883 | S222: =(All!F200+All!F201)/1000 -> 0.359863 | T222: =(All!G200+All!G201)/1000 -> 0.330907 | U222: =(All!H200+All!H201)/1000 -> 0.306237 | V222: =(All!I200+All!I201)/1000 -> 0.339734 | W222: =(All!J200+All!J201)/1000 -> 0.291975 | X222: =(All!K200+All!K201)/1000 -> 0.335016 | Y222: =(All!L200+All!L201)/1000 -> 0.270724 | Z222: =(All!M200+All!M201)/1000 -> 0.28248 | AA222: =(All!N200+All!N201)/1000 -> 0.349463 | AB222: =(All!O200+All!O201)/1000 -> 0.267793 | AC222: =(All!P200+All!P201)/1000 -> 0.303407 | AD222: =(All!Q200+All!Q201)/1000 -> 0.239618 | AE222: =(All!R200+All!R201)/1000 -> 0.227184 | AF222: =(All!S200+All!S201)/1000 -> 0.253267 | AG222: =(All!T200+All!T201)/1000 -> 0.284373 | AH222: =(All!U200+All!U201)/1000 -> 0.229433 | AI222: =(All!V200+All!V201)/1000 -> 0.277205 | AJ222: =(All!W200+All!W201)/1000 -> 0.171215 | AK222: =(All!X200+All!X201)/1000 -> 0.22281 | AL222: =(All!Y200+All!Y201)/1000 -> 0.228526 | AM222: =(All!Z200+All!Z201)/1000 -> 0.157449 | AN222: =(All!AA200+All!AA201)/1000 -> 0.174826 | AO222: =(All!AB200+All!AB201)/1000 -> 0.177035 | AP222: =(All!AC200+All!AC201)/1000 -> 0.178333 | AQ222: =(All!AD200+All!AD201)/1000 -> 0.179047 | AR222: =(All!AE200+All!AE201)/1000 -> 0.179773 | AS222: =(All!AF200+All!AF201)/1000 -> 0.180873 | AT222: =(All!AG200+All!AG201)/1000 -> 0.182531 | AU222: =(All!AH200+All!AH201)/1000 -> 0.184497
P247: ="Occupational employment, "&CHAR(13)&P248 -> Occupational employment, Water and sewerage
P248: =names!A10 -> Water and sewerage | Q248: =Q213 -> 1994 | R248: 1995 | S248: 1996 | T248: 1997 | U248: 1998 | V248: 1999 | W248: 2000 | X248: 2001 | Y248: 2002 | Z248: 2003 | AA248: 2004 | AB248: 2005 | AC248: 2006 | AD248: 2007 | AE248: 2008 | AF248: 2009 | AG248: 2010 | AH248: 2011 | AI248: 2012 | AJ248: 2013 | AK248: 2014 | AL248: 2015 | AM248: 2016 | AN248: 2017 | AO248: 2018 | AP248: 2019 | AQ248: 2020 | AR248: 2021 | AS248: 2022 | AT248: 2023 | AU248: 2024
P249: =P214 -> Managers, directors and senior officials | Q249: =(All!D205+All!D206)/1000 -> 0.942858 | R249: =(All!E205+All!E206)/1000 -> 0.980499 | S249: =(All!F205+All!F206)/1000 -> 0.938248 | T249: =(All!G205+All!G206)/1000 -> 0.950206 | U249: =(All!H205+All!H206)/1000 -> 1.162406 | V249: =(All!I205+All!I206)/1000 -> 1.084238 | W249: =(All!J205+All!J206)/1000 -> 1.036497 | X249: =(All!K205+All!K206)/1000 -> 1.002946 | Y249: =(All!L205+All!L206)/1000 -> 1.235494 | Z249: =(All!M205+All!M206)/1000 -> 0.831672 | AA249: =(All!N205+All!N206)/1000 -> 0.68614 | AB249: =(All!O205+All!O206)/1000 -> 0.977767 | AC249: =(All!P205+All!P206)/1000 -> 1.02144 | AD249: =(All!Q205+All!Q206)/1000 -> 0.959407 | AE249: =(All!R205+All!R206)/1000 -> 1.050496 | AF249: =(All!S205+All!S206)/1000 -> 0.920008 | AG249: =(All!T205+All!T206)/1000 -> 1.174418 | AH249: =(All!U205+All!U206)/1000 -> 1.440187 | AI249: =(All!V205+All!V206)/1000 -> 1.580623 | AJ249: =(All!W205+All!W206)/1000 -> 2.033202 | AK249: =(All!X205+All!X206)/1000 -> 2.089508 | AL249: =(All!Y205+All!Y206)/1000 -> 1.90175 | AM249: =(All!Z205+All!Z206)/1000 -> 1.995233 | AN249: =(All!AA205+All!AA206)/1000 -> 2.027083 | AO249: =(All!AB205+All!AB206)/1000 -> 2.062611 | AP249: =(All!AC205+All!AC206)/1000 -> 2.094952 | AQ249: =(All!AD205+All!AD206)/1000 -> 2.121507 | AR249: =(All!AE205+All!AE206)/1000 -> 2.146074 | AS249: =(All!AF205+All!AF206)/1000 -> 2.171148 | AT249: =(All!AG205+All!AG206)/1000 -> 2.207008 | AU249: =(All!AH205+All!AH206)/1000 -> 2.24427
P250: Professional occupations | Q250: =(All!D207+All!D208+All!D209+All!D210)/1000 -> 1.475242 | R250: =(All!E207+All!E208+All!E209+All!E210)/1000 -> 1.518442 | S250: =(All!F207+All!F208+All!F209+All!F210)/1000 -> 1.37483 | T250: =(All!G207+All!G208+All!G209+All!G210)/1000 -> 1.347635 | U250: =(All!H207+All!H208+All!H209+All!H210)/1000 -> 1.784651 | V250: =(All!I207+All!I208+All!I209+All!I210)/1000 -> 1.597486 | W250: =(All!J207+All!J208+All!J209+All!J210)/1000 -> 1.718368 | X250: =(All!K207+All!K208+All!K209+All!K210)/1000 -> 1.412725 | Y250: =(All!L207+All!L208+All!L209+All!L210)/1000 -> 1.651019 | Z250: =(All!M207+All!M208+All!M209+All!M210)/1000 -> 1.254463 | AA250: =(All!N207+All!N208+All!N209+All!N210)/1000 -> 0.882466 | AB250: =(All!O207+All!O208+All!O209+All!O210)/1000 -> 1.139662 | AC250: =(All!P207+All!P208+All!P209+All!P210)/1000 -> 1.07909 | AD250: =(All!Q207+All!Q208+All!Q209+All!Q210)/1000 -> 0.928524 | AE250: =(All!R207+All!R208+All!R209+All!R210)/1000 -> 1.24521 | AF250: =(All!S207+All!S208+All!S209+All!S210)/1000 -> 0.975001 | AG250: =(All!T207+All!T208+All!T209+All!T210)/1000 -> 1.072513 | AH250: =(All!U207+All!U208+All!U209+All!U210)/1000 -> 1.355063 | AI250: =(All!V207+All!V208+All!V209+All!V210)/1000 -> 1.118809 | AJ250: =(All!W207+All!W208+All!W209+All!W210)/1000 -> 1.557789 | AK250: =(All!X207+All!X208+All!X209+All!X210)/1000 -> 1.482646 | AL250: =(All!Y207+All!Y208+All!Y209+All!Y210)/1000 -> 1.366925 | AM250: =(All!Z207+All!Z208+All!Z209+All!Z210)/1000 -> 1.41052 | AN250: =(All!AA207+All!AA208+All!AA209+All!AA210)/1000 -> 1.415011 | AO250: =(All!AB207+All!AB208+All!AB209+All!AB210)/1000 -> 1.450248 | AP250: =(All!AC207+All!AC208+All!AC209+All!AC210)/1000 -> 1.480791 | AQ250: =(All!AD207+All!AD208+All!AD209+All!AD210)/1000 -> 1.504227 | AR250: =(All!AE207+All!AE208+All!AE209+All!AE210)/1000 -> 1.525113 | AS250: =(All!AF207+All!AF208+All!AF209+All!AF210)/1000 -> 1.547023 | AT250: =(All!AG207+All!AG208+All!AG209+All!AG210)/1000 -> 1.568444 | AU250: =(All!AH207+All!AH208+All!AH209+All!AH210)/1000 -> 1.59139
... 102 more rows

Sheet Figure 7.1
AT1: Share of all occupations, 1994-2024 | DA1: Data is written here by the initial setup process (module DataQ) and the appropriate occupation copied to BL116 when an occupation is selected
AT2: Replacement demand, 2014-2024 | AZ2: When an occupation is selected, data for that occupation is written here.
F3: Click on an occupation from the list and the charts will be customised for that occupation | AT3: Qualification shares, 2014 | BB3: Chart data | CJ3: Employment by broad ind sector for current occupation | DA3: Emp x qualification for occupation 1 for every industry
AT4: Employment by gender and status, 2014 | BB4: Shares of total employment for selected occupation for every sector | CJ4: (obviously not reproduced for every industry - that wouldn't make sense) | DA4: 2012 | DB4: =LEFT(names!$D$4,4) -> QCF8 | DC4: =LEFT(names!$D$5,4) -> QCF7 | DD4: =LEFT(names!$D$6,4) -> QCF6 | DE4: =LEFT(names!$D$7,4) -> QCF5 | DF4: =LEFT(names!$D$8,4) -> QCF4 | DG4: =LEFT(names!$D$9,4) -> QCF3 | DH4: =LEFT(names!$D$10,4) -> QCF2 | DI4: =LEFT(names!$D$11,4) -> QCF1 | DJ4: =LEFT(names!$D$12,7) -> No Qual
BB5: 1994 | BC5: 1995 | BD5: 1996 | BE5: 1997 | BF5: 1998 | BG5: 1999 | BH5: 2000 | BI5: 2001 | BJ5: 2002 | BK5: 2003 | BL5: 2004 | BM5: 2005 | BN5: 2006 | BO5: 2007 | BP5: 2008 | BQ5: 2009 | BR5: 2010 | BS5: 2011 | BT5: 2012 | BU5: 2013 | BV5: 2014 | BW5: 2015 | BX5: 2016 | BY5: 2017 | BZ5: 2018 | CA5: 2019 | CB5: 2020 | CC5: 2021 | CD5: 2022 | CE5: 2023 | CF5: 2024 | CJ5: Industries, 2012 | DA5: =names!$A$3 -> All industries | DB5: 1741.871672 | DC5: 14328.4077 | DD5: 46941.12407 | DE5: 10591.37698 | DF5: 14066.46926 | DG5: 32680.81391 | DH5: 28951.30044 | DI5: 17364.73052 | DJ5: 3406.30842
AZ6: =names!$A$3 -> All industries | BA6: Males | BB6: 53.51057031 | BC6: 54.22898132 | BD6: 54.34751051 | BE6: 55.77161494 | BF6: 57.68928276 | BG6: 60.8604479 | BH6: 60.66082075 | BI6: 62.34036062 | BJ6: 62.89787602 | BK6: 63.90906177 | BL6: 65.33675235 | BM6: 64.94219067 | BN6: 66.21139404 | BO6: 65.57246355 | BP6: 65.20367613 | BQ6: 63.47891846 | BR6: 66.8932827 | BS6: 67.24172166 | BT6: 67.98067596 | BU6: 68.70187765 | BV6: 69.43001417 | BW6: 70.12280541 | BX6: 70.77956276 | BY6: 71.45594282 | BZ6: 72.18553896 | CA6: 72.9620458 | CB6: 73.79947945 | CC6: 72.9620458 | CD6: 73.79947945 | CE6: 74.69932652 | CF6: 75.66883453 | CJ6: Primary sector & utilities | CK6: 2646.683 | DA6: =names!$A$4 -> Agriculture | DB6: 25.35226504 | DC6: 39.53531055 | DD6: 129.0307492 | DE6: 30.61070297 | DF6: 72.54172686 | DG6: 120.9056744 | DH6: 83.45037837 | DI6: 62.49737665 | DJ6: 12.27497449
BA7: Females | BB7: 46.48942969 | BC7: 45.77101868 | BD7: 45.65248949 | BE7: 44.22838506 | BF7: 42.31071724 | BG7: 39.1395521 | BH7: 39.33917925 | BI7: 37.65963938 | BJ7: 37.10212398 | BK7: 36.09093823 | BL7: 34.66324765 | BM7: 35.05780933 | BN7: 33.78860596 | BO7: 34.42753645 | BP7: 34.79632387 | BQ7: 36.52108154 | BR7: 33.1067173 | BS7: 32.75827834 | BT7: 32.01932404 | BU7: 31.29812235 | BV7: 30.56998583 | BW7: 29.87719459 | BX7: 29.22043724 | BY7: 28.54405718 | BZ7: 27.81446104 | CA7: 27.0379542 | CB7: 26.20052055 | CC7: 27.0379542 | CD7: 26.20052055 | CE7: 25.30067348 | CF7: 24.33116547 | CJ7: Manufacturing | CK7: 197969.419 | DA7: =names!$A$5 -> Mining and quarrying | DB7: 0 | DC7: 66.74884901 | DD7: 82.63044341 | DE7: 24.73600328 | DF7: 21.46920502 | DG7: 68.72731158 | DH7: 94.89989299 | DI7: 24.14132639 | DJ7: 4.564546915
AZ8: =names!$A$4 -> Agriculture | BA8: Males | BB8: 65.26596718 | BC8: 69.56406662 | BD8: 70.86608031 | BE8: 70.83327877 | BF8: 63.65899326 | BG8: 66.95142193 | BH8: 65.79477518 | BI8: 64.72849875 | BJ8: 70.2873198 | BK8: 70.78054555 | BL8: 73.17436979 | BM8: 66.91129011 | BN8: 72.39675222 | BO8: 73.16392687 | BP8: 68.15488649 | BQ8: 76.9438396 | BR8: 76.56664326 | BS8: 76.28390331 | BT8: 75.70896959 | BU8: 74.64672102 | BV8: 72.57040535 | BW8: 72.30349896 | BX8: 72.0501165 | BY8: 71.77809668 | BZ8: 71.53131157 | CA8: 71.33270109 | CB8: 71.09232877 | CC8: 71.33270109 | CD8: 71.09232877 | CE8: 70.83881785 | CF8: 70.57106084 | CJ8: Construction | CK8: 259459.625 | DA8: =names!$A$6 -> Food drink and tobacco | DB8: 0 | DC8: 151.3163638 | DD8: 759.9352252 | DE8: 170.5153395 | DF8: 206.2351745 | DG8: 348.1789152 | DH8: 404.8202332 | DI8: 170.4647897 | DJ8: 39.57813975
BA9: Females | BB9: 34.73403282 | BC9: 30.43593338 | BD9: 29.13391969 | BE9: 29.16672123 | BF9: 36.34100674 | BG9: 33.04857807 | BH9: 34.20522482 | BI9: 35.27150125 | BJ9: 29.7126802 | BK9: 29.21949748 | BL9: 26.82563021 | BM9: 33.08870989 | BN9: 27.60324778 | BO9: 26.83607313 | BP9: 31.84511351 | BQ9: 23.0561604 | BR9: 23.43331531 | BS9: 23.71605523 | BT9: 24.29103041 | BU9: 25.35327898 | BV9: 27.42959465 | BW9: 27.69650104 | BX9: 27.9498835 | BY9: 28.22190332 | BZ9: 28.46868843 | CA9: 28.66729891 | CB9: 28.90772391 | CC9: 28.66729891 | CD9: 28.90772391 | CE9: 29.16129039 | CF9: 29.42910609 | CJ9: Trade, accomod. &, transport | CK9: 19196.205 | DA9: =names!$A$7 -> Engineering | DB9: 77.47198242 | DC9: 571.7827568 | DD9: 1889.620393 | DE9: 356.8750624 | DF9: 962.5416244 | DG9: 1417.566554 | DH9: 1132.666162 | DI9: 528.0681864 | DJ9: 105.8120073
AZ10: =names!$A$5 -> Mining and quarrying | BA10: Males | BB10: 87.98533929 | BC10: 87.08475985 | BD10: 90.97668867 | BE10: 88.66443288 | BF10: 85.10194582 | BG10: 81.02215079 | BH10: 80.51993078 | BI10: 77.63627774 | BJ10: 78.18410526 | BK10: 80.06003784 | BL10: 76.69941159 | BM10: 78.32662198 | BN10: 82.09029849 | BO10: 81.35440923 | BP10: 86.0900847 | BQ10: 84.99128667 | BR10: 81.94483071 | BS10: 82.97547991 | BT10: 83.19051857 | BU10: 83.67761822 | BV10: 84.2673781 | BW10: 84.74827929 | BX10: 85.1732934 | BY10: 85.62839608 | BZ10: 86.09377429 | CA10: 86.606065 | CB10: 87.19183641 | CC10: 86.606065 | CD10: 87.19183641 | CE10: 87.84612081 | CF10: 88.58168493 | CJ10: Business & other services | CK10: 65584.071 | DA10: =names!$A$8 -> Rest of manufacturing | DB10: 187.3397342 | DC10: 1103.707987 | DD10: 4023.891916 | DE10: 771.844912 | DF10: 2009.823052 | DG10: 2826.119334 | DH10: 2484.358745 | DI10: 1449.39382 | DJ10: 318.2955747
BA11: Females | BB11: 12.01466071 | BC11: 12.91524015 | BD11: 9.023311326 | BE11: 11.33556712 | BF11: 14.89819566 | BG11: 18.97784921 | BH11: 19.48006922 | BI11: 22.36372226 | BJ11: 21.81589474 | BK11: 19.93996216 | BL11: 23.30058841 | BM11: 21.67337802 | BN11: 17.90989682 | BO11: 18.64559077 | BP11: 13.9099153 | BQ11: 15.00871333 | BR11: 18.05516929 | BS11: 17.02452009 | BT11: 16.80925611 | BU11: 16.32214594 | BV11: 15.7326219 | BW11: 15.25172071 | BX11: 14.82697596 | BY11: 14.37160392 | BZ11: 13.90622571 | CA11: 13.393935 | CB11: 12.8084962 | CC11: 13.393935 | CD11: 12.8084962 | CE11: 12.15458332 | CF11: 11.41943686 | CJ11: Non-market services | CK11: 23145.923 | DA11: =names!$A$9 -> Electricity and gas | DB11: 7.343983665 | DC11: 77.62729606 | DD11: 204.5395811 | DE11: 42.1573743 | DF11: 99.11670669 | DG11: 118.1923467 | DH11: 29.17865318 | DI11: 54.92413951 | DJ11: 3.921493926
AZ12: =names!$A$6 -> Food drink and tobacco | BA12: Males | BB12: 68.38061628 | BC12: 70.32962537 | BD12: 72.66312684 | BE12: 70.55302629 | BF12: 73.71937477 | BG12: 78.17135883 | BH12: 79.66922738 | BI12: 79.3370953 | BJ12: 76.75978815 | BK12: 81.1250953 | BL12: 74.90397039 | BM12: 74.75305861 | BN12: 75.36216946 | BO12: 82.09709092 | BP12: 78.08225183 | BQ12: 67.00648311 | BR12: 62.25943049 | BS12: 63.5929905 | BT12: 65.64845682 | BU12: 67.02737284 | BV12: 68.39583634 | BW12: 69.79017924 | BX12: 70.86192477 | BY12: 71.93764855 | BZ12: 73.10173474 | CA12: 74.34717252 | CB12: 75.68098045 | CC12: 74.34717252 | CD12: 75.68098045 | CE12: 77.13032921 | CF12: 78.71091154 | DA12: =names!$A$10 -> Water and sewerage | DB12: 12.73705368 | DC12: 149.9487035 | DD12: 412.3791861 | DE12: 12.39407198 | DF12: 107.3152109 | DG12: 0 | DH12: 153.3984553 | DI12: 145.8353524 | DJ12: 67.24315396
BA13: Females | BB13: 31.61938145 | BC13: 29.67037463 | BD13: 27.33687316 | BE13: 29.44697371 | BF13: 26.28062523 | BG13: 21.82864117 | BH13: 20.33077262 | BI13: 20.6629047 | BJ13: 23.24021185 | BK13: 18.87490731 | BL13: 25.09602961 | BM13: 25.24693782 | BN13: 24.63783054 | BO13: 17.90290908 | BP13: 21.91774817 | BQ13: 32.99351689 | BR13: 37.74056572 | BS13: 36.4070095 | BT13: 34.35154318 | BU13: 32.97262282 | BV13: 31.60416366 | BW13: 30.20982076 | BX13: 29.13807523 | BY13: 28.06235145 | BZ13: 26.89827038 | CA13: 25.65282748 | CB13: 24.31901955 | CC13: 25.65282748 | CD13: 24.31901955 | CE13: 22.86967079 | CF13: 21.28908846 | DA13: =names!$A$11 -> Construction | DB13: 27.62380149 | DC13: 857.001396 | DD13: 2457.737345 | DE13: 711.8898907 | DF13: 1672.749925 | DG13: 3227.198731 | DH13: 2501.719324 | DI13: 1329.180541 | DJ13: 377.2544683
G14: Charts all refer to the selected occupation - current selection is :- | AZ14: =names!$A$7 -> Engineering | BA14: Males | BB14: 69.28160415 | BC14: 71.01362456 | BD14: 71.37402618 | BE14: 72.83027158 | BF14: 71.12592125 | BG14: 68.85631066 | BH14: 69.19893958 | BI14: 70.31880554 | BJ14: 73.65166324 | BK14: 76.56450397 | BL14: 73.70198902 | BM14: 79.19330418 | BN14: 82.31444533 | BO14: 82.01576734 | BP14: 82.3981458 | BQ14: 73.87643705 | BR14: 77.65976889 | BS14: 77.77262385 | BT14: 78.06439015 | BU14: 78.35399493 | BV14: 78.81425218 | BW14: 79.2910988 | BX14: 79.77188819 | BY14: 80.37327613 | BZ14: 80.9687369 | CA14: 81.58291929 | CB14: 82.2043363 | CC14: 81.58291929 | CD14: 82.2043363 | CE14: 82.89642817 | CF14: 83.67197883 | CJ14: Employment change by broad industrial sector | DA14: =names!$A$12 -> Wholesale and retail trade | DB14: 42.04199884 | DC14: 1031.425564 | DD14: 6756.828882 | DE14: 1476.444424 | DF14: 2435.358884 | DG14: 7968.63975 | DH14: 7906.567495 | DI14: 6319.088572 | DJ14: 1152.135443
BA15: Females | BB15: 30.71839585 | BC15: 28.98637544 | BD15: 28.62597382 | BE15: 27.16971648 | BF15: 28.87407875 | BG15: 31.14368934 | BH15: 30.80106042 | BI15: 29.68119446 | BJ15: 26.34833676 | BK15: 23.43548108 | BL15: 26.29801098 | BM15: 20.80669582 | BN15: 17.68553972 | BO15: 17.98424807 | BP15: 17.6018542 | BQ15: 26.12356295 | BR15: 22.34023111 | BS15: 22.22737615 | BT15: 21.93560985 | BU15: 21.64597428 | BV15: 21.18574782 | BW15: 20.7089012 | BX15: 20.22811181 | BY15: 19.62672387 | BZ15: 19.0312631 | CA15: 18.41708071 | CB15: 17.7956637 | CC15: 18.41708071 | CD15: 17.7956637 | CE15: 17.10357183 | CF15: 16.32802117 | CJ15: Industries, 2012 - 2022 | DA15: =names!$A$13 -> Transport and storage | DB15: 32.82822158 | DC15: 366.8237001 | DD15: 1684.070193 | DE15: 221.9651883 | DF15: 408.411284 | DG15: 1327.116791 | DH15: 1620.539863 | DI15: 924.4654063 | DJ15: 258.2325309
B16: 54 Textiles, printing and other skilled trades | AZ16: =names!$A$8 -> Rest of manufacturing | BA16: Males | BB16: 67.16948351 | BC16: 67.83773133 | BD16: 68.85306559 | BE16: 69.82391308 | BF16: 70.41508588 | BG16: 73.69744738 | BH16: 74.83800867 | BI16: 76.16540229 | BJ16: 76.64938935 | BK16: 77.34484016 | BL16: 79.12076548 | BM16: 79.74211121 | BN16: 79.3284957 | BO16: 78.59573214 | BP16: 80.42733656 | BQ16: 80.17239314 | BR16: 80.10930227 | BS16: 80.734705 | BT16: 81.39632643 | BU16: 81.95984905 | BV16: 82.51682822 | BW16: 83.19235781 | BX16: 83.72519867 | BY16: 84.19657917 | BZ16: 84.74032965 | CA16: 85.32042577 | CB16: 85.89147952 | CC16: 85.32042577 | CD16: 85.89147952 | CE16: 86.52683373 | CF16: 87.23799663 | CJ16: =CJ11 -> Non-market services | CK16: -3.754973 | DA16: =names!$A$14 -> Accommodation and food | DB16: 2.421592991 | DC16: 300.7278506 | DD16: 1081.075232 | DE16: 95.58797969 | DF16: 250.4227774 | DG16: 743.0461569 | DH16: 1124.285034 | DI16: 661.903445 | DJ16: 62.47748865
BA17: Females | BB17: 32.83051649 | BC17: 32.16226867 | BD17: 31.14693393 | BE17: 30.17608692 | BF17: 29.58491412 | BG17: 26.30255262 | BH17: 25.16199133 | BI17: 23.83459771 | BJ17: 23.35061065 | BK17: 22.6551591 | BL17: 20.87923452 | BM17: 20.25788797 | BN17: 20.6715043 | BO17: 21.4042688 | BP17: 19.57266252 | BQ17: 19.82760686 | BR17: 19.89069891 | BS17: 19.26529375 | BT17: 18.60367357 | BU17: 18.04015095 | BV17: 17.48317178 | BW17: 16.80764219 | BX17: 16.27480133 | BY17: 15.80342083 | BZ17: 15.25967035 | CA17: 14.67957602 | CB17: 14.10852048 | CC17: 14.67957602 | CD17: 14.10852048 | CE17: 13.47316429 | CF17: 12.76199916 | CJ17: =CJ10 -> Business & other services | CK17: -20.135074 | DA17: =names!$A$15 -> Media | DB17: 13.08547378 | DC17: 92.99849049 | DD17: 394.5094826 | DE17: 37.86487293 | DF17: 63.00205509 | DG17: 226.8478222 | DH17: 198.5515185 | DI17: 118.8657388 | DJ17: 15.42723125
J18: All industries | AZ18: =names!$A$9 -> Electricity and gas | BA18: Males | BB18: 47.98186068 | BC18: 51.43196644 | BD18: 53.7230347 | BE18: 54.83142603 | BF18: 53.32775439 | BG18: 46.53474175 | BH18: 45.35062081 | BI18: 45.2838635 | BJ18: 46.03924992 | BK18: 40.18760724 | BL18: 37.7529589 | BM18: 46.87434727 | BN18: 45.65604521 | BO18: 53.34769054 | BP18: 58.18379716 | BQ18: 55.09622369 | BR18: 56.85410988 | BS18: 57.93863462 | BT18: 58.81932782 | BU18: 59.74810469 | BV18: 60.78761692 | BW18: 61.83454578 | BX18: 62.55907688 | BY18: 63.35757776 | BZ18: 64.24414768 | CA18: 65.20527802 | CB18: 66.28922986 | CC18: 65.20527802 | CD18: 66.28922986 | CE18: 67.58984121 | CF18: 69.17928349 | CJ18: =CJ9 -> Trade, accomod. &, transport | CK18: -2.06135 | DA18: =names!$A$16 -> Information technology | DB18: 44.58630783 | DC18: 843.3621495 | DD18: 3181.412921 | DE18: 437.7083751 | DF18: 806.7682141 | DG18: 1246.043501 | DH18: 1295.641822 | DI18: 642.7842546 | DJ18: 48.0600127
BA19: Females | BB19: 52.01813932 | BC19: 48.56803356 | BD19: 46.2769653 | BE19: 45.16857397 | BF19: 46.67207655 | BG19: 53.46525825 | BH19: 54.64956998 | BI19: 54.7161365 | BJ19: 53.96056671 | BK19: 59.81239276 | BL19: 62.2470411 | BM19: 53.12538147 | BN19: 54.34370147 | BO19: 46.65258104 | BP19: 41.81595434 | BQ19: 44.90377631 | BR19: 43.14589012 | BS19: 42.06136538 | BT19: 41.18087453 | BU19: 40.25210929 | BV19: 39.21215325 | BW19: 38.16545422 | BX19: 37.44092312 | BY19: 36.64270167 | BZ19: 35.75585232 | CA19: 34.79472198 | CB19: 33.71077014 | CC19: 34.79472198 | CD19: 33.71077014 | CE19: 32.41015879 | CF19: 30.82071651 | CJ19: =CJ8 -> Construction | CK19: -50.472131 | DA19: =names!$A$17 -> Finance and insurance | DB19: 143.2004886 | DC19: 1536.469319 | DD19: 4494.956351 | DE19: 798.8128899 | DF19: 610.0073277 | DG19: 2602.0053 | DH19: 2331.762578 | DI19: 1088.105054 | DJ19: 44.60789051
AZ20: =names!$A$10 -> Water and sewerage | BA20: Males | BB20: 57.60575564 | BC20: 57.35320149 | BD20: 60.16949088 | BE20: 64.13494587 | BF20: 59.83006176 | BG20: 65.77870278 | BH20: 64.50592175 | BI20: 59.97065004 | BJ20: 62.04188705 | BK20: 64.8301404 | BL20: 69.42461313 | BM20: 71.20371776 | BN20: 63.57425351 | BO20: 70.44835591 | BP20: 72.63410123 | BQ20: 63.76373546 | BR20: 64.96346406 | BS20: 64.01692419 | BT20: 63.65463713 | BU20: 64.18804671 | BV20: 64.69082053 | BW20: 65.14782206 | BX20: 64.92386662 | BY20: 64.52410105 | BZ20: 64.15751911 | CA20: 63.80902567 | CB20: 64.09392512 | CC20: 63.80902567 | CD20: 64.09392512 | CE20: 64.38557477 | CF20: 64.68421739 | CJ20: =CJ7 -> Manufacturing | CK20: -54.771227 | DA20: =names!$A$18 -> Real estate | DB20: 11.82943419 | DC20: 394.9204137 | DD20: 1228.51549 | DE20: 147.3810398 | DF20: 663.0017445 | DG20: 1166.382193 | DH20: 504.5860937 | DI20: 493.489189 | DJ20: 73.76491313
BA21: Females | BB21: 42.39424436 | BC21: 42.6468682 | BD21: 39.83050912 | BE21: 35.86505413 | BF21: 40.16993824 | BG21: 34.22129722 | BH21: 35.49407825 | BI21: 40.02934996 | BJ21: 37.95811295 | BK21: 35.1698596 | BL21: 30.57538687 | BM21: 28.79628224 | BN21: 36.42574649 | BO21: 29.55164409 | BP21: 27.36589877 | BQ21: 36.23626454 | BR21: 35.03653594 | BS21: 35.98314903 | BT21: 36.34536287 | BU21: 35.81195329 | BV21: 35.30917947 | BW21: 34.85217794 | BX21: 35.07613338 | BY21: 35.47589895 | BZ21: 35.84248089 | CA21: 36.19090403 | CB21: 35.90607488 | CC21: 36.19090403 | CD21: 35.90607488 | CE21: 35.6144972 | CF21: 35.31592827 | CJ21: =CJ6 -> Primary sector & utilities | CK21: -0.582124 | DA21: =names!$A$19 -> Professional services | DB21: 574.3169227 | DC21: 2184.579639 | DD21: 6860.066287 | DE21: 424.559361 | DF21: 1319.455083 | DG21: 2459.109603 | DH21: 2185.75569 | DI21: 958.3593668 | DJ21: 178.5838256
AZ22: =names!$A$11 -> Construction | BA22: Males | BB22: 93.04665698 | BC22: 93.31863653 | BD22: 92.96859637 | BE22: 93.78718197 | BF22: 93.07349521 | BG22: 92.63921776 | BH22: 92.30311362 | BI22: 92.35663691 | BJ22: 90.49085847 | BK22: 91.06180325 | BL22: 91.7800779 | BM22: 89.90638445 | BN22: 90.32993559 | BO22: 92.22537128 | BP22: 92.22831038 | BQ22: 88.88026692 | BR22: 93.07600486 | BS22: 92.66523246 | BT22: 92.42570031 | BU22: 92.07711624 | BV22: 91.80774751 | BW22: 91.56183513 | BX22: 91.33000173 | BY22: 91.03504826 | BZ22: 90.72280873 | CA22: 90.42772247 | CB22: 90.13255249 | CC22: 90.42772247 | CD22: 90.13255249 | CE22: 89.82813681 | CF22: 89.51403411 | DA22: =names!$A$20 -> Support services | DB22: 31.47866688 | DC22: 721.7957576 | DD22: 2301.243823 | DE22: 237.3626708 | DF22: 845.031089 | DG22: 1932.578264 | DH22: 1509.432282 | DI22: 1099.940908 | DJ22: 303.709136
BA23: Females | BB23: 6.953335881 | BC23: 6.681363469 | BD23: 7.031403629 | BE23: 6.212818026 | BF23: 6.926504793 | BG23: 7.360790491 | BH23: 7.696886385 | BI23: 7.643363093 | BJ23: 9.509141528 | BK23: 8.938196753 | BL23: 8.219922104 | BM23: 10.09361555 | BN23: 9.670064414 | BO23: 7.774634286 | BP23: 7.771695068 | BQ23: 11.11973308 | BR23: 6.92400067 | BS23: 7.33476754 | BT23: 7.574293913 | BU23: 7.922883762 | BV23: 8.192252488 | BW23: 8.438164866 | BX23: 8.669998267 | BY23: 8.964951744 | BZ23: 9.277191275 | CA23: 9.572277532 | CB23: 9.867447513 | CC23: 9.572277532 | CD23: 9.867447513 | CE23: 10.17186319 | CF23: 10.48596589 | DA23: =names!$A$21 -> Public admin. and defence | DB23: 93.93663681 | DC23: 1414.694175 | DD23: 2327.663324 | DE23: 875.6793806 | DF23: 509.7335305 | DG23: 1328.139622 | DH23: 1055.617545 | DI23: 439.5314868 | DJ23: 85.72922007
AZ24: =names!$A$12 -> Wholesale and retail trade | BA24: Males | BB24: 53.61028944 | BC24: 55.40695398 | BD24: 55.52899456 | BE24: 56.67389858 | BF24: 55.80485891 | BG24: 59.19094916 | BH24: 61.28737354 | BI24: 60.94381342 | BJ24: 62.13365709 | BK24: 65.92301637 | BL24: 60.06191234 | BM24: 61.20539457 | BN24: 61.32371635 | BO24: 60.16277001 | BP24: 56.69118338 | BQ24: 57.97368341 | BR24: 56.78329834 | BS24: 57.34420934 | BT24: 58.13442422 | BU24: 58.90255798 | BV24: 59.77394271 | BW24: 60.70522018 | BX24: 61.69569765 | BY24: 62.71367126 | BZ24: 63.82031023 | CA24: 65.00510379 | CB24: 66.31972517 | CC24: 65.00510379 | CD24: 66.31972517 | CE24: 67.77159619 | CF24: 69.38339444 | DA24: =names!$A$22 -> Education | DB24: 72.10511238 | DC24: 298.7579397 | DD24: 766.3266708 | DE24: 465.1251083 | DF24: 268.6769256 | DG24: 767.2450685 | DH24: 441.0507236 | DI24: 272.5813417 | DJ24: 39.38257268
BA25: Females | BB25: 46.3897097 | BC25: 44.59304602 | BD25: 44.47100544 | BE25: 43.32610049 | BF25: 44.19514109 | BG25: 40.80905084 | BH25: 38.71262646 | BI25: 39.05618658 | BJ25: 37.86634383 | BK25: 34.07698363 | BL25: 39.93808766 | BM25: 38.79460444 | BN25: 38.67628365 | BO25: 39.83723095 | BP25: 43.30881759 | BQ25: 42.02631659 | BR25: 43.2167028 | BS25: 42.65579066 | BT25: 41.86557578 | BU25: 41.09744076 | BV25: 40.22605729 | BW25: 39.29477982 | BX25: 38.30430095 | BY25: 37.28632874 | BZ25: 36.17968977 | CA25: 34.99489621 | CB25: 33.68027483 | CC25: 34.99489621 | CD25: 33.68027483 | CE25: 32.22840381 | CF25: 30.61660556 | CJ25: =TableQ!A3 -> QCF group | CK25: Base year level | DA25: =names!$A$23 -> Health and social work | DB25: 271.0863087 | DC25: 1730.790783 | DD25: 4419.654897 | DE25: 2986.674516 | DF25: 452.3560596 | DG25: 1778.067051 | DH25: 1116.088346 | DI25: 242.3146682 | DJ25: 137.5748622
AZ26: =names!$A$13 -> Transport and storage | BA26: Males | BB26: 78.86223116 | BC26: 79.55200359 | BD26: 77.51322587 | BE26: 79.69883544 | BF26: 76.78006691 | BG26: 69.66999668 | BH26: 68.6166448 | BI26: 72.37035662 | BJ26: 75.02608782 | BK26: 71.16507951 | BL26: 75.31966339 | BM26: 79.4788951 | BN26: 84.62422933 | BO26: 82.39467581 | BP26: 83.4294002 | BQ26: 81.20439653 | BR26: 83.80517661 | BS26: 83.81651221 | BT26: 83.88274568 | BU26: 83.89136274 | BV26: 84.04977235 | BW26: 84.17780892 | BX26: 84.29893704 | BY26: 84.41716448 | BZ26: 84.5849526 | CA26: 84.74026909 | CB26: 84.91161207 | CC26: 84.74026909 | CD26: 84.91161207 | CE26: 85.09185276 | CF26: 85.2817027 | CK26: 2012 | DA26: =names!$A$24 -> Arts and entertainment | DB26: 20.25536035 | DC26: 180.1200541 | DD26: 820.6768759 | DE26: 77.59028201 | DF26: 119.9599455 | DG26: 518.7614964 | DH26: 384.8026652 | DI26: 177.1286986 | DJ26: 62.4398887
BA27: Females | BB27: 21.13776884 | BC27: 20.44799641 | BD27: 22.48677413 | BE27: 20.30116456 | BF27: 23.21993309 | BG27: 30.32998841 | BH27: 31.38334018 | BI27: 27.62962855 | BJ27: 24.97391218 | BK27: 28.83492049 | BL27: 24.68033661 | BM27: 20.5211049 | BN27: 15.37577067 | BO27: 17.60532419 | BP27: 16.5705998 | BQ27: 18.79561691 | BR27: 16.19482339 | BS27: 16.18348779 | BT27: 16.11725432 | BU27: 16.10863726 | BV27: 15.95022765 | BW27: 15.82220575 | BX27: 15.70106296 | BY27: 15.58282025 | BZ27: 15.4150474 | CA27: 15.25973091 | CB27: 15.08837153 | CC27: 15.25973091 | CD27: 15.08837153 | CE27: 14.9081136 | CF27: 14.71824549 | CJ27: =TableQ!A5 -> QCF 7-8 | CK27: 1878259.585 | DA27: =names!$A$25 -> Other services | DB27: 50.83032552 | DC27: 213.2732021 | DD27: 664.3588059 | DE27: 187.5975375 | DF27: 162.4917191 | DG27: 489.9424275 | DH27: 392.1269439 | DI27: 161.6668544 | DJ27: 15.23904524
AZ28: =names!$A$14 -> Accommodation and food | BA28: Males | BB28: 50.87074215 | BC28: 50.33479214 | BD28: 49.16493982 | BE28: 51.34969904 | BF28: 56.17639973 | BG28: 60.77751958 | BH28: 58.08790891 | BI28: 62.25974014 | BJ28: 63.43917156 | BK28: 60.51120568 | BL28: 67.41254178 | BM28: 66.54397656 | BN28: 66.65348336 | BO28: 66.14508442 | BP28: 67.55818894 | BQ28: 65.30087208 | BR28: 72.50638265 | BS28: 72.76943019 | BT28: 73.21671981 | BU28: 73.79157676 | BV28: 74.37907382 | BW28: 74.92500005 | BX28: 75.49271086 | BY28: 76.12655447 | BZ28: 76.79671091 | CA28: 77.51561585 | CB28: 78.3056966 | CC28: 77.51561585 | CD28: 78.3056966 | CE28: 79.14505348 | CF28: 80.03844479 | CJ28: =TableQ!A6 -> QCF 4-6 | CK28: 7417568.277
BA29: Females | BB29: 49.12925738 | BC29: 49.66520786 | BD29: 50.83506018 | BE29: 48.65030096 | BF29: 43.82360027 | BG29: 39.22248042 | BH29: 41.91209109 | BI29: 37.74025986 | BJ29: 36.56082844 | BK29: 39.48879432 | BL29: 32.58745822 | BM29: 33.45602344 | BN29: 33.34651664 | BO29: 33.85491558 | BP29: 32.44181106 | BQ29: 34.6991275 | BR29: 27.49361735 | BS29: 27.23056981 | BT29: 26.78327982 | BU29: 26.20842324 | BV29: 25.62092657 | BW29: 25.07499995 | BX29: 24.50728914 | BY29: 23.87344512 | BZ29: 23.20328909 | CA29: 22.48438415 | CB29: 21.6943034 | CC29: 22.48438415 | CD29: 21.6943034 | CE29: 20.85494652 | CF29: 19.96155521 | CJ29: =TableQ!A7 -> QCF 3 | CK29: 5973784.73
AZ30: =names!$A$15 -> Media | BA30: Males | BB30: 48.81441707 | BC30: 51.73831529 | BD30: 49.13242807 | BE30: 51.79262731 | BF30: 55.26712209 | BG30: 66.22384922 | BH30: 64.31292612 | BI30: 64.21636685 | BJ30: 72.49129444 | BK30: 73.69659342 | BL30: 74.03471859 | BM30: 72.47882605 | BN30: 75.67532413 | BO30: 76.89629254 | BP30: 71.65799569 | BQ30: 66.24813654 | BR30: 76.42562412 | BS30: 76.88926477 | BT30: 77.63493538 | BU30: 78.11106617 | BV30: 78.27094878 | BW30: 78.31744783 | BX30: 78.47796444 | BY30: 78.87908712 | BZ30: 79.39335955 | CA30: 80.20303153 | CB30: 80.96278091 | CC30: 80.20303153 | CD30: 80.96278091 | CE30: 81.73487258 | CF30: 82.51960974 | CJ30: =TableQ!A8 -> QCF 2 | CK30: 6685148.396
BA31: Females | BB31: 51.18558293 | BC31: 48.26168471 | BD31: 50.86757593 | BE31: 48.20736861 | BF31: 44.73287791 | BG31: 33.77615078 | BH31: 35.68707388 | BI31: 35.78363315 | BJ31: 27.50870556 | BK31: 26.3034109 | BL31: 25.96528141 | BM31: 27.52117395 | BN31: 24.32467587 | BO31: 23.10371345 | BP31: 28.34200431 | BQ31: 33.75186346 | BR31: 23.57438368 | BS31: 23.11073523 | BT31: 22.36507304 | BU31: 21.88893383 | BV31: 21.72905122 | BW31: 21.6825617 | BX31: 21.52204526 | BY31: 21.12091288 | BZ31: 20.60664045 | CA31: 19.79696847 | CB31: 19.03721909 | CC31: 19.79696847 | CD31: 19.03721909 | CE31: 18.26512742 | CF31: 17.48039026 | CJ31: =TableQ!A9 -> QCF 1 | CK31: 5357778.981
AZ32: =names!$A$16 -> Information technology | BA32: Males | BB32: 63.2731232 | BC32: 64.59321512 | BD32: 67.19426985 | BE32: 71.11506658 | BF32: 64.28311211 | BG32: 60.17648479 | BH32: 60.74377051 | BI32: 55.40716416 | BJ32: 58.85920845 | BK32: 67.74733817 | BL32: 68.80271533 | BM32: 68.3994392 | BN32: 73.06532146 | BO32: 72.64799511 | BP32: 72.3303848 | BQ32: 72.36542975 | BR32: 72.70519091 | BS32: 72.95031357 | BT32: 73.2042598 | BU32: 73.50380176 | BV32: 73.56825828 | BW32: 73.82227119 | BX32: 74.02093135 | BY32: 74.13433017 | BZ32: 74.1748048 | CA32: 74.3210557 | CB32: 74.7148261 | CC32: 74.3210557 | CD32: 74.7148261 | CE32: 75.13182999 | CF32: 75.57418615 | CJ32: =TableQ!A10 -> No Qual | CK32: 3124402.429
BA33: Females | BB33: 36.72681257 | BC33: 35.40678488 | BD33: 32.80566836 | BE33: 28.8848772 | BF33: 35.71683938 | BG33: 39.82351521 | BH33: 39.25622949 | BI33: 44.59283584 | BJ33: 41.14082671 | BK33: 32.25266183 | BL33: 31.19728467 | BM33: 31.6005608 | BN33: 26.93467854 | BO33: 27.35200489 | BP33: 27.66965993 | BQ33: 27.63457025 | BR33: 27.29480909 | BS33: 27.04968643 | BT33: 26.7957402 | BU33: 26.49614694 | BV33: 26.43174172 | BW33: 26.17772881 | BX33: 25.97906865 | BY33: 25.86566983 | BZ33: 25.82525548 | CA33: 25.6789443 | CB33: 25.28510991 | CC33: 25.6789443 | CD33: 25.28510991 | CE33: 24.86803824 | CF33: 24.4256102 | DA33: Emp x qualification for occupation 2 for every industry
AZ34: =names!$A$17 -> Finance and insurance | BA34: Males | BB34: 53.17539236 | BC34: 50.8415758 | BD34: 51.6331695 | BE34: 53.03396138 | BF34: 52.17834988 | BG34: 48.24905877 | BH34: 49.33283647 | BI34: 52.71127183 | BJ34: 50.92053559 | BK34: 49.32544393 | BL34: 50.96054033 | BM34: 51.17011983 | BN34: 48.42589617 | BO34: 47.03886613 | BP34: 47.8282107 | BQ34: 45.38628404 | BR34: 53.54532658 | BS34: 52.98711218 | BT34: 52.42997012 | BU34: 51.87757097 | BV34: 51.30220698 | BW34: 50.79435633 | BX34: 50.27989777 | BY34: 49.90431255 | BZ34: 49.6728888 | CA34: 49.78970645 | CB34: 50.14416641 | CC34: 49.78970645 | CD34: 50.14416641 | CE34: 50.53041238 | CF34: 50.95292064 | DA34: 2012 | DB34: =DB4 -> QCF8 | DC34: =DC4 -> QCF7 | DD34: QCF6 | DE34: QCF5 | DF34: QCF4 | DG34: QCF3 | DH34: QCF2 | DI34: QCF1 | DJ34: No Qual
BA35: Females | BB35: 46.82460764 | BC35: 49.1584242 | BD35: 48.3668305 | BE35: 46.96608461 | BF35: 47.82160567 | BG35: 51.75094123 | BH35: 50.66716353 | BI35: 47.28872817 | BJ35: 49.07946441 | BK35: 50.67455607 | BL35: 49.03945967 | BM35: 48.82991889 | BN35: 51.57406231 | BO35: 52.96113387 | BP35: 52.1717893 | BQ35: 54.61371596 | BR35: 46.45467342 | BS35: 47.01288782 | BT35: 47.57002988 | BU35: 48.12238431 | BV35: 48.69783903 | BW35: 49.20564367 | BX35: 49.72010223 | BY35: 50.09568745 | BZ35: 50.32716391 | CA35: 50.21029355 | CB35: 49.85589067 | CC35: 50.21029355 | CD35: 49.85589067 | CE35: 49.46970691 | CF35: 49.04726669 | DA35: =names!$A$3 -> All industries | DB35: 747.7461686 | DC35: 6394.053899 | DD35: 20174.65878 | DE35: 6825.39335 | DF35: 7134.020362 | DG35: 20737.93826 | DH35: 23271.29008 | DI35: 14939.71766 | DJ35: 4817.769515
AZ36: =names!$A$18 -> Real estate | BA36: Males | BB36: 46.74130884 | BC36: 46.12077867 | BD36: 48.6593046 | BE36: 50.57530873 | BF36: 46.59855389 | BG36: 46.3031667 | BH36: 46.48489978 | BI36: 46.07168079 | BJ36: 46.79918554 | BK36: 48.34110541 | BL36: 48.28728407 | BM36: 48.24175092 | BN36: 47.61764037 | BO36: 51.1353156 | BP36: 45.47601532 | BQ36: 41.40029141 | BR36: 47.44454934 | BS36: 47.07971909 | BT36: 47.28204501 | BU36: 47.1472999 | BV36: 46.89917634 | BW36: 46.77161216 | BX36: 46.32056778 | BY36: 46.04710843 | BZ36: 45.77443724 | CA36: 45.45738409 | CB36: 45.40977295 | CC36: 45.45738409 | CD36: 45.40977295 | CE36: 45.36176856 | CF36: 45.31336602 | DA36: =names!$A$4 -> Agriculture | DB36: 6.955031437 | DC36: 127.3731653 | DD36: 286.1066984 | DE36: 155.2715158 | DF36: 206.495391 | DG36: 568.238887 | DH36: 533.9605883 | DI36: 289.5640757 | DJ36: 162.3411404
BA37: Females | BB37: 53.25869116 | BC37: 53.8791943 | BD37: 51.3406954 | BE37: 49.42469127 | BF37: 53.40144611 | BG37: 53.6968333 | BH37: 53.51510022 | BI37: 53.92831921 | BJ37: 53.20081446 | BK37: 51.65889459 | BL37: 51.71271593 | BM37: 51.75824908 | BN37: 52.38235963 | BO37: 48.86470937 | BP37: 54.52400844 | BQ37: 58.59970859 | BR37: 52.55545066 | BS37: 52.92028091 | BT37: 52.71795499 | BU37: 52.8527001 | BV37: 53.10082366 | BW37: 53.22838784 | BX37: 53.67943222 | BY37: 53.95291525 | BZ37: 54.22556276 | CA37: 54.54261591 | CB37: 54.59020339 | CC37: 54.54261591 | CD37: 54.59020339 | CE37: 54.63818392 | CF37: 54.68656241 | DA37: =names!$A$5 -> Mining and quarrying | DB37: 0 | DC37: 3.568897614 | DD37: 0.7186063557 | DE37: 0.9169659863 | DF37: 1.651209196 | DG37: 10.33846439 | DH37: 2.574799109 | DI37: 1.590999033 | DJ37: 7.363188444
AZ38: =names!$A$19 -> Professional services | BA38: Males | BB38: 63.49070503 | BC38: 63.02595926 | BD38: 64.75518095 | BE38: 66.03230087 | BF38: 67.01967132 | BG38: 64.27401032 | BH38: 64.3340726 | BI38: 65.9838352 | BJ38: 69.59504294 | BK38: 71.58880275 | BL38: 73.37791554 | BM38: 70.29325459 | BN38: 72.52005638 | BO38: 62.3802112 | BP38: 67.04438056 | BQ38: 63.54871561 | BR38: 67.6009296 | BS38: 68.39490765 | BT38: 69.24886171 | BU38: 70.04325913 | BV38: 70.81230504 | BW38: 71.63828385 | BX38: 72.21325155 | BY38: 72.7551154 | BZ38: 73.27210504 | CA38: 73.88030869 | CB38: 74.44890489 | CC38: 73.88030869 | CD38: 74.44890489 | CE38: 75.0289172 | CF38: 75.62069292 | DA38: =names!$A$6 -> Food drink and tobacco | DB38: 0 | DC38: 26.46699232 | DD38: 196.457582 | DE38: 66.60427168 | DF38: 37.85600883 | DG38: 67.23019818 | DH38: 158.8722708 | DI38: 36.14158215 | DJ38: 33.67975039
BA39: Females | BB39: 36.50927572 | BC39: 36.97404074 | BD39: 35.24481905 | BE39: 33.96769913 | BF39: 32.98032868 | BG39: 35.72598968 | BH39: 35.6659274 | BI39: 34.01614768 | BJ39: 30.40495706 | BK39: 28.41119725 | BL39: 26.62209646 | BM39: 29.70674541 | BN39: 27.47994362 | BO39: 37.6197888 | BP39: 32.95561944 | BQ39: 36.45128439 | BR39: 32.3990704 | BS39: 31.60509235 | BT39: 30.75113829 | BU39: 29.95674087 | BV39: 29.18769496 | BW39: 28.36172726 | BX39: 27.78674845 | BY39: 27.24489579 | BZ39: 26.72790617 | CA39: 26.11969131 | CB39: 25.55109511 | CC39: 26.11969131 | CD39: 25.55109511 | CE39: 24.9710828 | CF39: 24.37930708 | DA39: =names!$A$7 -> Engineering | DB39: 1.350893692 | DC39: 43.97533352 | DD39: 65.15849808 | DE39: 39.78186824 | DF39: 80.08230925 | DG39: 148.3872009 | DH39: 92.24654331 | DI39: 87.23167205 | DJ39: 19.72814962
AZ40: =names!$A$20 -> Support services | BA40: Males | BB40: 56.58941421 | BC40: 56.76696725 | BD40: 54.81349739 | BE40: 56.13598541 | BF40: 58.41431714 | BG40: 58.94677712 | BH40: 60.72911439 | BI40: 60.93339759 | BJ40: 57.99441972 | BK40: 67.06273645 | BL40: 73.38453881 | BM40: 61.43089798 | BN40: 72.28447881 | BO40: 69.87861692 | BP40: 58.18749177 | BQ40: 66.14680295 | BR40: 61.67487851 | BS40: 61.60419621 | BT40: 61.68952041 | BU40: 61.83572003 | BV40: 61.97299378 | BW40: 62.10580221 | BX40: 62.35237647 | BY40: 62.57591367 | BZ40: 62.80471039 | CA40: 63.10441499 | CB40: 63.40728665 | CC40: 63.10441499 | CD40: 63.40728665 | CE40: 63.72356555 | CF40: 64.0541621 | DA40: =names!$A$8 -> Rest of manufacturing | DB40: 35.85849814 | DC40: 101.3522065 | DD40: 532.6069809 | DE40: 160.6072547 | DF40: 236.4959113 | DG40: 521.2836334 | DH40: 120.1744005 | DI40: 211.9590873 | DJ40: 83.49264743
BA41: Females | BB41: 43.41058579 | BC41: 43.23303275 | BD41: 45.18650261 | BE41: 43.86401459 | BF41: 41.58568286 | BG41: 41.05322288 | BH41: 39.27088561 | BI41: 39.06660241 | BJ41: 42.00558028 | BK41: 32.93725959 | BL41: 26.61545786 | BM41: 38.56909677 | BN41: 27.71552119 | BO41: 30.12138765 | BP41: 41.81250823 | BQ41: 33.85319705 | BR41: 38.32512149 | BS41: 38.39580379 | BT41: 38.31048479 | BU41: 38.16427997 | BV41: 38.02700622 | BW41: 37.89419779 | BX41: 37.64762911 | BY41: 37.42408633 | BZ41: 37.19528961 | CA41: 36.89559097 | CB41: 36.59271335 | CC41: 36.89559097 | CD41: 36.59271335 | CE41: 36.27642822 | CF41: 35.94582516 | DA41: =names!$A$9 -> Electricity and gas | DB41: 0.5253850934 | DC41: 15.95459591 | DD41: 14.16764723 | DE41: 6.050079289 | DF41: 35.99714105 | DG41: 12.73451397 | DH41: 18.85799203 | DI41: 61.47145447 | DJ41: 0.3123589852
AZ42: =names!$A$21 -> Public admin. and defence | BA42: Males | BB42: 39.57938456 | BC42: 40.29815366 | BD42: 39.62239505 | BE42: 41.35498127 | BF42: 40.54070221 | BG42: 40.47093079 | BH42: 41.94799881 | BI42: 43.29286448 | BJ42: 41.45075754 | BK42: 29.02148579 | BL42: 28.3346972 | BM42: 51.47596337 | BN42: 49.30117294 | BO42: 41.53888411 | BP42: 57.88691972 | BQ42: 52.83400789 | BR42: 46.9829187 | BS42: 47.40582664 | BT42: 47.86112129 | BU42: 48.20497625 | BV42: 48.57372225 | BW42: 48.96322583 | BX42: 49.33830809 | BY42: 49.6713831 | BZ42: 50.02491534 | CA42: 50.37030792 | CB42: 50.68829804 | CC42: 50.37030792 | CD42: 50.68829804 | CE42: 51.01949901 | CF42: 51.36475157 | DA42: =names!$A$10 -> Water and sewerage | DB42: 68.734139 | DC42: 192.9933838 | DD42: 42.09163801 | DE42: 52.73465015 | DF42: 8.616793402 | DG42: 140.4695833 | DH42: 210.4596057 | DI42: 39.83747883 | DJ42: 84.56177709
BA43: Females | BB43: 60.42061544 | BC43: 59.70183213 | BD43: 60.37760495 | BE43: 58.64501873 | BF43: 59.45929779 | BG43: 59.52906921 | BH43: 58.05200119 | BI43: 56.70713552 | BJ43: 58.54923006 | BK43: 70.97851421 | BL43: 71.66528471 | BM43: 48.52401547 | BN43: 50.69882706 | BO43: 58.46111589 | BP43: 42.11306268 | BQ43: 47.16599211 | BR43: 53.0170813 | BS43: 52.59417336 | BT43: 52.13891868 | BU43: 51.79502375 | BV43: 51.42627775 | BW43: 51.03677417 | BX43: 50.66164265 | BY43: 50.3285668 | BZ43: 49.97508466 | CA43: 49.62969208 | CB43: 49.31170196 | CC43: 49.62969208 | CD43: 49.31170196 | CE43: 48.98050099 | CF43: 48.63524843 | DA43: =names!$A$11 -> Construction | DB43: 15.93465646 | DC43: 122.7502744 | DD43: 418.055637 | DE43: 150.7962568 | DF43: 95.21559089 | DG43: 442.743988 | DH43: 384.3371207 | DI43: 148.5340956 | DJ43: 126.3274818
AZ44: =names!$A$22 -> Education | BA44: Males | BB44: 12.21601676 | BC44: 12.57793516 | BD44: 12.93391887 | BE44: 13.99103398 | BF44: 12.22682231 | BG44: 15.64725957 | BH44: 17.19301815 | BI44: 16.82966251 | BJ44: 15.02347596 | BK44: 15.25356174 | BL44: 13.39552913 | BM44: 13.16866033 | BN44: 15.35630975 | BO44: 14.10008091 | BP44: 14.13813773 | BQ44: 15.80773965 | BR44: 22.64815077 | BS44: 23.22944103 | BT44: 23.9704765 | BU44: 24.73949656 | BV44: 25.62368691 | BW44: 26.26069967 | BX44: 27.174204 | BY44: 28.19644633 | BZ44: 29.38196994 | CA44: 30.72773781 | CB44: 32.23505102 | CC44: 30.72773781 | CD44: 32.23505102 | CE44: 34.06627432 | CF44: 36.33838521 | DA44: =names!$A$12 -> Wholesale and retail trade | DB44: 120.7281416 | DC44: 682.1290925 | DD44: 3043.186419 | DE44: 680.0306939 | DF44: 1274.702707 | DG44: 4009.002114 | DH44: 5636.158538 | DI44: 2866.620312 | DJ44: 1429.383219
BA45: Females | BB45: 87.78398324 | BC45: 87.42206484 | BD45: 87.06608113 | BE45: 86.00896602 | BF45: 87.77317769 | BG45: 84.35274043 | BH45: 82.80698185 | BI45: 83.17034117 | BJ45: 84.97652851 | BK45: 84.74643826 | BL45: 86.60447542 | BM45: 86.83133967 | BN45: 84.64369025 | BO45: 85.89991909 | BP45: 85.86186227 | BQ45: 84.19226035 | BR45: 77.35184923 | BS45: 76.77055897 | BT45: 76.0295235 | BU45: 75.26050344 | BV45: 74.37631309 | BW45: 73.73930033 | BX45: 72.825796 | BY45: 71.80355367 | BZ45: 70.61803006 | CA45: 69.27226219 | CB45: 67.76494898 | CC45: 69.27226219 | CD45: 67.76494898 | CE45: 65.93372568 | CF45: 63.66161479 | DA45: =names!$A$13 -> Transport and storage | DB45: 6.908467512 | DC45: 52.27676007 | DD45: 193.60036 | DE45: 123.0105609 | DF45: 115.1755295 | DG45: 761.6928553 | DH45: 473.5717733 | DI45: 320.7441623 | DJ45: 163.7678654
AZ46: =names!$A$23 -> Health and social work | BA46: Males | BB46: 14.3831163 | BC46: 15.3237752 | BD46: 16.44627998 | BE46: 17.6698572 | BF46: 18.96822175 | BG46: 19.25060971 | BH46: 19.2768057 | BI46: 22.58049473 | BJ46: 17.42944934 | BK46: 33.69359508 | BL46: 31.78152598 | BM46: 28.54702973 | BN46: 23.68473756 | BO46: 37.87238063 | BP46: 24.49089764 | BQ46: 38.60302321 | BR46: 36.31328177 | BS46: 36.98692206 | BT46: 37.84922116 | BU46: 38.81398083 | BV46: 39.8894829 | BW46: 41.00951304 | BX46: 42.41495863 | BY46: 43.9764139 | BZ46: 45.74578214 | CA46: 47.7183883 | CB46: 49.94365973 | CC46: 47.7183883 | CD46: 49.94365973 | CE46: 52.48308446 | CF46: 55.40824108 | DA46: =names!$A$14 -> Accommodation and food | DB46: 156.0074527 | DC46: 1397.841336 | DD46: 6079.362586 | DE46: 1926.777957 | DF46: 2104.828692 | DG46: 6144.193005 | DH46: 8982.741621 | DI46: 6324.13617 | DJ46: 1345.57024
BA47: Females | BB47: 85.61688193 | BC47: 84.6762248 | BD47: 83.55372206 | BE47: 82.3301428 | BF47: 81.03177825 | BG47: 80.74938786 | BH47: 80.7231943 | BI47: 77.41950527 | BJ47: 82.57055066 | BK47: 66.30640222 | BL47: 68.21847687 | BM47: 71.45297027 | BN47: 76.31526244 | BO47: 62.12761937 | BP47: 75.50910236 | BQ47: 61.39697679 | BR47: 63.68671823 | BS47: 63.01307794 | BT47: 62.15078269 | BU47: 61.18601917 | BV47: 60.1105171 | BW47: 58.99048696 | BX47: 57.58504137 | BY47: 56.0235802 | BZ47: 54.25422413 | CA47: 52.2816117 | CB47: 50.05634027 | CC47: 52.2816117 | CD47: 50.05634027 | CE47: 47.51691554 | CF47: 44.59175892 | DA47: =names!$A$15 -> Media | DB47: 6.715620116 | DC47: 40.97177484 | DD47: 261.8577488 | DE47: 28.90177136 | DF47: 61.38083942 | DG47: 208.497007 | DH47: 121.3390658 | DI47: 56.29583525 | DJ47: 30.56755514
AZ48: =names!$A$24 -> Arts and entertainment | BA48: Males | BB48: 46.81365257 | BC48: 48.36222466 | BD48: 47.73882418 | BE48: 47.40017324 | BF48: 49.10903863 | BG48: 49.23704602 | BH48: 54.1586176 | BI48: 52.44038794 | BJ48: 46.72474931 | BK48: 45.00443797 | BL48: 38.470253 | BM48: 48.57008437 | BN48: 59.97294522 | BO48: 55.89088092 | BP48: 53.21884934 | BQ48: 61.62471209 | BR48: 55.54522906 | BS48: 54.85483442 | BT48: 54.20739371 | BU48: 53.41365406 | BV48: 52.7087984 | BW48: 51.76663807 | BX48: 51.3443311 | BY48: 50.91922263 | BZ48: 50.60374662 | CA48: 50.27051375 | CB48: 50.04116114 | CC48: 50.27051375 | CD48: 50.04116114 | CE48: 49.79819371 | CF48: 49.54036206 | DA48: =names!$A$16 -> Information technology | DB48: 18.13322833 | DC48: 50.89156113 | DD48: 206.3407168 | DE48: 49.68364553 | DF48: 76.0464311 | DG48: 255.5849624 | DH48: 68.60795889 | DI48: 41.55413296 | DJ48: 24.82699701
BA49: Females | BB49: 53.18634743 | BC49: 51.63777534 | BD49: 52.26117582 | BE49: 52.59982676 | BF49: 50.89095102 | BG49: 50.76294459 | BH49: 45.8413824 | BI49: 47.55961206 | BJ49: 53.27524218 | BK49: 54.99556203 | BL49: 61.529747 | BM49: 51.42991563 | BN49: 40.02705478 | BO49: 44.10912798 | BP49: 46.7811601 | BQ49: 38.37528791 | BR49: 44.45476448 | BS49: 45.14517222 | BT49: 45.79260629 | BU49: 46.58634594 | BV49: 47.2912016 | BW49: 48.23336193 | BX49: 48.6556689 | BY49: 49.08078497 | BZ49: 49.39625338 | CA49: 49.72948625 | CB49: 49.95883886 | CC49: 49.72948625 | CD49: 49.95883886 | CE49: 50.20180629 | CF49: 50.45963794 | DA49: =names!$A$17 -> Finance and insurance | DB49: 10.47210486 | DC49: 118.8144725 | DD49: 242.3566147 | DE49: 87.100398 | DF49: 66.23604919 | DG49: 266.6982467 | DH49: 180.4009076 | DI49: 123.1982521 | DJ49: 6.241912265
AZ50: =names!$A$25 -> Other services | BA50: Males | BB50: 43.54719707 | BC50: 44.43024382 | BD50: 44.3112807 | BE50: 43.6270251 | BF50: 44.14685005 | BG50: 44.98838974 | BH50: 49.75470468 | BI50: 47.23967604 | BJ50: 44.66601583 | BK50: 48.45225067 | BL50: 43.62278202 | BM50: 47.33505268 | BN50: 51.44009614 | BO50: 49.88013399 | BP50: 46.72765173 | BQ50: 48.13077794 | BR50: 43.39376989 | BS50: 42.88481289 | BT50: 42.36778805 | BU50: 41.603341 | BV50: 40.86261357 | BW50: 40.34519879 | BX50: 40.14869812 | BY50: 39.8097704 | BZ50: 39.65208322 | CA50: 39.68946603 | CB50: 39.45902085 | CC50: 39.68946603 | CD50: 39.45902085 | CE50: 39.22086717 | CF50: 38.97461162 | DA50: =names!$A$18 -> Real estate | DB50: 49.28276992 | DC50: 781.1441624 | DD50: 1574.182401 | DE50: 540.4538719 | DF50: 574.3779329 | DG50: 1564.961131 | DH50: 918.5333363 | DI50: 818.1659654 | DJ50: 324.3126096
BA51: Females | BB51: 56.45280293 | BC51: 55.56975618 | BD51: 55.6887193 | BE51: 56.3729749 | BF51: 55.85314995 | BG51: 55.01161026 | BH51: 50.24529532 | BI51: 52.76032396 | BJ51: 55.33398417 | BK51: 51.54774933 | BL51: 56.37721798 | BM51: 52.66494732 | BN51: 48.55990386 | BO51: 50.11987573 | BP51: 53.27234827 | BQ51: 51.86923235 | BR51: 56.60623998 | BS51: 57.11519736 | BT51: 57.63221195 | BU51: 58.396659 | BV51: 59.13737531 | BW51: 59.65480121 | BX51: 59.85130188 | BY51: 60.1902296 | BZ51: 60.34791678 | CA51: 60.31053397 | CB51: 60.54097915 | CC51: 60.31053397 | CD51: 60.54097915 | CE51: 60.77913283 | CF51: 61.02538838 | DA51: =names!$A$19 -> Professional services | DB51: 146.6747603 | DC51: 1016.933758 | DD51: 2317.357977 | DE51: 86.49905891 | DF51: 387.3758114 | DG51: 549.808061 | DH51: 545.7679106 | DI51: 198.0288783 | DJ51: 67.29707708
DA52: =names!$A$20 -> Support services | DB52: 24.44287714 | DC52: 553.9971111 | DD52: 1537.77489 | DE52: 553.166432 | DF52: 622.6601497 | DG52: 1494.016082 | DH52: 1594.93546 | DI52: 1440.537079 | DJ52: 452.6616568
DA53: =names!$A$21 -> Public admin. and defence | DB53: 23.61714576 | DC53: 274.7513935 | DD53: 538.4074407 | DE53: 208.6213289 | DF53: 157.4352065 | DG53: 516.9862739 | DH53: 155.887248 | DI53: 40.68406235 | DJ53: 13.49361015
DA54: =names!$A$22 -> Education | DB54: 1.602623533 | DC54: 196.1120807 | DD54: 397.3493451 | DE54: 338.7273786 | DF54: 247.2582202 | DG54: 448.0311331 | DH54: 458.8570827 | DI54: 226.7807366 | DJ54: 79.96313074
DA55: =names!$A$23 -> Health and social work | DB55: 19.42263905 | DC55: 247.8943818 | DD55: 796.9597933 | DE55: 742.0689381 | DF55: 197.0817983 | DG55: 891.5878637 | DH55: 174.6855237 | DI55: 221.5534857 | DJ55: 32.56888636
DA56: =names!$A$24 -> Arts and entertainment | DB56: 17.64128043 | DC56: 217.5073449 | DD56: 875.2529254 | DE56: 184.1329125 | DF56: 240.4900588 | DG56: 519.442154 | DH56: 829.2609696 | DI56: 491.4582671 | DJ56: 244.2979107
DA57: =names!$A$25 -> Other services | DB57: 16.73845346 | DC57: 128.3538206 | DD57: 555.3062763 | DE57: 643.4555399 | DF57: 306.5605808 | DG57: 1196.010897 | DH57: 1609.059368 | DI57: 893.6298739 | DJ57: 85.01035004
BB59: Selected occupation as % of all occupations, separately for men and women
BB60: 1994 | BC60: 1995 | BD60: 1996 | BE60: 1997 | BF60: 1998 | BG60: 1999 | BH60: 2000 | BI60: 2001 | BJ60: 2002 | BK60: 2003 | BL60: 2004 | BM60: 2005 | BN60: 2006 | BO60: 2007 | BP60: 2008 | BQ60: 2009 | BR60: 2010 | BS60: 2011 | BT60: 2012 | BU60: 2013 | BV60: 2014 | BW60: 2015 | BX60: 2016 | BY60: 2017 | BZ60: 2018 | CA60: 2019 | CB60: 2020 | CC60: 2021 | CD60: 2022 | CE60: 2023 | CF60: 2024
AZ61: =names!$A$3 -> All industries | BA61: Males | BB61: 3.11064203 | BC61: 3.0433412 | BD61: 2.944088044 | BE61: 2.933905861 | BF61: 2.986634527 | BG61: 3.052131121 | BH61: 2.942476201 | BI61: 2.959333589 | BJ61: 2.909694396 | BK61: 2.826443252 | BL61: 2.992431894 | BM61: 2.768284687 | BN61: 2.727802395 | BO61: 2.700691339 | BP61: 2.600305338 | BQ61: 2.404650447 | BR61: 2.674695427 | BS61: 2.603788845 | BT61: 2.544842558 | BU61: 2.485598808 | BV61: 2.423614073 | BW61: 2.360039279 | BX61: 2.298979538 | BY61: 2.239998213 | BZ61: 2.18101979 | CA61: 2.122637411 | CB61: 2.063920827 | CC61: 2.122637411 | CD61: 2.063920827 | CE61: 2.005690726 | CF61: 1.947941087
BA62: Females | BB62: 2.97544005 | BC62: 2.830758226 | BD62: 2.67192622 | BE62: 2.556476053 | BF62: 2.446651435 | BG62: 2.246735447 | BH62: 2.145243598 | BI62: 2.022823178 | BJ62: 1.922960393 | BK62: 1.810862848 | BL62: 1.792466403 | BM62: 1.67201459 | BN62: 1.566432797 | BO62: 1.605681821 | BP62: 1.594352909 | BQ62: 1.564468413 | BR62: 1.489656504 | BS62: 1.416701331 | BT62: 1.341658104 | BU62: 1.269983358 | BV62: 1.200102622 | BW62: 1.133199782 | BX62: 1.06692494 | BY62: 1.002092965 | BZ62: 0.9375184767 | CA62: 0.8733809195 | CB62: 0.8099949042 | CC62: 0.8733809195 | CD62: 0.8099949042 | CE62: 0.7476834932 | CF62: 0.6864195891
AZ63: =names!$A$4 -> Agriculture | BA63: Males | BB63: 0.7200093139 | BC63: 0.724480663 | BD63: 0.6851952038 | BE63: 0.6752099431 | BF63: 0.6540512921 | BG63: 0.6223503974 | BH63: 0.6302375887 | BI63: 0.6108290461 | BJ63: 0.6144416603 | BK63: 0.6029490685 | BL63: 0.5799952947 | BM63: 0.5603413553 | BN63: 0.5310961261 | BO63: 0.5213199254 | BP63: 0.5348002032 | BQ63: 0.5094638485 | BR63: 0.5398581034 | BS63: 0.5321759828 | BT63: 0.515388694 | BU63: 0.5010393014 | BV63: 0.487758421 | BW63: 0.4757965766 | BX63: 0.4668808878 | BY63: 0.4583376015 | BZ63: 0.449353541 | CA63: 0.4409559551 | CB63: 0.4327648302 | CC63: 0.4409559551 | CD63: 0.4327648302 | CE63: 0.4243925137 | CF63: 0.4158329262 | DA63: Emp x qualification for occupation 3 for every industry
BA64: Females | BB64: 1.27023336 | BC64: 1.108136378 | BD64: 1.022394034 | BE64: 1.028578543 | BF64: 1.081962023 | BG64: 0.9734593558 | BH64: 1.008272653 | BI64: 0.9644971215 | BJ64: 0.8007035738 | BK64: 0.769006093 | BL64: 0.7199543439 | BM64: 0.7183515027 | BN64: 0.59771046 | BO64: 0.5397064866 | BP64: 0.6416120397 | BQ64: 0.5373680507 | BR64: 0.5122153303 | BS64: 0.5104615989 | BT64: 0.5061929108 | BU64: 0.5171158593 | BV64: 0.5558962435 | BW64: 0.5462702998 | BX64: 0.5396856186 | BY64: 0.5340416529 | BZ64: 0.5271826774 | CA64: 0.5197288848 | CB64: 0.5135456639 | CC64: 0.5197288848 | CD64: 0.5135456639 | CE64: 0.5072883909 | CF64: 0.5009557277 | DA64: 2012 | DB64: =DB34 -> QCF8 | DC64: =DC34 -> QCF7 | DD64: QCF6 | DE64: QCF5 | DF64: QCF4 | DG64: QCF3 | DH64: QCF2 | DI64: QCF1 | DJ64: No Qual
AZ65: =names!$A$5 -> Mining and quarrying | BA65: Males | BB65: 0.9708822872 | BC65: 0.9192661993 | BD65: 0.9013473656 | BE65: 0.9153958548 | BF65: 0.8793187632 | BG65: 0.834309636 | BH65: 0.8165720254 | BI65: 0.820158403 | BJ65: 0.8181024565 | BK65: 0.8035866608 | BL65: 0.7993531202 | BM65: 0.7940393541 | BN65: 0.7813380674 | BO65: 0.7588878667 | BP65: 0.7945656803 | BQ65: 0.7740197604 | BR65: 0.7709483938 | BS65: 0.7667269332 | BT65: 0.7520511671 | BU65: 0.7327433811 | BV65: 0.7187345329 | BW65: 0.704244891 | BX65: 0.6872527711 | BY65: 0.6695256891 | BZ65: 0.6519795369 | CA65: 0.634775678 | CB65: 0.6175504723 | CC65: 0.634775678 | CD65: 0.6175504723 | CE65: 0.5996323176 | CF65: 0.5809785408 | DA65: =names!$A$3 -> All industries | DB65: 4858.690069 | DC65: 18129.04523 | DD65: 45943.7632 | DE65: 5497.613273 | DF65: 14193.6656 | DG65: 19333.11884 | DH65: 15126.46135 | DI65: 7816.835879 | DJ65: 1387.804184
BA66: Females | BB66: 1.547037359 | BC66: 1.488875536 | BD66: 1.257676349 | BE66: 1.293436005 | BF66: 1.422396326 | BG66: 1.443847352 | BH66: 1.368470396 | BI66: 1.526416984 | BJ66: 1.393329203 | BK66: 1.600323387 | BL66: 1.645893851 | BM66: 1.261870586 | BN66: 1.030001123 | BO66: 1.158042196 | BP66: 0.9538159727 | BQ66: 0.9142448289 | BR66: 1.080614597 | BS66: 0.9917209419 | BT66: 0.9424204144 | BU66: 0.8779525561 | BV66: 0.8163179382 | BW66: 0.7639691715 | BX66: 0.7159859521 | BY66: 0.6674920969 | BZ66: 0.6208861604 | CA66: 0.5742432432 | CB66: 0.526870981 | CC66: 0.5742432432 | CD66: 0.526870981 | CE66: 0.4783042394 | CF66: 0.4284972639 | DA66: =names!$A$4 -> Agriculture | DB66: 6.785411994 | DC66: 118.8506908 | DD66: 166.2623623 | DE66: 28.40117552 | DF66: 124.1699511 | DG66: 16.81616417 | DH66: 108.6457439 | DI66: 140.4444171 | DJ66: 49.33932418
AZ67: =names!$A$6 -> Food drink and tobacco | BA67: Males | BB67: 11.74741291 | BC67: 11.64787209 | BD67: 11.60370744 | BE67: 11.33617142 | BF67: 11.09208539 | BG67: 10.59287956 | BH67: 10.73965261 | BI67: 10.66475769 | BJ67: 9.037357794 | BK67: 10.07135799 | BL67: 7.862586627 | BM67: 7.187664107 | BN67: 6.826350368 | BO67: 9.208733475 | BP67: 10.11297512 | BQ67: 6.677656335 | BR67: 6.384636889 | BS67: 6.250262463 | BT67: 6.124207181 | BU67: 5.97199273 | BV67: 5.83084134 | BW67: 5.690582577 | BX67: 5.592394911 | BY67: 5.478936568 | BZ67: 5.359460737 | CA67: 5.236146116 | CB67: 5.10447012 | CC67: 5.236146116 | CD67: 5.10447012 | CE67: 4.973469547 | CF67: 4.843139213 | DA67: =names!$A$5 -> Mining and quarrying | DB67: 6.22462685 | DC67: 30.65205125 | DD67: 66.95247609 | DE67: 0 | DF67: 14.50084743 | DG67: 40.19864108 | DH67: 19.13310477 | DI67: 23.52506121 | DJ67: 3.607817563
BA68: Females | BB68: 6.103070091 | BC68: 5.590121987 | BD68: 5.367774726 | BE68: 5.346952653 | BF68: 5.36394597 | BG68: 5.172883761 | BH68: 5.056401681 | BI68: 5.111013857 | BJ68: 5.252632418 | BK68: 4.61186175 | BL68: 5.199990897 | BM68: 4.679707489 | BN68: 4.394323524 | BO68: 4.045495593 | BP68: 5.566936219 | BQ68: 5.974170384 | BR68: 6.903002795 | BS68: 6.443132418 | BT68: 5.82701493 | BU68: 5.395167888 | BV68: 4.997349197 | BW68: 4.614566406 | BX68: 4.353819265 | BY68: 4.089374041 | BZ68: 3.81337648 | CA68: 3.530752188 | CB68: 3.239694544 | CC68: 3.530752188 | CD68: 3.239694544 | CE68: 2.943900246 | CF68: 2.64325272 | DA68: =names!$A$6 -> Food drink and tobacco | DB68: 1.332313727 | DC68: 62.19024967 | DD68: 196.8856349 | DE68: 52.5002355 | DF68: 183.835756 | DG68: 295.0497414 | DH68: 133.9084731 | DI68: 57.62685473 | DJ68: 8.82372076
AZ69: =names!$A$7 -> Engineering | BA69: Males | BB69: 1.107349013 | BC69: 1.077528334 | BD69: 1.061152991 | BE69: 1.051664056 | BF69: 1.004750255 | BG69: 0.9324997669 | BH69: 0.9213022685 | BI69: 0.9301860748 | BJ69: 1.111058822 | BK69: 1.155380197 | BL69: 0.9065601099 | BM69: 1.185679569 | BN69: 1.430627057 | BO69: 1.341503742 | BP69: 1.367047994 | BQ69: 0.6964335673 | BR69: 0.9507102627 | BS69: 0.9311380475 | BT69: 0.9149273866 | BU69: 0.8927568717 | BV69: 0.8732558098 | BW69: 0.8546531463 | BX69: 0.8398496547 | BY69: 0.8232359063 | BZ69: 0.804680015 | CA69: 0.7827110214 | CB69: 0.7610507783 | CC69: 0.7827110214 | CD69: 0.7610507783 | CE69: 0.7386459194 | CF69: 0.7154573767 | DA69: =names!$A$7 -> Engineering | DB69: 125.2232024 | DC69: 504.742453 | DD69: 1925.670021 | DE69: 50.05053418 | DF69: 1115.709765 | DG69: 1463.144101 | DH69: 634.9931637 | DI69: 356.6218154 | DJ69: 106.3353306
BA70: Females | BB70: 1.480790977 | BC70: 1.38225778 | BD70: 1.366113078 | BE70: 1.297233788 | BF70: 1.270256504 | BG70: 1.295094924 | BH70: 1.239870781 | BI70: 1.229333253 | BJ70: 1.22483481 | BK70: 1.18782643 | BL70: 1.124996475 | BM70: 1.112456389 | BN70: 1.097798395 | BO70: 1.032264313 | BP70: 1.00976907 | BQ70: 0.9365819967 | BR70: 0.9491464581 | BS70: 0.9159549748 | BT70: 0.8753796578 | BU70: 0.8298413748 | BV70: 0.7826414602 | BW70: 0.7367770377 | BX70: 0.6957738629 | BY70: 0.653559805 | BZ70: 0.6117321714 | CA70: 0.5691097818 | CB70: 0.5283179141 | CC70: 0.5691097818 | CD70: 0.5283179141 | CE70: 0.4864988826 | CF70: 0.4436133956 | DA70: =names!$A$8 -> Rest of manufacturing | DB70: 573.4942571 | DC70: 1320.636465 | DD70: 4324.693914 | DE70: 575.8732898 | DF70: 2418.054384 | DG70: 2456.473265 | DH70: 1635.425998 | DI70: 966.1064457 | DJ70: 90.26145461
AZ71: =names!$A$8 -> Rest of manufacturing | BA71: Males | BB71: 7.375582012 | BC71: 7.031703427 | BD71: 6.582071507 | BE71: 6.415838378 | BF71: 6.410127785 | BG71: 6.32989392 | BH71: 6.265690583 | BI71: 6.116897919 | BJ71: 6.043950355 | BK71: 5.758167874 | BL71: 6.116957703 | BM71: 5.916890883 | BN71: 6.076626704 | BO71: 5.405011198 | BP71: 5.7124461 | BQ71: 5.254074102 | BR71: 5.009330143 | BS71: 4.864888628 | BT71: 4.720762979 | BU71: 4.528838047 | BV71: 4.352953051 | BW71: 4.186709263 | BX71: 4.068066951 | BY71: 3.945743442 | BZ71: 3.829978391 | CA71: 3.719648379 | CB71: 3.606060819 | CC71: 3.719648379 | CD71: 3.606060819 | CE71: 3.489166943 | CF71: 3.368820258 | DA71: =names!$A$9 -> Electricity and gas | DB71: 44.68110879 | DC71: 203.1250951 | DD71: 457.3728284 | DE71: 76.53691146 | DF71: 274.3064986 | DG71: 275.98379 | DH71: 133.0763888 | DI71: 49.0914642 | DJ71: 0.2863250124
BA72: Females | BB72: 9.012262404 | BC72: 8.566222136 | BD72: 7.882643484 | BE72: 7.407423806 | BF72: 7.264120033 | BG72: 6.375041954 | BH72: 6.137136997 | BI72: 5.606502133 | BJ72: 5.410378249 | BK72: 5.315871755 | BL72: 5.197191205 | BM72: 5.001343106 | BN72: 5.427411322 | BO72: 4.907822992 | BP72: 4.866405487 | BQ72: 4.783124582 | BR72: 4.650417354 | BS72: 4.327001883 | BT72: 4.012899472 | BU72: 3.705381936 | BV72: 3.432579898 | BW72: 3.146304509 | BX72: 2.939257295 | BY72: 2.747449503 | BZ72: 2.551877249 | CA72: 2.355690284 | CB72: 2.166198912 | CC72: 2.355690284 | CD72: 2.166198912 | CE72: 1.973737579 | CF72: 1.778235909 | DA72: =names!$A$10 -> Water and sewerage | DB72: 13.70202432 | DC72: 11.63918479 | DD72: 333.268045 | DE72: 47.27498746 | DF72: 164.9963574 | DG72: 33.27742454 | DH72: 64.67937951 | DI72: 8.404428434 | DJ72: 38.94988684
AZ73: =names!$A$9 -> Electricity and gas | BA73: Males | BB73: 0.3811041147 | BC73: 0.3796853445 | BD73: 0.3861674305 | BE73: 0.3892609124 | BF73: 0.3997908772 | BG73: 0.3634085876 | BH73: 0.3542593145 | BI73: 0.3686504634 | BJ73: 0.3645741668 | BK73: 0.3607057211 | BL73: 0.3316013235 | BM73: 0.3386290149 | BN73: 0.3531872783 | BO73: 0.3259316409 | BP73: 0.3515585586 | BQ73: 0.3411042746 | BR73: 0.3666213543 | BS73: 0.3568495932 | BT73: 0.3524338939 | BU73: 0.3448840197 | BV73: 0.3375745045 | BW73: 0.3308459258 | BX73: 0.3233640096 | BY73: 0.3155912482 | BZ73: 0.3080724971 | CA73: 0.3004903855 | CB73: 0.2925394682 | CC73: 0.3004903855 | CD73: 0.2925394682 | CE73: 0.2838457039 | CF73: 0.2742998858 | DA73: =names!$A$11 -> Construction | DB73: 101.7967264 | DC73: 1023.463407 | DD73: 2635.430265 | DE73: 384.1286455 | DF73: 1419.688236 | DG73: 2838.911536 | DH73: 1886.288463 | DI73: 525.1251809 | DJ73: 186.4348035
BA74: Females | BB74: 1.226938753 | BC74: 1.187279004 | BD74: 1.064101032 | BE74: 1.014928016 | BF74: 1.026320681 | BG74: 1.026614615 | BH74: 1.034037254 | BI74: 0.9582425383 | BJ74: 0.9668824341 | BK74: 1.047834809 | BL74: 1.002586265 | BM74: 0.8993938002 | BN74: 0.8661969556 | BO74: 0.7363624673 | BP74: 0.7512813644 | BQ74: 0.7609696485 | BR74: 0.8268389264 | BS74: 0.7666314601 | BT74: 0.7283398347 | BU74: 0.6846447809 | BV74: 0.6407631352 | BW74: 0.5996615841 | BX74: 0.5674875103 | BY74: 0.5344935806 | BZ74: 0.5011561909 | CA74: 0.4678662793 | CB74: 0.4332112829 | CC74: 0.4678662793 | CD74: 0.4332112829 | CE74: 0.3954770785 | CF74: 0.3542341897 | DA74: =names!$A$12 -> Wholesale and retail trade | DB74: 130.8879927 | DC74: 346.4109223 | DD74: 2610.430613 | DE74: 311.0953335 | DF74: 673.7820863 | DG74: 2159.101593 | DH74: 1821.233693 | DI74: 1314.023833 | DJ74: 304.7134202
AZ75: =names!$A$10 -> Water and sewerage | BA75: Males | BB75: 0.6969809976 | BC75: 0.6996310465 | BD75: 0.7042148168 | BE75: 0.7643389883 | BF75: 0.7078117238 | BG75: 0.7323387261 | BH75: 0.7848355835 | BI75: 0.6790519321 | BJ75: 0.6701462919 | BK75: 0.6627996072 | BL75: 0.7344983912 | BM75: 0.7627466848 | BN75: 0.6279465488 | BO75: 0.6417049346 | BP75: 0.639172195 | BQ75: 0.7046890457 | BR75: 0.743048895 | BS75: 0.7378601205 | BT75: 0.7403251141 | BU75: 0.7379306417 | BV75: 0.736408066 | BW75: 0.7316970225 | BX75: 0.7230589472 | BY75: 0.7153798689 | BZ75: 0.7087619417 | CA75: 0.7023337873 | CB75: 0.6907631692 | CC75: 0.7023337873 | CD75: 0.6907631692 | CE75: 0.6794076549 | CF75: 0.6682613014 | DA75: =names!$A$13 -> Transport and storage | DB75: 48.05097529 | DC75: 241.8118727 | DD75: 684.1305394 | DE75: 82.27373835 | DF75: 518.7290388 | DG75: 503.5989553 | DH75: 616.1956921 | DI75: 298.7165197 | DJ75: 62.26552307
BA76: Females | BB76: 1.62599958 | BC76: 1.589565692 | BD76: 1.389251962 | BE76: 1.279019943 | BF76: 1.500554234 | BG76: 1.193946824 | BH76: 1.416510446 | BI76: 1.120405516 | BJ76: 0.8574682469 | BK76: 1.142514903 | BL76: 1.177441983 | BM76: 1.30610327 | BN76: 1.409127949 | BO76: 1.378241021 | BP76: 1.199503041 | BQ76: 1.16018963 | BR76: 1.242963387 | BS76: 1.236889392 | BT76: 1.231258775 | BU76: 1.188809266 | BV76: 1.137041227 | BW76: 1.078399546 | BX76: 1.03314806 | BY76: 0.9894565175 | BZ76: 0.9419248748 | CA76: 0.8921854419 | CB76: 0.8435044863 | CC76: 0.8921854419 | CD76: 0.8435044863 | CE76: 0.798198329 | CF76: 0.7559277909 | DA76: =names!$A$14 -> Accommodation and food | DB76: 1.957821761 | DC76: 256.3584231 | DD76: 268.5102592 | DE76: 30.44215261 | DF76: 213.9285445 | DG76: 422.7942036 | DH76: 289.6324404 | DI76: 150.2651005 | DJ76: 54.86917417
AZ77: =names!$A$11 -> Construction | BA77: Males | BB77: 0.8028125648 | BC77: 0.7934411092 | BD77: 0.7835078776 | BE77: 0.7750005215 | BF77: 0.733025882 | BG77: 0.6817953859 | BH77: 0.6398155308 | BI77: 0.6684905235 | BJ77: 0.5911693654 | BK77: 0.689603725 | BL77: 0.6746925836 | BM77: 0.6066492654 | BN77: 0.6467129252 | BO77: 0.8113133411 | BP77: 0.8377506496 | BQ77: 0.6688006784 | BR77: 0.9012727248 | BS77: 0.8745962209 | BT77: 0.8597796287 | BU77: 0.8358626242 | BV77: 0.8164925262 | BW77: 0.7976213218 | BX77: 0.7816217754 | BY77: 0.7638212612 | BZ77: 0.7452159732 | CA77: 0.7259030292 | CB77: 0.7067876302 | CC77: 0.7259030292 | CD77: 0.7067876302 | CE77: 0.6879787133 | CF77: 0.6694689662 | DA77: =names!$A$15 -> Media | DB77: 12.82612534 | DC77: 207.6649238 | DD77: 649.2667334 | DE77: 75.40254459 | DF77: 92.05973136 | DG77: 174.7535906 | DH77: 140.8218766 | DI77: 82.10425887 | DJ77: 9.913846773
BA78: Females | BB78: 0.4203305022 | BC78: 0.4226308007 | BD78: 0.414247143 | BE78: 0.4219176303 | BF78: 0.3826272368 | BG78: 0.3794892293 | BH78: 0.3731296519 | BI78: 0.3866892538 | BJ78: 0.4656043678 | BK78: 0.5017765966 | BL78: 0.4551752649 | BM78: 0.5062735504 | BN78: 0.5023143818 | BO78: 0.5343132827 | BP78: 0.5371554983 | BQ78: 0.6962321547 | BR78: 0.5565838672 | BS78: 0.5720534833 | BT78: 0.5789402342 | BU78: 0.5875179072 | BV78: 0.5913832402 | BW78: 0.5929925804 | BX78: 0.5947877472 | BY78: 0.5986844871 | BZ78: 0.6022373942 | CA78: 0.6029787071 | CB78: 0.6029415318 | CC78: 0.6029787071 | CD78: 0.6029415318 | CE78: 0.6029054564 | CF78: 0.6028704328 | DA78: =names!$A$16 -> Information technology | DB78: 363.9715177 | DC78: 3698.203475 | DD78: 9506.267009 | DE78: 1032.143748 | DF78: 2150.348018 | DG78: 2472.186883 | DH78: 2110.665482 | DI78: 1617.981519 | DJ78: 214.808449
AZ79: =names!$A$12 -> Wholesale and retail trade | BA79: Males | BB79: 2.672034033 | BC79: 2.649733619 | BD79: 2.52258733 | BE79: 2.528073793 | BF79: 2.472747114 | BG79: 2.661251382 | BH79: 2.712342179 | BI79: 2.751010946 | BJ79: 2.727998598 | BK79: 2.924653677 | BL79: 2.678180025 | BM79: 2.456173336 | BN79: 2.289116353 | BO79: 2.401732163 | BP79: 2.216243958 | BQ79: 2.206465603 | BR79: 2.026968074 | BS79: 2.000210986 | BT79: 1.966338265 | BU79: 1.928137477 | BV79: 1.893597678 | BW79: 1.859350402 | BX79: 1.81726165 | BY79: 1.774873048 | BZ79: 1.733186108 | CA79: 1.6907747 | CB79: 1.645907653 | CC79: 1.6907747 | CD79: 1.645907653 | CE79: 1.600905375 | CF79: 1.555767253 | DA79: =names!$A$17 -> Finance and insurance | DB79: 41.61769822 | DC79: 876.4322754 | DD79: 2383.884523 | DE79: 326.2108592 | DF79: 474.7766764 | DG79: 1114.331505 | DH79: 1239.41982 | DI79: 372.0466175 | DJ79: 8.990498986
